Workbook

Sheet Change Log
A2: Method M Version No. | C2: [Extended Disaggregation Model PB LZ v1.0]
A3: Release Date: | C3: [01 April 2013]
A8: This version of Method M incorporates the following change proposals:
A10: Ref | B10: Approval Date | C10: Implementation Date | D10: Title
A11: DCP 071A | B11: 2011-06-20 | C11: 2011-10-01 | D11: Allocation of Costs to HV Connected IDNOs with LV End Users
A12: DCP 095 | B12: 2011-12-09 | C12: 2012-04-01 | D12: Not included in this model
A13: DCP 096 | B13: 2011-12-09 | C13: 2012-04-01 | D13: Treatment of Transmission Exit Charges in CDCM Price Control Disaggregation Model (Method M)

Sheet Inputs
A1: ="Extended Method M for "&B5&" in "&B6&" Status: "&B7&"" -> Extended Method M for WPD East Midlands in 2015/16 Status: Indicative
A4: 1000. Company, charging year, data version
A5: DNO | B5: WPD East Midlands
A6: Charging Year | B6: 2015/16
A7: Version | B7: Indicative
A10: 1001. LV/HV Split
A11: Sources: HV main usage value provided each year by the Nominated Calculation Agent
A12: DNO LV Main usage | B12: 0.099
A13: DNO HV Main usage | B13: 0.55
A14: DNO 33kV split | B14: 1
A15: DNO 132kV split | B15: 1
A18: 1002. Method M input data
A19: Each DNO selects one of the options below to calculate the LDNO discounts:
A20: 'LR1 opt 3' is an extended version of LR1, which contains all information from LR1, but breaks down certain lines into more detail.
A21: Version LR1
A22: Version LR1, Option 3
B25: This spreadsheet is currently using version: | C25: LR1
A27: 1003. Depreciation Factor
A28: Depreciation Factor | B28: 0.05545
A31: 1004. CDCM Discounts
A32: Sources: CDCM Table 1037. (Embedded network (LDNO) discounts)
B33: No discount | C33: LDNO LV: LV user | D33: LDNO HV: LV user | E33: LDNO HV: LV sub user | F33: LDNO HV: HV user
A34: LDNO discount using data in this model | C34: 0.2905972103 | D34: 0.4796237261 | E34: 0.2565462223 | F34: 0.1603825113
A36: Additional Input Links
A37: Calc-Net capex'!K5 | B37: Suggest these values are set to 0 for those using LR1
A38: Calc-Net capex'!O6 to O10 | B38: Suggest these values are set to 0 for those using LR1
A40: Notes
A41: - Where DNOs do not hold asset data required by the Method M model within the RRP data tables, the DNO can substitute equivalent data within the Method M input tables.

Sheet Outputs
A1: ="Extended Method M for "&Inputs!B5&" in "&Inputs!B6&" Status: "&Inputs!B7&"" -> Extended Method M for WPD East Midlands in 2015/16 Status: Indicative | G1: Index
A3: The data table below is used to populate EDCM table 1181 (LDNO discounts)
A6: Boundary category | B6: LV demand end user | C6: LV Sub demand or LV generation end user | D6: HV demand or LV Sub generation end user | E6: HV generation end user
A7: Boundary 0000 | B7: =IF((SUM('Allocation Summary'!B$13:H$13)-SUMPRODUCT('Allocation Summary'!B22:E22,'Allocation Summary'!E$13:H$13))/(1-SUMPRODUCT('Allocation Summary'!F22:I22,'Allocation Summary'!E$13:H$13))>1,1,(SUM('Allocation Summary'!B$13:H$13)-SUMPRODUCT('Allocation Summary'!B22:E22,'Allocation Summary'!E$13:H$13))/(1-SUMPRODUCT('Allocation Summary'!F22:I22,'Allocation Summary'!E$13:H$13))) -> 0.9087572727 | C7: =IF((SUM('Allocation Summary'!C$13:H$13)-SUMPRODUCT('Allocation Summary'!B22:E22,'Allocation Summary'!E$13:H$13))/(1-'Allocation Summary'!B$13-SUMPRODUCT('Allocation Summary'!F22:I22,'Allocation Summary'!E$13:H$13))>1,1,(SUM('Allocation Summary'!C$13:H$13)-SUMPRODUCT('Allocation Summary'!B22:E22,'Allocation Summary'!E$13:H$13))/(1-'Allocation Summary'!B$13-SUMPRODUCT('Allocation Summary'!F22:I22,'Allocation Summary'!E$13:H$13))) -> 0.8708356648 | D7: =IF((SUM('Allocation Summary'!D$13:H$13)-SUMPRODUCT('Allocation Summary'!B22:E22,'Allocation Summary'!E$13:H$13))/(1-SUM('Allocation Summary'!B$13:C$13)-SUMPRODUCT('Allocation Summary'!F22:I22,'Allocation Summary'!E$13:H$13))>1,1,(SUM('Allocation Summary'!D$13:H$13)-SUMPRODUCT('Allocation Summary'!B22:E22,'Allocation Summary'!E$13:H$13))/(1-SUM('Allocation Summary'!B$13:C$13)-SUMPRODUCT('Allocation Summary'!F22:I22,'Allocation Summary'!E$13:H$13))) -> 0.8547717671 | E7: =IF((SUM('Allocation Summary'!E$13:H$13)-SUMPRODUCT('Allocation Summary'!B22:E22,'Allocation Summary'!E$13:H$13))/(1-SUM('Allocation Summary'!B$13:D$13)-SUMPRODUCT('Allocation Summary'!F22:I22,'Allocation Summary'!E$13:H$13))>1,1,(SUM('Allocation Summary'!E$13:H$13)-SUMPRODUCT('Allocation Summary'!B22:E22,'Allocation Summary'!E$13:H$13))/(1-SUM('Allocation Summary'!B$13:D$13)-SUMPRODUCT('Allocation Summary'!F22:I22,'Allocation Summary'!E$13:H$13))) -> 0.7898581499
A8: Boundary 132kV | B8: =IF((SUM('Allocation Summary'!B$13:H$13)-SUMPRODUCT('Allocation Summary'!B23:E23,'Allocation Summary'!E$13:H$13))/(1-SUMPRODUCT('Allocation Summary'!F23:I23,'Allocation Summary'!E$13:H$13))>1,1,(SUM('Allocation Summary'!B$13:H$13)-SUMPRODUCT('Allocation Summary'!B23:E23,'Allocation Summary'!E$13:H$13))/(1-SUMPRODUCT('Allocation Summary'!F23:I23,'Allocation Summary'!E$13:H$13))) -> 0.7374304244 | C8: =IF((SUM('Allocation Summary'!C$13:H$13)-SUMPRODUCT('Allocation Summary'!B23:E23,'Allocation Summary'!E$13:H$13))/(1-'Allocation Summary'!B$13-SUMPRODUCT('Allocation Summary'!F23:I23,'Allocation Summary'!E$13:H$13))>1,1,(SUM('Allocation Summary'!C$13:H$13)-SUMPRODUCT('Allocation Summary'!B23:E23,'Allocation Summary'!E$13:H$13))/(1-'Allocation Summary'!B$13-SUMPRODUCT('Allocation Summary'!F23:I23,'Allocation Summary'!E$13:H$13))) -> 0.6283032558 | D8: =IF((SUM('Allocation Summary'!D$13:H$13)-SUMPRODUCT('Allocation Summary'!B23:E23,'Allocation Summary'!E$13:H$13))/(1-SUM('Allocation Summary'!B$13:C$13)-SUMPRODUCT('Allocation Summary'!F23:I23,'Allocation Summary'!E$13:H$13))>1,1,(SUM('Allocation Summary'!D$13:H$13)-SUMPRODUCT('Allocation Summary'!B23:E23,'Allocation Summary'!E$13:H$13))/(1-SUM('Allocation Summary'!B$13:C$13)-SUMPRODUCT('Allocation Summary'!F23:I23,'Allocation Summary'!E$13:H$13))) -> 0.5820761104 | E8: =IF((SUM('Allocation Summary'!E$13:H$13)-SUMPRODUCT('Allocation Summary'!B23:E23,'Allocation Summary'!E$13:H$13))/(1-SUM('Allocation Summary'!B$13:D$13)-SUMPRODUCT('Allocation Summary'!F23:I23,'Allocation Summary'!E$13:H$13))>1,1,(SUM('Allocation Summary'!E$13:H$13)-SUMPRODUCT('Allocation Summary'!B23:E23,'Allocation Summary'!E$13:H$13))/(1-SUM('Allocation Summary'!B$13:D$13)-SUMPRODUCT('Allocation Summary'!F23:I23,'Allocation Summary'!E$13:H$13))) -> 0.3952739244
A9: Boundary 132kV/EHV | B9: =IF((SUM('Allocation Summary'!B$13:H$13)-SUMPRODUCT('Allocation Summary'!B24:E24,'Allocation Summary'!E$13:H$13))/(1-SUMPRODUCT('Allocation Summary'!F24:I24,'Allocation Summary'!E$13:H$13))>1,1,(SUM('Allocation Summary'!B$13:H$13)-SUMPRODUCT('Allocation Summary'!B24:E24,'Allocation Summary'!E$13:H$13))/(1-SUMPRODUCT('Allocation Summary'!F24:I24,'Allocation Summary'!E$13:H$13))) -> 0.6479654754 | C9: =IF((SUM('Allocation Summary'!C$13:H$13)-SUMPRODUCT('Allocation Summary'!B24:E24,'Allocation Summary'!E$13:H$13))/(1-'Allocation Summary'!B$13-SUMPRODUCT('Allocation Summary'!F24:I24,'Allocation Summary'!E$13:H$13))>1,1,(SUM('Allocation Summary'!C$13:H$13)-SUMPRODUCT('Allocation Summary'!B24:E24,'Allocation Summary'!E$13:H$13))/(1-'Allocation Summary'!B$13-SUMPRODUCT('Allocation Summary'!F24:I24,'Allocation Summary'!E$13:H$13))) -> 0.5016555655 | D9: =IF((SUM('Allocation Summary'!D$13:H$13)-SUMPRODUCT('Allocation Summary'!B24:E24,'Allocation Summary'!E$13:H$13))/(1-SUM('Allocation Summary'!B$13:C$13)-SUMPRODUCT('Allocation Summary'!F24:I24,'Allocation Summary'!E$13:H$13))>1,1,(SUM('Allocation Summary'!D$13:H$13)-SUMPRODUCT('Allocation Summary'!B24:E24,'Allocation Summary'!E$13:H$13))/(1-SUM('Allocation Summary'!B$13:C$13)-SUMPRODUCT('Allocation Summary'!F24:I24,'Allocation Summary'!E$13:H$13))) -> 0.4396775122 | E9: =IF((SUM('Allocation Summary'!E$13:H$13)-SUMPRODUCT('Allocation Summary'!B24:E24,'Allocation Summary'!E$13:H$13))/(1-SUM('Allocation Summary'!B$13:D$13)-SUMPRODUCT('Allocation Summary'!F24:I24,'Allocation Summary'!E$13:H$13))>1,1,(SUM('Allocation Summary'!E$13:H$13)-SUMPRODUCT('Allocation Summary'!B24:E24,'Allocation Summary'!E$13:H$13))/(1-SUM('Allocation Summary'!B$13:D$13)-SUMPRODUCT('Allocation Summary'!F24:I24,'Allocation Summary'!E$13:H$13))) -> 0.1892264894
A10: Boundary EHV | B10: =IF((SUM('Allocation Summary'!B$13:H$13)-SUMPRODUCT('Allocation Summary'!B25:E25,'Allocation Summary'!E$13:H$13))/(1-SUMPRODUCT('Allocation Summary'!F25:I25,'Allocation Summary'!E$13:H$13))>1,1,(SUM('Allocation Summary'!B$13:H$13)-SUMPRODUCT('Allocation Summary'!B25:E25,'Allocation Summary'!E$13:H$13))/(1-SUMPRODUCT('Allocation Summary'!F25:I25,'Allocation Summary'!E$13:H$13))) -> 0.6230171641 | C10: =IF((SUM('Allocation Summary'!C$13:H$13)-SUMPRODUCT('Allocation Summary'!B25:E25,'Allocation Summary'!E$13:H$13))/(1-'Allocation Summary'!B$13-SUMPRODUCT('Allocation Summary'!F25:I25,'Allocation Summary'!E$13:H$13))>1,1,(SUM('Allocation Summary'!C$13:H$13)-SUMPRODUCT('Allocation Summary'!B25:E25,'Allocation Summary'!E$13:H$13))/(1-'Allocation Summary'!B$13-SUMPRODUCT('Allocation Summary'!F25:I25,'Allocation Summary'!E$13:H$13))) -> 0.4663384269 | D10: =IF((SUM('Allocation Summary'!D$13:H$13)-SUMPRODUCT('Allocation Summary'!B25:E25,'Allocation Summary'!E$13:H$13))/(1-SUM('Allocation Summary'!B$13:C$13)-SUMPRODUCT('Allocation Summary'!F25:I25,'Allocation Summary'!E$13:H$13))>1,1,(SUM('Allocation Summary'!D$13:H$13)-SUMPRODUCT('Allocation Summary'!B25:E25,'Allocation Summary'!E$13:H$13))/(1-SUM('Allocation Summary'!B$13:C$13)-SUMPRODUCT('Allocation Summary'!F25:I25,'Allocation Summary'!E$13:H$13))) -> 0.3999680551 | E10: =IF((SUM('Allocation Summary'!E$13:H$13)-SUMPRODUCT('Allocation Summary'!B25:E25,'Allocation Summary'!E$13:H$13))/(1-SUM('Allocation Summary'!B$13:D$13)-SUMPRODUCT('Allocation Summary'!F25:I25,'Allocation Summary'!E$13:H$13))>1,1,(SUM('Allocation Summary'!E$13:H$13)-SUMPRODUCT('Allocation Summary'!B25:E25,'Allocation Summary'!E$13:H$13))/(1-SUM('Allocation Summary'!B$13:D$13)-SUMPRODUCT('Allocation Summary'!F25:I25,'Allocation Summary'!E$13:H$13))) -> 0.1317678354
A11: Boundary HVplus | B11: =IF((SUM('Allocation Summary'!B$13:H$13)-SUMPRODUCT('Allocation Summary'!B26:E26,'Allocation Summary'!E$13:H$13))/(1-SUMPRODUCT('Allocation Summary'!F26:I26,'Allocation Summary'!E$13:H$13))>1,1,(SUM('Allocation Summary'!B$13:H$13)-SUMPRODUCT('Allocation Summary'!B26:E26,'Allocation Summary'!E$13:H$13))/(1-SUMPRODUCT('Allocation Summary'!F26:I26,'Allocation Summary'!E$13:H$13))) -> 0.5658041117 | C11: =IF((SUM('Allocation Summary'!C$13:H$13)-SUMPRODUCT('Allocation Summary'!B26:E26,'Allocation Summary'!E$13:H$13))/(1-'Allocation Summary'!B$13-SUMPRODUCT('Allocation Summary'!F26:I26,'Allocation Summary'!E$13:H$13))>1,1,(SUM('Allocation Summary'!C$13:H$13)-SUMPRODUCT('Allocation Summary'!B26:E26,'Allocation Summary'!E$13:H$13))/(1-'Allocation Summary'!B$13-SUMPRODUCT('Allocation Summary'!F26:I26,'Allocation Summary'!E$13:H$13))) -> 0.3853469212 | D11: =IF((SUM('Allocation Summary'!D$13:H$13)-SUMPRODUCT('Allocation Summary'!B26:E26,'Allocation Summary'!E$13:H$13))/(1-SUM('Allocation Summary'!B$13:C$13)-SUMPRODUCT('Allocation Summary'!F26:I26,'Allocation Summary'!E$13:H$13))>1,1,(SUM('Allocation Summary'!D$13:H$13)-SUMPRODUCT('Allocation Summary'!B26:E26,'Allocation Summary'!E$13:H$13))/(1-SUM('Allocation Summary'!B$13:C$13)-SUMPRODUCT('Allocation Summary'!F26:I26,'Allocation Summary'!E$13:H$13))) -> 0.3089038055 | E11: =IF((SUM('Allocation Summary'!E$13:H$13)-SUMPRODUCT('Allocation Summary'!B26:E26,'Allocation Summary'!E$13:H$13))/(1-SUM('Allocation Summary'!B$13:D$13)-SUMPRODUCT('Allocation Summary'!F26:I26,'Allocation Summary'!E$13:H$13))>1,1,(SUM('Allocation Summary'!E$13:H$13)-SUMPRODUCT('Allocation Summary'!B26:E26,'Allocation Summary'!E$13:H$13))/(1-SUM('Allocation Summary'!B$13:D$13)-SUMPRODUCT('Allocation Summary'!F26:I26,'Allocation Summary'!E$13:H$13))) -> 0
A16: Input data reconciliation check
A17: Compares results to current CDCM Method M*
B18: LDNO LV: LV user | C18: LDNO HV: LV user | D18: LDNO HV: LV sub user | E18: LDNO HV: HV user
A19: LDNO discount using data in this model | B19: ='Allocation Summary'!B9*(1-'Allocation Summary'!B10*Inputs!B12) -> 0.2761303115 | C19: ='Allocation Summary'!B9+'Allocation Summary'!C9+'Allocation Summary'!D9*(1-'Allocation Summary'!D10*Inputs!B13) -> 0.4677966287 | D19: =('Allocation Summary'!C9+'Allocation Summary'!D9*(1-'Allocation Summary'!D10*Inputs!B13))/(1-'Allocation Summary'!B9) -> 0.246606314 | E19: ='Allocation Summary'!D9*(1-'Allocation Summary'!D10*Inputs!B13)/(1-'Allocation Summary'!B9-'Allocation Summary'!C9) -> 0.1529083196
A20: LDNO discount using Method M | B20: =+Inputs!C34 -> 0.2905972103 | C20: =+Inputs!D34 -> 0.4796237261 | D20: =+Inputs!E34 -> 0.2565462223 | E20: =+Inputs!F34 -> 0.1603825113
A21: *Note variances at LV:LV are expected as this version of extended Method M does not implement DCP095
A26: Comparrison to last year's model | B26: =B7-'[8]Allocation Summary'!B25 -> 0 | C26: =C7-'[8]Allocation Summary'!C25 -> 0 | D26: =D7-'[8]Allocation Summary'!D25 -> 0 | E26: =E7-'[8]Allocation Summary'!E25 -> 0
B27: =B8-'[8]Allocation Summary'!B26 -> 0 | C27: =C8-'[8]Allocation Summary'!C26 -> 0 | D27: =D8-'[8]Allocation Summary'!D26 -> 0 | E27: =E8-'[8]Allocation Summary'!E26 -> 0
B28: =B9-'[8]Allocation Summary'!B27 -> 0 | C28: =C9-'[8]Allocation Summary'!C27 -> 0 | D28: =D9-'[8]Allocation Summary'!D27 -> 0 | E28: =E9-'[8]Allocation Summary'!E27 -> 0
B29: =B10-'[8]Allocation Summary'!B28 -> 0 | C29: =C10-'[8]Allocation Summary'!C28 -> 0 | D29: =D10-'[8]Allocation Summary'!D28 -> 0 | E29: =E10-'[8]Allocation Summary'!E28 -> 0
B30: =B11-'[8]Allocation Summary'!B29 -> 0 | C30: =C11-'[8]Allocation Summary'!C29 -> 0 | D30: =D11-'[8]Allocation Summary'!D29 -> 0 | E30: =E11-'[8]Allocation Summary'!E29 -> 0

Sheet Allocation Summary
G1: Index
A3: Category | B3: % by network tier
B4: LV | C4: LV/HV | D4: HV | E4: EHV | F4: Unallocated
A5: Opex and transmission exit charges | B5: ='DNO - Final Allocation'!I47 -> 0.4706122544 | C5: ='DNO - Final Allocation'!H47 -> 0.07859555602 | D5: ='DNO - Final Allocation'!G47 -> 0.1887969142 | E5: ='DNO - Final Allocation'!E47 -> 0.2619952754
A6: Depreciation | B6: ='DNO - Final Allocation'!I46 -> 0.1359633262 | C6: ='DNO - Final Allocation'!H46 -> 0.05974950684 | D6: ='DNO - Final Allocation'!G46 -> 0.2720208679 | E6: ='DNO - Final Allocation'!E46 -> 0.532266299
A7: Return | B7: ='DNO - Final Allocation'!I45 -> 0.1359633262 | C7: ='DNO - Final Allocation'!H45 -> 0.05974950684 | D7: ='DNO - Final Allocation'!G45 -> 0.2720208679 | E7: ='DNO - Final Allocation'!E45 -> 0.532266299
A8: Weighted Average | B8: ='DNO - Final Allocation'!N50 -> 0.2482670907 | C8: ='DNO - Final Allocation'!M50 -> 0.06607399227 | D8: ='DNO - Final Allocation'!L50 -> 0.2440920072 | E8: ='DNO - Final Allocation'!K50 -> 0.4415669098
A9: Weighted Average (after incentive and pension deficit costs removed and weighted by units flowing) | B9: ='DNO - Final Allocation'!O79 -> 0.2935919412 | C9: ='DNO - Final Allocation'!N79 -> 0.07813678242 | D9: ='DNO - Final Allocation'!M79 -> 0.1940753881 | E9: ='DNO - Final Allocation'!L79 -> 0.342953161 | F9: ='DNO - Final Allocation'!P79 -> 0.09124272727
A10: Direct cost % | B10: ='Calc - DNO Opex Allocation'!AA48 -> 0.6007661417 | C10: ='Calc - DNO Opex Allocation'!Z48 -> 0.8954771312 | D10: ='Calc - DNO Opex Allocation'!Y48 -> 0.9181763095 | E10: ='Calc - DNO Opex Allocation'!X48 -> 0.7381496712 | F10: N/A
B12: LV | C12: HV/LV | D12: HV | E12: EHV/HV | F12: EHV | G12: 132kV/EHV | H12: 132kV
A13: Weighted by units flowing | B13: =B9 -> 0.2935919412 | C13: 0.07813678242 | D13: 0.1940753881 | E13: =E9*'Calc-MEAV'!$N28 -> 0.04836291831 | F13: =E9*'Calc-MEAV'!$N29 -> 0.03379844531 | G13: =E9*'Calc-MEAV'!$N30 -> 0.02868866843 | H13: =E9*'Calc-MEAV'!$N31 -> 0.2321031289
A14: Direct cost % | B14: 0.6007661417 | C14: 0.8954771312 | D14: 0.9181763095 | E14: =E10 -> 0.7381496712 | F14: =E10 -> 0.7381496712 | G14: =E10 -> 0.7381496712 | H14: =E10 -> 0.7381496712
A16: Options | B16: DCP071
B17: TRUE
A18: Discount matrix
B20: Network levels provided or bypassed by the DNO | F20: Network levels bypassed by the DNO
A21: Boundary category | B21: EHV/HV | C21: EHV | D21: 132kV/EHV | E21: 132kV | F21: EHV/HV | G21: EHV | H21: 132kV/EHV | I21: 132kV
A22: Boundary 0000 | B22: 0 | C22: 0 | D22: 0 | E22: 0 | F22: 0 | G22: 0 | H22: 0 | I22: 0
A23: Boundary 132kV | B23: 0 | C23: 0 | D23: 0 | E23: =IF($B$17,Inputs!$B$15*$H$14,1) -> 0.7381496712 | F23: 0 | G23: 0 | H23: 0 | I23: 0
A24: Boundary 132kV/EHV | B24: 0 | C24: 0 | D24: 1 | E24: 1 | F24: 0 | G24: 0 | H24: 0 | I24: 0
A25: Boundary EHV | B25: 0 | C25: =IF($B$17,Inputs!$B$14*$F$14,1) -> 0.7381496712 | D25: 1 | E25: 1 | F25: 0 | G25: 0 | H25: 0 | I25: 0
A26: Boundary HVplus | B26: 1 | C26: 1 | D26: 1 | E26: 1 | F26: 0 | G26: 0 | H26: 0 | I26: 0
B30: =B13-'[8]Allocation Summary'!B13 -> 0 | C30: =C13-'[8]Allocation Summary'!C13 -> 0 | D30: =D13-'[8]Allocation Summary'!D13 -> 0 | E30: =E13-'[8]Allocation Summary'!E13 -> 0 | F30: =F13-'[8]Allocation Summary'!F13 -> 0 | G30: =G13-'[8]Allocation Summary'!G13 -> 0 | H30: =H13-'[8]Allocation Summary'!H13 -> 0
B31: =B14-'[8]Allocation Summary'!B14 -> 0 | C31: =C14-'[8]Allocation Summary'!C14 -> 0 | D31: =D14-'[8]Allocation Summary'!D14 -> 0 | E31: =E14-'[8]Allocation Summary'!E14 -> 0 | F31: =F14-'[8]Allocation Summary'!F14 -> 0 | G31: =G14-'[8]Allocation Summary'!G14 -> 0 | H31: =H14-'[8]Allocation Summary'!H14 -> 0
B34: =B22-'[8]Allocation Summary'!F25 -> 0 | C34: =C22-'[8]Allocation Summary'!G25 -> 0 | D34: =D22-'[8]Allocation Summary'!H25 -> 0 | E34: =E22-'[8]Allocation Summary'!I25 -> 0 | F34: =F22-'[8]Allocation Summary'!J25 -> 0 | G34: =G22-'[8]Allocation Summary'!K25 -> 0 | H34: =H22-'[8]Allocation Summary'!L25 -> 0 | I34: =I22-'[8]Allocation Summary'!M25 -> 0
B35: =B23-'[8]Allocation Summary'!F26 -> 0 | C35: =C23-'[8]Allocation Summary'!G26 -> 0 | D35: =D23-'[8]Allocation Summary'!H26 -> 0 | E35: =E23-'[8]Allocation Summary'!I26 -> 0 | F35: =F23-'[8]Allocation Summary'!J26 -> 0 | G35: =G23-'[8]Allocation Summary'!K26 -> 0 | H35: =H23-'[8]Allocation Summary'!L26 -> 0 | I35: =I23-'[8]Allocation Summary'!M26 -> 0
B36: =B24-'[8]Allocation Summary'!F27 -> 0 | C36: =C24-'[8]Allocation Summary'!G27 -> 0 | D36: =D24-'[8]Allocation Summary'!H27 -> 0 | E36: =E24-'[8]Allocation Summary'!I27 -> 0 | F36: =F24-'[8]Allocation Summary'!J27 -> 0 | G36: =G24-'[8]Allocation Summary'!K27 -> 0 | H36: =H24-'[8]Allocation Summary'!L27 -> 0 | I36: =I24-'[8]Allocation Summary'!M27 -> 0
B37: =B25-'[8]Allocation Summary'!F28 -> 0 | C37: =C25-'[8]Allocation Summary'!G28 -> 0 | D37: =D25-'[8]Allocation Summary'!H28 -> 0 | E37: =E25-'[8]Allocation Summary'!I28 -> 0 | F37: =F25-'[8]Allocation Summary'!J28 -> 0 | G37: =G25-'[8]Allocation Summary'!K28 -> 0 | H37: =H25-'[8]Allocation Summary'!L28 -> 0 | I37: =I25-'[8]Allocation Summary'!M28 -> 0
B38: =B26-'[8]Allocation Summary'!F29 -> 0 | C38: =C26-'[8]Allocation Summary'!G29 -> 0 | D38: =D26-'[8]Allocation Summary'!H29 -> 0 | E38: =E26-'[8]Allocation Summary'!I29 -> 0 | F38: =F26-'[8]Allocation Summary'!J29 -> 0 | G38: =G26-'[8]Allocation Summary'!K29 -> 0 | H38: =H26-'[8]Allocation Summary'!L29 -> 0 | I38: =I26-'[8]Allocation Summary'!M29 -> 0
B39: =B27-'[8]Allocation Summary'!F30 -> 0 | C39: =C27-'[8]Allocation Summary'!G30 -> 0 | D39: =D27-'[8]Allocation Summary'!H30 -> 0 | E39: =E27-'[8]Allocation Summary'!I30 -> 0 | F39: =F27-'[8]Allocation Summary'!J30 -> 0 | G39: =G27-'[8]Allocation Summary'!K30 -> 0 | H39: =H27-'[8]Allocation Summary'!L30 -> 0 | I39: =I27-'[8]Allocation Summary'!M30 -> 0
B40: =B28-'[8]Allocation Summary'!F31 -> 0 | C40: =C28-'[8]Allocation Summary'!G31 -> 0 | D40: =D28-'[8]Allocation Summary'!H31 -> 0 | E40: =E28-'[8]Allocation Summary'!I31 -> 0 | F40: =F28-'[8]Allocation Summary'!J31 -> 0 | G40: =G28-'[8]Allocation Summary'!K31 -> 0 | H40: =H28-'[8]Allocation Summary'!L31 -> 0 | I40: =I28-'[8]Allocation Summary'!M31 -> 0

Sheet DNO - Final Allocation
A1: Step 1. Format price control allowed revenue data
A2: Index
B4: I) DPCR3 type presentation | L4: ii) DPCR4 type presentation
D6: 2005/06 | E6: 2006/07 | G6: 2007/08 | H6: 2008/09 | I6: 2009/10 | O6: 2005/06 | P6: 2006/07 | Q6: 2007/08 | R6: 2008/09 | S6: 2009/10
L7: Opening asset value | O7: ='Allowed revenue -DPCR4'!D3 -> 947.9 | P7: ='Allowed revenue -DPCR4'!E3 -> 989.2 | Q7: ='Allowed revenue -DPCR4'!F3 -> 1030.2 | R7: ='Allowed revenue -DPCR4'!G3 -> 1064.8 | S7: ='Allowed revenue -DPCR4'!H3 -> 1093.2
B8: Allowed revenue | D8: =O33 -> 241.2388085 | E8: =P33 -> 243.4099578 | G8: =Q33 -> 246.0635847 | H8: =R33 -> 249.1996892 | I8: =S33 -> 251.8533161 | L8: Total capex | O8: ='Allowed revenue -DPCR4'!D4 -> 117.8 | P8: ='Allowed revenue -DPCR4'!E4 -> 117.5 | Q8: ='Allowed revenue -DPCR4'!F4 -> 117 | R8: ='Allowed revenue -DPCR4'!G4 -> 116.6 | S8: ='Allowed revenue -DPCR4'!H4 -> 116.4
L9: Depreciation | O9: ='Allowed revenue -DPCR4'!D5 -> -76.5 | P9: ='Allowed revenue -DPCR4'!E5 -> -76.5 | Q9: ='Allowed revenue -DPCR4'!F5 -> -82.4 | R9: ='Allowed revenue -DPCR4'!G5 -> -88.2 | S9: ='Allowed revenue -DPCR4'!H5 -> -94.1
B10: Opex (incl pensions after 57.7% capitalized) | D10: =O14+(1-0.577)*O16 -> 80.699 | E10: =P14+(1-0.577)*P16 -> 83.2413 | G10: =Q14+(1-0.577)*Q16 -> 83.7413 | H10: =R14+(1-0.577)*R16 -> 82.4413 | I10: =S14+(1-0.577)*S16 -> 81.7413 | L10: Closing asset value | O10: ='Allowed revenue -DPCR4'!D6 -> 989.2 | P10: ='Allowed revenue -DPCR4'!E6 -> 1030.2 | Q10: ='Allowed revenue -DPCR4'!F6 -> 1064.8 | R10: ='Allowed revenue -DPCR4'!G6 -> 1093.2 | S10: ='Allowed revenue -DPCR4'!H6 -> 1115.6
B11: Quality Reward | D11: =O20 ->  | E11: =P20 ->  | F11: =Q20 ->  | G11: =Q20 ->  | H11: =R20 ->  | I11: =S20 ->  | L11: Present value of opening/closing RAV | O11: ='Allowed revenue -DPCR4'!D7 -> 947.9 | Q11: ='Allowed revenue -DPCR4'!F7 -> 0 | S11: ='Allowed revenue -DPCR4'!H7 -> 851.7
B12: DPCR3 costs | D12: =O21 -> 1.5 | L12: 5 year movement in closing RAV | P12: ='Allowed revenue -DPCR4'!E8 -> 0 | S12: ='Allowed revenue -DPCR4'!H8 -> 96.2
B13: Total Opex | D13: =SUM(D10:D12) -> 82.199 | E13: =SUM(E10:E12) -> 83.2413 | G13: =SUM(G10:G12) -> 83.7413 | H13: =SUM(H10:H12) -> 82.4413 | I13: =SUM(I10:I12) -> 81.7413
L14: Operating costs (excl pensions) | O14: ='Allowed revenue -DPCR4'!D10 -> 75.2 | P14: ='Allowed revenue -DPCR4'!E10 -> 77.7 | Q14: ='Allowed revenue -DPCR4'!F10 -> 78.2 | R14: ='Allowed revenue -DPCR4'!G10 -> 76.9 | S14: ='Allowed revenue -DPCR4'!H10 -> 76.2
B15: Capital elements | L15: Capex (excl pensions) | O15: ='Allowed revenue -DPCR4'!D11 -> 110.3 | P15: ='Allowed revenue -DPCR4'!E11 -> 109.9 | Q15: ='Allowed revenue -DPCR4'!F11 -> 109.4 | R15: ='Allowed revenue -DPCR4'!G11 -> 109 | S15: ='Allowed revenue -DPCR4'!H11 -> 108.8
B16: Depreciation | D16: =-O9 -> 76.5 | E16: =-P9 -> 76.5 | G16: =-Q9 -> 82.4 | H16: =-R9 -> 88.2 | I16: =-S9 -> 94.1 | L16: Pensions | O16: ='Allowed revenue -DPCR4'!D12 -> 13 | P16: ='Allowed revenue -DPCR4'!E12 -> 13.1 | Q16: ='Allowed revenue -DPCR4'!F12 -> 13.1 | R16: ='Allowed revenue -DPCR4'!G12 -> 13.1 | S16: ='Allowed revenue -DPCR4'!H12 -> 13.1
B17: Tax allowance | D17: =O17 -> 27.2 | E17: 26.3 | G17: =Q17 -> 26.4 | H17: 26.8 | I17: 26.8 | L17: Tax allowance | O17: ='Allowed revenue -DPCR4'!D13 -> 27.2 | P17: ='Allowed revenue -DPCR4'!E13 -> 26.3 | Q17: ='Allowed revenue -DPCR4'!F13 -> 26.4 | R17: ='Allowed revenue -DPCR4'!G13 -> 26.8 | S17: ='Allowed revenue -DPCR4'!H13 -> 26.8
B18: Capital incentive | D18: -0.8 | E18: 0.6 | G18: -0.6 | H18: -0.6 | I18: -0.2 | L18: Capex incentive | O18: ='Allowed revenue -DPCR4'!D14 -> -0.8 | P18: ='Allowed revenue -DPCR4'!E14 -> 0.6 | Q18: ='Allowed revenue -DPCR4'!F14 -> -0.6 | R18: ='Allowed revenue -DPCR4'!G14 -> -0.6 | S18: ='Allowed revenue -DPCR4'!H14 -> -0.2
B19: Sliding scale | D19: 1.4 | E19: 1.4 | G19: 1.5 | H19: 1.5 | I19: 1.6 | L19: Sliding scale addn income | O19: ='Allowed revenue -DPCR4'!D15 -> 1.4 | P19: ='Allowed revenue -DPCR4'!E15 -> 1.4 | Q19: ='Allowed revenue -DPCR4'!F15 -> 1.5 | R19: ='Allowed revenue -DPCR4'!G15 -> 1.5 | S19: ='Allowed revenue -DPCR4'!H15 -> 1.6
B20: Return | D20: =D8-D13-D16-D17-D18-D19 -> 54.7398085 | E20: =E8-E13-E16-E17-E18-E19 -> 55.36865778 | G20: =G8-G13-G16-G17-G18-G19 -> 52.62228467 | H20: =H8-H13-H16-H17-H18-H19 -> 50.85838918 | I20: =I8-I13-I16-I17-I18-I19 -> 47.81201608 | L20: Quality reward/Opex incentive & Other Adjustments | O20: =IF(ISNUMBER('Allowed revenue -DPCR4'!D16+'Allowed revenue -DPCR4'!D17),'Allowed revenue -DPCR4'!D16+'Allowed revenue -DPCR4'!D17,"") ->  | P20: =IF(ISNUMBER('Allowed revenue -DPCR4'!E16+'Allowed revenue -DPCR4'!E17),'Allowed revenue -DPCR4'!E16+'Allowed revenue -DPCR4'!E17,"") ->  | Q20: =IF(ISNUMBER('Allowed revenue -DPCR4'!F16+'Allowed revenue -DPCR4'!F17),'Allowed revenue -DPCR4'!F16+'Allowed revenue -DPCR4'!F17,"") ->  | R20: =IF(ISNUMBER('Allowed revenue -DPCR4'!G16+'Allowed revenue -DPCR4'!G17),'Allowed revenue -DPCR4'!G16+'Allowed revenue -DPCR4'!G17,"") ->  | S20: =IF(ISNUMBER('Allowed revenue -DPCR4'!H16+'Allowed revenue -DPCR4'!H17),'Allowed revenue -DPCR4'!H16+'Allowed revenue -DPCR4'!H17,"") -> 
B21: Total capital | D21: =SUM(D16:D20) -> 159.0398085 | E21: =SUM(E16:E20) -> 160.1686578 | G21: =SUM(G16:G20) -> 162.3222847 | H21: =SUM(H16:H20) -> 166.7583892 | I21: =SUM(I16:I20) -> 170.1120161 | L21: DPCR3 costs | O21: ='Allowed revenue -DPCR4'!D18 -> 1.5 | P21: ='Allowed revenue -DPCR4'!E18 -> - | Q21: ='Allowed revenue -DPCR4'!F18 -> - | R21: ='Allowed revenue -DPCR4'!G18 -> - | S21: ='Allowed revenue -DPCR4'!H18 -> -
B22: Total capital ex depreciation | D22: =D21-D16 -> 82.5398085 | E22: =E21-E16 -> 83.66865778 | G22: =G21-G16 -> 79.92228467 | H22: =H21-H16 -> 78.55838918 | I22: =I21-I16 -> 76.01201608 | L22: Total allowed items | O22: ='Allowed revenue -DPCR4'!D19 -> 227.7 | P22: ='Allowed revenue -DPCR4'!E19 -> 229 | Q22: ='Allowed revenue -DPCR4'!F19 -> 228.1 | R22: ='Allowed revenue -DPCR4'!G19 -> 226.8 | S22: ='Allowed revenue -DPCR4'!H19 -> 226.3
L23: PV of allowed items | O23: ='Allowed revenue -DPCR4'!D20 -> 221.6 | P23: ='Allowed revenue -DPCR4'!E20 -> 211.2 | Q23: ='Allowed revenue -DPCR4'!F20 -> 199.3 | R23: ='Allowed revenue -DPCR4'!G20 -> 187.7 | S23: ='Allowed revenue -DPCR4'!H20 -> 177.5
B24: Allocation of allowed revenue to:- | L24: 5 year movement in closing RAV | S24: ='Allowed revenue -DPCR4'!H21 -> 96.2
L25: TOTAL PV OVER 5 YEARS | S25: ='Allowed revenue -DPCR4'!H22 -> 1093.5
B26: Opex | D26: =D13 -> 82.199 | E26: =E13 -> 83.2413 | G26: =G13 -> 83.7413 | H26: =H13 -> 82.4413 | I26: =I13 -> 81.7413
B27: Depreciation | D27: =D16 -> 76.5 | E27: =E16 -> 76.5 | G27: =G16 -> 82.4 | H27: =H16 -> 88.2 | I27: =I16 -> 94.1 | O27: =1/(1+Inputs!B28) -> 0.9474631674 | P27: =O27/(1+Inputs!B28) -> 0.8976864535 | Q27: =P27/(1+Inputs!B28) -> 0.8505248506 | R27: =Q27/(1+Inputs!B28) -> 0.8058409688 | S27: =R27/(1+Inputs!B28) -> 0.7635046367
B28: Return | D28: =D20 -> 54.7398085 | E28: =E20 -> 55.36865778 | G28: =G20 -> 52.62228467 | H28: =H20 -> 50.85838918 | I28: =I20 -> 47.81201608 | O28: 1 | P28: =O27 -> 0.9474631674 | Q28: =P27 -> 0.8976864535 | R28: =Q27 -> 0.8505248506 | S28: =R27 -> 0.8058409688
O29: =1/(1+Inputs!B28)^0.5 -> 0.9733771969 | P29: =1/(1+Inputs!B28)^1.5 -> 0.922239042 | Q29: =1/(1+Inputs!B28)^2.5 -> 0.8737875238 | R29: =1/(1+Inputs!B28)^3.5 -> 0.8278814949 | S29: =1/(1+Inputs!B28)^4.5 -> 0.7843872234
L31: Revenue index | O31: ='Allowed revenue -DPCR4'!D24 -> 1 | P31: ='Allowed revenue -DPCR4'!E24 -> 1.009 | Q31: ='Allowed revenue -DPCR4'!F24 -> 1.02 | R31: ='Allowed revenue -DPCR4'!G24 -> 1.033 | S31: ='Allowed revenue -DPCR4'!H24 -> 1.044
L32: Discounted revenue index | O32: =O31*O29 -> 0.9733771969 | P32: =P31*P29 -> 0.9305391934 | Q32: =Q31*Q29 -> 0.8912632743 | R32: =R31*R29 -> 0.8552015842 | S32: =S31*S29 -> 0.8189002612
L33: Price control revenue | O33: =($S$25-$N$39)/SUM($O$32:$U$32)*O31 -> 241.2388085 | P33: =($S$25-$N$39)/SUM($O$32:$U$32)*P31 -> 243.4099578 | Q33: =($S$25-$N$39)/SUM($O$32:$U$32)*Q31 -> 246.0635847 | R33: =($S$25-$N$39)/SUM($O$32:$U$32)*R31 -> 249.1996892 | S33: =($S$25-$N$39)/SUM($O$32:$U$32)*S31 -> 251.8533161
L34: Excluded services revenue | O34: ='Allowed revenue -DPCR4'!D27 -> 3.5 | P34: ='Allowed revenue -DPCR4'!E27 -> 3.5 | Q34: ='Allowed revenue -DPCR4'!F27 -> 3.5 | R34: ='Allowed revenue -DPCR4'!G27 -> 3.5 | S34: ='Allowed revenue -DPCR4'!H27 -> 3.5
L35: Total revenue | O35: =O34+O33 -> 244.7388085 | P35: =P34+P33 -> 246.9099578 | Q35: =Q34+Q33 -> 249.5635847 | R35: =R34+R33 -> 252.6996892 | S35: =S34+S33 -> 255.3533161
L36: PV of total revenue | O36: =O35*O29 -> 238.2231754 | P36: =P35*P29 -> 227.7100029 | Q36: =Q35*Q29 -> 218.0655467 | R36: =R35*R29 -> 209.2053964 | S36: =S35*S29 -> 200.2958786
L37: TOTAL PV OVER 5 YEARS | S37: =SUM(O36:S36) -> 1093.5
L39: PV of excluded service revenue | N39: =SUM(O39:S39) -> 15.33585368 | O39: =O34*O29 -> 3.406820189 | P39: =P34*P29 -> 3.227836647 | Q39: =Q34*Q29 -> 3.058256333 | R39: =R34*R29 -> 2.897585232 | S39: =S34*S29 -> 2.745355282
A41: Step 2. Allocate price control revenues to network tiers
B43: Hence DPCR4 revenue made up of | C43: Total DPCR4 | D43: Basis of allocation | E43: % used | K43: £m
E44: EHV | G44: HV | H44: HV/LV | I44: LV | K44: EHV | L44: HV | M44: HV/LV | N44: LV
B45: Return | C45: =SUM(D22:I22) -> 400.7011562 | D45: Net Capex | E45: =VLOOKUP($D45,'Calc-Drivers'!$B$17:$F$27,E$51,FALSE) -> 0.532266299 | G45: =VLOOKUP($D45,'Calc-Drivers'!$B$17:$F$27,G$51,FALSE) -> 0.2720208679 | H45: =VLOOKUP($D45,'Calc-Drivers'!$B$17:$F$27,H$51,FALSE) -> 0.05974950684 | I45: =VLOOKUP($D45,'Calc-Drivers'!$B$17:$F$27,I$51,FALSE) -> 0.1359633262 | K45: =$C45*E45 -> 213.2797214 | L45: =$C45*G45 -> 108.9990763 | M45: 23.94169647 | N45: 54.48066202
B46: Depreciation | C46: =SUM(D16:I16) -> 417.7 | D46: Net Capex | E46: =VLOOKUP($D46,'Calc-Drivers'!$B$17:$F$27,E$51,FALSE) -> 0.532266299 | G46: =VLOOKUP($D46,'Calc-Drivers'!$B$17:$F$27,G$51,FALSE) -> 0.2720208679 | H46: =VLOOKUP($D46,'Calc-Drivers'!$B$17:$F$27,H$51,FALSE) -> 0.05974950684 | I46: =VLOOKUP($D46,'Calc-Drivers'!$B$17:$F$27,I$51,FALSE) -> 0.1359633262 | K46: =$C46*E46 -> 222.3276331 | L46: 113.6231165 | M46: 24.95736901 | N46: 56.79188136
B47: Operating costs | C47: =SUM(D13:I13) -> 413.3642 | D47: Overall Opex split | E47: ='Calc - DNO Opex Allocation'!AN41 -> 0.2619952754 | G47: ='Calc - DNO Opex Allocation'!AO41 -> 0.1887969142 | H47: ='Calc - DNO Opex Allocation'!AP41 -> 0.07859555602 | I47: ='Calc - DNO Opex Allocation'!AQ41 -> 0.4706122544 | K47: =$C47*E47 -> 108.2994674 | L47: 78.04188539 | M47: 32.48858914 | N47: =$C47*I47 -> 194.5342581
B49: Total | C49: =SUM(C45:C47) -> 1231.765356 | K49: =SUM(K45:K48) -> 543.9068219 | L49: =SUM(L45:L48) -> 300.6640782 | M49: =SUM(M45:M48) -> 81.38765462 | N49: =SUM(N45:N48) -> 305.8068014
K50: =K49/SUM($K$49:$N$49) -> 0.4415669098 | L50: =L49/SUM($K$49:$N$49) -> 0.2440920072 | M50: =M49/SUM($K$49:$N$49) -> 0.06607399227 | N50: =N49/SUM($K$49:$N$49) -> 0.2482670907
E51: 5 | G51: 4 | H51: 3 | I51: 2
D53: NET CAPEX SPLIT FROM "CALC -NET CAPEX" SHEET
D54: OVERALL OPEX SPLIT FROM "CALC DNO OPEX ALLOCATION" SHEET
A56: Step 3. Remove incentive revenue and pension deficit payment from allocations
B58: 2007/08 allowed revenue source from page "summary allowed revenue"
B59: Base revenue | F59: ='Summary of revenue'!J11 -> 276.426855 | G59: =F59/$F$64 -> 0.9432757089 | P59: £m
B60: Allowed pass through items | F60: ='Summary of revenue'!J12 -> -4.598327 | G60: =F60/$F$64 -> -0.01569127631
B61: Incentive revenue | F61: ='Summary of revenue'!J13 -> 26.407908 | G61: =F61/$F$64 -> 0.09011403085 | M61: Total allowed income | P61: =F64 -> 293.049903 | Q61: From 2007/08 revenue summary
B62: Under/over revoery | F62: ='Summary of revenue'!J21 -> -11.856533 | G62: =F62/$F$64 -> -0.04045909205
B63: Excluded | F63: ='Summary of revenue'!J46+'Summary of revenue'!J47 -> 6.67 | G63: =F63/$F$64 -> 0.02276062859 | M63: Less incentive revenue ? | O63: Y | P63: =IF(O63="Y",-F61,0) -> -26.407908 | Q63: From 2007/08 revenue summary
B64: Total | F64: =SUM(F59:F63) -> 293.049903 | G64: =SUM(G59:G63) -> 1 | M64: Less Pension deficit payment? | O64: N | P64: =IF(O64="Y",-F66,0) -> 0
M65: Less transmission exit charges? | O65: Y | P65: =IF(O65="Y",-'RRP 1.3'!AH12,0) -> -4.4
B66: Input pension deficit payment | F66: 0
M67: Total revenue to share | P67: =P61+P63+P64+P65 -> 262.241995
D69: Step 3.a. Split out pension deficit and incentive payments | L69: Step 2.b. Divide cost by units flowing - effectively adjust the cost because of electricity lost as it flows thorugh the network meaning that there is more cost in the lower tiers
B70: SPLIT OF TARIFFS | D70: £m | L70: p/kWh
D71: Total | F71: EHV | G71: HV | H71: HV/LV | I71: LV | J71: Not to be split | L71: EHV | M71: HV | N71: HV/LV | O71: LV | P71: Not to be split | R71: Total
B73: Income | D73: =SUM(F73:J73) -> 293.049903 | F73: =$P$67*K50 -> 115.7973874 | G73: =$P$67*L50 -> 64.01117494 | H73: =$P$67*M50 -> 17.32737555 | I73: =$P$67*N50 -> 65.10605716 | J73: =P61-P67 -> 30.807908 | L73: =F73*100000000/'Calc-Units'!E21 -> 0.3943391649 | M73: =G73*100000000/'Calc-Units'!D21 -> 0.2231544572 | N73: =H73*100000000/'Calc-Units'!C21 -> 0.08984431997 | O73: =I73*100000000/'Calc-Units'!C21 -> 0.3375819619 | P73: =J73*100000000/'Calc-Units'!E21 -> 0.1049139794
B75: All LV Tariffs | L75: =L73 -> 0.3943391649 | M75: =M73 -> 0.2231544572 | N75: =N73 -> 0.08984431997 | O75: =O73 -> 0.3375819619 | P75: =P73 -> 0.1049139794 | R75: =SUM(L75:P75) -> 1.149833883
B76: HV Tariffs
B77: EHV Tariffs
B79: All LV Tariffs | L79: =L75/$R75 -> 0.342953161 | M79: =M75/$R75 -> 0.1940753881 | N79: =N75/$R75 -> 0.07813678242 | O79: =O75/$R75 -> 0.2935919412 | P79: =P75/$R75 -> 0.09124272727 | R79: =SUM(L79:P79) -> 1
B80: HV Tariffs
B81: EHV Tariffs

Sheet Calc - DNO Opex Allocation
A1: Index
D2: Step 1 - extract total activity costs from cost report | K2: Step 2. Identify costs included in price control revenues to be allocated by MEAV | R2: Step 3. Allocate costs not directly attributable to network teirs to network tiers using MEAV | X2: Step 4. Sum directly attributed and allocated costs | AD2: Step 5. Divide cost by units flowing - effectively adjust the cost because of electricity lost as it flows through the network meaning that there is more cost in the lower tiers | AI2: Step 6. Adjust costs so that they are aligned with the definition of opex in the allowed price control revenues
E3: Costs extracted from RRP Tables | K3: Cost drivers - lookup from "Calc-Drivers" | R3: Allocation of "Unallocated" costs by cost driver to network tiers | X3: Sum of allocated and "unallocated" costs | AD3: Sum of allocated and "unallocated" costs expressed per unit throughput (p/kWh) | AI3: Proportion of costs allocated to Opex and Capex | AN3: Operating costs = sum of allocated and unallocated multiplied by 1 minus capitalised proportion | AT3: Opex only on p/kWh throughput
D4: Total activity cost - from RRP 1.3 | E4: Costs allocated to network tiers in RRP - from 2.2 amd 2.3 | I4: Unallocated costs = Total - costs allocated to network tiers | K4: Insert name of cost driver | L4: Proportion of cost allocated to each network tier | AI4: % Cost capitalised (from DCPR settlement - same for all DNOs) | AJ4: Capex | AK4: Opex | AN4: EHV | AO4: HV | AP4: HV/LV | AQ4: LV | AT4: EHV | AU4: HV | AV4: HV/LV | AW4: LV
E5: EHV | F5: HV | G5: HV/LV | H5: LV | L5: EHV | M5: HV | N5: HV/LV | O5: LV | R5: EHV | S5: HV | T5: HV/LV | U5: LV | X5: EHV | Y5: HV | Z5: HV/LV | AA5: LV | AD5: EHV | AE5: HV | AF5: HV/LV | AG5: LV
A6: Cash typical costs (excluding disallowed related party margins) | B6: Direct activities - From RRP 2.2 Detailed Cost Matrix | C6: Load related new connections & reinforcement (net of contributions) | D6: ='RRP 1.3'!D$12 -> 46.45952481 | E6: ='RRP 2.4'!L13+'RRP 2.4'!L14+'RRP 2.4'!L18+'RRP 2.4'!L19 -> 30.92573349 | F6: ='RRP 2.4'!L12+'RRP 2.4'!L17-'Calc - DNO Opex Allocation'!G6 -> 36.86 | G6: 0 | H6: ='RRP 2.4'!L11+'RRP 2.4'!L16+'RRP 2.4'!L24 -> -21.4 | I6: =D6-E6-F6-G6-H6 -> 0.07379131579 | K6: MEAV | L6: =IF(ISERROR(VLOOKUP($K6,'Calc-Drivers'!$B$17:$F$27,L$42,FALSE))," ",VLOOKUP($K6,'Calc-Drivers'!$B$17:$F$27,L$42,FALSE)) -> 0.3874734305 | M6: =IF(ISERROR(VLOOKUP($K6,'Calc-Drivers'!$B$17:$F$27,M$42,FALSE))," ",VLOOKUP($K6,'Calc-Drivers'!$B$17:$F$27,M$42,FALSE)) -> 0.1103067792 | N6: =IF(ISERROR(VLOOKUP($K6,'Calc-Drivers'!$B$17:$F$27,N$42,FALSE))," ",VLOOKUP($K6,'Calc-Drivers'!$B$17:$F$27,N$42,FALSE)) -> 0.03400429288 | O6: =IF(ISERROR(VLOOKUP($K6,'Calc-Drivers'!$B$17:$F$27,O$42,FALSE))," ",VLOOKUP($K6,'Calc-Drivers'!$B$17:$F$27,O$42,FALSE)) -> 0.4682154974 | R6: =IF(ISERROR($I6*L6)," ",$I6*L6) -> 0.02859217427 | S6: 0.008139682377 | T6: 0.002509221514 | U6: 0.03455023763 | W6: =X6-'[8]Calc - WPD Opex Allocation'!Y6 -> 0 | X6: =IF($K6="Do not allocate"," ",R6+E6) -> 30.95432567 | Y6: =IF($K6="Do not allocate"," ",S6+F6) -> 36.86813968 | Z6: =IF($K6="Do not allocate"," ",T6+G6) -> 0.002509221514 | AA6: =IF($K6="Do not allocate"," ",U6+H6) -> -21.36544976 | AD6: =IF(ISERROR(X6*100000000/'Calc-Units'!$E$21)," ",X6*100000000/'Calc-Units'!$E$21) -> 0.1054125936 | AE6: =IF(ISERROR(Y6*100000000/'Calc-Units'!$D$21)," ",Y6*100000000/'Calc-Units'!$D$21) -> 0.1285289593 | AF6: =IF(ISERROR(Z6*100000000/'Calc-Units'!$C$21)," ",Z6*100000000/'Calc-Units'!$C$21) -> 1.301058547e-05 | AG6: =IF(ISERROR(AA6*100000000/'Calc-Units'!$C$21)," ",AA6*100000000/'Calc-Units'!$C$21) -> -0.1107821724 | AI6: 1 | AJ6: =AI6*D6 -> 46.45952481 | AK6: =D6*(1-AI6) -> 0 | AN6: =IF(ISERROR(X6*(1-$AI6))," ",X6*(1-$AI6)) -> 0 | AO6: =IF(ISERROR(Y6*(1-$AI6))," ",Y6*(1-$AI6)) -> 0 | AP6: =IF(ISERROR(Z6*(1-$AI6))," ",Z6*(1-$AI6)) -> 0 | AQ6: =IF(ISERROR(AA6*(1-$AI6))," ",AA6*(1-$AI6)) -> 0 | AT6: =IF(ISERROR(AN6*100000000/'Calc-Units'!$E$21)," ",AN6*100000000/'Calc-Units'!$E$21) -> 0 | AU6: =IF(ISERROR(AO6*100000000/'Calc-Units'!$D$21)," ",AO6*100000000/'Calc-Units'!$D$21) -> 0 | AV6: =IF(ISERROR(AP6*100000000/'Calc-Units'!$C$21)," ",AP6*100000000/'Calc-Units'!$C$21) -> 0 | AW6: =IF(ISERROR(AQ6*100000000/'Calc-Units'!$C$21)," ",AQ6*100000000/'Calc-Units'!$C$21) -> 0
C7: Non-load new & replacement assets (net of contributions) | D7: ='RRP 1.3'!E$12 -> 62.53166749 | E7: =SUM('RRP 2.4'!G44:G55)+'RRP 2.4'!G71+'RRP 2.4'!H71 -> 16.69270568 | F7: =SUM('RRP 2.4'!G38:G40)+'RRP 2.4'!F71 -> 16.97405533 | G7: ='RRP 2.4'!G41+'RRP 2.4'!G42+'RRP 2.4'!G43 -> 10.14998067 | H7: =SUM('RRP 2.4'!G31:G37)+'RRP 2.4'!E71 -> 14.45023734 | I7: 4.264688468 | K7: MEAV | L7: =IF(ISERROR(VLOOKUP($K7,'Calc-Drivers'!$B$17:$F$27,L$42,FALSE))," ",VLOOKUP($K7,'Calc-Drivers'!$B$17:$F$27,L$42,FALSE)) -> 0.3874734305 | M7: =IF(ISERROR(VLOOKUP($K7,'Calc-Drivers'!$B$17:$F$27,M$42,FALSE))," ",VLOOKUP($K7,'Calc-Drivers'!$B$17:$F$27,M$42,FALSE)) -> 0.1103067792 | N7: =IF(ISERROR(VLOOKUP($K7,'Calc-Drivers'!$B$17:$F$27,N$42,FALSE))," ",VLOOKUP($K7,'Calc-Drivers'!$B$17:$F$27,N$42,FALSE)) -> 0.03400429288 | O7: =IF(ISERROR(VLOOKUP($K7,'Calc-Drivers'!$B$17:$F$27,O$42,FALSE))," ",VLOOKUP($K7,'Calc-Drivers'!$B$17:$F$27,O$42,FALSE)) -> 0.4682154974 | R7: 1.652453471 | S7: 0.4704240491 | T7: 0.1450177157 | U7: 1.996793232 | W7: =X7-'[8]Calc - WPD Opex Allocation'!Y7 -> 0 | X7: 18.34515915 | Y7: 17.44447937 | Z7: 10.29499839 | AA7: 16.44703057 | AD7: =IF(ISERROR(X7*100000000/'Calc-Units'!$E$21)," ",X7*100000000/'Calc-Units'!$E$21) -> 0.06247303937 | AE7: =IF(ISERROR(Y7*100000000/'Calc-Units'!$D$21)," ",Y7*100000000/'Calc-Units'!$D$21) -> 0.06081458949 | AF7: =IF(ISERROR(Z7*100000000/'Calc-Units'!$C$21)," ",Z7*100000000/'Calc-Units'!$C$21) -> 0.05338068229 | AG7: =IF(ISERROR(AA7*100000000/'Calc-Units'!$C$21)," ",AA7*100000000/'Calc-Units'!$C$21) -> 0.08527963587 | AI7: 1 | AJ7: 62.53166749 | AK7: 0 | AN7: =IF(ISERROR(X7*(1-$AI7))," ",X7*(1-$AI7)) -> 0 | AO7: 0 | AP7: 0 | AQ7: 0 | AT7: =IF(ISERROR(AN7*100000000/'Calc-Units'!$E$21)," ",AN7*100000000/'Calc-Units'!$E$21) -> 0 | AU7: =IF(ISERROR(AO7*100000000/'Calc-Units'!$D$21)," ",AO7*100000000/'Calc-Units'!$D$21) -> 0 | AV7: =IF(ISERROR(AP7*100000000/'Calc-Units'!$C$21)," ",AP7*100000000/'Calc-Units'!$C$21) -> 0 | AW7: =IF(ISERROR(AQ7*100000000/'Calc-Units'!$C$21)," ",AQ7*100000000/'Calc-Units'!$C$21) -> 0
C8: Non-operational capex | D8: ='RRP 1.3'!F$12 -> 2.396941292 | E8: 0 | F8: 0 | G8: 0 | H8: 0 | I8: 2.396941292 | K8: MEAV | L8: =IF(ISERROR(VLOOKUP($K8,'Calc-Drivers'!$B$17:$F$27,L$42,FALSE))," ",VLOOKUP($K8,'Calc-Drivers'!$B$17:$F$27,L$42,FALSE)) -> 0.3874734305 | M8: =IF(ISERROR(VLOOKUP($K8,'Calc-Drivers'!$B$17:$F$27,M$42,FALSE))," ",VLOOKUP($K8,'Calc-Drivers'!$B$17:$F$27,M$42,FALSE)) -> 0.1103067792 | N8: =IF(ISERROR(VLOOKUP($K8,'Calc-Drivers'!$B$17:$F$27,N$42,FALSE))," ",VLOOKUP($K8,'Calc-Drivers'!$B$17:$F$27,N$42,FALSE)) -> 0.03400429288 | O8: =IF(ISERROR(VLOOKUP($K8,'Calc-Drivers'!$B$17:$F$27,O$42,FALSE))," ",VLOOKUP($K8,'Calc-Drivers'!$B$17:$F$27,O$42,FALSE)) -> 0.4682154974 | R8: 0.928751065 | S8: 0.2643988738 | T8: 0.0815062937 | U8: 1.122285059 | W8: =X8-'[8]Calc - WPD Opex Allocation'!Y8 -> 0 | X8: 0.928751065 | Y8: 0.2643988738 | Z8: 0.0815062937 | AA8: 1.122285059 | AD8: =IF(ISERROR(X8*100000000/'Calc-Units'!$E$21)," ",X8*100000000/'Calc-Units'!$E$21) -> 0.003162790869 | AE8: =IF(ISERROR(Y8*100000000/'Calc-Units'!$D$21)," ",Y8*100000000/'Calc-Units'!$D$21) -> 0.0009217419807 | AF8: =IF(ISERROR(Z8*100000000/'Calc-Units'!$C$21)," ",Z8*100000000/'Calc-Units'!$C$21) -> 0.0004226189656 | AG8: =IF(ISERROR(AA8*100000000/'Calc-Units'!$C$21)," ",AA8*100000000/'Calc-Units'!$C$21) -> 0.005819169653 | AI8: 0.235 | AJ8: 0.5632812035 | AK8: 1.833660088 | AN8: 0.7104945647 | AO8: 0.2022651385 | AP8: 0.06235231468 | AQ8: 0.8585480703 | AT8: =IF(ISERROR(AN8*100000000/'Calc-Units'!$E$21)," ",AN8*100000000/'Calc-Units'!$E$21) -> 0.002419535015 | AU8: =IF(ISERROR(AO8*100000000/'Calc-Units'!$D$21)," ",AO8*100000000/'Calc-Units'!$D$21) -> 0.0007051326152 | AV8: =IF(ISERROR(AP8*100000000/'Calc-Units'!$C$21)," ",AP8*100000000/'Calc-Units'!$C$21) -> 0.0003233035087 | AW8: =IF(ISERROR(AQ8*100000000/'Calc-Units'!$C$21)," ",AQ8*100000000/'Calc-Units'!$C$21) -> 0.004451664784
C9: Faults | D9: ='RRP 1.3'!G$12 -> 26.51442421 | E9: =SUM('RRP 2.3'!I20:I27) -> 1.581568167 | F9: =SUM('RRP 2.3'!I17:I18) -> 6.265825346 | G9: =SUM('RRP 2.3'!I19) -> 0.5505005436 | H9: =SUM('RRP 2.3'!I11:I16) -> 15.94586126 | I9: 2.17066889 | K9: MEAV | L9: =IF(ISERROR(VLOOKUP($K9,'Calc-Drivers'!$B$17:$F$27,L$42,FALSE))," ",VLOOKUP($K9,'Calc-Drivers'!$B$17:$F$27,L$42,FALSE)) -> 0.3874734305 | M9: =IF(ISERROR(VLOOKUP($K9,'Calc-Drivers'!$B$17:$F$27,M$42,FALSE))," ",VLOOKUP($K9,'Calc-Drivers'!$B$17:$F$27,M$42,FALSE)) -> 0.1103067792 | N9: =IF(ISERROR(VLOOKUP($K9,'Calc-Drivers'!$B$17:$F$27,N$42,FALSE))," ",VLOOKUP($K9,'Calc-Drivers'!$B$17:$F$27,N$42,FALSE)) -> 0.03400429288 | O9: =IF(ISERROR(VLOOKUP($K9,'Calc-Drivers'!$B$17:$F$27,O$42,FALSE))," ",VLOOKUP($K9,'Calc-Drivers'!$B$17:$F$27,O$42,FALSE)) -> 0.4682154974 | R9: 0.8410765212 | S9: 0.2394394939 | T9: 0.07381206068 | U9: 1.016340814 | W9: =X9-'[8]Calc - WPD Opex Allocation'!Y9 -> 0 | X9: 2.422644688 | Y9: 6.50526484 | Z9: 0.6243126043 | AA9: 16.96220208 | AD9: =IF(ISERROR(X9*100000000/'Calc-Units'!$E$21)," ",X9*100000000/'Calc-Units'!$E$21) -> 0.008250131589 | AE9: =IF(ISERROR(Y9*100000000/'Calc-Units'!$D$21)," ",Y9*100000000/'Calc-Units'!$D$21) -> 0.02267852208 | AF9: =IF(ISERROR(Z9*100000000/'Calc-Units'!$C$21)," ",Z9*100000000/'Calc-Units'!$C$21) -> 0.003237128509 | AG9: =IF(ISERROR(AA9*100000000/'Calc-Units'!$C$21)," ",AA9*100000000/'Calc-Units'!$C$21) -> 0.08795085594 | AI9: 0.235 | AJ9: 6.230889689 | AK9: 20.28353452 | AN9: 1.853323187 | AO9: 4.976527603 | AP9: 0.4775991423 | AQ9: 12.97608459 | AT9: =IF(ISERROR(AN9*100000000/'Calc-Units'!$E$21)," ",AN9*100000000/'Calc-Units'!$E$21) -> 0.006311350666 | AU9: =IF(ISERROR(AO9*100000000/'Calc-Units'!$D$21)," ",AO9*100000000/'Calc-Units'!$D$21) -> 0.01734906939 | AV9: =IF(ISERROR(AP9*100000000/'Calc-Units'!$C$21)," ",AP9*100000000/'Calc-Units'!$C$21) -> 0.00247640331 | AW9: =IF(ISERROR(AQ9*100000000/'Calc-Units'!$C$21)," ",AQ9*100000000/'Calc-Units'!$C$21) -> 0.06728240479
C10: Inspections, & Maintenance | D10: ='RRP 1.3'!H$12 -> 11.60671618 | E10: =SUM('RRP 2.3'!G20:G27) -> 4.302513778 | F10: =SUM('RRP 2.3'!G17:G18) -> 0.5090896255 | G10: =SUM('RRP 2.3'!G19) -> 4.276938825 | H10: =SUM('RRP 2.3'!G11:G16) -> 1.219180953 | I10: 1.298993 | K10: MEAV | L10: =IF(ISERROR(VLOOKUP($K10,'Calc-Drivers'!$B$17:$F$27,L$42,FALSE))," ",VLOOKUP($K10,'Calc-Drivers'!$B$17:$F$27,L$42,FALSE)) -> 0.3874734305 | M10: =IF(ISERROR(VLOOKUP($K10,'Calc-Drivers'!$B$17:$F$27,M$42,FALSE))," ",VLOOKUP($K10,'Calc-Drivers'!$B$17:$F$27,M$42,FALSE)) -> 0.1103067792 | N10: =IF(ISERROR(VLOOKUP($K10,'Calc-Drivers'!$B$17:$F$27,N$42,FALSE))," ",VLOOKUP($K10,'Calc-Drivers'!$B$17:$F$27,N$42,FALSE)) -> 0.03400429288 | O10: =IF(ISERROR(VLOOKUP($K10,'Calc-Drivers'!$B$17:$F$27,O$42,FALSE))," ",VLOOKUP($K10,'Calc-Drivers'!$B$17:$F$27,O$42,FALSE)) -> 0.4682154974 | R10: 0.5033252739 | S10: 0.143287734 | T10: 0.04417133842 | U10: 0.6082086537 | W10: =X10-'[8]Calc - WPD Opex Allocation'!Y10 -> 0 | X10: 4.805839051 | Y10: 0.6523773596 | Z10: 4.321110163 | AA10: 1.827389607 | AD10: =IF(ISERROR(X10*100000000/'Calc-Units'!$E$21)," ",X10*100000000/'Calc-Units'!$E$21) -> 0.01636591811 | AE10: =IF(ISERROR(Y10*100000000/'Calc-Units'!$D$21)," ",Y10*100000000/'Calc-Units'!$D$21) -> 0.002274304693 | AF10: =IF(ISERROR(Z10*100000000/'Calc-Units'!$C$21)," ",Z10*100000000/'Calc-Units'!$C$21) -> 0.02240542447 | AG10: =IF(ISERROR(AA10*100000000/'Calc-Units'!$C$21)," ",AA10*100000000/'Calc-Units'!$C$21) -> 0.009475213143 | AI10: 0.235 | AJ10: 2.727578303 | AK10: 8.879137878 | AN10: 3.676466874 | AO10: 0.4990686801 | AP10: 3.305649275 | AQ10: 1.397953049 | AT10: =IF(ISERROR(AN10*100000000/'Calc-Units'!$E$21)," ",AN10*100000000/'Calc-Units'!$E$21) -> 0.01251992735 | AU10: =IF(ISERROR(AO10*100000000/'Calc-Units'!$D$21)," ",AO10*100000000/'Calc-Units'!$D$21) -> 0.00173984309 | AV10: =IF(ISERROR(AP10*100000000/'Calc-Units'!$C$21)," ",AP10*100000000/'Calc-Units'!$C$21) -> 0.01714014972 | AW10: =IF(ISERROR(AQ10*100000000/'Calc-Units'!$C$21)," ",AQ10*100000000/'Calc-Units'!$C$21) -> 0.007248538055
C11: Tree Cutting | D11: ='RRP 1.3'!I$12 -> 3.12086906 | E11: ='RRP 2.3'!G46+'RRP 2.3'!G47 -> 0.8110530564 | F11: ='RRP 2.3'!G45 -> 3.839995696 | G11: 0 | H11: ='RRP 2.3'!G44 -> 2.669820307 | I11: -4.2 | K11: MEAV | L11: =IF(ISERROR(VLOOKUP($K11,'Calc-Drivers'!$B$17:$F$27,L$42,FALSE))," ",VLOOKUP($K11,'Calc-Drivers'!$B$17:$F$27,L$42,FALSE)) -> 0.3874734305 | M11: =IF(ISERROR(VLOOKUP($K11,'Calc-Drivers'!$B$17:$F$27,M$42,FALSE))," ",VLOOKUP($K11,'Calc-Drivers'!$B$17:$F$27,M$42,FALSE)) -> 0.1103067792 | N11: =IF(ISERROR(VLOOKUP($K11,'Calc-Drivers'!$B$17:$F$27,N$42,FALSE))," ",VLOOKUP($K11,'Calc-Drivers'!$B$17:$F$27,N$42,FALSE)) -> 0.03400429288 | O11: =IF(ISERROR(VLOOKUP($K11,'Calc-Drivers'!$B$17:$F$27,O$42,FALSE))," ",VLOOKUP($K11,'Calc-Drivers'!$B$17:$F$27,O$42,FALSE)) -> 0.4682154974 | R11: -1.627388408 | S11: -0.4632884726 | T11: -0.1428180301 | U11: -1.966505089 | W11: =X11-'[8]Calc - WPD Opex Allocation'!Y11 -> 0 | X11: -0.8163353516 | Y11: 3.376707224 | Z11: -0.1428180301 | AA11: 0.7033152182 | AD11: =IF(ISERROR(X11*100000000/'Calc-Units'!$E$21)," ",X11*100000000/'Calc-Units'!$E$21) -> -0.002779967737 | AE11: =IF(ISERROR(Y11*100000000/'Calc-Units'!$D$21)," ",Y11*100000000/'Calc-Units'!$D$21) -> 0.0117718081 | AF11: =IF(ISERROR(Z11*100000000/'Calc-Units'!$C$21)," ",Z11*100000000/'Calc-Units'!$C$21) -> -0.0007405269631 | AG11: =IF(ISERROR(AA11*100000000/'Calc-Units'!$C$21)," ",AA11*100000000/'Calc-Units'!$C$21) -> 0.003646765624 | AI11: 0.235 | AJ11: 0.7334042291 | AK11: 2.387464831 | AN11: -0.624496544 | AO11: 2.583181026 | AP11: -0.109255793 | AQ11: 0.5380361419 | AT11: =IF(ISERROR(AN11*100000000/'Calc-Units'!$E$21)," ",AN11*100000000/'Calc-Units'!$E$21) -> -0.002126675319 | AU11: =IF(ISERROR(AO11*100000000/'Calc-Units'!$D$21)," ",AO11*100000000/'Calc-Units'!$D$21) -> 0.009005433197 | AV11: =IF(ISERROR(AP11*100000000/'Calc-Units'!$C$21)," ",AP11*100000000/'Calc-Units'!$C$21) -> -0.0005665031268 | AW11: =IF(ISERROR(AQ11*100000000/'Calc-Units'!$C$21)," ",AQ11*100000000/'Calc-Units'!$C$21) -> 0.002789775702
B12: Indirect activities - From RRP 2.2 Detailed Cost Matrix | C12: Network Policy | D12: ='RRP 1.3'!J$12 -> 0.6388920716 | E12: 0 | F12: 0 | G12: 0 | H12: 0 | I12: 0.6388920716 | K12: MEAV | L12: =IF(ISERROR(VLOOKUP($K12,'Calc-Drivers'!$B$17:$F$27,L$42,FALSE))," ",VLOOKUP($K12,'Calc-Drivers'!$B$17:$F$27,L$42,FALSE)) -> 0.3874734305 | M12: =IF(ISERROR(VLOOKUP($K12,'Calc-Drivers'!$B$17:$F$27,M$42,FALSE))," ",VLOOKUP($K12,'Calc-Drivers'!$B$17:$F$27,M$42,FALSE)) -> 0.1103067792 | N12: =IF(ISERROR(VLOOKUP($K12,'Calc-Drivers'!$B$17:$F$27,N$42,FALSE))," ",VLOOKUP($K12,'Calc-Drivers'!$B$17:$F$27,N$42,FALSE)) -> 0.03400429288 | O12: =IF(ISERROR(VLOOKUP($K12,'Calc-Drivers'!$B$17:$F$27,O$42,FALSE))," ",VLOOKUP($K12,'Calc-Drivers'!$B$17:$F$27,O$42,FALSE)) -> 0.4682154974 | R12: 0.2475537027 | S12: 0.07047412667 | T12: 0.02172507312 | U12: 0.2991391691 | W12: =X12-'[8]Calc - WPD Opex Allocation'!Y12 -> 0 | X12: 0.2475537027 | Y12: 0.07047412667 | Z12: 0.02172507312 | AA12: 0.2991391691 | AD12: =IF(ISERROR(X12*100000000/'Calc-Units'!$E$21)," ",X12*100000000/'Calc-Units'!$E$21) -> 0.0008430252412 | AE12: =IF(ISERROR(Y12*100000000/'Calc-Units'!$D$21)," ",Y12*100000000/'Calc-Units'!$D$21) -> 0.0002456854682 | AF12: =IF(ISERROR(Z12*100000000/'Calc-Units'!$C$21)," ",Z12*100000000/'Calc-Units'!$C$21) -> 0.0001126468585 | AG12: =IF(ISERROR(AA12*100000000/'Calc-Units'!$C$21)," ",AA12*100000000/'Calc-Units'!$C$21) -> 0.001551069009 | AI12: 0.5257 | AJ12: 0.3358655621 | AK12: 0.3030265096 | AN12: 0.1174147212 | AO12: 0.03342587828 | AP12: 0.01030420218 | AQ12: 0.1418817079 | AT12: =IF(ISERROR(AN12*100000000/'Calc-Units'!$E$21)," ",AN12*100000000/'Calc-Units'!$E$21) -> 0.0003998468719 | AU12: =IF(ISERROR(AO12*100000000/'Calc-Units'!$D$21)," ",AO12*100000000/'Calc-Units'!$D$21) -> 0.0001165286176 | AV12: =IF(ISERROR(AP12*100000000/'Calc-Units'!$C$21)," ",AP12*100000000/'Calc-Units'!$C$21) -> 5.342840497e-05 | AW12: =IF(ISERROR(AQ12*100000000/'Calc-Units'!$C$21)," ",AQ12*100000000/'Calc-Units'!$C$21) -> 0.0007356720311
C13: Network Design & Engineering | D13: ='RRP 1.3'!K$12 -> 5.130577496 | E13: 0 | F13: 0 | G13: 0 | H13: 0 | I13: 5.130577496 | K13: MEAV | L13: =IF(ISERROR(VLOOKUP($K13,'Calc-Drivers'!$B$17:$F$27,L$42,FALSE))," ",VLOOKUP($K13,'Calc-Drivers'!$B$17:$F$27,L$42,FALSE)) -> 0.3874734305 | M13: =IF(ISERROR(VLOOKUP($K13,'Calc-Drivers'!$B$17:$F$27,M$42,FALSE))," ",VLOOKUP($K13,'Calc-Drivers'!$B$17:$F$27,M$42,FALSE)) -> 0.1103067792 | N13: =IF(ISERROR(VLOOKUP($K13,'Calc-Drivers'!$B$17:$F$27,N$42,FALSE))," ",VLOOKUP($K13,'Calc-Drivers'!$B$17:$F$27,N$42,FALSE)) -> 0.03400429288 | O13: =IF(ISERROR(VLOOKUP($K13,'Calc-Drivers'!$B$17:$F$27,O$42,FALSE))," ",VLOOKUP($K13,'Calc-Drivers'!$B$17:$F$27,O$42,FALSE)) -> 0.4682154974 | R13: 1.987962463 | S13: 0.5659374789 | T13: 0.1744616598 | U13: 2.402215894 | W13: =X13-'[8]Calc - WPD Opex Allocation'!Y13 -> 0 | X13: 1.987962463 | Y13: 0.5659374789 | Z13: 0.1744616598 | AA13: 2.402215894 | AD13: =IF(ISERROR(X13*100000000/'Calc-Units'!$E$21)," ",X13*100000000/'Calc-Units'!$E$21) -> 0.006769854444 | AE13: =IF(ISERROR(Y13*100000000/'Calc-Units'!$D$21)," ",Y13*100000000/'Calc-Units'!$D$21) -> 0.001972959738 | AF13: =IF(ISERROR(Z13*100000000/'Calc-Units'!$C$21)," ",Z13*100000000/'Calc-Units'!$C$21) -> 0.0009046026123 | AG13: =IF(ISERROR(AA13*100000000/'Calc-Units'!$C$21)," ",AA13*100000000/'Calc-Units'!$C$21) -> 0.01245574974 | AI13: 0.5257 | AJ13: 2.697144589 | AK13: 2.433432906 | AN13: 0.942890596 | AO13: 0.2684241462 | AP13: 0.08274716525 | AQ13: 1.139370999 | AT13: =IF(ISERROR(AN13*100000000/'Calc-Units'!$E$21)," ",AN13*100000000/'Calc-Units'!$E$21) -> 0.003210941963 | AU13: =IF(ISERROR(AO13*100000000/'Calc-Units'!$D$21)," ",AO13*100000000/'Calc-Units'!$D$21) -> 0.0009357748037 | AV13: =IF(ISERROR(AP13*100000000/'Calc-Units'!$C$21)," ",AP13*100000000/'Calc-Units'!$C$21) -> 0.000429053019 | AW13: =IF(ISERROR(AQ13*100000000/'Calc-Units'!$C$21)," ",AQ13*100000000/'Calc-Units'!$C$21) -> 0.0059077621
C14: Project Management | D14: ='RRP 1.3'!L$12 -> 2.216717662 | E14: 0 | F14: 0 | G14: 0 | H14: 0 | I14: 2.216717662 | K14: MEAV | L14: =IF(ISERROR(VLOOKUP($K14,'Calc-Drivers'!$B$17:$F$27,L$42,FALSE))," ",VLOOKUP($K14,'Calc-Drivers'!$B$17:$F$27,L$42,FALSE)) -> 0.3874734305 | M14: =IF(ISERROR(VLOOKUP($K14,'Calc-Drivers'!$B$17:$F$27,M$42,FALSE))," ",VLOOKUP($K14,'Calc-Drivers'!$B$17:$F$27,M$42,FALSE)) -> 0.1103067792 | N14: =IF(ISERROR(VLOOKUP($K14,'Calc-Drivers'!$B$17:$F$27,N$42,FALSE))," ",VLOOKUP($K14,'Calc-Drivers'!$B$17:$F$27,N$42,FALSE)) -> 0.03400429288 | O14: =IF(ISERROR(VLOOKUP($K14,'Calc-Drivers'!$B$17:$F$27,O$42,FALSE))," ",VLOOKUP($K14,'Calc-Drivers'!$B$17:$F$27,O$42,FALSE)) -> 0.4682154974 | R14: 0.8589191969 | S14: 0.2445189857 | T14: 0.07537791662 | U14: 1.037901563 | W14: =X14-'[8]Calc - WPD Opex Allocation'!Y14 -> 0 | X14: 0.8589191969 | Y14: 0.2445189857 | Z14: 0.07537791662 | AA14: 1.037901563 | AD14: =IF(ISERROR(X14*100000000/'Calc-Units'!$E$21)," ",X14*100000000/'Calc-Units'!$E$21) -> 0.002924983772 | AE14: =IF(ISERROR(Y14*100000000/'Calc-Units'!$D$21)," ",Y14*100000000/'Calc-Units'!$D$21) -> 0.0008524371187 | AF14: =IF(ISERROR(Z14*100000000/'Calc-Units'!$C$21)," ",Z14*100000000/'Calc-Units'!$C$21) -> 0.0003908426663 | AG14: =IF(ISERROR(AA14*100000000/'Calc-Units'!$C$21)," ",AA14*100000000/'Calc-Units'!$C$21) -> 0.005381632079 | AI14: 0.5257 | AJ14: 1.165328475 | AK14: 1.051389187 | AN14: 0.4073853751 | AO14: 0.1159753549 | AP14: 0.03575174585 | AQ14: 0.4922767113 | AT14: =IF(ISERROR(AN14*100000000/'Calc-Units'!$E$21)," ",AN14*100000000/'Calc-Units'!$E$21) -> 0.001387319803 | AU14: =IF(ISERROR(AO14*100000000/'Calc-Units'!$D$21)," ",AO14*100000000/'Calc-Units'!$D$21) -> 0.0004043109254 | AV14: =IF(ISERROR(AP14*100000000/'Calc-Units'!$C$21)," ",AP14*100000000/'Calc-Units'!$C$21) -> 0.0001853766766 | AW14: =IF(ISERROR(AQ14*100000000/'Calc-Units'!$C$21)," ",AQ14*100000000/'Calc-Units'!$C$21) -> 0.002552508095
C15: Engineering Mgt & Clerical Support | D15: ='RRP 1.3'!M$12 -> 16.93961281 | E15: 0 | F15: 0 | G15: 0 | H15: 0 | I15: 16.93961281 | K15: MEAV | L15: =IF(ISERROR(VLOOKUP($K15,'Calc-Drivers'!$B$17:$F$27,L$42,FALSE))," ",VLOOKUP($K15,'Calc-Drivers'!$B$17:$F$27,L$42,FALSE)) -> 0.3874734305 | M15: =IF(ISERROR(VLOOKUP($K15,'Calc-Drivers'!$B$17:$F$27,M$42,FALSE))," ",VLOOKUP($K15,'Calc-Drivers'!$B$17:$F$27,M$42,FALSE)) -> 0.1103067792 | N15: =IF(ISERROR(VLOOKUP($K15,'Calc-Drivers'!$B$17:$F$27,N$42,FALSE))," ",VLOOKUP($K15,'Calc-Drivers'!$B$17:$F$27,N$42,FALSE)) -> 0.03400429288 | O15: =IF(ISERROR(VLOOKUP($K15,'Calc-Drivers'!$B$17:$F$27,O$42,FALSE))," ",VLOOKUP($K15,'Calc-Drivers'!$B$17:$F$27,O$42,FALSE)) -> 0.4682154974 | R15: 6.563649888 | S15: 1.86855413 | T15: 0.5760195554 | U15: 7.93138924 | W15: =X15-'[8]Calc - WPD Opex Allocation'!Y15 -> 0 | X15: 6.563649888 | Y15: 1.86855413 | Z15: 0.5760195554 | AA15: 7.93138924 | AD15: =IF(ISERROR(X15*100000000/'Calc-Units'!$E$21)," ",X15*100000000/'Calc-Units'!$E$21) -> 0.02235200875 | AE15: =IF(ISERROR(Y15*100000000/'Calc-Units'!$D$21)," ",Y15*100000000/'Calc-Units'!$D$21) -> 0.006514115436 | AF15: =IF(ISERROR(Z15*100000000/'Calc-Units'!$C$21)," ",Z15*100000000/'Calc-Units'!$C$21) -> 0.002986723818 | AG15: =IF(ISERROR(AA15*100000000/'Calc-Units'!$C$21)," ",AA15*100000000/'Calc-Units'!$C$21) -> 0.04112511273 | AI15: 0.5257 | AJ15: 8.905154456 | AK15: 8.034458358 | AN15: 3.113139142 | AO15: 0.886255224 | AP15: 0.2732060751 | AQ15: 3.761857917 | AT15: =IF(ISERROR(AN15*100000000/'Calc-Units'!$E$21)," ",AN15*100000000/'Calc-Units'!$E$21) -> 0.01060155775 | AU15: =IF(ISERROR(AO15*100000000/'Calc-Units'!$D$21)," ",AO15*100000000/'Calc-Units'!$D$21) -> 0.003089644951 | AV15: =IF(ISERROR(AP15*100000000/'Calc-Units'!$C$21)," ",AP15*100000000/'Calc-Units'!$C$21) -> 0.001416603107 | AW15: =IF(ISERROR(AQ15*100000000/'Calc-Units'!$C$21)," ",AQ15*100000000/'Calc-Units'!$C$21) -> 0.01950564097
C16: Control Centre | D16: ='RRP 1.3'!N$12 -> 4.430016242 | E16: 0 | F16: 0 | G16: 0 | H16: 0 | I16: 4.430016242 | K16: MEAV | L16: =IF(ISERROR(VLOOKUP($K16,'Calc-Drivers'!$B$17:$F$27,L$42,FALSE))," ",VLOOKUP($K16,'Calc-Drivers'!$B$17:$F$27,L$42,FALSE)) -> 0.3874734305 | M16: =IF(ISERROR(VLOOKUP($K16,'Calc-Drivers'!$B$17:$F$27,M$42,FALSE))," ",VLOOKUP($K16,'Calc-Drivers'!$B$17:$F$27,M$42,FALSE)) -> 0.1103067792 | N16: =IF(ISERROR(VLOOKUP($K16,'Calc-Drivers'!$B$17:$F$27,N$42,FALSE))," ",VLOOKUP($K16,'Calc-Drivers'!$B$17:$F$27,N$42,FALSE)) -> 0.03400429288 | O16: =IF(ISERROR(VLOOKUP($K16,'Calc-Drivers'!$B$17:$F$27,O$42,FALSE))," ",VLOOKUP($K16,'Calc-Drivers'!$B$17:$F$27,O$42,FALSE)) -> 0.4682154974 | R16: 1.71651359 | S16: 0.4886608234 | T16: 0.1506395698 | U16: 2.074202258 | W16: =X16-'[8]Calc - WPD Opex Allocation'!Y16 -> 0 | X16: 1.71651359 | Y16: 0.4886608234 | Z16: 0.1506395698 | AA16: 2.074202258 | AD16: =IF(ISERROR(X16*100000000/'Calc-Units'!$E$21)," ",X16*100000000/'Calc-Units'!$E$21) -> 0.005845456027 | AE16: =IF(ISERROR(Y16*100000000/'Calc-Units'!$D$21)," ",Y16*100000000/'Calc-Units'!$D$21) -> 0.001703559432 | AF16: =IF(ISERROR(Z16*100000000/'Calc-Units'!$C$21)," ",Z16*100000000/'Calc-Units'!$C$21) -> 0.0007810824938 | AG16: =IF(ISERROR(AA16*100000000/'Calc-Units'!$C$21)," ",AA16*100000000/'Calc-Units'!$C$21) -> 0.01075496349 | AI16: 0.5257 | AJ16: 2.328859538 | AK16: 2.101156703 | AN16: 0.8141423958 | AO16: 0.2317718285 | AP16: 0.07144834793 | AQ16: 0.9837941311 | AT16: =IF(ISERROR(AN16*100000000/'Calc-Units'!$E$21)," ",AN16*100000000/'Calc-Units'!$E$21) -> 0.002772499793 | AU16: =IF(ISERROR(AO16*100000000/'Calc-Units'!$D$21)," ",AO16*100000000/'Calc-Units'!$D$21) -> 0.0008079982385 | AV16: =IF(ISERROR(AP16*100000000/'Calc-Units'!$C$21)," ",AP16*100000000/'Calc-Units'!$C$21) -> 0.0003704674268 | AW16: =IF(ISERROR(AQ16*100000000/'Calc-Units'!$C$21)," ",AQ16*100000000/'Calc-Units'!$C$21) -> 0.005101079182
C17: System Mapping - Cartographical | D17: ='RRP 1.3'!O$12 -> 1.509465701 | E17: 0 | F17: 0 | G17: 0 | H17: 0 | I17: 1.509465701 | K17: MEAV | L17: =IF(ISERROR(VLOOKUP($K17,'Calc-Drivers'!$B$17:$F$27,L$42,FALSE))," ",VLOOKUP($K17,'Calc-Drivers'!$B$17:$F$27,L$42,FALSE)) -> 0.3874734305 | M17: =IF(ISERROR(VLOOKUP($K17,'Calc-Drivers'!$B$17:$F$27,M$42,FALSE))," ",VLOOKUP($K17,'Calc-Drivers'!$B$17:$F$27,M$42,FALSE)) -> 0.1103067792 | N17: =IF(ISERROR(VLOOKUP($K17,'Calc-Drivers'!$B$17:$F$27,N$42,FALSE))," ",VLOOKUP($K17,'Calc-Drivers'!$B$17:$F$27,N$42,FALSE)) -> 0.03400429288 | O17: =IF(ISERROR(VLOOKUP($K17,'Calc-Drivers'!$B$17:$F$27,O$42,FALSE))," ",VLOOKUP($K17,'Calc-Drivers'!$B$17:$F$27,O$42,FALSE)) -> 0.4682154974 | R17: 0.5848778533 | S17: 0.1665042998 | T17: 0.05132831379 | U17: 0.706755234 | W17: =X17-'[8]Calc - WPD Opex Allocation'!Y17 -> 0 | X17: 0.5848778533 | Y17: 0.1665042998 | Z17: 0.05132831379 | AA17: 0.706755234 | AD17: =IF(ISERROR(X17*100000000/'Calc-Units'!$E$21)," ",X17*100000000/'Calc-Units'!$E$21) -> 0.001991756891 | AE17: =IF(ISERROR(Y17*100000000/'Calc-Units'!$D$21)," ",Y17*100000000/'Calc-Units'!$D$21) -> 0.0005804639061 | AF17: =IF(ISERROR(Z17*100000000/'Calc-Units'!$C$21)," ",Z17*100000000/'Calc-Units'!$C$21) -> 0.0002661428694 | AG17: =IF(ISERROR(AA17*100000000/'Calc-Units'!$C$21)," ",AA17*100000000/'Calc-Units'!$C$21) -> 0.003664602479 | AI17: 0.5257 | AJ17: 0.793526119 | AK17: 0.7159395819 | AN17: 0.2774075658 | AO17: 0.07897298938 | AP17: 0.02434501923 | AQ17: 0.3352140075 | AT17: =IF(ISERROR(AN17*100000000/'Calc-Units'!$E$21)," ",AN17*100000000/'Calc-Units'!$E$21) -> 0.0009446902936 | AU17: =IF(ISERROR(AO17*100000000/'Calc-Units'!$D$21)," ",AO17*100000000/'Calc-Units'!$D$21) -> 0.0002753140307 | AV17: =IF(ISERROR(AP17*100000000/'Calc-Units'!$C$21)," ",AP17*100000000/'Calc-Units'!$C$21) -> 0.0001262315629 | AW17: =IF(ISERROR(AQ17*100000000/'Calc-Units'!$C$21)," ",AQ17*100000000/'Calc-Units'!$C$21) -> 0.001738120956
C18: Customer Call Centre | D18: ='RRP 1.3'!P$12 -> 1.323939927 | E18: 0 | F18: 0 | G18: 0 | H18: 0 | I18: 1.323939927 | K18: MEAV | L18: =IF(ISERROR(VLOOKUP($K18,'Calc-Drivers'!$B$17:$F$27,L$42,FALSE))," ",VLOOKUP($K18,'Calc-Drivers'!$B$17:$F$27,L$42,FALSE)) -> 0.3874734305 | M18: =IF(ISERROR(VLOOKUP($K18,'Calc-Drivers'!$B$17:$F$27,M$42,FALSE))," ",VLOOKUP($K18,'Calc-Drivers'!$B$17:$F$27,M$42,FALSE)) -> 0.1103067792 | N18: =IF(ISERROR(VLOOKUP($K18,'Calc-Drivers'!$B$17:$F$27,N$42,FALSE))," ",VLOOKUP($K18,'Calc-Drivers'!$B$17:$F$27,N$42,FALSE)) -> 0.03400429288 | O18: =IF(ISERROR(VLOOKUP($K18,'Calc-Drivers'!$B$17:$F$27,O$42,FALSE))," ",VLOOKUP($K18,'Calc-Drivers'!$B$17:$F$27,O$42,FALSE)) -> 0.4682154974 | R18: 0.5129915452 | S18: 0.1460395492 | T18: 0.04501964103 | U18: 0.6198891914 | W18: =X18-'[8]Calc - WPD Opex Allocation'!Y18 -> 0 | X18: 0.5129915452 | Y18: 0.1460395492 | Z18: 0.04501964103 | AA18: 0.6198891914 | AD18: =IF(ISERROR(X18*100000000/'Calc-Units'!$E$21)," ",X18*100000000/'Calc-Units'!$E$21) -> 0.001746953555 | AE18: =IF(ISERROR(Y18*100000000/'Calc-Units'!$D$21)," ",Y18*100000000/'Calc-Units'!$D$21) -> 0.0005091201085 | AF18: =IF(ISERROR(Z18*100000000/'Calc-Units'!$C$21)," ",Z18*100000000/'Calc-Units'!$C$21) -> 0.0002334317175 | AG18: =IF(ISERROR(AA18*100000000/'Calc-Units'!$C$21)," ",AA18*100000000/'Calc-Units'!$C$21) -> 0.003214192634 | AI18: 0.5257 | AJ18: 0.6959952195 | AK18: 0.6279447073 | AN18: 0.2433118899 | AO18: 0.06926655817 | AP18: 0.02135281574 | AQ18: 0.2940134435 | AT18: =IF(ISERROR(AN18*100000000/'Calc-Units'!$E$21)," ",AN18*100000000/'Calc-Units'!$E$21) -> 0.0008285800713 | AU18: =IF(ISERROR(AO18*100000000/'Calc-Units'!$D$21)," ",AO18*100000000/'Calc-Units'!$D$21) -> 0.0002414756674 | AV18: =IF(ISERROR(AP18*100000000/'Calc-Units'!$C$21)," ",AP18*100000000/'Calc-Units'!$C$21) -> 0.0001107166636 | AW18: =IF(ISERROR(AQ18*100000000/'Calc-Units'!$C$21)," ",AQ18*100000000/'Calc-Units'!$C$21) -> 0.001524491566
C19: Stores | D19: ='RRP 1.3'!Q$12 -> 1.562325762 | E19: 0 | F19: 0 | G19: 0 | H19: 0 | I19: 1.562325762 | K19: MEAV | L19: =IF(ISERROR(VLOOKUP($K19,'Calc-Drivers'!$B$17:$F$27,L$42,FALSE))," ",VLOOKUP($K19,'Calc-Drivers'!$B$17:$F$27,L$42,FALSE)) -> 0.3874734305 | M19: =IF(ISERROR(VLOOKUP($K19,'Calc-Drivers'!$B$17:$F$27,M$42,FALSE))," ",VLOOKUP($K19,'Calc-Drivers'!$B$17:$F$27,M$42,FALSE)) -> 0.1103067792 | N19: =IF(ISERROR(VLOOKUP($K19,'Calc-Drivers'!$B$17:$F$27,N$42,FALSE))," ",VLOOKUP($K19,'Calc-Drivers'!$B$17:$F$27,N$42,FALSE)) -> 0.03400429288 | O19: =IF(ISERROR(VLOOKUP($K19,'Calc-Drivers'!$B$17:$F$27,O$42,FALSE))," ",VLOOKUP($K19,'Calc-Drivers'!$B$17:$F$27,O$42,FALSE)) -> 0.4682154974 | R19: 0.6053597226 | S19: 0.1723351229 | T19: 0.05312578279 | U19: 0.7315051339 | W19: =X19-'[8]Calc - WPD Opex Allocation'!Y19 -> 0 | X19: 0.6053597226 | Y19: 0.1723351229 | Z19: 0.05312578279 | AA19: 0.7315051339 | AD19: =IF(ISERROR(X19*100000000/'Calc-Units'!$E$21)," ",X19*100000000/'Calc-Units'!$E$21) -> 0.002061506334 | AE19: =IF(ISERROR(Y19*100000000/'Calc-Units'!$D$21)," ",Y19*100000000/'Calc-Units'!$D$21) -> 0.0006007912031 | AF19: =IF(ISERROR(Z19*100000000/'Calc-Units'!$C$21)," ",Z19*100000000/'Calc-Units'!$C$21) -> 0.000275462941 | AG19: =IF(ISERROR(AA19*100000000/'Calc-Units'!$C$21)," ",AA19*100000000/'Calc-Units'!$C$21) -> 0.003792933392 | AI19: 0.5257 | AJ19: 0.8213146532 | AK19: 0.741011109 | AN19: 0.2871221164 | AO19: 0.08173854878 | AP19: 0.02519755878 | AQ19: 0.346952885 | AT19: =IF(ISERROR(AN19*100000000/'Calc-Units'!$E$21)," ",AN19*100000000/'Calc-Units'!$E$21) -> 0.0009777724542 | AU19: =IF(ISERROR(AO19*100000000/'Calc-Units'!$D$21)," ",AO19*100000000/'Calc-Units'!$D$21) -> 0.0002849552676 | AV19: =IF(ISERROR(AP19*100000000/'Calc-Units'!$C$21)," ",AP19*100000000/'Calc-Units'!$C$21) -> 0.0001306520729 | AW19: =IF(ISERROR(AQ19*100000000/'Calc-Units'!$C$21)," ",AQ19*100000000/'Calc-Units'!$C$21) -> 0.001798988308
C20: Vehicles & Transport | D20: ='RRP 1.3'!R$12 -> 6.151044385 | E20: 0 | F20: 0 | G20: 0 | H20: 0 | I20: 6.151044385 | K20: MEAV | L20: =IF(ISERROR(VLOOKUP($K20,'Calc-Drivers'!$B$17:$F$27,L$42,FALSE))," ",VLOOKUP($K20,'Calc-Drivers'!$B$17:$F$27,L$42,FALSE)) -> 0.3874734305 | M20: =IF(ISERROR(VLOOKUP($K20,'Calc-Drivers'!$B$17:$F$27,M$42,FALSE))," ",VLOOKUP($K20,'Calc-Drivers'!$B$17:$F$27,M$42,FALSE)) -> 0.1103067792 | N20: =IF(ISERROR(VLOOKUP($K20,'Calc-Drivers'!$B$17:$F$27,N$42,FALSE))," ",VLOOKUP($K20,'Calc-Drivers'!$B$17:$F$27,N$42,FALSE)) -> 0.03400429288 | O20: =IF(ISERROR(VLOOKUP($K20,'Calc-Drivers'!$B$17:$F$27,O$42,FALSE))," ",VLOOKUP($K20,'Calc-Drivers'!$B$17:$F$27,O$42,FALSE)) -> 0.4682154974 | R20: 2.383366269 | S20: 0.6785018948 | T20: 0.2091619148 | U20: 2.880014307 | W20: =X20-'[8]Calc - WPD Opex Allocation'!Y20 -> 0 | X20: 2.383366269 | Y20: 0.6785018948 | Z20: 0.2091619148 | AA20: 2.880014307 | AD20: =IF(ISERROR(X20*100000000/'Calc-Units'!$E$21)," ",X20*100000000/'Calc-Units'!$E$21) -> 0.00811637193 | AE20: =IF(ISERROR(Y20*100000000/'Calc-Units'!$D$21)," ",Y20*100000000/'Calc-Units'!$D$21) -> 0.002365379517 | AF20: =IF(ISERROR(Z20*100000000/'Calc-Units'!$C$21)," ",Z20*100000000/'Calc-Units'!$C$21) -> 0.001084527195 | AG20: =IF(ISERROR(AA20*100000000/'Calc-Units'!$C$21)," ",AA20*100000000/'Calc-Units'!$C$21) -> 0.01493318628 | AI20: 0.5257 | AJ20: 3.233604033 | AK20: 2.917440352 | AN20: 1.130430621 | AO20: 0.3218134487 | AP20: 0.0992054962 | AQ20: 1.365990786 | AT20: =IF(ISERROR(AN20*100000000/'Calc-Units'!$E$21)," ",AN20*100000000/'Calc-Units'!$E$21) -> 0.003849595206 | AU20: =IF(ISERROR(AO20*100000000/'Calc-Units'!$D$21)," ",AO20*100000000/'Calc-Units'!$D$21) -> 0.001121899505 | AV20: =IF(ISERROR(AP20*100000000/'Calc-Units'!$C$21)," ",AP20*100000000/'Calc-Units'!$C$21) -> 0.0005143912486 | AW20: =IF(ISERROR(AQ20*100000000/'Calc-Units'!$C$21)," ",AQ20*100000000/'Calc-Units'!$C$21) -> 0.007082810255
C21: IT & Telecoms | D21: ='RRP 1.3'!S$12 -> 10.24006905 | E21: 0 | F21: 0 | G21: 0 | H21: 0 | I21: 10.24006905 | K21: Do not allocate | L21: =IF(ISERROR(VLOOKUP($K21,'Calc-Drivers'!$B$17:$F$27,L$42,FALSE))," ",VLOOKUP($K21,'Calc-Drivers'!$B$17:$F$27,L$42,FALSE)) ->  | M21: =IF(ISERROR(VLOOKUP($K21,'Calc-Drivers'!$B$17:$F$27,M$42,FALSE))," ",VLOOKUP($K21,'Calc-Drivers'!$B$17:$F$27,M$42,FALSE)) ->  | N21: =IF(ISERROR(VLOOKUP($K21,'Calc-Drivers'!$B$17:$F$27,N$42,FALSE))," ",VLOOKUP($K21,'Calc-Drivers'!$B$17:$F$27,N$42,FALSE)) ->  | O21: =IF(ISERROR(VLOOKUP($K21,'Calc-Drivers'!$B$17:$F$27,O$42,FALSE))," ",VLOOKUP($K21,'Calc-Drivers'!$B$17:$F$27,O$42,FALSE)) ->  | AD21: =IF(ISERROR(X21*100000000/'Calc-Units'!$E$21)," ",X21*100000000/'Calc-Units'!$E$21) ->  | AE21: =IF(ISERROR(Y21*100000000/'Calc-Units'!$D$21)," ",Y21*100000000/'Calc-Units'!$D$21) ->  | AF21: =IF(ISERROR(Z21*100000000/'Calc-Units'!$C$21)," ",Z21*100000000/'Calc-Units'!$C$21) ->  | AG21: =IF(ISERROR(AA21*100000000/'Calc-Units'!$C$21)," ",AA21*100000000/'Calc-Units'!$C$21) ->  | AI21: 0.5257 | AJ21: 5.383204298 | AK21: 4.856864749 | AT21: =IF(ISERROR(AN21*100000000/'Calc-Units'!$E$21)," ",AN21*100000000/'Calc-Units'!$E$21) ->  | AU21: =IF(ISERROR(AO21*100000000/'Calc-Units'!$D$21)," ",AO21*100000000/'Calc-Units'!$D$21) ->  | AV21: =IF(ISERROR(AP21*100000000/'Calc-Units'!$C$21)," ",AP21*100000000/'Calc-Units'!$C$21) ->  | AW21: =IF(ISERROR(AQ21*100000000/'Calc-Units'!$C$21)," ",AQ21*100000000/'Calc-Units'!$C$21) -> 
C22: Property Mgt | D22: ='RRP 1.3'!T$12 -> 4.583609038 | E22: 0 | F22: 0 | G22: 0 | H22: 0 | I22: 4.583609038 | K22: Do not allocate | L22: =IF(ISERROR(VLOOKUP($K22,'Calc-Drivers'!$B$17:$F$27,L$42,FALSE))," ",VLOOKUP($K22,'Calc-Drivers'!$B$17:$F$27,L$42,FALSE)) ->  | M22: =IF(ISERROR(VLOOKUP($K22,'Calc-Drivers'!$B$17:$F$27,M$42,FALSE))," ",VLOOKUP($K22,'Calc-Drivers'!$B$17:$F$27,M$42,FALSE)) ->  | N22: =IF(ISERROR(VLOOKUP($K22,'Calc-Drivers'!$B$17:$F$27,N$42,FALSE))," ",VLOOKUP($K22,'Calc-Drivers'!$B$17:$F$27,N$42,FALSE)) ->  | O22: =IF(ISERROR(VLOOKUP($K22,'Calc-Drivers'!$B$17:$F$27,O$42,FALSE))," ",VLOOKUP($K22,'Calc-Drivers'!$B$17:$F$27,O$42,FALSE)) ->  | AD22: =IF(ISERROR(X22*100000000/'Calc-Units'!$E$21)," ",X22*100000000/'Calc-Units'!$E$21) ->  | AE22: =IF(ISERROR(Y22*100000000/'Calc-Units'!$D$21)," ",Y22*100000000/'Calc-Units'!$D$21) ->  | AF22: =IF(ISERROR(Z22*100000000/'Calc-Units'!$C$21)," ",Z22*100000000/'Calc-Units'!$C$21) ->  | AG22: =IF(ISERROR(AA22*100000000/'Calc-Units'!$C$21)," ",AA22*100000000/'Calc-Units'!$C$21) ->  | AI22: 0.5257 | AJ22: 2.409603271 | AK22: 2.174005767 | AT22: =IF(ISERROR(AN22*100000000/'Calc-Units'!$E$21)," ",AN22*100000000/'Calc-Units'!$E$21) ->  | AU22: =IF(ISERROR(AO22*100000000/'Calc-Units'!$D$21)," ",AO22*100000000/'Calc-Units'!$D$21) ->  | AV22: =IF(ISERROR(AP22*100000000/'Calc-Units'!$C$21)," ",AP22*100000000/'Calc-Units'!$C$21) ->  | AW22: =IF(ISERROR(AQ22*100000000/'Calc-Units'!$C$21)," ",AQ22*100000000/'Calc-Units'!$C$21) -> 
C23: HR & Non-operational Training | D23: ='RRP 1.3'!U$12 -> 1.439799317 | E23: 0 | F23: 0 | G23: 0 | H23: 0 | I23: 1.439799317 | K23: MEAV | L23: =IF(ISERROR(VLOOKUP($K23,'Calc-Drivers'!$B$17:$F$27,L$42,FALSE))," ",VLOOKUP($K23,'Calc-Drivers'!$B$17:$F$27,L$42,FALSE)) -> 0.3874734305 | M23: =IF(ISERROR(VLOOKUP($K23,'Calc-Drivers'!$B$17:$F$27,M$42,FALSE))," ",VLOOKUP($K23,'Calc-Drivers'!$B$17:$F$27,M$42,FALSE)) -> 0.1103067792 | N23: =IF(ISERROR(VLOOKUP($K23,'Calc-Drivers'!$B$17:$F$27,N$42,FALSE))," ",VLOOKUP($K23,'Calc-Drivers'!$B$17:$F$27,N$42,FALSE)) -> 0.03400429288 | O23: =IF(ISERROR(VLOOKUP($K23,'Calc-Drivers'!$B$17:$F$27,O$42,FALSE))," ",VLOOKUP($K23,'Calc-Drivers'!$B$17:$F$27,O$42,FALSE)) -> 0.4682154974 | R23: 0.5578839806 | S23: 0.1588196254 | T23: 0.04895935767 | U23: 0.6741363535 | W23: =X23-'[8]Calc - WPD Opex Allocation'!Y23 -> 0 | X23: 0.5578839806 | Y23: 0.1588196254 | Z23: 0.04895935767 | AA23: 0.6741363535 | AD23: =IF(ISERROR(X23*100000000/'Calc-Units'!$E$21)," ",X23*100000000/'Calc-Units'!$E$21) -> 0.001899831318 | AE23: =IF(ISERROR(Y23*100000000/'Calc-Units'!$D$21)," ",Y23*100000000/'Calc-Units'!$D$21) -> 0.0005536737503 | AF23: =IF(ISERROR(Z23*100000000/'Calc-Units'!$C$21)," ",Z23*100000000/'Calc-Units'!$C$21) -> 0.0002538595752 | AG23: =IF(ISERROR(AA23*100000000/'Calc-Units'!$C$21)," ",AA23*100000000/'Calc-Units'!$C$21) -> 0.003495470048 | AI23: 0.5257 | AJ23: 0.756902501 | AK23: 0.6828968161 | AN23: 0.264604372 | AO23: 0.0753281483 | AP23: 0.02322142334 | AQ23: 0.3197428725 | AT23: =IF(ISERROR(AN23*100000000/'Calc-Units'!$E$21)," ",AN23*100000000/'Calc-Units'!$E$21) -> 0.0009010899942 | AU23: =IF(ISERROR(AO23*100000000/'Calc-Units'!$D$21)," ",AO23*100000000/'Calc-Units'!$D$21) -> 0.0002626074598 | AV23: =IF(ISERROR(AP23*100000000/'Calc-Units'!$C$21)," ",AP23*100000000/'Calc-Units'!$C$21) -> 0.0001204055965 | AW23: =IF(ISERROR(AQ23*100000000/'Calc-Units'!$C$21)," ",AQ23*100000000/'Calc-Units'!$C$21) -> 0.001657901444
C24: Health & Safety & Operational Training | D24: ='RRP 1.3'!V$12 -> 2.07063659 | E24: 0 | F24: 0 | G24: 0 | H24: 0 | I24: 2.07063659 | K24: MEAV | L24: =IF(ISERROR(VLOOKUP($K24,'Calc-Drivers'!$B$17:$F$27,L$42,FALSE))," ",VLOOKUP($K24,'Calc-Drivers'!$B$17:$F$27,L$42,FALSE)) -> 0.3874734305 | M24: =IF(ISERROR(VLOOKUP($K24,'Calc-Drivers'!$B$17:$F$27,M$42,FALSE))," ",VLOOKUP($K24,'Calc-Drivers'!$B$17:$F$27,M$42,FALSE)) -> 0.1103067792 | N24: =IF(ISERROR(VLOOKUP($K24,'Calc-Drivers'!$B$17:$F$27,N$42,FALSE))," ",VLOOKUP($K24,'Calc-Drivers'!$B$17:$F$27,N$42,FALSE)) -> 0.03400429288 | O24: =IF(ISERROR(VLOOKUP($K24,'Calc-Drivers'!$B$17:$F$27,O$42,FALSE))," ",VLOOKUP($K24,'Calc-Drivers'!$B$17:$F$27,O$42,FALSE)) -> 0.4682154974 | R24: 0.8023166628 | S24: 0.2284052531 | T24: 0.07041053306 | U24: 0.969504141 | W24: =X24-'[8]Calc - WPD Opex Allocation'!Y24 -> 0 | X24: 0.8023166628 | Y24: 0.2284052531 | Z24: 0.07041053306 | AA24: 0.969504141 | AD24: =IF(ISERROR(X24*100000000/'Calc-Units'!$E$21)," ",X24*100000000/'Calc-Units'!$E$21) -> 0.002732228162 | AE24: =IF(ISERROR(Y24*100000000/'Calc-Units'!$D$21)," ",Y24*100000000/'Calc-Units'!$D$21) -> 0.0007962617517 | AF24: =IF(ISERROR(Z24*100000000/'Calc-Units'!$C$21)," ",Z24*100000000/'Calc-Units'!$C$21) -> 0.0003650862442 | AG24: =IF(ISERROR(AA24*100000000/'Calc-Units'!$C$21)," ",AA24*100000000/'Calc-Units'!$C$21) -> 0.005026984035 | AI24: 0.5257 | AJ24: 1.088533655 | AK24: 0.9821029346 | AN24: 0.3805387932 | AO24: 0.1083326116 | AP24: 0.03339571583 | AQ24: 0.4598358141 | AT24: =IF(ISERROR(AN24*100000000/'Calc-Units'!$E$21)," ",AN24*100000000/'Calc-Units'!$E$21) -> 0.001295895817 | AU24: =IF(ISERROR(AO24*100000000/'Calc-Units'!$D$21)," ",AO24*100000000/'Calc-Units'!$D$21) -> 0.0003776669488 | AV24: =IF(ISERROR(AP24*100000000/'Calc-Units'!$C$21)," ",AP24*100000000/'Calc-Units'!$C$21) -> 0.0001731604056 | AW24: =IF(ISERROR(AQ24*100000000/'Calc-Units'!$C$21)," ",AQ24*100000000/'Calc-Units'!$C$21) -> 0.002384298528
C25: Finance & Regulation | D25: ='RRP 1.3'!W$12 -> 7.544493072 | E25: 0 | F25: 0 | G25: 0 | H25: 0 | I25: 7.544493072 | K25: MEAV | L25: =IF(ISERROR(VLOOKUP($K25,'Calc-Drivers'!$B$17:$F$27,L$42,FALSE))," ",VLOOKUP($K25,'Calc-Drivers'!$B$17:$F$27,L$42,FALSE)) -> 0.3874734305 | M25: =IF(ISERROR(VLOOKUP($K25,'Calc-Drivers'!$B$17:$F$27,M$42,FALSE))," ",VLOOKUP($K25,'Calc-Drivers'!$B$17:$F$27,M$42,FALSE)) -> 0.1103067792 | N25: =IF(ISERROR(VLOOKUP($K25,'Calc-Drivers'!$B$17:$F$27,N$42,FALSE))," ",VLOOKUP($K25,'Calc-Drivers'!$B$17:$F$27,N$42,FALSE)) -> 0.03400429288 | O25: =IF(ISERROR(VLOOKUP($K25,'Calc-Drivers'!$B$17:$F$27,O$42,FALSE))," ",VLOOKUP($K25,'Calc-Drivers'!$B$17:$F$27,O$42,FALSE)) -> 0.4682154974 | R25: 2.923290612 | S25: 0.8322087314 | T25: 0.2565451521 | U25: 3.532448577 | W25: =X25-'[8]Calc - WPD Opex Allocation'!Y25 -> 0 | X25: 2.923290612 | Y25: 0.8322087314 | Z25: 0.2565451521 | AA25: 3.532448577 | AD25: =IF(ISERROR(X25*100000000/'Calc-Units'!$E$21)," ",X25*100000000/'Calc-Units'!$E$21) -> 0.009955043072 | AE25: =IF(ISERROR(Y25*100000000/'Calc-Units'!$D$21)," ",Y25*100000000/'Calc-Units'!$D$21) -> 0.002901229167 | AF25: =IF(ISERROR(Z25*100000000/'Calc-Units'!$C$21)," ",Z25*100000000/'Calc-Units'!$C$21) -> 0.001330214415 | AG25: =IF(ISERROR(AA25*100000000/'Calc-Units'!$C$21)," ",AA25*100000000/'Calc-Units'!$C$21) -> 0.01831612868 | AI25: 0.5257 | AJ25: 3.966140008 | AK25: 3.578353064 | AN25: 1.386516737 | AO25: 0.3947166013 | AP25: 0.1216793656 | AQ25: 1.67544036 | AT25: =IF(ISERROR(AN25*100000000/'Calc-Units'!$E$21)," ",AN25*100000000/'Calc-Units'!$E$21) -> 0.004721676929 | AU25: =IF(ISERROR(AO25*100000000/'Calc-Units'!$D$21)," ",AO25*100000000/'Calc-Units'!$D$21) -> 0.001376052994 | AV25: =IF(ISERROR(AP25*100000000/'Calc-Units'!$C$21)," ",AP25*100000000/'Calc-Units'!$C$21) -> 0.000630920697 | AW25: =IF(ISERROR(AQ25*100000000/'Calc-Units'!$C$21)," ",AQ25*100000000/'Calc-Units'!$C$21) -> 0.008687339832
C26: CEO etc | D26: ='RRP 1.3'!X$12 -> 1.645125204 | E26: 0 | F26: 0 | G26: 0 | H26: 0 | I26: 1.645125204 | K26: MEAV | L26: =IF(ISERROR(VLOOKUP($K26,'Calc-Drivers'!$B$17:$F$27,L$42,FALSE))," ",VLOOKUP($K26,'Calc-Drivers'!$B$17:$F$27,L$42,FALSE)) -> 0.3874734305 | M26: =IF(ISERROR(VLOOKUP($K26,'Calc-Drivers'!$B$17:$F$27,M$42,FALSE))," ",VLOOKUP($K26,'Calc-Drivers'!$B$17:$F$27,M$42,FALSE)) -> 0.1103067792 | N26: =IF(ISERROR(VLOOKUP($K26,'Calc-Drivers'!$B$17:$F$27,N$42,FALSE))," ",VLOOKUP($K26,'Calc-Drivers'!$B$17:$F$27,N$42,FALSE)) -> 0.03400429288 | O26: =IF(ISERROR(VLOOKUP($K26,'Calc-Drivers'!$B$17:$F$27,O$42,FALSE))," ",VLOOKUP($K26,'Calc-Drivers'!$B$17:$F$27,O$42,FALSE)) -> 0.4682154974 | R26: 0.6374423062 | S26: 0.1814684626 | T26: 0.05594131925 | U26: 0.7702731155 | W26: =X26-'[8]Calc - WPD Opex Allocation'!Y26 -> 0 | X26: 0.6374423062 | Y26: 0.1814684626 | Z26: 0.05594131925 | AA26: 0.7702731155 | AD26: =IF(ISERROR(X26*100000000/'Calc-Units'!$E$21)," ",X26*100000000/'Calc-Units'!$E$21) -> 0.002170761124 | AE26: =IF(ISERROR(Y26*100000000/'Calc-Units'!$D$21)," ",Y26*100000000/'Calc-Units'!$D$21) -> 0.0006326316664 | AF26: =IF(ISERROR(Z26*100000000/'Calc-Units'!$C$21)," ",Z26*100000000/'Calc-Units'!$C$21) -> 0.0002900618026 | AG26: =IF(ISERROR(AA26*100000000/'Calc-Units'!$C$21)," ",AA26*100000000/'Calc-Units'!$C$21) -> 0.003993949578 | AI26: 0.5257 | AJ26: 0.8648423195 | AK26: 0.7802828841 | AN26: 0.3023388858 | AO26: 0.0860704918 | AP26: 0.02653296772 | AQ26: 0.3653405387 | AT26: =IF(ISERROR(AN26*100000000/'Calc-Units'!$E$21)," ",AN26*100000000/'Calc-Units'!$E$21) -> 0.001029592001 | AU26: =IF(ISERROR(AO26*100000000/'Calc-Units'!$D$21)," ",AO26*100000000/'Calc-Units'!$D$21) -> 0.0003000571994 | AV26: =IF(ISERROR(AP26*100000000/'Calc-Units'!$C$21)," ",AP26*100000000/'Calc-Units'!$C$21) -> 0.000137576313 | AW26: =IF(ISERROR(AQ26*100000000/'Calc-Units'!$C$21)," ",AQ26*100000000/'Calc-Units'!$C$21) -> 0.001894330285
A27: Other Costs from full activitty cost allocation | C27: Atypical cash costs | D27: ='RRP 1.3'!Y$12 -> 1.32151902 | E27: 0 | F27: 0 | G27: 0 | H27: 0 | I27: 1.32151902 | K27: Do not allocate | L27: =IF(ISERROR(VLOOKUP($K27,'Calc-Drivers'!$B$17:$F$27,L$42,FALSE))," ",VLOOKUP($K27,'Calc-Drivers'!$B$17:$F$27,L$42,FALSE)) ->  | M27: =IF(ISERROR(VLOOKUP($K27,'Calc-Drivers'!$B$17:$F$27,M$42,FALSE))," ",VLOOKUP($K27,'Calc-Drivers'!$B$17:$F$27,M$42,FALSE)) ->  | N27: =IF(ISERROR(VLOOKUP($K27,'Calc-Drivers'!$B$17:$F$27,N$42,FALSE))," ",VLOOKUP($K27,'Calc-Drivers'!$B$17:$F$27,N$42,FALSE)) ->  | O27: =IF(ISERROR(VLOOKUP($K27,'Calc-Drivers'!$B$17:$F$27,O$42,FALSE))," ",VLOOKUP($K27,'Calc-Drivers'!$B$17:$F$27,O$42,FALSE)) ->  | AD27: =IF(ISERROR(X27*100000000/'Calc-Units'!$E$21)," ",X27*100000000/'Calc-Units'!$E$21) ->  | AE27: =IF(ISERROR(Y27*100000000/'Calc-Units'!$D$21)," ",Y27*100000000/'Calc-Units'!$D$21) ->  | AF27: =IF(ISERROR(Z27*100000000/'Calc-Units'!$C$21)," ",Z27*100000000/'Calc-Units'!$C$21) ->  | AG27: =IF(ISERROR(AA27*100000000/'Calc-Units'!$C$21)," ",AA27*100000000/'Calc-Units'!$C$21) ->  | AI27: 0 | AJ27: 0 | AK27: 1.32151902 | AT27: =IF(ISERROR(AN27*100000000/'Calc-Units'!$E$21)," ",AN27*100000000/'Calc-Units'!$E$21) ->  | AU27: =IF(ISERROR(AO27*100000000/'Calc-Units'!$D$21)," ",AO27*100000000/'Calc-Units'!$D$21) ->  | AV27: =IF(ISERROR(AP27*100000000/'Calc-Units'!$C$21)," ",AP27*100000000/'Calc-Units'!$C$21) ->  | AW27: =IF(ISERROR(AQ27*100000000/'Calc-Units'!$C$21)," ",AQ27*100000000/'Calc-Units'!$C$21) -> 
C28: Pension deficit payments | D28: ='RRP 1.3'!Z$12 -> 9.5 | E28: 0 | F28: 0 | G28: 0 | H28: 0 | I28: 9.5 | K28: Do not allocate | L28: =IF(ISERROR(VLOOKUP($K28,'Calc-Drivers'!$B$17:$F$27,L$42,FALSE))," ",VLOOKUP($K28,'Calc-Drivers'!$B$17:$F$27,L$42,FALSE)) ->  | M28: =IF(ISERROR(VLOOKUP($K28,'Calc-Drivers'!$B$17:$F$27,M$42,FALSE))," ",VLOOKUP($K28,'Calc-Drivers'!$B$17:$F$27,M$42,FALSE)) ->  | N28: =IF(ISERROR(VLOOKUP($K28,'Calc-Drivers'!$B$17:$F$27,N$42,FALSE))," ",VLOOKUP($K28,'Calc-Drivers'!$B$17:$F$27,N$42,FALSE)) ->  | O28: =IF(ISERROR(VLOOKUP($K28,'Calc-Drivers'!$B$17:$F$27,O$42,FALSE))," ",VLOOKUP($K28,'Calc-Drivers'!$B$17:$F$27,O$42,FALSE)) ->  | AD28: =IF(ISERROR(X28*100000000/'Calc-Units'!$E$21)," ",X28*100000000/'Calc-Units'!$E$21) ->  | AE28: =IF(ISERROR(Y28*100000000/'Calc-Units'!$D$21)," ",Y28*100000000/'Calc-Units'!$D$21) ->  | AF28: =IF(ISERROR(Z28*100000000/'Calc-Units'!$C$21)," ",Z28*100000000/'Calc-Units'!$C$21) ->  | AG28: =IF(ISERROR(AA28*100000000/'Calc-Units'!$C$21)," ",AA28*100000000/'Calc-Units'!$C$21) ->  | AI28: 0.577 | AJ28: 5.4815 | AK28: 4.0185 | AT28: =IF(ISERROR(AN28*100000000/'Calc-Units'!$E$21)," ",AN28*100000000/'Calc-Units'!$E$21) ->  | AU28: =IF(ISERROR(AO28*100000000/'Calc-Units'!$D$21)," ",AO28*100000000/'Calc-Units'!$D$21) ->  | AV28: =IF(ISERROR(AP28*100000000/'Calc-Units'!$C$21)," ",AP28*100000000/'Calc-Units'!$C$21) ->  | AW28: =IF(ISERROR(AQ28*100000000/'Calc-Units'!$C$21)," ",AQ28*100000000/'Calc-Units'!$C$21) -> 
C29: Metering | D29: ='RRP 1.3'!AA$12 -> 0.793782 | E29: 0 | F29: 0 | G29: 0 | H29: 0 | I29: 0.793782 | K29: Do not allocate | L29: =IF(ISERROR(VLOOKUP($K29,'Calc-Drivers'!$B$17:$F$27,L$42,FALSE))," ",VLOOKUP($K29,'Calc-Drivers'!$B$17:$F$27,L$42,FALSE)) ->  | M29: =IF(ISERROR(VLOOKUP($K29,'Calc-Drivers'!$B$17:$F$27,M$42,FALSE))," ",VLOOKUP($K29,'Calc-Drivers'!$B$17:$F$27,M$42,FALSE)) ->  | N29: =IF(ISERROR(VLOOKUP($K29,'Calc-Drivers'!$B$17:$F$27,N$42,FALSE))," ",VLOOKUP($K29,'Calc-Drivers'!$B$17:$F$27,N$42,FALSE)) ->  | O29: =IF(ISERROR(VLOOKUP($K29,'Calc-Drivers'!$B$17:$F$27,O$42,FALSE))," ",VLOOKUP($K29,'Calc-Drivers'!$B$17:$F$27,O$42,FALSE)) ->  | AD29: =IF(ISERROR(X29*100000000/'Calc-Units'!$E$21)," ",X29*100000000/'Calc-Units'!$E$21) ->  | AE29: =IF(ISERROR(Y29*100000000/'Calc-Units'!$D$21)," ",Y29*100000000/'Calc-Units'!$D$21) ->  | AF29: =IF(ISERROR(Z29*100000000/'Calc-Units'!$C$21)," ",Z29*100000000/'Calc-Units'!$C$21) ->  | AG29: =IF(ISERROR(AA29*100000000/'Calc-Units'!$C$21)," ",AA29*100000000/'Calc-Units'!$C$21) ->  | AI29: 0 | AJ29: 0 | AK29: 0.793782 | AT29: =IF(ISERROR(AN29*100000000/'Calc-Units'!$E$21)," ",AN29*100000000/'Calc-Units'!$E$21) ->  | AU29: =IF(ISERROR(AO29*100000000/'Calc-Units'!$D$21)," ",AO29*100000000/'Calc-Units'!$D$21) ->  | AV29: =IF(ISERROR(AP29*100000000/'Calc-Units'!$C$21)," ",AP29*100000000/'Calc-Units'!$C$21) ->  | AW29: =IF(ISERROR(AQ29*100000000/'Calc-Units'!$C$21)," ",AQ29*100000000/'Calc-Units'!$C$21) -> 
C30: Excluded services & de minimis | D30: ='RRP 1.3'!AB$12 -> 9.751431 | E30: 0 | F30: 0 | G30: 0 | H30: 0 | I30: 9.751431 | K30: Do not allocate | L30: =IF(ISERROR(VLOOKUP($K30,'Calc-Drivers'!$B$17:$F$27,L$42,FALSE))," ",VLOOKUP($K30,'Calc-Drivers'!$B$17:$F$27,L$42,FALSE)) ->  | M30: =IF(ISERROR(VLOOKUP($K30,'Calc-Drivers'!$B$17:$F$27,M$42,FALSE))," ",VLOOKUP($K30,'Calc-Drivers'!$B$17:$F$27,M$42,FALSE)) ->  | N30: =IF(ISERROR(VLOOKUP($K30,'Calc-Drivers'!$B$17:$F$27,N$42,FALSE))," ",VLOOKUP($K30,'Calc-Drivers'!$B$17:$F$27,N$42,FALSE)) ->  | O30: =IF(ISERROR(VLOOKUP($K30,'Calc-Drivers'!$B$17:$F$27,O$42,FALSE))," ",VLOOKUP($K30,'Calc-Drivers'!$B$17:$F$27,O$42,FALSE)) ->  | AD30: =IF(ISERROR(X30*100000000/'Calc-Units'!$E$21)," ",X30*100000000/'Calc-Units'!$E$21) ->  | AE30: =IF(ISERROR(Y30*100000000/'Calc-Units'!$D$21)," ",Y30*100000000/'Calc-Units'!$D$21) ->  | AF30: =IF(ISERROR(Z30*100000000/'Calc-Units'!$C$21)," ",Z30*100000000/'Calc-Units'!$C$21) ->  | AG30: =IF(ISERROR(AA30*100000000/'Calc-Units'!$C$21)," ",AA30*100000000/'Calc-Units'!$C$21) ->  | AI30: 0 | AJ30: 0 | AK30: 9.751431 | AT30: =IF(ISERROR(AN30*100000000/'Calc-Units'!$E$21)," ",AN30*100000000/'Calc-Units'!$E$21) ->  | AU30: =IF(ISERROR(AO30*100000000/'Calc-Units'!$D$21)," ",AO30*100000000/'Calc-Units'!$D$21) ->  | AV30: =IF(ISERROR(AP30*100000000/'Calc-Units'!$C$21)," ",AP30*100000000/'Calc-Units'!$C$21) ->  | AW30: =IF(ISERROR(AQ30*100000000/'Calc-Units'!$C$21)," ",AQ30*100000000/'Calc-Units'!$C$21) -> 
C31: Relevant distributed generation (less contributions) | D31: ='RRP 1.3'!AC$12 -> -8.326672685e-16 | E31: 0 | F31: 0 | G31: 0 | H31: 0 | I31: -8.326672685e-16 | K31: Do not allocate | L31: =IF(ISERROR(VLOOKUP($K31,'Calc-Drivers'!$B$17:$F$27,L$42,FALSE))," ",VLOOKUP($K31,'Calc-Drivers'!$B$17:$F$27,L$42,FALSE)) ->  | M31: =IF(ISERROR(VLOOKUP($K31,'Calc-Drivers'!$B$17:$F$27,M$42,FALSE))," ",VLOOKUP($K31,'Calc-Drivers'!$B$17:$F$27,M$42,FALSE)) ->  | N31: =IF(ISERROR(VLOOKUP($K31,'Calc-Drivers'!$B$17:$F$27,N$42,FALSE))," ",VLOOKUP($K31,'Calc-Drivers'!$B$17:$F$27,N$42,FALSE)) ->  | O31: =IF(ISERROR(VLOOKUP($K31,'Calc-Drivers'!$B$17:$F$27,O$42,FALSE))," ",VLOOKUP($K31,'Calc-Drivers'!$B$17:$F$27,O$42,FALSE)) ->  | AD31: =IF(ISERROR(X31*100000000/'Calc-Units'!$E$21)," ",X31*100000000/'Calc-Units'!$E$21) ->  | AE31: =IF(ISERROR(Y31*100000000/'Calc-Units'!$D$21)," ",Y31*100000000/'Calc-Units'!$D$21) ->  | AF31: =IF(ISERROR(Z31*100000000/'Calc-Units'!$C$21)," ",Z31*100000000/'Calc-Units'!$C$21) ->  | AG31: =IF(ISERROR(AA31*100000000/'Calc-Units'!$C$21)," ",AA31*100000000/'Calc-Units'!$C$21) ->  | AI31: 0 | AJ31: 0 | AK31: -8.326672685e-16 | AT31: =IF(ISERROR(AN31*100000000/'Calc-Units'!$E$21)," ",AN31*100000000/'Calc-Units'!$E$21) ->  | AU31: =IF(ISERROR(AO31*100000000/'Calc-Units'!$D$21)," ",AO31*100000000/'Calc-Units'!$D$21) ->  | AV31: =IF(ISERROR(AP31*100000000/'Calc-Units'!$C$21)," ",AP31*100000000/'Calc-Units'!$C$21) ->  | AW31: =IF(ISERROR(AQ31*100000000/'Calc-Units'!$C$21)," ",AQ31*100000000/'Calc-Units'!$C$21) -> 
C32: IFI | D32: ='RRP 1.3'!AD$12 -> 1.014509039 | E32: 0 | F32: 0 | G32: 0 | H32: 0 | I32: 1.014509039 | K32: Do not allocate | L32: =IF(ISERROR(VLOOKUP($K32,'Calc-Drivers'!$B$17:$F$27,L$42,FALSE))," ",VLOOKUP($K32,'Calc-Drivers'!$B$17:$F$27,L$42,FALSE)) ->  | M32: =IF(ISERROR(VLOOKUP($K32,'Calc-Drivers'!$B$17:$F$27,M$42,FALSE))," ",VLOOKUP($K32,'Calc-Drivers'!$B$17:$F$27,M$42,FALSE)) ->  | N32: =IF(ISERROR(VLOOKUP($K32,'Calc-Drivers'!$B$17:$F$27,N$42,FALSE))," ",VLOOKUP($K32,'Calc-Drivers'!$B$17:$F$27,N$42,FALSE)) ->  | O32: =IF(ISERROR(VLOOKUP($K32,'Calc-Drivers'!$B$17:$F$27,O$42,FALSE))," ",VLOOKUP($K32,'Calc-Drivers'!$B$17:$F$27,O$42,FALSE)) ->  | AD32: =IF(ISERROR(X32*100000000/'Calc-Units'!$E$21)," ",X32*100000000/'Calc-Units'!$E$21) ->  | AE32: =IF(ISERROR(Y32*100000000/'Calc-Units'!$D$21)," ",Y32*100000000/'Calc-Units'!$D$21) ->  | AF32: =IF(ISERROR(Z32*100000000/'Calc-Units'!$C$21)," ",Z32*100000000/'Calc-Units'!$C$21) ->  | AG32: =IF(ISERROR(AA32*100000000/'Calc-Units'!$C$21)," ",AA32*100000000/'Calc-Units'!$C$21) ->  | AI32: 0 | AJ32: 0 | AK32: 1.014509039 | AT32: =IF(ISERROR(AN32*100000000/'Calc-Units'!$E$21)," ",AN32*100000000/'Calc-Units'!$E$21) ->  | AU32: =IF(ISERROR(AO32*100000000/'Calc-Units'!$D$21)," ",AO32*100000000/'Calc-Units'!$D$21) ->  | AV32: =IF(ISERROR(AP32*100000000/'Calc-Units'!$C$21)," ",AP32*100000000/'Calc-Units'!$C$21) ->  | AW32: =IF(ISERROR(AQ32*100000000/'Calc-Units'!$C$21)," ",AQ32*100000000/'Calc-Units'!$C$21) -> 
C33: Disallowed Related Party Margins | D33: ='RRP 1.3'!AE$12 -> 4.303287333 | E33: 0 | F33: 0 | G33: 0 | H33: 0 | I33: 4.303287333 | K33: Do not allocate | L33: =IF(ISERROR(VLOOKUP($K33,'Calc-Drivers'!$B$17:$F$27,L$42,FALSE))," ",VLOOKUP($K33,'Calc-Drivers'!$B$17:$F$27,L$42,FALSE)) ->  | M33: =IF(ISERROR(VLOOKUP($K33,'Calc-Drivers'!$B$17:$F$27,M$42,FALSE))," ",VLOOKUP($K33,'Calc-Drivers'!$B$17:$F$27,M$42,FALSE)) ->  | N33: =IF(ISERROR(VLOOKUP($K33,'Calc-Drivers'!$B$17:$F$27,N$42,FALSE))," ",VLOOKUP($K33,'Calc-Drivers'!$B$17:$F$27,N$42,FALSE)) ->  | O33: =IF(ISERROR(VLOOKUP($K33,'Calc-Drivers'!$B$17:$F$27,O$42,FALSE))," ",VLOOKUP($K33,'Calc-Drivers'!$B$17:$F$27,O$42,FALSE)) ->  | AD33: =IF(ISERROR(X33*100000000/'Calc-Units'!$E$21)," ",X33*100000000/'Calc-Units'!$E$21) ->  | AE33: =IF(ISERROR(Y33*100000000/'Calc-Units'!$D$21)," ",Y33*100000000/'Calc-Units'!$D$21) ->  | AF33: =IF(ISERROR(Z33*100000000/'Calc-Units'!$C$21)," ",Z33*100000000/'Calc-Units'!$C$21) ->  | AG33: =IF(ISERROR(AA33*100000000/'Calc-Units'!$C$21)," ",AA33*100000000/'Calc-Units'!$C$21) ->  | AI33: 0 | AJ33: 0 | AK33: 4.303287333 | AT33: =IF(ISERROR(AN33*100000000/'Calc-Units'!$E$21)," ",AN33*100000000/'Calc-Units'!$E$21) ->  | AU33: =IF(ISERROR(AO33*100000000/'Calc-Units'!$D$21)," ",AO33*100000000/'Calc-Units'!$D$21) ->  | AV33: =IF(ISERROR(AP33*100000000/'Calc-Units'!$C$21)," ",AP33*100000000/'Calc-Units'!$C$21) ->  | AW33: =IF(ISERROR(AQ33*100000000/'Calc-Units'!$C$21)," ",AQ33*100000000/'Calc-Units'!$C$21) -> 
C34: Statutory Depreciation | D34: ='RRP 1.3'!AF$12 -> 41.91275686 | E34: 0 | F34: 0 | G34: 0 | H34: 0 | I34: 41.91275686 | K34: Do not allocate | L34: =IF(ISERROR(VLOOKUP($K34,'Calc-Drivers'!$B$17:$F$27,L$42,FALSE))," ",VLOOKUP($K34,'Calc-Drivers'!$B$17:$F$27,L$42,FALSE)) ->  | M34: =IF(ISERROR(VLOOKUP($K34,'Calc-Drivers'!$B$17:$F$27,M$42,FALSE))," ",VLOOKUP($K34,'Calc-Drivers'!$B$17:$F$27,M$42,FALSE)) ->  | N34: =IF(ISERROR(VLOOKUP($K34,'Calc-Drivers'!$B$17:$F$27,N$42,FALSE))," ",VLOOKUP($K34,'Calc-Drivers'!$B$17:$F$27,N$42,FALSE)) ->  | O34: =IF(ISERROR(VLOOKUP($K34,'Calc-Drivers'!$B$17:$F$27,O$42,FALSE))," ",VLOOKUP($K34,'Calc-Drivers'!$B$17:$F$27,O$42,FALSE)) ->  | AD34: =IF(ISERROR(X34*100000000/'Calc-Units'!$E$21)," ",X34*100000000/'Calc-Units'!$E$21) ->  | AE34: =IF(ISERROR(Y34*100000000/'Calc-Units'!$D$21)," ",Y34*100000000/'Calc-Units'!$D$21) ->  | AF34: =IF(ISERROR(Z34*100000000/'Calc-Units'!$C$21)," ",Z34*100000000/'Calc-Units'!$C$21) ->  | AG34: =IF(ISERROR(AA34*100000000/'Calc-Units'!$C$21)," ",AA34*100000000/'Calc-Units'!$C$21) ->  | AI34: 0 | AJ34: 0 | AK34: 41.91275686 | AT34: =IF(ISERROR(AN34*100000000/'Calc-Units'!$E$21)," ",AN34*100000000/'Calc-Units'!$E$21) ->  | AU34: =IF(ISERROR(AO34*100000000/'Calc-Units'!$D$21)," ",AO34*100000000/'Calc-Units'!$D$21) ->  | AV34: =IF(ISERROR(AP34*100000000/'Calc-Units'!$C$21)," ",AP34*100000000/'Calc-Units'!$C$21) ->  | AW34: =IF(ISERROR(AQ34*100000000/'Calc-Units'!$C$21)," ",AQ34*100000000/'Calc-Units'!$C$21) -> 
C35: Network Rates | D35: ='RRP 1.3'!AG$12 -> 27.091992 | E35: 0 | F35: 0 | G35: 0 | H35: 0 | I35: 27.091992 | K35: Do not allocate | L35: =IF(ISERROR(VLOOKUP($K35,'Calc-Drivers'!$B$17:$F$27,L$42,FALSE))," ",VLOOKUP($K35,'Calc-Drivers'!$B$17:$F$27,L$42,FALSE)) ->  | M35: =IF(ISERROR(VLOOKUP($K35,'Calc-Drivers'!$B$17:$F$27,M$42,FALSE))," ",VLOOKUP($K35,'Calc-Drivers'!$B$17:$F$27,M$42,FALSE)) ->  | N35: =IF(ISERROR(VLOOKUP($K35,'Calc-Drivers'!$B$17:$F$27,N$42,FALSE))," ",VLOOKUP($K35,'Calc-Drivers'!$B$17:$F$27,N$42,FALSE)) ->  | O35: =IF(ISERROR(VLOOKUP($K35,'Calc-Drivers'!$B$17:$F$27,O$42,FALSE))," ",VLOOKUP($K35,'Calc-Drivers'!$B$17:$F$27,O$42,FALSE)) ->  | AD35: =IF(ISERROR(X35*100000000/'Calc-Units'!$E$21)," ",X35*100000000/'Calc-Units'!$E$21) ->  | AE35: =IF(ISERROR(Y35*100000000/'Calc-Units'!$D$21)," ",Y35*100000000/'Calc-Units'!$D$21) ->  | AF35: =IF(ISERROR(Z35*100000000/'Calc-Units'!$C$21)," ",Z35*100000000/'Calc-Units'!$C$21) ->  | AG35: =IF(ISERROR(AA35*100000000/'Calc-Units'!$C$21)," ",AA35*100000000/'Calc-Units'!$C$21) ->  | AI35: 0 | AJ35: 0 | AK35: 27.091992 | AT35: =IF(ISERROR(AN35*100000000/'Calc-Units'!$E$21)," ",AN35*100000000/'Calc-Units'!$E$21) ->  | AU35: =IF(ISERROR(AO35*100000000/'Calc-Units'!$D$21)," ",AO35*100000000/'Calc-Units'!$D$21) ->  | AV35: =IF(ISERROR(AP35*100000000/'Calc-Units'!$C$21)," ",AP35*100000000/'Calc-Units'!$C$21) ->  | AW35: =IF(ISERROR(AQ35*100000000/'Calc-Units'!$C$21)," ",AQ35*100000000/'Calc-Units'!$C$21) -> 
C36: Transmission Exit Charges | D36: ='RRP 1.3'!AH$12 -> 4.4 | E36: 0 | F36: 0 | G36: 0 | H36: 0 | I36: 4.4 | K36: Do not allocate | L36: =IF(ISERROR(VLOOKUP($K36,'Calc-Drivers'!$B$17:$F$27,L$42,FALSE))," ",VLOOKUP($K36,'Calc-Drivers'!$B$17:$F$27,L$42,FALSE)) ->  | M36: =IF(ISERROR(VLOOKUP($K36,'Calc-Drivers'!$B$17:$F$27,M$42,FALSE))," ",VLOOKUP($K36,'Calc-Drivers'!$B$17:$F$27,M$42,FALSE)) ->  | N36: =IF(ISERROR(VLOOKUP($K36,'Calc-Drivers'!$B$17:$F$27,N$42,FALSE))," ",VLOOKUP($K36,'Calc-Drivers'!$B$17:$F$27,N$42,FALSE)) ->  | O36: =IF(ISERROR(VLOOKUP($K36,'Calc-Drivers'!$B$17:$F$27,O$42,FALSE))," ",VLOOKUP($K36,'Calc-Drivers'!$B$17:$F$27,O$42,FALSE)) ->  | AD36: =IF(ISERROR(X36*100000000/'Calc-Units'!$E$21)," ",X36*100000000/'Calc-Units'!$E$21) ->  | AE36: =IF(ISERROR(Y36*100000000/'Calc-Units'!$D$21)," ",Y36*100000000/'Calc-Units'!$D$21) ->  | AF36: =IF(ISERROR(Z36*100000000/'Calc-Units'!$C$21)," ",Z36*100000000/'Calc-Units'!$C$21) ->  | AG36: =IF(ISERROR(AA36*100000000/'Calc-Units'!$C$21)," ",AA36*100000000/'Calc-Units'!$C$21) ->  | AI36: 0 | AJ36: 0 | AK36: 4.4 | AT36: =IF(ISERROR(AN36*100000000/'Calc-Units'!$E$21)," ",AN36*100000000/'Calc-Units'!$E$21) ->  | AU36: =IF(ISERROR(AO36*100000000/'Calc-Units'!$D$21)," ",AO36*100000000/'Calc-Units'!$D$21) ->  | AV36: =IF(ISERROR(AP36*100000000/'Calc-Units'!$C$21)," ",AP36*100000000/'Calc-Units'!$C$21) ->  | AW36: =IF(ISERROR(AQ36*100000000/'Calc-Units'!$C$21)," ",AQ36*100000000/'Calc-Units'!$C$21) -> 
C37: Pension deficit repair payments by related parties (note 2) | D37: ='RRP 1.3'!AI$12 -> -9.5 | E37: 0 | F37: 0 | G37: 0 | H37: 0 | I37: -9.5 | K37: Do not allocate | L37: =IF(ISERROR(VLOOKUP($K37,'Calc-Drivers'!$B$17:$F$27,L$42,FALSE))," ",VLOOKUP($K37,'Calc-Drivers'!$B$17:$F$27,L$42,FALSE)) ->  | M37: =IF(ISERROR(VLOOKUP($K37,'Calc-Drivers'!$B$17:$F$27,M$42,FALSE))," ",VLOOKUP($K37,'Calc-Drivers'!$B$17:$F$27,M$42,FALSE)) ->  | N37: =IF(ISERROR(VLOOKUP($K37,'Calc-Drivers'!$B$17:$F$27,N$42,FALSE))," ",VLOOKUP($K37,'Calc-Drivers'!$B$17:$F$27,N$42,FALSE)) ->  | O37: =IF(ISERROR(VLOOKUP($K37,'Calc-Drivers'!$B$17:$F$27,O$42,FALSE))," ",VLOOKUP($K37,'Calc-Drivers'!$B$17:$F$27,O$42,FALSE)) ->  | AD37: =IF(ISERROR(X37*100000000/'Calc-Units'!$E$21)," ",X37*100000000/'Calc-Units'!$E$21) ->  | AE37: =IF(ISERROR(Y37*100000000/'Calc-Units'!$D$21)," ",Y37*100000000/'Calc-Units'!$D$21) ->  | AF37: =IF(ISERROR(Z37*100000000/'Calc-Units'!$C$21)," ",Z37*100000000/'Calc-Units'!$C$21) ->  | AG37: =IF(ISERROR(AA37*100000000/'Calc-Units'!$C$21)," ",AA37*100000000/'Calc-Units'!$C$21) ->  | AI37: 0 | AJ37: 0 | AK37: -9.5 | AT37: =IF(ISERROR(AN37*100000000/'Calc-Units'!$E$21)," ",AN37*100000000/'Calc-Units'!$E$21) ->  | AU37: =IF(ISERROR(AO37*100000000/'Calc-Units'!$D$21)," ",AO37*100000000/'Calc-Units'!$D$21) ->  | AV37: =IF(ISERROR(AP37*100000000/'Calc-Units'!$C$21)," ",AP37*100000000/'Calc-Units'!$C$21) ->  | AW37: =IF(ISERROR(AQ37*100000000/'Calc-Units'!$C$21)," ",AQ37*100000000/'Calc-Units'!$C$21) -> 
C38: Non activity costs and reconciling amounts (note 3) | D38: ='RRP 1.3'!AJ$12 -> 2.354255383 | E38: 0 | F38: 0 | G38: 0 | H38: 0 | I38: 2.354255383 | K38: Do not allocate | L38: =IF(ISERROR(VLOOKUP($K38,'Calc-Drivers'!$B$17:$F$27,L$42,FALSE))," ",VLOOKUP($K38,'Calc-Drivers'!$B$17:$F$27,L$42,FALSE)) ->  | M38: =IF(ISERROR(VLOOKUP($K38,'Calc-Drivers'!$B$17:$F$27,M$42,FALSE))," ",VLOOKUP($K38,'Calc-Drivers'!$B$17:$F$27,M$42,FALSE)) ->  | N38: =IF(ISERROR(VLOOKUP($K38,'Calc-Drivers'!$B$17:$F$27,N$42,FALSE))," ",VLOOKUP($K38,'Calc-Drivers'!$B$17:$F$27,N$42,FALSE)) ->  | O38: =IF(ISERROR(VLOOKUP($K38,'Calc-Drivers'!$B$17:$F$27,O$42,FALSE))," ",VLOOKUP($K38,'Calc-Drivers'!$B$17:$F$27,O$42,FALSE)) ->  | AD38: =IF(ISERROR(X38*100000000/'Calc-Units'!$E$21)," ",X38*100000000/'Calc-Units'!$E$21) ->  | AE38: =IF(ISERROR(Y38*100000000/'Calc-Units'!$D$21)," ",Y38*100000000/'Calc-Units'!$D$21) ->  | AF38: =IF(ISERROR(Z38*100000000/'Calc-Units'!$C$21)," ",Z38*100000000/'Calc-Units'!$C$21) ->  | AG38: =IF(ISERROR(AA38*100000000/'Calc-Units'!$C$21)," ",AA38*100000000/'Calc-Units'!$C$21) ->  | AI38: 0 | AJ38: 0 | AK38: 2.354255383 | AT38: =IF(ISERROR(AN38*100000000/'Calc-Units'!$E$21)," ",AN38*100000000/'Calc-Units'!$E$21) ->  | AU38: =IF(ISERROR(AO38*100000000/'Calc-Units'!$D$21)," ",AO38*100000000/'Calc-Units'!$D$21) ->  | AV38: =IF(ISERROR(AP38*100000000/'Calc-Units'!$C$21)," ",AP38*100000000/'Calc-Units'!$C$21) ->  | AW38: =IF(ISERROR(AQ38*100000000/'Calc-Units'!$C$21)," ",AQ38*100000000/'Calc-Units'!$C$21) -> 
C39: Total Annual Operating & Capital Expenditure per Regulatory Accounts | D39: =SUM(D6:D38) -> 313 | E39: =SUM(E6:E38) -> 54.31357417 | F39: =SUM(F6:F38) -> 64.44896599 | G39: =SUM(G6:G38) -> 14.97742004 | H39: =SUM(H6:H38) -> 12.88509987 | I39: 166.3749399 | Q39: Total | R39: =SUM(R6:R38) -> 22.70893789 | S39: =SUM(S6:S38) -> 6.464829845 | T39: =SUM(T6:T38) -> 1.992914389 | U39: =SUM(U6:U38) -> 27.44104709 | W39: Total all network tiers | X39: =SUM(X40:AA40) -> 205.2327893 | AC39: Total all network tiers | AD39: =SUM(AD40:AG40) -> 0.8066009855 | AI39: Total | AJ39: =SUM(AJ6:AJ38) -> 160.1738644 | AK39: =SUM(AK6:AK38) -> 152.8261356 | AM39: Total all network tiers | AN39: =SUM(AN40:AQ40) -> 58.33323243 | AS39: Total all network tiers | AT39: =SUM(AT40:AW40) -> 0.2565546251
W40: Total by network tiers | X40: =SUM(X6:X38) -> 77.02251206 | Y40: =SUM(Y6:Y38) -> 70.91379584 | Z40: =SUM(Z6:Z38) -> 16.97033443 | AA40: =SUM(AA6:AA38) -> 40.32614695 | AC40: Total by network tiers | AD40: =SUM(AD6:AD38) -> 0.2622942864 | AE40: =SUM(AE6:AE38) -> 0.2472182339 | AF40: =SUM(AF6:AF38) -> 0.08799302307 | AG40: =SUM(AG6:AG38) -> 0.209095442 | AM40: Total by network tiers | AN40: =SUM(AN6:AN38) -> 15.28303129 | AO40: =SUM(AO6:AO38) -> 11.01313428 | AP40: =SUM(AP6:AP38) -> 4.584732838 | AQ40: =SUM(AQ6:AQ38) -> 27.45233402 | AS40: Total by network tiers | AT40: =SUM(AT6:AT38) -> 0.05204519666 | AU40: =SUM(AU6:AU38) -> 0.03839376491 | AV40: =SUM(AV6:AV38) -> 0.0237723366 | AW40: =SUM(AW6:AW38) -> 0.1423433269
W41: % | X41: =X40/$X$39 -> 0.3752934038 | Y41: =Y40/$X$39 -> 0.3455285877 | Z41: =Z40/$X$39 -> 0.08268822194 | AA41: =AA40/$X$39 -> 0.1964897865 | AC41: % | AD41: =AD40/$AD$39 -> 0.3251846838 | AE41: =AE40/$AD$39 -> 0.3064938407 | AF41: =AF40/$AD$39 -> 0.1090911425 | AG41: =AG40/$AD$39 -> 0.259230333 | AM41: % | AN41: =AN40/$AN$39 -> 0.2619952754 | AO41: =AO40/$AN$39 -> 0.1887969142 | AP41: =AP40/$AN$39 -> 0.07859555602 | AQ41: =AQ40/$AN$39 -> 0.4706122544 | AS41: % | AT41: =AT40/$AT$39 -> 0.202862048 | AU41: =AU40/$AT$39 -> 0.1496514237 | AV41: =AV40/$AT$39 -> 0.09265994172 | AW41: =AW40/$AT$39 -> 0.5548265865
K42: Vlookup Values: | L42: 5 | M42: 4 | N42: 3 | O42: 2 | AM42: THESE % ARE USED TO ALLOCATE PRICE CONTROL OPEX
W44: Step 4.a. calculate proportion of cost classified as direct costs
W46: Total direct+other | X46: =SUMIF(X6:X11,">0",X6:X11)+SUMIF(X27:X38,">0",X27:X38) -> 57.45671962 | Y46: =SUMIF(Y6:Y11,">0",Y6:Y11)+SUMIF(Y27:Y38,">0",Y27:Y38) -> 65.11136735 | Z46: =SUMIF(Z6:Z11,">0",Z6:Z11)+SUMIF(Z27:Z38,">0",Z27:Z38) -> 15.32443667 | AA46: =SUMIF(AA6:AA11,">0",AA6:AA11)+SUMIF(AA27:AA38,">0",AA27:AA38) -> 37.06222254 | AB46: Max of zero or total from each catergory
W47: Total indirect | X47: =SUMIF(X12:X27,">0",X12:X27) -> 20.38212779 | Y47: =SUMIF(Y12:Y27,">0",Y12:Y27) -> 5.802428484 | Z47: =SUMIF(Z12:Z27,">0",Z12:Z27) -> 1.788715789 | AA47: =SUMIF(AA12:AA27,">0",AA12:AA27) -> 24.62937418 | AB47: Max of zero or total from each catergory
W48: % direct+other | X48: =X46/(X47+X46) -> 0.7381496712 | Y48: =Y46/(Y47+Y46) -> 0.9181763095 | Z48: =Z46/(Z47+Z46) -> 0.8954771312 | AA48: =AA46/(AA47+AA46) -> 0.6007661417
W49: % indirect | X49: =X47/(X46+X47) -> 0.2618503288 | Y49: =Y47/(Y46+Y47) -> 0.08182369052 | Z49: =Z47/(Z46+Z47) -> 0.1045228688 | AA49: =AA47/(AA46+AA47) -> 0.3992338583

Sheet Calc-Units
A1: 103. Units distributed (GWh) from RRP table 5.1 | D1: Index
B2: Units distributed (GWh) from RRP table 5.1
A3: Units distributed at LV | B3: ='RRP 5.1'!G36 -> 19286
A4: Units distributed at HV | B4: ='RRP 5.1'!G35 -> 9669
A5: Units distributed at EHV+ | B5: ='RRP 5.1'!G34 -> 710
A6: Losses | B6: ='RRP 5.1'!G40 -> 1439
A8: 104. Estimated line loss adjustment factors relative to LV
B9: LV services | C9: LV | D9: HV | E9: EHV | F9: 132kV
A10: Units distributed at LV | B10: 1 | C10: 1 | D10: 1 | E10: 1 | F10: 1
A11: Units distributed at HV | B11: 0 | C11: 0 | D11: =(1+$B$6/($B$3+$B$4/2+$B$5/4)/2)/(1+$B$6/($B$3+$B$4/2+$B$5/4)) -> 0.9720441388 | E11: =(1+$B$6/($B$3+$B$4/2+$B$5/4)/2)/(1+$B$6/($B$3+$B$4/2+$B$5/4)) -> 0.9720441388 | F11: =(1+$B$6/($B$3+$B$4/2+$B$5/4)/2)/(1+$B$6/($B$3+$B$4/2+$B$5/4)) -> 0.9720441388
A12: Units distributed at EHV+ | B12: 0 | C12: 0 | D12: 0 | E12: =(1+$B$6/($B$3+$B$4/2+$B$5/4)/4)/(1+$B$6/($B$3+$B$4/2+$B$5/4)) -> 0.9580662082 | F12: =(1+$B$6/($B$3+$B$4/2+$B$5/4)/4)/(1+$B$6/($B$3+$B$4/2+$B$5/4)) -> 0.9580662082
B19: LV services | C19: LV | D19: HV | E19: EHV | F19: 132kV
A20: Units (GWh) flowing through each level, loss-adjusted to LV | B20: =SUMPRODUCT(B$10:B$12,$B$3:$B$5) -> 19286 | C20: =SUMPRODUCT(C$10:C$12,$B$3:$B$5) -> 19286 | D20: =SUMPRODUCT(D$10:D$12,$B$3:$B$5) -> 28684.69478 | E20: =SUMPRODUCT(E$10:E$12,$B$3:$B$5) -> 29364.92179 | F20: =SUMPRODUCT(F$10:F$12,$B$3:$B$5) -> 29364.92179
A21: Units (kWh) flowing through each level, loss-adjusted to LV | B21: =B20*1000000 -> 19286000000 | C21: =C20*1000000 -> 19286000000 | D21: =D20*1000000 -> 2.868469478e+10 | E21: =E20*1000000 -> 2.936492179e+10 | F21: =F20*1000000 -> 2.936492179e+10

Sheet Calc-Drivers
A1: Drivers - LV, HV, EHV split | H1: Index
B3: Category | C3: LV | D3: HV | E3: EHV | G3: Source
B4: Net Capex | C4: ='Calc-Net capex'!$D$6 -> 0.1359633262 | D4: ='Calc-Net capex'!$D$7 -> 0.3317703748 | E4: ='Calc-Net capex'!$D$8+'Calc-Net capex'!$D$9 -> 0.532266299 | G4: FBPQ capex - see "Calc Net capex"
B5: Customers | C5: 1 | D5: 0 | E5: 0 | G5: Assumption
B6: Network Length | C6: ='RRP 5.1'!$G$64/'RRP 5.1'!$G$65 -> 0.5364633253 | D6: ='RRP 5.1'!$G$63/'RRP 5.1'!$G$65 -> 0.3647882957 | E6: =('RRP 5.1'!$G$61+'RRP 5.1'!$G$62)/'RRP 5.1'!$G$65 -> 0.09874837909 | G6: RRP table 5.1
B7: Substations | C7: =0/'RRP 5.1'!$G$73 -> 0 | D7: =('RRP 5.1'!$G$71+'RRP 5.1'!$G$72)/'RRP 5.1'!$G$73 -> 0.9902549943 | E7: =('RRP 5.1'!$G$68+'RRP 5.1'!$G$69+'RRP 5.1'!$G$70)/'RRP 5.1'!$G$73 -> 0.009745005685 | G7: RRP table 5.1
B8: Transmission Exit Charges | C8: 0 | D8: 0 | E8: 1 | G8: Assumption
B9: MEAV | C9: ='Calc-MEAV'!D6 -> 0.4682154974 | D9: ='Calc-MEAV'!D7 -> 0.1443110721 | E9: ='Calc-MEAV'!D8+'Calc-MEAV'!D9 -> 0.3874734305 | G9: FBPQ capex - see "Calc MEAV"
B10: EHV only | C10: 0 | D10: 0 | E10: 1 | G10: Assumption
B11: LV only | C11: 1 | D11: 0 | E11: 0 | G11: Assumption
B12: HV only | C12: 0 | D12: 1 | E12: 0 | G12: Assumption
A14: Drivers - LV, LV/HV, HV, EHV split
B16: Category | C16: LV | D16: LV/HV | E16: HV | F16: EHV | G16: Source
B17: Net Capex | C17: ='Calc-Net capex'!H6 -> 0.1359633262 | D17: ='Calc-Net capex'!H7 -> 0.05974950684 | E17: ='Calc-Net capex'!H8 -> 0.2720208679 | F17: ='Calc-Net capex'!$D$8+'Calc-Net capex'!$D$9 -> 0.532266299 | G17: FBPQ capex - see "Calc Net capex"
B18: No. of Customers | C18: 1 | D18: 0 | E18: 0 | F18: 0 | G18: Assumption
B19: Network Length | C19: ='RRP 5.1'!$G$64/'RRP 5.1'!$G$65 -> 0.5364633253 | D19: 0 | E19: ='RRP 5.1'!$G$63/'RRP 5.1'!$G$65 -> 0.3647882957 | F19: =('RRP 5.1'!$G$61+'RRP 5.1'!$G$62)/'RRP 5.1'!$G$65 -> 0.09874837909 | G19: RRP table 5.1
B20: No. of Substations | C20: =0/'RRP 5.1'!$G$73 -> 0 | D20: 0 | E20: =('RRP 5.1'!$G$71+'RRP 5.1'!$G$72)/'RRP 5.1'!$G$73 -> 0.9902549943 | F20: =('RRP 5.1'!$G$68+'RRP 5.1'!$G$69+'RRP 5.1'!$G$70)/'RRP 5.1'!$G$73 -> 0.009745005685 | G20: RRP table 5.1
B21: Transmission Exit Charges | C21: 0 | D21: 0 | E21: 0 | F21: 1 | G21: Assumption
B22: MEAV | C22: ='Calc-MEAV'!H6 -> 0.4682154974 | D22: ='Calc-MEAV'!H7 -> 0.03400429288 | E22: ='Calc-MEAV'!H8 -> 0.1103067792 | F22: ='Calc-MEAV'!H9+'Calc-MEAV'!H10 -> 0.3874734305 | G22: FBPQ capex - see "Calc MEAV"
B23: MEAV excl services | C23: ='Calc-MEAV'!L6 -> 0.3157652714 | D23: ='Calc-MEAV'!L7 -> 0.06249132268 | E23: ='Calc-MEAV'!L8 -> 0.1231903712 | F23: ='Calc-MEAV'!L9+'Calc-MEAV'!L10 -> 0.4985530347 | G23: FBPQ capex - see "Calc MEAV"
B24: MEAV excl services and 50% LV network | C24: ='Calc-MEAV'!Q3 -> 0 | D24: ='Calc-MEAV'!Q4 -> 0 | E24: ='Calc-MEAV'!Q5 -> % of Total | F24: ='Calc-MEAV'!Q6+'Calc-MEAV'!Q7 -> 0.261690315 | G24: FBPQ capex - see "Calc MEAV"
B25: EHV only | C25: 0 | D25: 0 | E25: 0 | F25: 1 | G25: Assumption
B26: LV only | C26: 1 | D26: 0 | E26: 0 | F26: 0 | G26: Assumption
B27: HV only | C27: 0 | D27: 0 | E27: 1 | F27: 0 | G27: Assumption

Sheet Calc-MEAV
A1: MEAV by Voltage Level | F1: Index
B3: MEAV - LV, HV, EHV, 132kV split | F3: MEAV - LV, LV/HV, HV, EHV, 132kV split | J3: MEAV - LV (excl. services), LV/HV, HV, EHV, 132kV split | O3: MEAV - LV (excl. services + 50%LV), LV/HV, HV, EHV, 132kV split
B4: Sum of MEAV of asset classified in voltage tier (as calculated below) | F4: Sum of MEAV of asset classified in voltage tier | J4: Sum of MEAV of asset classified in voltage tier (as calculated below) | O4: Sum of MEAV of asset classified in voltage tier (as calculated below)
C5: £m | D5: % of Total | G5: £m | H5: % of Total | K5: £m | L5: % of Total | P5: £m | Q5: % of Total
B6: LV | C6: =SUM(I20:I39) -> 8538239.764 | D6: =C6/$C$10 -> 0.4682154974 | F6: LV | G6: =SUM(I20:I39) -> 8538239.764 | H6: =G6/$G$11 -> 0.4682154974 | J6: LV | K6: =SUM(I20:I39)-I21-I30 -> 4475251.935 | L6: =K6/$K$11 -> 0.3157652714 | O6: LV | P6: =(SUM(I20:I39)-I21-I30)*0.5 -> 2237625.967 | Q6: =P6/P$11 -> 0.1874829357
B7: HV | C7: =SUM(I42:I79)+SUM(I158:I163)+SUM(I153:I154) -> 2631614.162 | D7: =C7/$C$10 -> 0.1443110721 | F7: LV/HV | G7: =SUM(I62:I63)+SUM(I69:I70)+SUM(I75:I78) -> 620092.2593 | H7: =G7/$G$11 -> 0.03400429288 | J7: LV/HV | K7: =SUM(I59:I72)+SUM(I75:I78) -> 885671.8521 | L7: =K7/$K$11 -> 0.06249132268 | O7: LV/HV | P7: =SUM(I59:I72)+SUM(I75:I78) -> 885671.8521 | Q7: =P7/P$11 -> 0.07420737931
B8: EHV | C8: =SUM(I81:I120)+SUM(I149:I150) -> 1708721.076 | D8: =C8/$C$10 -> 0.09370194683 | F8: HV | G8: =SUM(I42:I56)+SUM(I59:I61)+SUM(I64:I68)+SUM(I71:I72)+SUM(I158:I163)+SUM(I153:I154) -> 2011521.903 | H8: =G8/$G$11 -> 0.1103067792 | J8: HV | K8: =SUM(I42:I56)+SUM(I158:I163)+SUM(I153:I154) -> 1745942.31 | L8: =K8/$K$11 -> 0.1231903712 | O8: HV | P8: =SUM(I42:I56)+SUM(I158:I163)+SUM(I153:I154) -> 1745942.31 | Q8: =P8/P$11 -> 0.1462864637
B9: 132 kV | C9: =SUM(I121:I146) -> 5357130.161 | D9: =C9/$C$10 -> 0.2937714837 | E9: Check | F9: EHV | G9: =SUM(I81:I120)+SUM(I149:I150) -> 1708721.076 | H9: =G9/$G$11 -> 0.09370194683 | J9: EHV | K9: =SUM(I81:I120)+SUM(I149:I150) -> 1708721.076 | L9: =K9/$K$11 -> 0.1205641117 | O9: EHV | P9: =SUM(I81:I120)+SUM(I149:I150) -> 1708721.076 | Q9: =P9/P$11 -> 0.1431678253
B10: Total | C10: =SUM(C6:C9) -> 18235705.16 | D10: =SUM(D6:D9) -> 1 | E10: =IF(C10=$I$164,"OK", "error") -> OK | F10: 132 kV | G10: =SUM(I121:I146) -> 5357130.161 | H10: =G10/$G$11 -> 0.2937714837 | I10: Check | J10: 132 kV | K10: =SUM(I121:I146) -> 5357130.161 | L10: =K10/$K$11 -> 0.377988923 | M10: Check | O10: 132 kV | P10: =SUM(I121:I146) -> 5357130.161 | Q10: =P10/P$11 -> 0.448855396 | R10: Check
F11: Total | G11: =SUM(G6:G10) -> 18235705.16 | H11: =SUM(H6:H10) -> 1 | I11: =IF(G11=$I$164,"OK", "error") -> OK | J11: Total | K11: =SUM(K6:K10) -> 14172717.33 | L11: =SUM(L6:L10) -> 1 | M11: =IF(K11=($I$164-I21-I30),"OK", "error") -> OK | O11: Total | P11: =SUM(P6:P10) -> 11935091.37 | Q11: =SUM(Q6:Q10) -> 1 | R11: =IF(P11=($I$164-I21-I30-(SUM(I20:I39)-I21-I30)*0.5),"OK", "error") -> OK
A14: MEAV Calculation = Replacement unit cost*FBPQ closing asset balance
C16: Asset categories | D16: Units | E16: DNO reported Unit Cost (£) | G16: Unit cost used in MEAV calculation (£) | H16: Closing DCPR asset Balance (units) | I16: MEAV (£)
E17: Sum of direct and indriect replacement unit cost from FBPQ C2 | F17: PB power numbers, if available | G17: Is DNO Unit cost if avaliable, otherwise PB power unit cost | H17: Closing asset balannce from FBPQ V4 | I17: Unit cost used in MEAV calculation*Closing DCPR asset Balance (units) | J17: Classification
A18: LV Network | L18: LV | M18: =SUMIF(J:J,L18,I:I) -> 8538239.764 | N18: =M18/M$25 -> 0.4682154974
B19: Overhead lines | J19: LV | L19: HV/LV | M19: =SUMIF(J:J,L19,I:I) -> 760542.3493 | N19: =M19/M$25 -> 0.04170622098
C20: LV Main (OHL) | D20: km | E20: =IF(ISNUMBER('FBPQ C2'!J12),'FBPQ C2'!J12,IF(ISNUMBER('FBPQ C2'!I12),'FBPQ C2'!I12,"")) -> 39.50991011 | F20: DATA | G20: =IF(ISNUMBER(E20),E20,IF(H20>0,F20," ")) -> 39.50991011 | H20: =IF(ISBLANK('FBPQ T4'!E12)," ",'FBPQ T4'!AE12) -> 5011.7 | I20: =IF(ISERROR(G20*H20)," ",G20*H20) -> 198011.8165 | J20: LV | L20: HV | M20: 1624509.014 | N20: 0.08908397014
C21: LV Service (OHL) | D21: Each | E21: =IF(ISNUMBER('FBPQ C2'!J13),'FBPQ C2'!J13,IF(ISNUMBER('FBPQ C2'!I13),'FBPQ C2'!I13,"")) -> 0.481828172 | F21: DATA | G21: 0.481828172 | H21: =IF(ISBLANK('FBPQ T4'!E13)," ",'FBPQ T4'!AE13) -> 124564 | I21: =IF(ISERROR(G21*H21)," ",G21*H21) -> 60018.44442 | J21: LV | L21: EHV/HV | M21: 1031189.454 | N21: 0.05654782441
E22: =IF(ISNUMBER('FBPQ C2'!J14),'FBPQ C2'!J14,IF(ISNUMBER('FBPQ C2'!I14),'FBPQ C2'!I14,"")) ->  | G22: 0 | H22: =IF(ISBLANK('FBPQ T4'!E14)," ",'FBPQ T4'!AE14) ->  | J22: LV | L22: EHV | M22: 720647.1728 | N22: 0.0395184703
B23: Overhead lines - Support | E23: =IF(ISNUMBER('FBPQ C2'!J15),'FBPQ C2'!J15,IF(ISNUMBER('FBPQ C2'!I15),'FBPQ C2'!I15,"")) ->  | G23: 0 | H23: =IF(ISBLANK('FBPQ T4'!E15)," ",'FBPQ T4'!AE15) ->  | J23: LV | L23: 132kV/EHV | M23: 611697.0056 | N23: 0.03354391838
C24: LV Support | D24: Each | E24: =IF(ISNUMBER('[8]FBPQ C2'!K16),'[8]FBPQ C2'!K16,IF(ISNUMBER('[8]FBPQ C2'!I16),'[8]FBPQ C2'!I16,"")) -> 0 | F24: DATA | G24: 0 | H24: =IF(ISBLANK('FBPQ T4'!E16)," ",'FBPQ T4'!AE16) -> 121993 | I24: 0 | J24: LV | L24: 132kV | M24: 4948880.403 | N24: 0.2713840983
E25: =IF(ISNUMBER('FBPQ C2'!J17),'FBPQ C2'!J17,IF(ISNUMBER('FBPQ C2'!I17),'FBPQ C2'!I17,"")) ->  | G25: 0 | H25: =IF(ISBLANK('FBPQ T4'!E17)," ",'FBPQ T4'!AE17) ->  | J25: LV | L25: All | M25: =SUM(M18:M24) -> 18235705.16 | N25: 1
B26: Underground cables | E26: =IF(ISNUMBER('FBPQ C2'!J18),'FBPQ C2'!J18,IF(ISNUMBER('FBPQ C2'!I18),'FBPQ C2'!I18,"")) ->  | G26: 0 | H26: =IF(ISBLANK('FBPQ T4'!E18)," ",'FBPQ T4'!AE18) ->  | J26: LV
C27: LV Main (UG Consac) | D27: km | E27: =IF(ISNUMBER('FBPQ C2'!J19),'FBPQ C2'!J19,IF(ISNUMBER('FBPQ C2'!I19),'FBPQ C2'!I19,"")) -> 120.457043 | F27: DATA | G27: 120.457043 | H27: =IF(ISBLANK('FBPQ T4'!E19)," ",'FBPQ T4'!AE19) -> 11 | I27: 1325.027473 | J27: LV
C28: LV Main (UG Plastic) | D28: km | E28: =IF(ISNUMBER('FBPQ C2'!J20),'FBPQ C2'!J20,IF(ISNUMBER('FBPQ C2'!I20),'FBPQ C2'!I20,"")) -> 120.457043 | F28: DATA | G28: 120.457043 | H28: =IF(ISBLANK('FBPQ T4'!E20)," ",'FBPQ T4'!AE20) -> 15211.5 | I28: 1832332.31 | J28: LV | L28: EHV/HV | M28: =M21 -> 1031189.454 | N28: =M28/M$32 -> 0.141019019
C29: LV Main (UG Paper) | D29: km | E29: =IF(ISNUMBER('FBPQ C2'!J21),'FBPQ C2'!J21,IF(ISNUMBER('FBPQ C2'!I21),'FBPQ C2'!I21,"")) -> 120.457043 | F29: DATA | G29: 120.457043 | H29: =IF(ISBLANK('FBPQ T4'!E21)," ",'FBPQ T4'!AE21) -> 18317 | I29: 2206411.657 | J29: LV | L29: EHV | M29: =M22 -> 720647.1728 | N29: =M29/M$32 -> 0.09855119928
C30: LV Service (UG) | D30: Each | E30: =IF(ISNUMBER('FBPQ C2'!J22),'FBPQ C2'!J22,IF(ISNUMBER('FBPQ C2'!I22),'FBPQ C2'!I22,"")) -> 1.610775671 | F30: DATA | G30: 1.610775671 | H30: =IF(ISBLANK('FBPQ T4'!E22)," ",'FBPQ T4'!AE22) -> 2485119.1 | I30: 4002969.385 | J30: LV | L30: 132kV/EHV | M30: =M23 -> 611697.0056 | N30: =M30/M$32 -> 0.08365185597
E31: =IF(ISNUMBER('FBPQ C2'!J23),'FBPQ C2'!J23,IF(ISNUMBER('FBPQ C2'!I23),'FBPQ C2'!I23,"")) ->  | G31: 0 | H31: =IF(ISBLANK('FBPQ T4'!E23)," ",'FBPQ T4'!AE23) ->  | J31: LV | L31: 132kV | M31: =M24 -> 4948880.403 | N31: =M31/M$32 -> 0.6767779258
B32: Switchgear | E32: =IF(ISNUMBER('FBPQ C2'!J24),'FBPQ C2'!J24,IF(ISNUMBER('FBPQ C2'!I24),'FBPQ C2'!I24,"")) ->  | G32: 0 | H32: =IF(ISBLANK('FBPQ T4'!E24)," ",'FBPQ T4'!AE24) ->  | J32: LV | L32: All EHV | M32: =SUM(M28:M31) -> 7312414.035 | N32: =M32/M$32 -> 1
C33: LV Pillar (ID) | D33: Each | E33: =IF(ISNUMBER('FBPQ C2'!J25),'FBPQ C2'!J25,IF(ISNUMBER('FBPQ C2'!I25),'FBPQ C2'!I25,"")) -> 5.420566935 | F33: DATA | G33: 5.420566935 | H33: =IF(ISBLANK('FBPQ T4'!E25)," ",'FBPQ T4'!AE25) -> 9596 | I33: 52015.76031 | J33: LV
C34: LV Pillar (OD) | D34: Each | E34: =IF(ISNUMBER('FBPQ C2'!J26),'FBPQ C2'!J26,IF(ISNUMBER('FBPQ C2'!I26),'FBPQ C2'!I26,"")) -> 5.420566935 | F34: DATA | G34: 5.420566935 | H34: =IF(ISBLANK('FBPQ T4'!E26)," ",'FBPQ T4'!AE26) -> 7772 | I34: 42128.64622 | J34: LV
C35: LV Board (WM) | D35: Each | E35: =IF(ISNUMBER('FBPQ C2'!J27),'FBPQ C2'!J27,IF(ISNUMBER('FBPQ C2'!I27),'FBPQ C2'!I27,"")) -> 5.420566935 | F35: DATA | G35: 5.420566935 | H35: =IF(ISBLANK('FBPQ T4'!E27)," ",'FBPQ T4'!AE27) -> 2299 | I35: 12461.88338 | J35: LV
C36: LV UGB | D36: Each | E36: =IF(ISNUMBER('FBPQ C2'!J28),'FBPQ C2'!J28,IF(ISNUMBER('FBPQ C2'!I28),'FBPQ C2'!I28,"")) -> 4.577367634 | F36: DATA | G36: 4.577367634 | H36: =IF(ISBLANK('FBPQ T4'!E28)," ",'FBPQ T4'!AE28) -> 28524 | I36: 130564.8344 | J36: LV
C37: LV Fuses (PM) | D37: Each | E37: 0 | F37: DATA | G37: 0 | H37: =IF(ISBLANK('FBPQ T4'!E29)," ",'FBPQ T4'!AE29) -> 22692 | I37: 0 | J37: LV
C38: LV Fuses (TM) | D38: Each | E38: =IF(ISNUMBER('FBPQ C2'!J30),'FBPQ C2'!J30,IF(ISNUMBER('FBPQ C2'!I30),'FBPQ C2'!I30,"")) ->  | F38: DATA | H38: =IF(ISBLANK('FBPQ T4'!E30)," ",'FBPQ T4'!AE30) -> 0 | J38: LV
E39: =IF(ISNUMBER('FBPQ C2'!J31),'FBPQ C2'!J31,IF(ISNUMBER('FBPQ C2'!I31),'FBPQ C2'!I31,"")) ->  | G39: 0 | H39: =IF(ISBLANK('FBPQ T4'!E31)," ",'FBPQ T4'!AE31) ->  | J39: LV
A40: HV network | E40: =IF(ISNUMBER('FBPQ C2'!J32),'FBPQ C2'!J32,IF(ISNUMBER('FBPQ C2'!I32),'FBPQ C2'!I32,"")) ->  | G40: 0 | H40: =IF(ISBLANK('FBPQ T4'!E32)," ",'FBPQ T4'!AE32) -> 
B41: Overhead lines | E41: =IF(ISNUMBER('FBPQ C2'!J33),'FBPQ C2'!J33,IF(ISNUMBER('FBPQ C2'!I33),'FBPQ C2'!I33,"")) ->  | G41: 0 | H41: =IF(ISBLANK('FBPQ T4'!E33)," ",'FBPQ T4'!AE33) ->  | J41: HV
C42: 6.6/11 kV OHL (Open) | D42: km | E42: =IF(ISNUMBER('FBPQ C2'!J34),'FBPQ C2'!J34,IF(ISNUMBER('FBPQ C2'!I34),'FBPQ C2'!I34,"")) -> 40.83493758 | F42: DATA | G42: 40.83493758 | H42: =IF(ISBLANK('FBPQ T4'!E34)," ",'FBPQ T4'!AE34) -> 12473.2 | I42: 509342.3434 | J42: HV
C43: 6.6/11 kV OHL (Covered) | D43: km | E43: =IF(ISNUMBER('FBPQ C2'!J35),'FBPQ C2'!J35,IF(ISNUMBER('FBPQ C2'!I35),'FBPQ C2'!I35,"")) -> 40.83493758 | F43: DATA | G43: 40.83493758 | H43: =IF(ISBLANK('FBPQ T4'!E35)," ",'FBPQ T4'!AE35) -> 20 | I43: 816.6987516 | J43: HV
C44: 20 kV OHL (Open) | D44: km | E44: =IF(ISNUMBER('FBPQ C2'!J36),'FBPQ C2'!J36,IF(ISNUMBER('FBPQ C2'!I36),'FBPQ C2'!I36,"")) -> 0 | F44: DATA | G44: 0 | H44: =IF(ISBLANK('FBPQ T4'!E36)," ",'FBPQ T4'!AE36) -> 0 | I44: 0 | J44: HV
C45: 20 kV OHL (Covered) | D45: km | E45: =IF(ISNUMBER('FBPQ C2'!J37),'FBPQ C2'!J37,IF(ISNUMBER('FBPQ C2'!I37),'FBPQ C2'!I37,"")) -> 0 | F45: DATA | G45: 0 | H45: =IF(ISBLANK('FBPQ T4'!E37)," ",'FBPQ T4'!AE37) -> 0 | I45: 0 | J45: HV
E46: =IF(ISNUMBER('FBPQ C2'!J38),'FBPQ C2'!J38,IF(ISNUMBER('FBPQ C2'!I38),'FBPQ C2'!I38,"")) ->  | G46: 0 | H46: =IF(ISBLANK('FBPQ T4'!E38)," ",'FBPQ T4'!AE38) ->  | J46: HV
B47: Overhead lines - Support | E47: =IF(ISNUMBER('FBPQ C2'!J39),'FBPQ C2'!J39,IF(ISNUMBER('FBPQ C2'!I39),'FBPQ C2'!I39,"")) ->  | G47: 0 | H47: =IF(ISBLANK('FBPQ T4'!E39)," ",'FBPQ T4'!AE39) ->  | J47: HV
C48: 6.6/11 kV Support | D48: Each | E48: =IF(ISNUMBER('[8]FBPQ C2'!K40),'[8]FBPQ C2'!K40,IF(ISNUMBER('[8]FBPQ C2'!I40),'[8]FBPQ C2'!I40,"")) -> 0 | F48: DATA | G48: 0 | H48: =IF(ISBLANK('FBPQ T4'!E40)," ",'FBPQ T4'!AE40) -> 160773 | I48: 0 | J48: HV
C49: 20 kV Support | D49: Each | E49: =IF(ISNUMBER('FBPQ C2'!J41),'FBPQ C2'!J41,IF(ISNUMBER('FBPQ C2'!I41),'FBPQ C2'!I41,"")) -> 0 | F49: DATA | G49: 0 | H49: =IF(ISBLANK('FBPQ T4'!E41)," ",'FBPQ T4'!AE41) -> 0 | I49: 0 | J49: HV
E50: =IF(ISNUMBER('FBPQ C2'!J42),'FBPQ C2'!J42,IF(ISNUMBER('FBPQ C2'!I42),'FBPQ C2'!I42,"")) ->  | F50: DATA | G50: DATA | H50: =IF(ISBLANK('FBPQ T4'!E42)," ",'FBPQ T4'!AE42) ->  | J50: HV
B51: Underground cables (kms) | E51: =IF(ISNUMBER('FBPQ C2'!J43),'FBPQ C2'!J43,IF(ISNUMBER('FBPQ C2'!I43),'FBPQ C2'!I43,"")) ->  | G51: 0 | H51: =IF(ISBLANK('FBPQ T4'!E43)," ",'FBPQ T4'!AE43) ->  | J51: HV
C52: 6.6/11kV UG Cable | D52: km | E52: =IF(ISNUMBER('FBPQ C2'!J44),'FBPQ C2'!J44,IF(ISNUMBER('FBPQ C2'!I44),'FBPQ C2'!I44,"")) -> 80.1039336 | F52: DATA | G52: =IF(ISNUMBER(E52),E52,IF(H52>0,F52," ")) -> 80.1039336 | H52: =IF(ISBLANK('FBPQ T4'!E44)," ",'FBPQ T4'!AE44) -> 13673.9 | I52: 1095333.178 | J52: HV
C53: 20kV UG Cable | D53: km | E53: =IF(ISNUMBER('FBPQ C2'!J45),'FBPQ C2'!J45,IF(ISNUMBER('FBPQ C2'!I45),'FBPQ C2'!I45,"")) -> 0 | F53: DATA | G53: 0 | H53: =IF(ISBLANK('FBPQ T4'!E45)," ",'FBPQ T4'!AE45) -> 0 | I53: 0 | J53: HV
E54: =IF(ISNUMBER('FBPQ C2'!J46),'FBPQ C2'!J46,IF(ISNUMBER('FBPQ C2'!I46),'FBPQ C2'!I46,"")) ->  | G54: 0 | H54: =IF(ISBLANK('FBPQ T4'!E46)," ",'FBPQ T4'!AE46) ->  | J54: HV
B55: Submarine cables (kms) | E55: =IF(ISNUMBER('FBPQ C2'!J47),'FBPQ C2'!J47,IF(ISNUMBER('FBPQ C2'!I47),'FBPQ C2'!I47,"")) ->  | G55: 0 | H55: =IF(ISBLANK('FBPQ T4'!E47)," ",'FBPQ T4'!AE47) ->  | J55: HV
C56: HV Sub Cable | D56: km | E56: =IF(ISNUMBER('FBPQ C2'!J48),'FBPQ C2'!J48,IF(ISNUMBER('FBPQ C2'!I48),'FBPQ C2'!I48,"")) -> 0 | F56: DATA | G56: 0 | H56: =IF(ISBLANK('FBPQ T4'!E48)," ",'FBPQ T4'!AE48) -> 0 | I56: 0 | J56: HV
E57: =IF(ISNUMBER('FBPQ C2'!J49),'FBPQ C2'!J49,IF(ISNUMBER('FBPQ C2'!I49),'FBPQ C2'!I49,"")) ->  | F57: DATA | G57: DATA | H57: =IF(ISBLANK('FBPQ T4'!E49)," ",'FBPQ T4'!AE49) ->  | J57: HV
B58: Switchgear | E58: =IF(ISNUMBER('FBPQ C2'!J50),'FBPQ C2'!J50,IF(ISNUMBER('FBPQ C2'!I50),'FBPQ C2'!I50,"")) ->  | G58: 0 | H58: =IF(ISBLANK('FBPQ T4'!E50)," ",'FBPQ T4'!AE50) ->  | J58: HV
C59: 6.6/11 kV CB (PM) | D59: Each | E59: =IF(ISNUMBER('FBPQ C2'!J51),'FBPQ C2'!J51,IF(ISNUMBER('FBPQ C2'!I51),'FBPQ C2'!I51,"")) -> 13.25027473 | F59: DATA | G59: 13.25027473 | H59: =IF(ISBLANK('FBPQ T4'!E51)," ",'FBPQ T4'!AE51) -> 1227 | I59: 16258.08709 | J59: EHV/HV
C60: 6.6/11 kV CB (GM) | D60: Each | E60: =IF(ISNUMBER('FBPQ C2'!J52),'FBPQ C2'!J52,IF(ISNUMBER('FBPQ C2'!I52),'FBPQ C2'!I52,"")) -> 29.27106145 | F60: DATA | G60: 29.27106145 | H60: =IF(ISBLANK('FBPQ T4'!E52)," ",'FBPQ T4'!AE52) -> 7868 | I60: 230304.7115 | J60: EHV/HV
C61: 6.6/11 kV Switch (PM) | D61: Each | E61: =IF(ISNUMBER('FBPQ C2'!J53),'FBPQ C2'!J53,IF(ISNUMBER('FBPQ C2'!I53),'FBPQ C2'!I53,"")) -> 1.565941559 | F61: DATA | G61: 1.565941559 | H61: =IF(ISBLANK('FBPQ T4'!E53)," ",'FBPQ T4'!AE53) -> 387 | I61: 606.0193834 | J61: HV
C62: 6.6/11 kV Switch (GM) | D62: Each | E62: =IF(ISNUMBER('FBPQ C2'!J54),'FBPQ C2'!J54,IF(ISNUMBER('FBPQ C2'!I54),'FBPQ C2'!I54,"")) -> 4.938738763 | F62: DATA | G62: 4.938738763 | H62: =IF(ISBLANK('FBPQ T4'!E54)," ",'FBPQ T4'!AE54) -> 10608 | I62: 52390.1408 | J62: HV/LV
C63: 6.6/11 kV RMU | D63: Each | E63: =IF(ISNUMBER('FBPQ C2'!J55),'FBPQ C2'!J55,IF(ISNUMBER('FBPQ C2'!I55),'FBPQ C2'!I55,"")) -> 15.53895855 | F63: DATA | G63: 15.53895855 | H63: =IF(ISBLANK('FBPQ T4'!E55)," ",'FBPQ T4'!AE55) -> 17327 | I63: 269243.5348 | J63: HV/LV
C64: 6.6/11 kV Switchgear - Other (PM) | D64: Each | E64: =E61 -> 1.565941559 | F64: DATA | G64: 1.565941559 | H64: =IF(ISBLANK('FBPQ T4'!E56)," ",'FBPQ T4'!AE56) -> 11757 | I64: 18410.77491 | J64: HV
C65: 6.6/11 kV Switchgear - Other (GM) | D65: Each | E65: =IF(ISNUMBER('FBPQ C2'!J57),'FBPQ C2'!J57,IF(ISNUMBER('FBPQ C2'!I57),'FBPQ C2'!I57,"")) ->  | F65: DATA | H65: =IF(ISBLANK('FBPQ T4'!E57)," ",'FBPQ T4'!AE57) -> 0 | J65: HV
C66: 20 kV CB (PM) | D66: Each | E66: =IF(ISNUMBER('FBPQ C2'!J58),'FBPQ C2'!J58,IF(ISNUMBER('FBPQ C2'!I58),'FBPQ C2'!I58,"")) -> 0 | F66: DATA | G66: 0 | H66: =IF(ISBLANK('FBPQ T4'!E58)," ",'FBPQ T4'!AE58) -> 0 | I66: 0 | J66: EHV/HV
C67: 20 kV CB (GM) | D67: Each | E67: =IF(ISNUMBER('FBPQ C2'!J59),'FBPQ C2'!J59,IF(ISNUMBER('FBPQ C2'!I59),'FBPQ C2'!I59,"")) -> 0 | F67: DATA | G67: 0 | H67: =IF(ISBLANK('FBPQ T4'!E59)," ",'FBPQ T4'!AE59) -> 0 | I67: 0 | J67: EHV/HV
C68: 20 kV Switch (PM) | D68: Each | E68: =IF(ISNUMBER('FBPQ C2'!J60),'FBPQ C2'!J60,IF(ISNUMBER('FBPQ C2'!I60),'FBPQ C2'!I60,"")) -> 0 | F68: DATA | G68: 0 | H68: =IF(ISBLANK('FBPQ T4'!E60)," ",'FBPQ T4'!AE60) -> 0 | I68: 0 | J68: HV
C69: 20 kV Switch (GM) | D69: Each | E69: =IF(ISNUMBER('FBPQ C2'!J61),'FBPQ C2'!J61,IF(ISNUMBER('FBPQ C2'!I61),'FBPQ C2'!I61,"")) -> 0 | F69: DATA | G69: 0 | H69: =IF(ISBLANK('FBPQ T4'!E61)," ",'FBPQ T4'!AE61) -> 0 | I69: 0 | J69: HV/LV
C70: 20 kV RMU | D70: Each | E70: =IF(ISNUMBER('FBPQ C2'!J62),'FBPQ C2'!J62,IF(ISNUMBER('FBPQ C2'!I62),'FBPQ C2'!I62,"")) -> 0 | F70: DATA | G70: 0 | H70: =IF(ISBLANK('FBPQ T4'!E62)," ",'FBPQ T4'!AE62) -> 0 | I70: 0 | J70: HV/LV
C71: 20 kV Switchgear - Other (PM) | D71: Each | E71: =IF(ISNUMBER('FBPQ C2'!J63),'FBPQ C2'!J63,IF(ISNUMBER('FBPQ C2'!I63),'FBPQ C2'!I63,"")) ->  | F71: DATA | H71: =IF(ISBLANK('FBPQ T4'!E63)," ",'FBPQ T4'!AE63) -> 0 | J71: HV
C72: 20 kV Switchgear - Other (GM) | D72: Each | E72: =IF(ISNUMBER('FBPQ C2'!J64),'FBPQ C2'!J64,IF(ISNUMBER('FBPQ C2'!I64),'FBPQ C2'!I64,"")) ->  | F72: DATA | H72: =IF(ISBLANK('FBPQ T4'!E64)," ",'FBPQ T4'!AE64) -> 0 | J72: HV
E73: =IF(ISNUMBER('FBPQ C2'!J65),'FBPQ C2'!J65,IF(ISNUMBER('FBPQ C2'!I65),'FBPQ C2'!I65,"")) ->  | G73: 0 | H73: =IF(ISBLANK('FBPQ T4'!E65)," ",'FBPQ T4'!AE65) -> 
B74: Transformers | E74: =IF(ISNUMBER('FBPQ C2'!J66),'FBPQ C2'!J66,IF(ISNUMBER('FBPQ C2'!I66),'FBPQ C2'!I66,"")) ->  | G74: 0 | H74: =IF(ISBLANK('FBPQ T4'!E66)," ",'FBPQ T4'!AE66) -> 
C75: 6.6/11 kV Transformer (PM) | D75: Each | E75: =IF(ISNUMBER('FBPQ C2'!J67),'FBPQ C2'!J67,IF(ISNUMBER('FBPQ C2'!I67),'FBPQ C2'!I67,"")) -> 3.493254247 | F75: DATA | G75: 3.493254247 | H75: =IF(ISBLANK('FBPQ T4'!E67)," ",'FBPQ T4'!AE67) -> 22854 | I75: 79834.83257 | J75: HV/LV
C76: 6.6/11 kV Transformer (GM) | D76: Each | E76: =IF(ISNUMBER('FBPQ C2'!J68),'FBPQ C2'!J68,IF(ISNUMBER('FBPQ C2'!I68),'FBPQ C2'!I68,"")) -> 11.32296204 | F76: DATA | G76: 11.32296204 | H76: =IF(ISBLANK('FBPQ T4'!E68)," ",'FBPQ T4'!AE68) -> 19308 | I76: 218623.7511 | J76: HV/LV
C77: 20 kV Transformer (PM) | D77: Each | E77: =IF(ISNUMBER('FBPQ C2'!J69),'FBPQ C2'!J69,IF(ISNUMBER('FBPQ C2'!I69),'FBPQ C2'!I69,"")) -> 0 | F77: DATA | G77: 0 | H77: =IF(ISBLANK('FBPQ T4'!E69)," ",'FBPQ T4'!AE69) -> 0 | I77: 0 | J77: HV/LV
C78: 20 kV Transformer (GM) | D78: Each | E78: =IF(ISNUMBER('FBPQ C2'!J70),'FBPQ C2'!J70,IF(ISNUMBER('FBPQ C2'!I70),'FBPQ C2'!I70,"")) -> 0 | F78: DATA | G78: 0 | H78: =IF(ISBLANK('FBPQ T4'!E70)," ",'FBPQ T4'!AE70) -> 0 | I78: 0 | J78: HV/LV
E79: =IF(ISNUMBER('FBPQ C2'!J71),'FBPQ C2'!J71,IF(ISNUMBER('FBPQ C2'!I71),'FBPQ C2'!I71,"")) ->  | G79: 0 | H79: =IF(ISBLANK('FBPQ T4'!E71)," ",'FBPQ T4'!AE71) -> 
A80: EHV Network | E80: =IF(ISNUMBER('FBPQ C2'!J72),'FBPQ C2'!J72,IF(ISNUMBER('FBPQ C2'!I72),'FBPQ C2'!I72,"")) ->  | G80: 0 | H80: =IF(ISBLANK('FBPQ T4'!E72)," ",'FBPQ T4'!AE72) -> 
B81: Overhead lines | E81: =IF(ISNUMBER('FBPQ C2'!J73),'FBPQ C2'!J73,IF(ISNUMBER('FBPQ C2'!I73),'FBPQ C2'!I73,"")) ->  | G81: 0 | H81: =IF(ISBLANK('FBPQ T4'!E73)," ",'FBPQ T4'!AE73) -> 
C82: 33kV OHL (Pole Line) | D82: km | E82: =IF(ISNUMBER('FBPQ C2'!J74),'FBPQ C2'!J74,IF(ISNUMBER('FBPQ C2'!I74),'FBPQ C2'!I74,"")) -> 93.23375129 | F82: DATA | G82: 93.23375129 | H82: =IF(ISBLANK('FBPQ T4'!E74)," ",'FBPQ T4'!AE74) -> 1753.5 | I82: 163485.3829 | J82: EHV
C83: 33kV OHL (Tower Line) | D83: km | E83: =IF(ISNUMBER('FBPQ C2'!J75),'FBPQ C2'!J75,IF(ISNUMBER('FBPQ C2'!I75),'FBPQ C2'!I75,"")) -> 148.523534 | F83: DATA | G83: 148.523534 | H83: =IF(ISBLANK('FBPQ T4'!E75)," ",'FBPQ T4'!AE75) -> 933 | I83: 138572.4573 | J83: EHV
C84: 66kV OHL (Pole Line) | D84: km | E84: =IF(ISNUMBER('FBPQ C2'!J76),'FBPQ C2'!J76,IF(ISNUMBER('FBPQ C2'!I76),'FBPQ C2'!I76,"")) -> 175.8672828 | F84: DATA | G84: =IF(ISNUMBER(E84),E84,IF(H84>0,F84," ")) -> 175.8672828 | H84: =IF(ISBLANK('FBPQ T4'!E76)," ",'FBPQ T4'!AE76) -> 0 | I84: 0 | J84: EHV
C85: 66kV OHL (Tower Line) | D85: km | E85: =IF(ISNUMBER('FBPQ C2'!J77),'FBPQ C2'!J77,IF(ISNUMBER('FBPQ C2'!I77),'FBPQ C2'!I77,"")) -> 175.8672828 | F85: DATA | G85: 175.8672828 | H85: =IF(ISBLANK('FBPQ T4'!E77)," ",'FBPQ T4'!AE77) -> 0 | I85: =IF(ISERROR(G85*H85)," ",G85*H85) -> 0 | J85: EHV
E86: =IF(ISNUMBER('FBPQ C2'!J78),'FBPQ C2'!J78,IF(ISNUMBER('FBPQ C2'!I78),'FBPQ C2'!I78,"")) ->  | G86: 0 | H86: =IF(ISBLANK('FBPQ T4'!E78)," ",'FBPQ T4'!AE78) -> 
B87: Overhead lines - Support | E87: =IF(ISNUMBER('FBPQ C2'!J79),'FBPQ C2'!J79,IF(ISNUMBER('FBPQ C2'!I79),'FBPQ C2'!I79,"")) ->  | G87: 0 | H87: =IF(ISBLANK('FBPQ T4'!E79)," ",'FBPQ T4'!AE79) -> 
C88: 33kV Pole | D88: Each | E88: =IF(ISNUMBER('[8]FBPQ C2'!K80),'[8]FBPQ C2'!K80,IF(ISNUMBER('[8]FBPQ C2'!I80),'[8]FBPQ C2'!I80,"")) -> 0 | F88: DATA | G88: 0 | H88: =IF(ISBLANK('FBPQ T4'!E80)," ",'FBPQ T4'!AE80) -> 28125 | I88: 0 | J88: EHV
C89: 33kV Tower | D89: Each | E89: =IF(ISNUMBER('[8]FBPQ C2'!K81),'[8]FBPQ C2'!K81,IF(ISNUMBER('[8]FBPQ C2'!I81),'[8]FBPQ C2'!I81,"")) -> 0 | F89: DATA | G89: 0 | H89: =IF(ISBLANK('FBPQ T4'!E81)," ",'FBPQ T4'!AE81) -> 1287 | I89: 0 | J89: EHV
C90: 66kV Pole | D90: Each | E90: =IF(ISNUMBER('FBPQ C2'!J82),'FBPQ C2'!J82,IF(ISNUMBER('FBPQ C2'!I82),'FBPQ C2'!I82,"")) -> 0 | F90: DATA | G90: 0 | H90: =IF(ISBLANK('FBPQ T4'!E82)," ",'FBPQ T4'!AE82) -> 0 | I90: 0 | J90: EHV
C91: 66kV Tower | D91: Each | E91: =IF(ISNUMBER('FBPQ C2'!J83),'FBPQ C2'!J83,IF(ISNUMBER('FBPQ C2'!I83),'FBPQ C2'!I83,"")) -> 0 | F91: DATA | G91: 0 | H91: =IF(ISBLANK('FBPQ T4'!E83)," ",'FBPQ T4'!AE83) -> 0 | I91: 0 | J91: EHV
E92: =IF(ISNUMBER('FBPQ C2'!J84),'FBPQ C2'!J84,IF(ISNUMBER('FBPQ C2'!I84),'FBPQ C2'!I84,"")) ->  | G92: 0 | H92: =IF(ISBLANK('FBPQ T4'!E84)," ",'FBPQ T4'!AE84) -> 
B93: Underground cables (kms) | E93: =IF(ISNUMBER('FBPQ C2'!J85),'FBPQ C2'!J85,IF(ISNUMBER('FBPQ C2'!I85),'FBPQ C2'!I85,"")) ->  | G93: 0 | H93: =IF(ISBLANK('FBPQ T4'!E85)," ",'FBPQ T4'!AE85) -> 
C94: 33kV UG Cable (Non Pressurised) | D94: km | E94: =IF(ISNUMBER('FBPQ C2'!J86),'FBPQ C2'!J86,IF(ISNUMBER('FBPQ C2'!I86),'FBPQ C2'!I86,"")) -> 243.564141 | F94: DATA | G94: 243.564141 | H94: =IF(ISBLANK('FBPQ T4'!E86)," ",'FBPQ T4'!AE86) -> 1562.6 | I94: 380593.3267 | J94: EHV
C95: 33kV UG Cable (Oil) | D95: km | E95: =IF(ISNUMBER('FBPQ C2'!J87),'FBPQ C2'!J87,IF(ISNUMBER('FBPQ C2'!I87),'FBPQ C2'!I87,"")) -> 243.564141 | F95: DATA | G95: 243.564141 | H95: =IF(ISBLANK('FBPQ T4'!E87)," ",'FBPQ T4'!AE87) -> 156 | I95: 37996.00599 | J95: EHV
C96: 33kV UG Cable (Gas) | D96: km | E96: =IF(ISNUMBER('FBPQ C2'!J88),'FBPQ C2'!J88,IF(ISNUMBER('FBPQ C2'!I88),'FBPQ C2'!I88,"")) -> 0 | F96: DATA | G96: 0 | H96: =IF(ISBLANK('FBPQ T4'!E88)," ",'FBPQ T4'!AE88) -> 0 | I96: 0 | J96: EHV
C97: 66kV UG Cable (Non Pressurised) | D97: km | E97: =IF(ISNUMBER('FBPQ C2'!J89),'FBPQ C2'!J89,IF(ISNUMBER('FBPQ C2'!I89),'FBPQ C2'!I89,"")) -> 1143.137338 | F97: DATA | G97: 1143.137338 | H97: =IF(ISBLANK('FBPQ T4'!E89)," ",'FBPQ T4'!AE89) -> 0 | I97: 0 | J97: EHV
C98: 66kV UG Cable (Oil) | D98: km | E98: =IF(ISNUMBER('FBPQ C2'!J90),'FBPQ C2'!J90,IF(ISNUMBER('FBPQ C2'!I90),'FBPQ C2'!I90,"")) -> 1143.137338 | F98: DATA | G98: 1143.137338 | H98: =IF(ISBLANK('FBPQ T4'!E90)," ",'FBPQ T4'!AE90) -> 0 | I98: 0 | J98: EHV
C99: 66kV UG Cable (Gas) | D99: km | E99: =IF(ISNUMBER('FBPQ C2'!J91),'FBPQ C2'!J91,IF(ISNUMBER('FBPQ C2'!I91),'FBPQ C2'!I91,"")) -> 0 | F99: DATA | G99: 0 | H99: =IF(ISBLANK('FBPQ T4'!E91)," ",'FBPQ T4'!AE91) -> 0 | I99: 0 | J99: EHV
E100: =IF(ISNUMBER('FBPQ C2'!J92),'FBPQ C2'!J92,IF(ISNUMBER('FBPQ C2'!I92),'FBPQ C2'!I92,"")) ->  | G100: 0 | H100: =IF(ISBLANK('FBPQ T4'!E92)," ",'FBPQ T4'!AE92) -> 
B101: Submarine cables (kms) | E101: =IF(ISNUMBER('FBPQ C2'!J93),'FBPQ C2'!J93,IF(ISNUMBER('FBPQ C2'!I93),'FBPQ C2'!I93,"")) ->  | G101: 0 | H101: =IF(ISBLANK('FBPQ T4'!E93)," ",'FBPQ T4'!AE93) -> 
C102: EHV Sub Cable | D102: km | E102: =IF(ISNUMBER('FBPQ C2'!J94),'FBPQ C2'!J94,IF(ISNUMBER('FBPQ C2'!I94),'FBPQ C2'!I94,"")) -> 0 | F102: DATA | G102: 0 | H102: =IF(ISBLANK('FBPQ T4'!E94)," ",'FBPQ T4'!AE94) -> 0 | I102: 0 | J102: EHV
E103: =IF(ISNUMBER('FBPQ C2'!J95),'FBPQ C2'!J95,IF(ISNUMBER('FBPQ C2'!I95),'FBPQ C2'!I95,"")) ->  | G103: 0 | H103: =IF(ISBLANK('FBPQ T4'!E95)," ",'FBPQ T4'!AE95) -> 
B104: Switchgear | E104: =IF(ISNUMBER('FBPQ C2'!J96),'FBPQ C2'!J96,IF(ISNUMBER('FBPQ C2'!I96),'FBPQ C2'!I96,"")) ->  | G104: 0 | H104: =IF(ISBLANK('FBPQ T4'!E96)," ",'FBPQ T4'!AE96) -> 
C105: 33 KV CB (ID) | D105: Each | E105: =IF(ISNUMBER('FBPQ C2'!J97),'FBPQ C2'!J97,IF(ISNUMBER('FBPQ C2'!I97),'FBPQ C2'!I97,"")) -> 175.2649976 | F105: DATA | G105: 175.2649976 | H105: =IF(ISBLANK('FBPQ T4'!E97)," ",'FBPQ T4'!AE97) -> 414 | I105: 72559.709 | J105: 132kV/EHV
C106: 33 kV CB (OD) | D106: Each | E106: =IF(ISNUMBER('FBPQ C2'!J98),'FBPQ C2'!J98,IF(ISNUMBER('FBPQ C2'!I98),'FBPQ C2'!I98,"")) -> 175.2649976 | F106: DATA | G106: 175.2649976 | H106: =IF(ISBLANK('FBPQ T4'!E98)," ",'FBPQ T4'!AE98) -> 575 | I106: 100777.3736 | J106: 132kV/EHV
C107: 33 kV Switch (GM) | D107: Each | E107: =IF(ISNUMBER('FBPQ C2'!J99),'FBPQ C2'!J99,IF(ISNUMBER('FBPQ C2'!I99),'FBPQ C2'!I99,"")) -> 0 | F107: DATA | G107: 0 | H107: =IF(ISBLANK('FBPQ T4'!E99)," ",'FBPQ T4'!AE99) -> 0 | I107: 0 | J107: 132kV/EHV
C108: 33 kV Switch (PM) | D108: Each | E108: =IF(ISNUMBER('FBPQ C2'!J100),'FBPQ C2'!J100,IF(ISNUMBER('FBPQ C2'!I100),'FBPQ C2'!I100,"")) -> 0 | F108: DATA | G108: 0 | H108: =IF(ISBLANK('FBPQ T4'!E100)," ",'FBPQ T4'!AE100) -> 0 | I108: 0 | J108: 132kV/EHV
C109: 33 kV RMU | D109: Each | E109: =IF(ISNUMBER('FBPQ C2'!J101),'FBPQ C2'!J101,IF(ISNUMBER('FBPQ C2'!I101),'FBPQ C2'!I101,"")) -> 557.5956521 | F109: DATA | G109: 557.5956521 | H109: =IF(ISBLANK('FBPQ T4'!E101)," ",'FBPQ T4'!AE101) -> 54 | I109: 30110.16521 | J109: 132kV/EHV
C110: 33 kV Switchgear - Other | D110: Each | E110: =E106 -> 175.2649976 | F110: DATA | G110: 175.2649976 | H110: =IF(ISBLANK('FBPQ T4'!E102)," ",'FBPQ T4'!AE102) -> 2044 | I110: 358241.6551 | J110: EHV/HV
C111: 66 KV CB (ID & OD) | D111: Each | E111: =IF(ISNUMBER('FBPQ C2'!J103),'FBPQ C2'!J103,IF(ISNUMBER('FBPQ C2'!I103),'FBPQ C2'!I103,"")) -> 661.1887091 | F111: DATA | G111: 661.1887091 | H111: =IF(ISBLANK('FBPQ T4'!E103)," ",'FBPQ T4'!AE103) -> 0 | I111: 0 | J111: 132kV/EHV
C112: 66 KV Switchgear - Other | D112: Each | E112: =IF(ISNUMBER('FBPQ C2'!J104),'FBPQ C2'!J104,IF(ISNUMBER('FBPQ C2'!I104),'FBPQ C2'!I104,"")) ->  | F112: DATA | H112: =IF(ISBLANK('FBPQ T4'!E104)," ",'FBPQ T4'!AE104) -> 0 | J112: EHV/HV
E113: =IF(ISNUMBER('FBPQ C2'!J105),'FBPQ C2'!J105,IF(ISNUMBER('FBPQ C2'!I105),'FBPQ C2'!I105,"")) ->  | G113: 0 | H113: =IF(ISBLANK('FBPQ T4'!E105)," ",'FBPQ T4'!AE105) -> 
B114: Transformers | E114: =IF(ISNUMBER('FBPQ C2'!J106),'FBPQ C2'!J106,IF(ISNUMBER('FBPQ C2'!I106),'FBPQ C2'!I106,"")) ->  | G114: 0 | H114: =IF(ISBLANK('FBPQ T4'!E106)," ",'FBPQ T4'!AE106) -> 
C115: 33 kV Transformer (PM) | D115: Each | E115: =IF(ISNUMBER('FBPQ C2'!J107),'FBPQ C2'!J107,IF(ISNUMBER('FBPQ C2'!I107),'FBPQ C2'!I107,"")) -> 504.5945532 | F115: DATA | G115: 504.5945532 | H115: =IF(ISBLANK('FBPQ T4'!E107)," ",'FBPQ T4'!AE107) -> 0 | I115: 0 | J115: EHV/HV
C116: 33 kV Transformer (GM) | D116: Each | E116: =IF(ISNUMBER('FBPQ C2'!J108),'FBPQ C2'!J108,IF(ISNUMBER('FBPQ C2'!I108),'FBPQ C2'!I108,"")) -> 541.9362365 | F116: DATA | G116: =IF(ISNUMBER(E116),E116,IF(H116>0,F116," ")) -> 541.9362365 | H116: =IF(ISBLANK('FBPQ T4'!E108)," ",'FBPQ T4'!AE108) -> 717 | I116: 388568.2816 | J116: EHV/HV
C117: 33 kV AuxiliaryTransfomer | D117: Each | E117: 11.32296204 | F117: DATA | G117: 11.32296204 | H117: =IF(ISBLANK('FBPQ T4'!E109)," ",'FBPQ T4'!AE109) -> 651 | I117: 7371.24829 | J117: EHV/HV
C118: 66 kV Transformer | D118: Each | E118: =IF(ISNUMBER('FBPQ C2'!J110),'FBPQ C2'!J110,IF(ISNUMBER('FBPQ C2'!I110),'FBPQ C2'!I110,"")) -> 2117.514359 | F118: DATA | G118: 2117.514359 | H118: =IF(ISBLANK('FBPQ T4'!E110)," ",'FBPQ T4'!AE110) -> 0 | I118: 0 | J118: EHV/HV
C119: 66 kV AuxiliaryTransfomer | D119: Each | E119: =IF(ISNUMBER('FBPQ C2'!J111),'FBPQ C2'!J111,IF(ISNUMBER('FBPQ C2'!I111),'FBPQ C2'!I111,"")) ->  | F119: DATA | H119: =IF(ISBLANK('FBPQ T4'!E111)," ",'FBPQ T4'!AE111) -> 0 | J119: EHV/HV
E120: =IF(ISNUMBER('FBPQ C2'!J112),'FBPQ C2'!J112,IF(ISNUMBER('FBPQ C2'!I112),'FBPQ C2'!I112,"")) ->  | G120: 0 | H120: =IF(ISBLANK('FBPQ T4'!E112)," ",'FBPQ T4'!AE112) -> 
A121: 132kV Network | E121: =IF(ISNUMBER('FBPQ C2'!J113),'FBPQ C2'!J113,IF(ISNUMBER('FBPQ C2'!I113),'FBPQ C2'!I113,"")) ->  | G121: 0 | H121: =IF(ISBLANK('FBPQ T4'!E113)," ",'FBPQ T4'!AE113) -> 
B122: Overhead lines | E122: =IF(ISNUMBER('FBPQ C2'!J114),'FBPQ C2'!J114,IF(ISNUMBER('FBPQ C2'!I114),'FBPQ C2'!I114,"")) ->  | G122: 0 | H122: =IF(ISBLANK('FBPQ T4'!E114)," ",'FBPQ T4'!AE114) -> 
C123: 132kV OHL Conductor (Pole Line) | D123: km | E123: =IF(ISNUMBER('FBPQ C2'!J115),'FBPQ C2'!J115,IF(ISNUMBER('FBPQ C2'!I115),'FBPQ C2'!I115,"")) -> 677.3299528 | F123: DATA | G123: 677.3299528 | H123: =IF(ISBLANK('FBPQ T4'!E115)," ",'FBPQ T4'!AE115) -> 138 | I123: 93471.53349 | J123: 132kV
C124: 132kV OHL Conductor (Tower Line) | D124: km | E124: =IF(ISNUMBER('FBPQ C2'!J116),'FBPQ C2'!J116,IF(ISNUMBER('FBPQ C2'!I116),'FBPQ C2'!I116,"")) -> 1163.976407 | F124: DATA | G124: 1163.976407 | H124: =IF(ISBLANK('FBPQ T4'!E116)," ",'FBPQ T4'!AE116) -> 2246 | I124: 2614291.009 | J124: 132kV
E125: =IF(ISNUMBER('FBPQ C2'!J117),'FBPQ C2'!J117,IF(ISNUMBER('FBPQ C2'!I117),'FBPQ C2'!I117,"")) ->  | G125: 0 | H125: =IF(ISBLANK('FBPQ T4'!E117)," ",'FBPQ T4'!AE117) -> 
B126: Overhead lines - Support | E126: =IF(ISNUMBER('FBPQ C2'!J118),'FBPQ C2'!J118,IF(ISNUMBER('FBPQ C2'!I118),'FBPQ C2'!I118,"")) ->  | G126: 0 | H126: =IF(ISBLANK('FBPQ T4'!E118)," ",'FBPQ T4'!AE118) -> 
C127: 132kV Pole | D127: Each | E127: =IF(ISNUMBER('[8]FBPQ C2'!K119),'[8]FBPQ C2'!K119,IF(ISNUMBER('[8]FBPQ C2'!I119),'[8]FBPQ C2'!I119,"")) -> 0 | F127: DATA | G127: 0 | H127: =IF(ISBLANK('FBPQ T4'!E119)," ",'FBPQ T4'!AE119) -> 56 | I127: 0 | J127: 132kV
C128: 132kV Tower | D128: Each | E128: =IF(ISNUMBER('[8]FBPQ C2'!K120),'[8]FBPQ C2'!K120,IF(ISNUMBER('[8]FBPQ C2'!I120),'[8]FBPQ C2'!I120,"")) -> 0 | F128: DATA | G128: 0 | H128: =IF(ISBLANK('FBPQ T4'!E120)," ",'FBPQ T4'!AE120) -> 4562 | I128: 0 | J128: 132kV
C129: 132kV Fittings (Tower Line) | D129: Each | E129: =IF(ISNUMBER('[8]FBPQ C2'!K121),'[8]FBPQ C2'!K121,IF(ISNUMBER('[8]FBPQ C2'!I121),'[8]FBPQ C2'!I121,"")) -> 0 | F129: DATA | G129: 0 | H129: =IF(ISBLANK('FBPQ T4'!E121)," ",'FBPQ T4'!AE121) -> 9124 | I129: 0 | J129: 132kV
E130: =IF(ISNUMBER('FBPQ C2'!J122),'FBPQ C2'!J122,IF(ISNUMBER('FBPQ C2'!I122),'FBPQ C2'!I122,"")) ->  | G130: 0 | H130: =IF(ISBLANK('FBPQ T4'!E122)," ",'FBPQ T4'!AE122) -> 
B131: Underground cables (kms) | E131: =IF(ISNUMBER('FBPQ C2'!J123),'FBPQ C2'!J123,IF(ISNUMBER('FBPQ C2'!I123),'FBPQ C2'!I123,"")) ->  | G131: 0 | H131: =IF(ISBLANK('FBPQ T4'!E123)," ",'FBPQ T4'!AE123) -> 
C132: 132kV UG Cable (Non Pressurised) | D132: km | E132: =IF(ISNUMBER('FBPQ C2'!J124),'FBPQ C2'!J124,IF(ISNUMBER('FBPQ C2'!I124),'FBPQ C2'!I124,"")) -> 1174.456169 | F132: DATA | G132: 1174.456169 | H132: =IF(ISBLANK('FBPQ T4'!E124)," ",'FBPQ T4'!AE124) -> 42 | I132: 49327.15911 | J132: 132kV
C133: 132kV UG Cable (Oil) | D133: km | E133: =IF(ISNUMBER('FBPQ C2'!J125),'FBPQ C2'!J125,IF(ISNUMBER('FBPQ C2'!I125),'FBPQ C2'!I125,"")) -> 1174.456169 | F133: DATA | G133: 1174.456169 | H133: =IF(ISBLANK('FBPQ T4'!E125)," ",'FBPQ T4'!AE125) -> 164 | I133: 192610.8118 | J133: 132kV
C134: 132kV UG Cable (Gas) | D134: km | E134: =IF(ISNUMBER('FBPQ C2'!J126),'FBPQ C2'!J126,IF(ISNUMBER('FBPQ C2'!I126),'FBPQ C2'!I126,"")) -> 0 | F134: DATA | G134: 0 | H134: =IF(ISBLANK('FBPQ T4'!E126)," ",'FBPQ T4'!AE126) -> 0 | I134: 0 | J134: 132kV
E135: =IF(ISNUMBER('FBPQ C2'!J127),'FBPQ C2'!J127,IF(ISNUMBER('FBPQ C2'!I127),'FBPQ C2'!I127,"")) ->  | G135: 0 | H135: =IF(ISBLANK('FBPQ T4'!E127)," ",'FBPQ T4'!AE127) -> 
B136: Submarine cables (kms) | E136: =IF(ISNUMBER('FBPQ C2'!J128),'FBPQ C2'!J128,IF(ISNUMBER('FBPQ C2'!I128),'FBPQ C2'!I128,"")) ->  | G136: 0 | H136: =IF(ISBLANK('FBPQ T4'!E128)," ",'FBPQ T4'!AE128) -> 
C137: 132 kV Sub Cable | D137: km | E137: =IF(ISNUMBER('FBPQ C2'!J129),'FBPQ C2'!J129,IF(ISNUMBER('FBPQ C2'!I129),'FBPQ C2'!I129,"")) -> 0 | F137: DATA | G137: 0 | H137: =IF(ISBLANK('FBPQ T4'!E129)," ",'FBPQ T4'!AE129) -> 0 | I137: 0 | J137: 132kV
E138: =IF(ISNUMBER('FBPQ C2'!J130),'FBPQ C2'!J130,IF(ISNUMBER('FBPQ C2'!I130),'FBPQ C2'!I130,"")) ->  | G138: 0 | H138: =IF(ISBLANK('FBPQ T4'!E130)," ",'FBPQ T4'!AE130) -> 
B139: Switchgear | E139: =IF(ISNUMBER('FBPQ C2'!J131),'FBPQ C2'!J131,IF(ISNUMBER('FBPQ C2'!I131),'FBPQ C2'!I131,"")) ->  | G139: 0 | H139: =IF(ISBLANK('FBPQ T4'!E131)," ",'FBPQ T4'!AE131) -> 
C140: 132 kV CB (ID & OD) | D140: Each | E140: =IF(ISNUMBER('FBPQ C2'!J132),'FBPQ C2'!J132,IF(ISNUMBER('FBPQ C2'!I132),'FBPQ C2'!I132,"")) -> 1048.337645 | F140: DATA | G140: 1048.337645 | H140: =IF(ISBLANK('FBPQ T4'!E132)," ",'FBPQ T4'!AE132) -> 245 | I140: 256842.7231 | J140: 132kV
C141: 132 kV Switchgear (other) | D141: Each | E141: =E140 -> 1048.337645 | F141: DATA | G141: 1048.337645 | H141: =IF(ISBLANK('FBPQ T4'!E133)," ",'FBPQ T4'!AE133) -> 1662 | I141: 1742337.167 | J141: 132kV
E142: =IF(ISNUMBER('FBPQ C2'!J134),'FBPQ C2'!J134,IF(ISNUMBER('FBPQ C2'!I134),'FBPQ C2'!I134,"")) ->  | G142: 0 | H142: =IF(ISBLANK('FBPQ T4'!E134)," ",'FBPQ T4'!AE134) -> 
B143: Transformers | E143: =IF(ISNUMBER('FBPQ C2'!J135),'FBPQ C2'!J135,IF(ISNUMBER('FBPQ C2'!I135),'FBPQ C2'!I135,"")) ->  | G143: 0 | H143: =IF(ISBLANK('FBPQ T4'!E135)," ",'FBPQ T4'!AE135) -> 
C144: 132 kV Transformer | D144: Each | E144: =IF(ISNUMBER('FBPQ C2'!J136),'FBPQ C2'!J136,IF(ISNUMBER('FBPQ C2'!I136),'FBPQ C2'!I136,"")) -> 2117.514359 | F144: DATA | G144: 2117.514359 | H144: =IF(ISBLANK('FBPQ T4'!E136)," ",'FBPQ T4'!AE136) -> 191 | I144: 404445.2426 | J144: 132kV/EHV
C145: 132 kV AuxiliaryTransfomer | D145: Each | E145: =E76 -> 11.32296204 | F145: DATA | G145: 11.32296204 | H145: =IF(ISBLANK('FBPQ T4'!E137)," ",'FBPQ T4'!AE137) -> 336 | I145: 3804.515246 | J145: 132kV/EHV
E146: =IF(ISNUMBER('FBPQ C2'!J138),'FBPQ C2'!J138,IF(ISNUMBER('FBPQ C2'!I138),'FBPQ C2'!I138,"")) ->  | G146: 0 | H146: =IF(ISBLANK('FBPQ T4'!E138)," ",'FBPQ T4'!AE138) -> 
A147: Tele-control / SCADA | E147: =IF(ISNUMBER('FBPQ C2'!J139),'FBPQ C2'!J139,IF(ISNUMBER('FBPQ C2'!I139),'FBPQ C2'!I139,"")) ->  | G147: 0 | H147: =IF(ISBLANK('FBPQ T4'!E139)," ",'FBPQ T4'!AE139) -> 
B148: Primary substation | E148: =IF(ISNUMBER('FBPQ C2'!J140),'FBPQ C2'!J140,IF(ISNUMBER('FBPQ C2'!I140),'FBPQ C2'!I140,"")) ->  | G148: =IF(ISNUMBER(E148),E148,IF(H148>0,F148," ")) -> 0 | H148: =IF(ISBLANK('FBPQ T4'!E140)," ",'FBPQ T4'!AE140) -> 
C149: 132 kV/EHV RTU (PM) | D149: Each | E149: 62.645 | F149: DATA | G149: 62.645 | H149: =IF(ISBLANK('FBPQ T4'!E141)," ",'FBPQ T4'!AE141) -> 2 | I149: =IF(ISERROR(G149*H149)," ",G149*H149) -> 125.29 | J149: EHV/HV
C150: 132 kV/EHV RTU (GM) | D150: Each | E150: 62.645 | F150: DATA | G150: 62.645 | H150: =IF(ISBLANK('FBPQ T4'!E142)," ",'FBPQ T4'!AE142) -> 484 | I150: 30320.18 | J150: EHV/HV
E151: =IF(ISNUMBER('FBPQ C2'!J143),'FBPQ C2'!J143,IF(ISNUMBER('FBPQ C2'!I143),'FBPQ C2'!I143,"")) ->  | G151: 0 | H151: =IF(ISBLANK('FBPQ T4'!E143)," ",'FBPQ T4'!AE143) -> 
B152: Secondary substation | E152: =IF(ISNUMBER('FBPQ C2'!J144),'FBPQ C2'!J144,IF(ISNUMBER('FBPQ C2'!I144),'FBPQ C2'!I144,"")) ->  | G152: 0 | H152: =IF(ISBLANK('FBPQ T4'!E144)," ",'FBPQ T4'!AE144) -> 
C153: HV RTU (PM) | D153: Each | E153: 62.645 | F153: DATA | G153: 62.645 | H153: =IF(ISBLANK('FBPQ T4'!E145)," ",'FBPQ T4'!AE145) -> 1491 | I153: =IF(ISERROR(G153*H153)," ",G153*H153) -> 93403.695 | J153: HV/LV
C154: HV RTU (GM) | D154: Each | E154: 62.645 | F154: DATA | G154: 62.645 | H154: =IF(ISBLANK('FBPQ T4'!E146)," ",'FBPQ T4'!AE146) -> 751 | I154: 47046.395 | J154: HV/LV
E155: =IF(ISNUMBER('FBPQ C2'!J147),'FBPQ C2'!J147,IF(ISNUMBER('FBPQ C2'!I147),'FBPQ C2'!I147,"")) ->  | G155: 0 | H155: =IF(ISBLANK('FBPQ T4'!E147)," ",'FBPQ T4'!AE147) -> 
E156: =IF(ISNUMBER('FBPQ C2'!J148),'FBPQ C2'!J148,IF(ISNUMBER('FBPQ C2'!I148),'FBPQ C2'!I148,"")) ->  | G156: 0 | H156: =IF(ISBLANK('FBPQ T4'!E148)," ",'FBPQ T4'!AE148) -> 
A157: HV network switchgear | E157: =IF(ISNUMBER('FBPQ C2'!J149),'FBPQ C2'!J149,IF(ISNUMBER('FBPQ C2'!I149),'FBPQ C2'!I149,"")) ->  | G157: 0 | H157: =IF(ISBLANK('FBPQ T4'!E149)," ",'FBPQ T4'!AE149) -> 
C158: 6.6/11 kV CB (GM) | E158: =IF(ISNUMBER('FBPQ C2'!J150),'FBPQ C2'!J150,IF(ISNUMBER('FBPQ C2'!I150),'FBPQ C2'!I150,"")) ->  | G158: 0 | H158: =IF(ISBLANK('FBPQ T4'!E150)," ",'FBPQ T4'!AE150) -> 
C159: Primary | D159: Each | E159: =IF(ISNUMBER('FBPQ C2'!J151),'FBPQ C2'!J151,IF(ISNUMBER('FBPQ C2'!I151),'FBPQ C2'!I151,"")) -> 29.27106145 | F159: DATA | G159: 29.27106145 | H159: =IF(ISBLANK('FBPQ T4'!E151)," ",'FBPQ T4'!AE151) -> 
C160: Distribution | D160: Each | E160: =IF(ISNUMBER('FBPQ C2'!J152),'FBPQ C2'!J152,IF(ISNUMBER('FBPQ C2'!I152),'FBPQ C2'!I152,"")) -> 7.468336667 | F160: DATA | G160: 7.468336667 | H160: =IF(ISBLANK('FBPQ T4'!E152)," ",'FBPQ T4'!AE152) -> 
C161: 20 kV Switch (GM) | E161: =IF(ISNUMBER('FBPQ C2'!J153),'FBPQ C2'!J153,IF(ISNUMBER('FBPQ C2'!I153),'FBPQ C2'!I153,"")) ->  | F161: DATA | G161: DATA | H161: =IF(ISBLANK('FBPQ T4'!E153)," ",'FBPQ T4'!AE153) -> 
C162: Primary | D162: Each | E162: =IF(ISNUMBER('FBPQ C2'!J154),'FBPQ C2'!J154,IF(ISNUMBER('FBPQ C2'!I154),'FBPQ C2'!I154,"")) -> 0 | F162: DATA | G162: 0 | H162: =IF(ISBLANK('FBPQ T4'!E154)," ",'FBPQ T4'!AE154) -> 
C163: Distribution | D163: Each | E163: =IF(ISNUMBER('FBPQ C2'!J155),'FBPQ C2'!J155,IF(ISNUMBER('FBPQ C2'!I155),'FBPQ C2'!I155,"")) -> 0 | F163: DATA | G163: 0 | H163: =IF(ISBLANK('FBPQ T4'!E155)," ",'FBPQ T4'!AE155) -> 
H164: Total MEAV | I164: =SUM(I18:I163) -> 18235705.16

Sheet Calc-Net capex
A1: Total Net Capex | F1: Index
B3: Total Net Capex 2005/06 -2014/15 LV, HV, EHV, 132kV split | F3: Total Net Capex 2005/06 -2014/15 LV, LV/HV, HV, EHV, 132kV split | J3: IP Appendix 6 Table 5 Reductions to EHV | N3: IP Appendix 7 Reductions to EHV
B4: Sum connecions/reinforcement/replacement capex -see below | F4: Sum connecions/reinforcement/replacement capex -see below | J4: Appendix 6 Table 5 EHV & 132 | N4: Appendix 7 Table 18
C5: £m | D5: % of Total | G5: £m | H5: % of Total | J5: EHV | L5: =K5*(F21/(F21+F22)) -> 0 | O5: £m
B6: LV | C6: =C19+F19+I19+C28+F28-O6 -> 128.0394482 | D6: =C6/SUM($C$6:$C$9) -> 0.1359633262 | F6: LV | G6: =+C39+F39+I39+C49+F49-O6 -> 128.0394482 | H6: =G6/SUM($G$6:$G$10) -> 0.1359633262 | J6: 132kV | L6: =K5*(F22/(F21+F22)) -> 0 | N6: LV
B7: HV | C7: =C20+F20+I20+C29+F29-O7-O8 -> 312.434955 | D7: =C7/SUM($C$6:$C$9) -> 0.3317703748 | F7: LV/HV | G7: =+C40+F40+I40+C50+F50-O7 -> 56.26733398 | H7: =G7/SUM($G$6:$G$10) -> 0.05974950684 | N7: LV/HV
B8: EHV | C8: =C21+F21+I21+C30+F30-L5-O9 -> 201.1131533 | D8: =C8/SUM($C$6:$C$9) -> 0.2135592871 | F8: HV | G8: =+C41+F41+I41+C51+F51-O8 -> 256.167621 | H8: =G8/SUM($G$6:$G$10) -> 0.2720208679 | N8: HV
B9: 132 kV | C9: =C22+F22+I22+C31+F31-L6-O10 -> 300.1329188 | D9: =C9/SUM($C$6:$C$9) -> 0.3187070119 | F9: EHV | G9: =+C42+F42+I42+C52+F52-L5-O9 -> 201.1131533 | H9: =G9/SUM($G$6:$G$10) -> 0.2135592871 | N9: EHV
F10: 132 kV | G10: =+C43+F43+I43+C53+F53-L6-O10 -> 300.1329188 | H10: =G10/SUM($G$6:$G$10) -> 0.3187070119 | N10: 132 kV
A13: Connection/Reinforcement/Replacement Capex LV, HV, EHV, 132kV split
B16: Connections Capex 2005/06 -2014/15 (£m) | E16: General reinforcement Capex 2005/06 -2014/15 (£m) | H16: Fault reinforcement Capex 2005/06 -2014/15 (£m)
B17: Connections spend minus customer contributions (from FBPQ LR1) | E17: (from FBPQ LR4) | H17: (from FBPQ LR6)
A19: c32 | B19: LV | C19: 41.13256601 | E19: LV | F19: =SUM('FBPQ LR4'!D11:M11) -> 10.29481407 | H19: LV | I19: =SUM('FBPQ LR6'!C28:L28) -> 0
A20: c33 | B20: HV | C20: 100.3891557 | E20: HV | F20: =SUM('FBPQ LR4'!D12:M12) -> 41.56989271 | H20: HV | I20: =SUM('FBPQ LR6'!C29:L29) -> 2.049749313
A21: c34 | B21: EHV | C21: 0.3967625127 | E21: EHV | F21: =SUM('FBPQ LR4'!D13:M13) -> 95.08951791 | H21: EHV | I21: =SUM('FBPQ LR6'!C30:L30) -> 10.92843292
A22: c35 | B22: 132 kV | C22: 0 | E22: 132 kV | F22: =SUM('FBPQ LR4'!D14:M14) -> 157.4934471 | H22: 132 kV | I22: =SUM('FBPQ LR6'!C31:L31) -> 10.13729917
B25: Replacement Capex 2005/06 -2014/15 (£m) | E25: ESQCR 2005/06 -2014/15 (£m)
B26: (from FBPQ NL1) | E26: (from FBPQ NL9)
B28: LV | C28: =SUM('FBPQ NL1 0309'!D10:M16) -> 76.6120681 | E28: LV | F28: =SUM('NL9 - Legal & Safety'!D33:M33,'NL9 - Legal & Safety'!D42:M42) -> 0
B29: HV | C29: =SUM('FBPQ NL1 0309'!D17:M22) -> 168.4261573 | E29: HV | F29: =SUM('NL9 - Legal & Safety'!D34:M34,'NL9 - Legal & Safety'!D43:M43) -> 0
B30: EHV | C30: =SUM('FBPQ NL1 0309'!D23:M28) -> 94.69843999 | E30: EHV | F30: =SUM('NL9 - Legal & Safety'!D35:M35,'NL9 - Legal & Safety'!D44:M44) -> 0
B31: 132 kV | C31: =SUM('FBPQ NL1 0309'!D29:M34) -> 132.5021725 | E31: 132 kV | F31: =SUM('NL9 - Legal & Safety'!D36:M36,'NL9 - Legal & Safety'!D45:M45) -> 0
A33: Connection/Reinforcement/Replacement Capex LV, LV/HV, HV, EHV, 132kV split
B36: Connections Capex 2005/06 -2014/15 (£m) | E36: General reinforcement Capex 2005/06 -2014/15 (£m) | H36: Fault reinforcement Capex 2005/06 -2014/15 (£m)
B37: Connections spend minus customer contributions (from FBPQ LR1) | E37: (from FBPQ LR4) | H37: (from FBPQ LR6)
A39: c20 | B39: LV | C39: 41.13256601 | E39: LV | F39: =SUM('FBPQ LR4'!D11:M11) -> 10.29481407 | H39: LV | I39: =SUM('FBPQ LR6'!C28:L28) -> 0
A40: c21 | B40: LV/HV | C40: 19.84513087 | D40: allocated in proportion to repex | E40: LV/HV | F40: =SUM('FBPQ LR4'!D12:M12)*(C55) -> 8.217620272 | G40: allocated in proportion to repex | H40: LV/HV | I40: =SUM('FBPQ LR6'!C29:L29)*(C55) -> 0.4051985802 | J40: allocated in proportion to repex
A41: c22 | B41: HV | C41: 80.54402482 | E41: HV | F41: =SUM('FBPQ LR4'!D12:M12)*(1-C55) -> 33.35227243 | H41: HV | I41: =SUM('FBPQ LR6'!C29:L29)*(1-C55) -> 1.644550732
A42: c23 | B42: EHV | C42: 0.3967625127 | E42: EHV | F42: =SUM('FBPQ LR4'!D13:M13) -> 95.08951791 | H42: EHV | I42: =SUM('FBPQ LR6'!C30:L30) -> 10.92843292
A43: c24 | B43: 132 kV | C43: 0 | E43: 132 kV | F43: =SUM('FBPQ LR4'!D14:M14) -> 157.4934471 | H43: 132 kV | I43: =SUM('FBPQ LR6'!C31:L31) -> 10.13729917
B46: Replacement Capex 2005/06 -2014/15 (£m) | E46: ESQCR 2005/06 -2014/15 (£m) | H46: ESQCR 2005/06 -2014/15 (£m)
B47: (from FBPQ NL1) | E47: (from FBPQ NL9) | H47: NL1 + NL9
B49: LV | C49: =SUM('FBPQ NL1 0309'!D10:M16) -> 76.6120681 | E49: LV | F49: =SUM('NL9 - Legal & Safety'!D33:M33,'NL9 - Legal & Safety'!D42:M42) -> 0 | H49: LV | I49: =F49+C49 -> 76.6120681
B50: LV/HV | C50: =SUM('FBPQ NL1 0309'!D21:M22) -> 27.79938426 | D50: HV/LV sub/trans costs | E50: LV/HV | F50: =SUM('NL9 - Legal & Safety'!D34:M34,'NL9 - Legal & Safety'!D43:M43)*C55 -> 0 | H50: LV/HV | I50: =F50+C50 -> 27.79938426
B51: HV | C51: =SUM('FBPQ NL1 0309'!D17:M20) -> 140.626773 | E51: HV | F51: =SUM('NL9 - Legal & Safety'!D34:M34,'NL9 - Legal & Safety'!D43:M43)*(1-C55) -> 0 | H51: HV | I51: =F51+C51 -> 140.626773
B52: EHV | C52: =SUM('FBPQ NL1 0309'!D23:M28) -> 94.69843999 | E52: EHV | F52: =SUM('NL9 - Legal & Safety'!D35:M35,'NL9 - Legal & Safety'!D44:M44) -> 0 | H52: EHV | I52: =F52+C52 -> 94.69843999
B53: 132 kV | C53: =SUM('FBPQ NL1 0309'!D29:M34) -> 132.5021725 | E53: 132 kV | F53: =SUM('NL9 - Legal & Safety'!D36:M36,'NL9 - Legal & Safety'!D45:M45) -> 0 | H53: 132 kV | I53: =F53+C53 -> 132.5021725
B55: LV/HV/(LV/HV+HV) % | C55: =C50/C51 -> 0.1976820179

Sheet Summary of revenue
C1: Summary of Revenue | J1: Index
A8: Allowed Demand Revenue (ADt) | H8: 2005/06 | I8: 2006/07 | J8: 2007/08 | K8: 2008/09 | L8: 2009/10
H9: 16 | I9: 17 | J9: 18 | K9: 19 | L9: 20
B11: Base Demand Revenue (BRt) | F11: £m | H11: 257.601727 | I11: 263.83626 | J11: 276.426855
B12: Pass through Items (PTt) | F12: £m | H12: 2.120284 | I12: -2.12095 | J12: -4.598327
B13: Incentive Revenue (Ipt) | F13: £m | H13: 9.429665 | I13: 8.56796 | J13: 26.407908
B14: Correction Factor (KDt) | F14: £m | H14: 8.56209 | I14: -5.379352 | J14: -1.480097
B16: Allowed Demand Revenue (Adt) | F16: £m | H16: 260.589586 | I16: 275.662622 | J16: 299.716533
B18: Regulated Demand Revenue (RDt) | F18: £m | H18: 255.53 | I18: 274.28 | J18: 287.86
B19: Net Movement on Revenue Provisions | F19: £m | H19: 1.83 | I19: -0.72 | J19: -3.93
B21: Over/Under Recovery | F21: £m | H21: -5.059586 | I21: -1.382622 | J21: -11.856533
A24: Allowed Network Generation Revenue (AGt)
B26: Incentivised Generation (IGt) | F26: £m | H26: 0 | I26: 0.012823 | J26: 0.042558
B27: Registered Power Zones (RPZt) | F27: £m | H27: 0 | I27: 0 | J27: 0
B28: Correction Factor (KGt) | F28: £m | H28: 0 | I28: 0 | J28: -0.003022
B30: Allowed Network Generation Revenue (AGt) | F30: £m | H30: 0 | I30: 0.012823 | J30: 0.04558
B32: Network Generation Revenue (RGt) | F32: £m | H32: 0 | I32: 0.01 | J32: 0.08
B34: Over/Under Recovery | F34: £m | H34: 0 | I34: -0.002823 | J34: 0.03442
A37: Metering Revenue
B38: Legacy Basic Meter Asset Provision Revenue | F38: £m | H38: 9.06 | I38: 8.98 | J38: 9.85
B39: Basic Meter Operation Revenue | F39: £m | H39: 6.738174 | I39: 4.387571 | J39: 0
H41: 15.798174 | I41: 13.367571 | J41: 9.85
A44: Excluded Services and Revenue Outside of Price Control
B45: Excluded Services | F45: £m | H45: 63.79 | I45: 67.66 | J45: 104.02
B46: Revenue Outside of Price Control | F46: £m | H46: 4.87 | I46: 4.63 | J46: 4.45
B47: De-Minimis Revenue | F47: £m | H47: 2.89 | I47: 2.57 | J47: 2.22
H49: 71.55 | I49: 74.86 | J49: 110.69

Sheet Allowed revenue -DPCR4
C1: 2004/05 | D1: 2005/6 | E1: 2006/7 | F1: 2007/8 | G1: 2008/9 | H1: 2009/10 | J1: Index
C2: (£M) | D2: (£M) | E2: (£M) | F2: (£M) | G2: (£M) | H2: (£M)
A3: 1 | B3: Opening asset value | D3: 947.9 | E3: 989.2 | F3: 1030.2 | G3: 1064.8 | H3: 1093.2
A4: 2 | B4: Total capex | D4: 117.8 | E4: 117.5 | F4: 117 | G4: 116.6 | H4: 116.4
A5: 3 | B5: Depreciation | D5: -76.5 | E5: -76.5 | F5: -82.4 | G5: -88.2 | H5: -94.1
A6: 4 | B6: Closing asset value | D6: 989.2 | E6: 1030.2 | F6: 1064.8 | G6: 1093.2 | H6: 1115.6
A7: 5 | B7: Present value of opening / closing RAV | D7: 947.9 | H7: 851.7
A8: 6 | B8: 5 Year movement in closing RAV | H8: 96.2
A9: ALLOWED ITEMS
A10: 7 | B10: Operating costs (excluding pensions) | D10: 75.2 | E10: 77.7 | F10: 78.2 | G10: 76.9 | H10: 76.2
A11: 8 | B11: Capital expenditure (excluding pensions) | D11: 110.3 | E11: 109.9 | F11: 109.4 | G11: 109 | H11: 108.8
A12: 9 | B12: Pensions allowance | D12: 13 | E12: 13.1 | F12: 13.1 | G12: 13.1 | H12: 13.1
A13: 10 | B13: Tax allowance | D13: 27.2 | E13: 26.3 | F13: 26.4 | G13: 26.8 | H13: 26.8
A14: 11 | B14: Capex incentive scheme | D14: -0.8 | E14: 0.6 | F14: -0.6 | G14: -0.6 | H14: -0.2
A15: 12 | B15: Sliding scale additional income | D15: 1.4 | E15: 1.4 | F15: 1.5 | G15: 1.5 | H15: 1.6
A16: 13 | B16: Opex incentive / Other adjustments | D16: - | E16: - | F16: - | G16: - | H16: -
A17: 14 | B17: Quality award | D17: - | E17: - | F17: - | G17: - | H17: -
A18: 15 | B18: DPCR3 costs | D18: 1.5 | E18: - | F18: - | G18: - | H18: -
A19: 16 | B19: Total allowed items | D19: 227.7 | E19: 229 | F19: 228.1 | G19: 226.8 | H19: 226.3
A20: 17 | B20: Present value of allowed items | D20: 221.6 | E20: 211.2 | F20: 199.3 | G20: 187.7 | H20: 177.5
A21: 18 | B21: 5 year movement in closing RAV | H21: 96.2
A22: 19 | B22: TOTAL PRESENT VALUE OVER 5 YEARS | H22: 1093.5
A23: REVENUE
A24: 20 | B24: Revenue index | D24: 1 | E24: 1.009 | F24: 1.02 | G24: 1.033 | H24: 1.044
A25: 21 | B25: Discounted revenue index | D25: 0.973 | E25: 0.931 | F25: 0.891 | G25: 0.855 | H25: 0.819
A26: 22 | B26: Price control revenue | C26: 256.2 | D26: 241.2 | E26: 243.4 | F26: 246.1 | G26: 249.1 | H26: 251.8
A27: 23 | B27: Excluded service revenue | D27: 3.5 | E27: 3.5 | F27: 3.5 | G27: 3.5 | H27: 3.5
A28: 24 | B28: Total revenue | D28: 244.7 | E28: 246.9 | F28: 249.6 | G28: 252.6 | H28: 255.3
A29: 25 | B29: Present value of total revenue | D29: 238.2 | E29: 227.7 | F29: 218.1 | G29: 209.2 | H29: 200.3
A30: 26 | B30: TOTAL PRESENT VALUE OVER 5 YEARS | H30: 1093.5
A32: Take these data from the February 2005 Ofgem document (link below), not the November 2004 final proposals.
A33: http://www.ofgem.gov.uk/Markets/RetMkts/Metrng/Metering/Documents1/9745-5405.pdf

Sheet FBPQ T4
A1: Main Forecast Business Plan DPCR5 | G1: Index
A3: T4 - Volume Summary
B5: Total Asset Register Movement
B7: Asset categories | F7: Opening Balance DCPR4 | G7: 2005/06 | L7: 2006/07 | Q7: 2007/08 | V7: 2008/09 | AA7: 2009/10
G8: Assets removed | I8: Assets Installed | K8: Closing Balance | L8: Assets removed | N8: Assets Installed | P8: Closing Balance | Q8: Assets removed | S8: Assets Installed | U8: Closing Balance | V8: Assets removed | X8: Assets Installed | Z8: Closing Balance | AA8: Assets removed | AC8: Assets Installed | AE8: Closing Balance DPCR4
G9: LRE | H9: NLRE | I9: LRE | J9: NLRE | K9: 2005/06 | L9: LRE | M9: NLRE | N9: LRE | O9: NLRE | P9: 2006/07 | Q9: LRE | R9: NLRE | S9: LRE | T9: NLRE | U9: 2007/08 | V9: LRE | W9: NLRE | X9: LRE | Y9: NLRE | Z9: 2008/09 | AA9: LRE | AB9: NLRE | AC9: LRE | AD9: NLRE | AE9: 2009/10
C10: LV Network
D11: Overhead lines - Conductor
E12: LV Main (OHL) | F12: 4914 | G12: 22 | H12: 8 | I12: 214 | J12: 4 | K12: 5102 | L12: 62 | M12: 20 | N12: 9 | O12: 10 | P12: 5039 | Q12: 0 | R12: 21 | S12: 35 | T12: 18 | U12: 5071 | V12: 0 | W12: 45.7 | X12: 27.6 | Y12: 17.3 | Z12: 5070.2 | AA12: 0 | AB12: 148.3 | AC12: 25.5 | AD12: 64.3 | AE12: 5011.7
E13: LV Service (OHL) | F13: 135999 | G13: 911 | H13: 1556 | I13: 48 | J13: 1633 | K13: 135213 | L13: 97 | M13: 1478 | N13: 77 | O13: 565 | P13: 134280 | Q13: 2469 | R13: 1419 | S13: 437 | T13: 732 | U13: 131561 | V13: 1942 | W13: 2476 | X13: 358 | Y13: 637 | Z13: 128138 | AA13: 1785 | AB13: 3377 | AC13: 371 | AD13: 1217 | AE13: 124564
D15: Overhead lines - Support
E16: LV Support | F16: 123846 | G16: 134 | H16: 0 | I16: 61 | J16: 0 | K16: 123773 | L16: 228 | M16: 0 | N16: 335 | O16: 0 | P16: 123880 | Q16: 1316 | R16: 910 | S16: 1127 | T16: 910 | U16: 123691 | V16: 1035 | W16: 570 | X16: 902 | Y16: 142 | Z16: 123130 | AA16: 951 | AB16: 1458 | AC16: 872 | AD16: 400 | AE16: 121993
D18: Underground cables
E19: LV Main (UG Consac) | F19: 11 | G19: 0 | H19: 0 | I19: 0 | J19: 0 | K19: 11 | L19: 0 | M19: 0 | N19: 0 | O19: 0 | P19: 11 | Q19: 0 | R19: 0 | S19: 0 | T19: 0 | U19: 11 | V19: 0 | W19: 0 | X19: 0 | Y19: 0 | Z19: 11 | AA19: 0 | AB19: 0 | AC19: 0 | AD19: 0 | AE19: 11
E20: LV Main (UG Plastic) | F20: 13223 | G20: 0 | H20: 0 | I20: 655 | J20: 39 | K20: 13917 | L20: 0 | M20: 2 | N20: 310 | O20: 75 | P20: 14300 | Q20: 0 | R20: 0 | S20: 305 | T20: 50 | U20: 14655 | V20: 0 | W20: 1.4 | X20: 210.3 | Y20: 74.6 | Z20: 14938.5 | AA20: 0 | AB20: 1 | AC20: 196 | AD20: 78 | AE20: 15211.5
E21: LV Main (UG Paper) | F21: 18395 | G21: 0 | H21: 7 | I21: 0 | J21: 0 | K21: 18388 | L21: 0 | M21: 31 | N21: 0 | O21: 0 | P21: 18357 | Q21: 0 | R21: 33 | S21: 0 | T21: 0 | U21: 18324 | V21: 0 | W21: 4 | X21: 0 | Y21: 0 | Z21: 18320 | AA21: 0 | AB21: 3 | AC21: 0 | AD21: 0 | AE21: 18317
E22: LV Service (UG) | F22: 2361332 | G22: 77 | H22: 1230 | I22: 27978 | J22: 1230 | K22: 2389233 | L22: 0 | M22: 1153 | N22: 23378 | O22: 2066 | P22: 2413524 | Q22: 0 | R22: 1684 | S22: 27485 | T22: 2371 | U22: 2441696 | V22: 0 | W22: 108 | X22: 20668.5 | Y22: 1787 | Z22: 2464043.5 | AA22: 0 | AB22: 262 | AC22: 18931.6 | AD22: 2406 | AE22: 2485119.1
D24: Switchgear
E25: LV Pillar (ID) | F25: 8541 | G25: 12 | H25: 49 | I25: 210 | J25: 49 | K25: 8739 | L25: 43 | M25: 105 | N25: 392 | O25: 105 | P25: 9088 | Q25: 0 | R25: 94 | S25: 259 | T25: 103 | U25: 9356 | V25: 0 | W25: 283 | X25: 204 | Y25: 143 | Z25: 9420 | AA25: 0 | AB25: 116 | AC25: 188 | AD25: 104 | AE25: 9596
E26: LV Pillar (OD) | F26: 7893 | G26: 0 | H26: 0 | I26: 80 | J26: 0 | K26: 7973 | L26: 3 | M26: 36 | N26: 0 | O26: 36 | P26: 7970 | Q26: 181 | R26: 0 | S26: 136 | T26: 0 | U26: 7925 | V26: 142 | W26: 0 | X26: 63 | Y26: 0 | Z26: 7846 | AA26: 131 | AB26: 0 | AC26: 57 | AD26: 0 | AE26: 7772
E27: LV Board (WM) | F27: 2425 | G27: 0 | H27: 0 | I27: 0 | J27: 0 | K27: 2425 | L27: 43 | M27: 0 | N27: 0 | O27: 0 | P27: 2382 | Q27: 33 | R27: 0 | S27: 0 | T27: 0 | U27: 2349 | V27: 26 | W27: 0 | X27: 0 | Y27: 0 | Z27: 2323 | AA27: 24 | AB27: 0 | AC27: 0 | AD27: 0 | AE27: 2299
E28: LV UGB | F28: 27050 | G28: 0 | H28: 1 | I28: 63 | J28: 9 | K28: 27121 | L28: 0 | M28: 159 | N28: 127 | O28: 136 | P28: 27225 | Q28: 0 | R28: 330 | S28: 484 | T28: 155 | U28: 27534 | V28: 0 | W28: 340 | X28: 392 | Y28: 457 | Z28: 28043 | AA28: 0 | AB28: 33 | AC28: 391 | AD28: 123 | AE28: 28524
E29: LV Fuses (PM) | F29: 22689 | G29: 0 | H29: 0 | I29: 31 | J29: 0 | K29: 22720 | L29: 109 | M29: 0 | N29: 88 | O29: 0 | P29: 22699 | Q29: 485 | R29: 0 | S29: 484 | T29: 0 | U29: 22698 | V29: 382 | W29: 0 | X29: 380 | Y29: 0 | Z29: 22696 | AA29: 351 | AB29: 0 | AC29: 347 | AD29: 0 | AE29: 22692
E30: LV Fuses (TM) | F30: 0 | G30: 0 | H30: 0 | I30: 0 | J30: 0 | K30: 0 | L30: 0 | M30: 0 | N30: 0 | O30: 0 | P30: 0 | Q30: 0 | R30: 0 | S30: 0 | T30: 0 | U30: 0 | V30: 0 | W30: 0 | X30: 0 | Y30: 0 | Z30: 0 | AA30: 0 | AB30: 0 | AC30: 0 | AD30: 0 | AE30: 0
C32: HV network
D33: Overhead lines - Conductor
E34: 6.6/11 kV OHL (Open) | F34: 12571 | G34: 23 | H34: 22 | I34: 13 | J34: 22 | K34: 12561 | L34: 17 | M34: 43 | N34: 46 | O34: 43 | P34: 12590 | Q34: 78 | R34: 57 | S34: 60 | T34: 57 | U34: 12572 | V34: 34.3 | W34: 250.1 | X34: 26.8 | Y34: 219.4 | Z34: 12533.8 | AA34: 49.4 | AB34: 167.5 | AC34: 26 | AD34: 130.3 | AE34: 12473.2
E35: 6.6/11 kV OHL (Covered) | F35: 22 | G35: 0 | H35: 0 | I35: 0 | J35: 0 | K35: 22 | L35: 0 | M35: 0 | N35: 0 | O35: 0 | P35: 22 | Q35: 1 | R35: 0 | S35: 0 | T35: 0 | U35: 21 | V35: 0.4 | W35: 0 | X35: 0 | Y35: 0 | Z35: 20.6 | AA35: 0.6 | AB35: 0 | AC35: 0 | AD35: 0 | AE35: 20
E36: 20 kV OHL (Open) | F36: 0 | G36: 0 | H36: 0 | I36: 0 | J36: 0 | K36: 0 | L36: 0 | M36: 0 | N36: 0 | O36: 0 | P36: 0 | Q36: 0 | R36: 0 | S36: 0 | T36: 0 | U36: 0 | V36: 0 | W36: 0 | X36: 0 | Y36: 0 | Z36: 0 | AA36: 0 | AB36: 0 | AC36: 0 | AD36: 0 | AE36: 0
E37: 20 kV OHL (Covered) | F37: 0 | G37: 0 | H37: 0 | I37: 0 | J37: 0 | K37: 0 | L37: 0 | M37: 0 | N37: 0 | O37: 0 | P37: 0 | Q37: 0 | R37: 0 | S37: 0 | T37: 0 | U37: 0 | V37: 0 | W37: 0 | X37: 0 | Y37: 0 | Z37: 0 | AA37: 0 | AB37: 0 | AC37: 0 | AD37: 0 | AE37: 0
D39: Overhead lines - Support
E40: 6.6/11 kV Support | F40: 163477 | G40: 229 | H40: 225 | I40: 145 | J40: 225 | K40: 163393 | L40: 0 | M40: 233 | N40: 697 | O40: 506 | P40: 164363 | Q40: 2217 | R40: 1136 | S40: 647 | T40: 1136 | U40: 162793 | V40: 974 | W40: 1765 | X40: 525 | Y40: 1460 | Z40: 162039 | AA40: 1403 | AB40: 1533 | AC40: 509 | AD40: 1161 | AE40: 160773
E41: 20 kV Support | F41: 0 | G41: 0 | H41: 0 | I41: 0 | J41: 0 | K41: 0 | L41: 0 | M41: 0 | N41: 0 | O41: 0 | P41: 0 | Q41: 0 | R41: 0 | S41: 0 | T41: 0 | U41: 0 | V41: 0 | W41: 0 | X41: 0 | Y41: 0 | Z41: 0 | AA41: 0 | AB41: 0 | AC41: 0 | AD41: 0 | AE41: 0
D43: Underground cables (kms)
E44: 6.6/11kV UG Cable | F44: 12768 | G44: 0 | H44: 10 | I44: 122 | J44: 30 | K44: 12910 | L44: 1 | M44: 55 | N44: 184 | O44: 55 | P44: 13093 | Q44: 0 | R44: 10 | S44: 167 | T44: 38 | U44: 13288 | V44: 0 | W44: 10.8 | X44: 133 | Y44: 77.3 | Z44: 13487.5 | AA44: 0 | AB44: 14.7 | AC44: 124.7 | AD44: 76.4 | AE44: 13673.9
E45: 20kV UG Cable | F45: 0 | G45: 0 | H45: 0 | I45: 0 | J45: 0 | K45: 0 | L45: 0 | M45: 0 | N45: 0 | O45: 0 | P45: 0 | Q45: 0 | R45: 0 | S45: 0 | T45: 0 | U45: 0 | V45: 0 | W45: 0 | X45: 0 | Y45: 0 | Z45: 0 | AA45: 0 | AB45: 0 | AC45: 0 | AD45: 0 | AE45: 0
D47: Submarine cables (kms)
E48: HV Sub Cable | F48: 0 | G48: 0 | H48: 0 | I48: 0 | J48: 0 | K48: 0 | L48: 0 | M48: 0 | N48: 0 | O48: 0 | P48: 0 | Q48: 0 | R48: 0 | S48: 0 | T48: 0 | U48: 0 | W48: 0 | Y48: 0 | Z48: 0 | AB48: 0 | AD48: 0 | AE48: 0
D50: Switchgear
E51: 6.6/11 kV CB (PM) | F51: 1148 | G51: 0 | H51: 63 | I51: 0 | J51: 23 | K51: 1108 | L51: 0 | M51: 25 | N51: 0 | O51: 24 | P51: 1107 | Q51: 0 | R51: 66 | S51: 0 | T51: 56 | U51: 1097 | V51: 0 | W51: 0 | X51: 0 | Y51: 27 | Z51: 1124 | AA51: 0 | AB51: 0 | AC51: 0 | AD51: 103 | AE51: 1227
E52: 6.6/11 kV CB (GM) | F52: 7882 | G52: 0 | H52: 18 | I52: 73 | J52: 15 | K52: 7952 | L52: 0 | M52: 321 | N52: 35 | O52: 37 | P52: 7703 | Q52: 0 | R52: 344 | S52: 169 | T52: 32 | U52: 7560 | V52: 0 | W52: 8 | X52: 135 | Y52: 36 | Z52: 7723 | AA52: 0 | AB52: 23 | AC52: 128 | AD52: 40 | AE52: 7868
E53: 6.6/11 kV Switch (PM) | F53: 195 | G53: 0 | H53: 0 | I53: 0 | J53: 41 | K53: 236 | L53: 0 | M53: 6 | N53: 0 | O53: 28 | P53: 258 | Q53: 0 | R53: 0 | S53: 0 | T53: 36 | U53: 294 | V53: 0 | W53: 387 | X53: 0 | Y53: 418 | Z53: 325 | AA53: 0 | AB53: 72 | AC53: 0 | AD53: 134 | AE53: 387
E54: 6.6/11 kV Switch (GM) | F54: 11859 | G54: 0 | H54: 162 | I54: 47 | J54: 53 | K54: 11797 | L54: 0 | M54: 355 | N54: 4 | O54: 1 | P54: 11447 | Q54: 0 | R54: 410 | S54: 32 | T54: 0 | U54: 11069 | V54: 0 | W54: 236 | X54: 25 | Y54: 1 | Z54: 10859 | AA54: 0 | AB54: 276 | AC54: 23 | AD54: 2 | AE54: 10608
E55: 6.6/11 kV RMU | F55: 14442 | G55: 0 | H55: 13 | I55: 297 | J55: 47 | K55: 14773 | L55: 0 | M55: 94 | N55: 518 | O55: 269 | P55: 15466 | Q55: 4 | R55: 243 | S55: 552 | T55: 243 | U55: 16014 | V55: 2 | W55: 65 | X55: 445 | Y55: 274 | Z55: 16666 | AA55: 3 | AB55: 94 | AC55: 428 | AD55: 330 | AE55: 17327
E56: 6.6/11 kV Switchgear - Other (PM) | F56: 10690 | G56: 0 | H56: 1352 | I56: 3 | J56: 1405 | K56: 10746 | L56: 0 | M56: 134 | N56: 12 | O56: 388 | P56: 11012 | Q56: 0 | R56: 150 | S56: 192 | T56: 352 | U56: 11406 | V56: 0 | W56: 0 | X56: 168 | Y56: 0 | Z56: 11574 | AA56: 0 | AB56: 0 | AC56: 183 | AD56: 0 | AE56: 11757
E57: 6.6/11 kV Switchgear - Other (GM) | F57: 0 | G57: 0 | H57: 0 | I57: 0 | J57: 0 | K57: 0 | L57: 0 | M57: 0 | N57: 0 | O57: 0 | P57: 0 | Q57: 0 | R57: 0 | S57: 0 | T57: 0 | U57: 0 | V57: 0 | W57: 0 | X57: 0 | Y57: 0 | Z57: 0 | AA57: 0 | AB57: 0 | AC57: 0 | AD57: 0 | AE57: 0
E58: 20 kV CB (PM) | F58: 0 | G58: 0 | H58: 0 | I58: 0 | J58: 0 | K58: 0 | L58: 0 | M58: 0 | N58: 0 | O58: 0 | P58: 0 | Q58: 0 | R58: 0 | S58: 0 | T58: 0 | U58: 0 | V58: 0 | W58: 0 | X58: 0 | Y58: 0 | Z58: 0 | AA58: 0 | AB58: 0 | AC58: 0 | AD58: 0 | AE58: 0
E59: 20 kV CB (GM) | F59: 0 | G59: 0 | H59: 0 | I59: 0 | J59: 0 | K59: 0 | L59: 0 | M59: 0 | N59: 0 | O59: 0 | P59: 0 | Q59: 0 | R59: 0 | S59: 0 | T59: 0 | U59: 0 | V59: 0 | W59: 0 | X59: 0 | Y59: 0 | Z59: 0 | AA59: 0 | AB59: 0 | AC59: 0 | AD59: 0 | AE59: 0
E60: 20 kV Switch (PM) | F60: 0 | G60: 0 | H60: 0 | I60: 0 | J60: 0 | K60: 0 | L60: 0 | M60: 0 | N60: 0 | O60: 0 | P60: 0 | Q60: 0 | R60: 0 | S60: 0 | T60: 0 | U60: 0 | V60: 0 | W60: 0 | X60: 0 | Y60: 0 | Z60: 0 | AA60: 0 | AB60: 0 | AC60: 0 | AD60: 0 | AE60: 0
E61: 20 kV Switch (GM) | F61: 0 | G61: 0 | H61: 0 | I61: 0 | J61: 0 | K61: 0 | L61: 0 | M61: 0 | N61: 0 | O61: 0 | P61: 0 | Q61: 0 | R61: 0 | S61: 0 | T61: 0 | U61: 0 | V61: 0 | W61: 0 | X61: 0 | Y61: 0 | Z61: 0 | AA61: 0 | AB61: 0 | AC61: 0 | AD61: 0 | AE61: 0
E62: 20 kV RMU | F62: 0 | G62: 0 | H62: 0 | I62: 0 | J62: 0 | K62: 0 | L62: 0 | M62: 0 | N62: 0 | O62: 0 | P62: 0 | Q62: 0 | R62: 0 | S62: 0 | T62: 0 | U62: 0 | V62: 0 | W62: 0 | X62: 0 | Y62: 0 | Z62: 0 | AA62: 0 | AB62: 0 | AC62: 0 | AD62: 0 | AE62: 0
E63: 20 kV Switchgear - Other (PM) | F63: 0 | G63: 0 | H63: 0 | I63: 0 | J63: 0 | K63: 0 | L63: 0 | M63: 0 | N63: 0 | O63: 0 | P63: 0 | Q63: 0 | R63: 0 | S63: 0 | T63: 0 | U63: 0 | V63: 0 | W63: 0 | X63: 0 | Y63: 0 | Z63: 0 | AA63: 0 | AB63: 0 | AC63: 0 | AD63: 0 | AE63: 0
E64: 20 kV Switchgear - Other (GM) | F64: 0 | G64: 0 | H64: 0 | I64: 0 | J64: 0 | K64: 0 | L64: 0 | M64: 0 | N64: 0 | O64: 0 | P64: 0 | Q64: 0 | R64: 0 | S64: 0 | T64: 0 | U64: 0 | V64: 0 | W64: 0 | X64: 0 | Y64: 0 | Z64: 0 | AA64: 0 | AB64: 0 | AC64: 0 | AD64: 0 | AE64: 0
D66: Transformers
E67: 6.6/11 kV Transformer (PM) | F67: 22676 | G67: 279 | H67: 54 | I67: 323 | J67: 54 | K67: 22720 | L67: 284 | M67: 149 | N67: 263 | O67: 149 | P67: 22699 | Q67: 356 | R67: 129 | S67: 352 | T67: 129 | U67: 22695 | V67: 156 | W67: 136 | X67: 280 | Y67: 139 | Z67: 22822 | AA67: 225 | AB67: 237 | AC67: 262 | AD67: 232 | AE67: 22854
E68: 6.6/11 kV Transformer (GM) | F68: 17685 | G68: 0 | H68: 73 | I68: 392 | J68: 74 | K68: 18078 | L68: 0 | M68: 123 | N68: 357 | O68: 143 | P68: 18455 | Q68: 50 | R68: 199 | S68: 357 | T68: 199 | U68: 18762 | V68: 22 | W68: 75 | X68: 285 | Y68: 92 | Z68: 19042 | AA68: 32 | AB68: 102 | AC68: 269 | AD68: 131 | AE68: 19308
E69: 20 kV Transformer (PM) | F69: 0 | G69: 0 | H69: 0 | I69: 0 | J69: 0 | K69: 0 | L69: 0 | M69: 0 | N69: 0 | O69: 0 | P69: 0 | Q69: 0 | R69: 0 | S69: 0 | T69: 0 | U69: 0 | V69: 0 | W69: 0 | X69: 0 | Y69: 0 | Z69: 0 | AA69: 0 | AB69: 0 | AC69: 0 | AD69: 0 | AE69: 0
E70: 20 kV Transformer (GM) | F70: 0 | G70: 0 | H70: 0 | I70: 0 | J70: 0 | K70: 0 | L70: 0 | M70: 0 | N70: 0 | O70: 0 | P70: 0 | Q70: 0 | R70: 0 | S70: 0 | T70: 0 | U70: 0 | V70: 0 | W70: 0 | X70: 0 | Y70: 0 | Z70: 0 | AA70: 0 | AB70: 0 | AC70: 0 | AD70: 0 | AE70: 0
C72: EHV Network
D73: Overhead lines - Conductor
E74: 33kV OHL (Pole Line) | F74: 1806 | G74: 1 | H74: 4 | I74: 0 | J74: 4 | K74: 1805 | L74: 11 | M74: 9 | N74: 0 | O74: 9 | P74: 1794 | Q74: 30 | R74: 18 | S74: 5 | T74: 18 | U74: 1769 | V74: 5 | W74: 3.3 | X74: 4.3 | Y74: 1.8 | Z74: 1766.8 | AA74: 0.6 | AB74: 22 | AC74: 0.7 | AD74: 8.6 | AE74: 1753.5
E75: 33kV OHL (Tower Line) | F75: 947 | G75: 0 | H75: 0 | I75: 0 | J75: 2 | K75: 949 | L75: 0 | M75: 0 | N75: 0 | O75: 0 | P75: 949 | Q75: 24 | R75: 0 | S75: 8 | T75: 0 | U75: 933 | V75: 0 | W75: 0 | X75: 0 | Y75: 0 | Z75: 933 | AA75: 0 | AB75: 0 | AC75: 0 | AD75: 0 | AE75: 933
E76: 66kV OHL (Pole Line) | F76: 0 | G76: 0 | H76: 0 | I76: 0 | J76: 0 | K76: 0 | L76: 0 | M76: 0 | N76: 0 | O76: 0 | P76: 0 | Q76: 0 | R76: 0 | S76: 0 | T76: 0 | U76: 0 | V76: 0 | W76: 0 | X76: 0 | Y76: 0 | Z76: 0 | AA76: 0 | AB76: 0 | AC76: 0 | AD76: 0 | AE76: 0
E77: 66kV OHL (Tower Line) | F77: 0 | G77: 0 | H77: 0 | I77: 0 | J77: 0 | K77: 0 | L77: 0 | M77: 0 | N77: 0 | O77: 0 | P77: 0 | Q77: 0 | R77: 0 | S77: 0 | T77: 0 | U77: 0 | V77: 0 | W77: 0 | X77: 0 | Y77: 0 | Z77: 0 | AA77: 0 | AB77: 0 | AC77: 0 | AD77: 0 | AE77: 0
D79: Overhead lines - Support
E80: 33kV Pole | F80: 28943 | G80: 1 | H80: 36 | I80: 1 | J80: 36 | K80: 28943 | L80: 276 | M80: 0 | N80: 6 | O80: 0 | P80: 28673 | Q80: 483 | R80: 144 | S80: 83 | T80: 144 | U80: 28273 | V80: 50 | W80: 32 | X80: 43 | Y80: 20 | Z80: 28254 | AA80: 6 | AB80: 232 | AC80: 7 | AD80: 102 | AE80: 28125
E81: 33kV Tower | F81: 1326 | G81: 30 | H81: 0 | I81: 0 | J81: 0 | K81: 1296 | L81: 0 | M81: 0 | N81: 10 | O81: 7 | P81: 1313 | Q81: 63 | R81: 0 | S81: 37 | T81: 0 | U81: 1287 | V81: 0 | W81: 0 | X81: 0 | Y81: 0 | Z81: 1287 | AA81: 0 | AB81: 0 | AC81: 0 | AD81: 0 | AE81: 1287
E82: 66kV Pole | F82: 0 | G82: 0 | H82: 0 | I82: 0 | J82: 0 | K82: 0 | L82: 0 | M82: 0 | N82: 0 | O82: 0 | P82: 0 | Q82: 0 | R82: 0 | S82: 0 | T82: 0 | U82: 0 | V82: 0 | W82: 0 | X82: 0 | Y82: 0 | Z82: 0 | AA82: 0 | AB82: 0 | AC82: 0 | AD82: 0 | AE82: 0
E83: 66kV Tower | F83: 0 | G83: 0 | H83: 0 | I83: 0 | J83: 0 | K83: 0 | L83: 0 | M83: 0 | N83: 0 | O83: 0 | P83: 0 | Q83: 0 | R83: 0 | S83: 0 | T83: 0 | U83: 0 | V83: 0 | W83: 0 | X83: 0 | Y83: 0 | Z83: 0 | AA83: 0 | AB83: 0 | AC83: 0 | AD83: 0 | AE83: 0
D85: Underground cables (kms)
E86: 33kV UG Cable (Non Pressurised) | F86: 1381 | G86: 0 | H86: 0 | I86: 67 | J86: 25 | K86: 1473 | L86: 2 | M86: 8 | N86: 55 | O86: 8 | P86: 1526 | Q86: 0 | R86: 0 | S86: 23 | T86: 16 | U86: 1565 | V86: 1.9 | W86: 19.2 | X86: 11.9 | Y86: 4.2 | Z86: 1560 | AA86: 1.1 | AB86: 12.4 | AC86: 4.4 | AD86: 11.7 | AE86: 1562.6
E87: 33kV UG Cable (Oil) | F87: 157 | G87: 1 | H87: 0 | I87: 0 | J87: 0 | K87: 156 | L87: 0 | M87: 0 | N87: 0 | O87: 0 | P87: 156 | Q87: 0 | R87: 0 | S87: 0 | T87: 0 | U87: 156 | V87: 0 | W87: 0 | X87: 0 | Y87: 0 | Z87: 156 | AA87: 0 | AB87: 0 | AC87: 0 | AD87: 0 | AE87: 156
E88: 33kV UG Cable (Gas) | F88: 0 | G88: 0 | H88: 0 | I88: 0 | J88: 0 | K88: 0 | L88: 0 | M88: 0 | N88: 0 | O88: 0 | P88: 0 | Q88: 0 | R88: 0 | S88: 0 | T88: 0 | U88: 0 | V88: 0 | W88: 0 | X88: 0 | Y88: 0 | Z88: 0 | AA88: 0 | AB88: 0 | AC88: 0 | AD88: 0 | AE88: 0
E89: 66kV UG Cable (Non Pressurised) | F89: 0 | G89: 0 | H89: 0 | I89: 0 | J89: 0 | K89: 0 | L89: 0 | M89: 0 | N89: 0 | O89: 0 | P89: 0 | Q89: 0 | R89: 0 | S89: 0 | T89: 0 | U89: 0 | V89: 0 | W89: 0 | X89: 0 | Y89: 0 | Z89: 0 | AA89: 0 | AB89: 0 | AC89: 0 | AD89: 0 | AE89: 0
E90: 66kV UG Cable (Oil) | F90: 0 | G90: 0 | H90: 0 | I90: 0 | J90: 0 | K90: 0 | L90: 0 | M90: 0 | N90: 0 | O90: 0 | P90: 0 | Q90: 0 | R90: 0 | S90: 0 | T90: 0 | U90: 0 | V90: 0 | W90: 0 | X90: 0 | Y90: 0 | Z90: 0 | AA90: 0 | AB90: 0 | AC90: 0 | AD90: 0 | AE90: 0
E91: 66kV UG Cable (Gas) | F91: 0 | G91: 0 | H91: 0 | I91: 0 | J91: 0 | K91: 0 | L91: 0 | M91: 0 | N91: 0 | O91: 0 | P91: 0 | Q91: 0 | R91: 0 | S91: 0 | T91: 0 | U91: 0 | V91: 0 | W91: 0 | X91: 0 | Y91: 0 | Z91: 0 | AA91: 0 | AB91: 0 | AC91: 0 | AD91: 0 | AE91: 0
D93: Submarine cables (kms)
E94: EHV Sub Cable | F94: 0 | G94: 0 | H94: 0 | I94: 0 | J94: 0 | K94: 0 | L94: 0 | M94: 0 | N94: 0 | O94: 0 | P94: 0 | Q94: 0 | R94: 0 | S94: 0 | T94: 0 | U94: 0 | W94: 0 | Y94: 0 | Z94: 0 | AB94: 0 | AD94: 0 | AE94: 0
D96: Switchgear
E97: 33 KV CB (ID) | F97: 365 | G97: 0 | H97: 0 | I97: 5 | J97: 0 | K97: 370 | L97: 1 | M97: 0 | N97: 12 | O97: 0 | P97: 381 | Q97: 0 | R97: 0 | S97: 15 | T97: 15 | U97: 411 | V97: 0 | W97: 6 | X97: 0 | Y97: 6 | Z97: 411 | AA97: 0 | AB97: 7 | AC97: 3 | AD97: 7 | AE97: 414
E98: 33 kV CB (OD) | F98: 569 | G98: 0 | H98: 0 | I98: 17 | J98: 1 | K98: 587 | L98: 0 | M98: 0 | N98: 0 | O98: 0 | P98: 587 | Q98: 12 | R98: 12 | S98: 1 | T98: 12 | U98: 576 | V98: 0 | W98: 9 | X98: 0 | Y98: 8 | Z98: 575 | AA98: 0 | AB98: 9 | AC98: 0 | AD98: 9 | AE98: 575
E99: 33 kV Switch (GM) | F99: 0 | G99: 0 | H99: 0 | I99: 0 | J99: 0 | K99: 0 | L99: 0 | M99: 0 | N99: 0 | O99: 0 | P99: 0 | Q99: 0 | R99: 0 | S99: 0 | T99: 0 | U99: 0 | V99: 0 | W99: 0 | X99: 0 | Y99: 0 | Z99: 0 | AA99: 0 | AB99: 0 | AC99: 0 | AD99: 0 | AE99: 0
E100: 33 kV Switch (PM) | F100: 0 | G100: 0 | H100: 0 | I100: 0 | J100: 0 | K100: 0 | L100: 0 | M100: 0 | N100: 0 | O100: 0 | P100: 0 | Q100: 0 | R100: 0 | S100: 0 | T100: 0 | U100: 0 | V100: 0 | W100: 0 | X100: 0 | Y100: 0 | Z100: 0 | AA100: 0 | AB100: 0 | AC100: 0 | AD100: 0 | AE100: 0
E101: 33 kV RMU | F101: 51 | G101: 0 | H101: 0 | I101: 0 | J101: 0 | K101: 51 | L101: 1 | M101: 0 | N101: 5 | O101: 0 | P101: 55 | Q101: 2 | R101: 0 | S101: 1 | T101: 0 | U101: 54 | V101: 0 | W101: 0 | X101: 0 | Y101: 0 | Z101: 54 | AA101: 0 | AB101: 0 | AC101: 0 | AD101: 0 | AE101: 54
E102: 33 kV Switchgear - Other | F102: 2013 | G102: 0 | H102: 0 | I102: 2 | J102: 0 | K102: 2015 | L102: 0 | M102: 0 | N102: 2 | O102: 0 | P102: 2017 | Q102: 0 | R102: 17 | S102: 2 | T102: 42 | U102: 2044 | V102: 0 | W102: 0 | X102: 0 | Y102: 0 | Z102: 2044 | AA102: 0 | AB102: 0 | AC102: 0 | AD102: 0 | AE102: 2044
E103: 66 KV CB (ID & OD) | F103: 0 | G103: 0 | H103: 0 | I103: 0 | J103: 0 | K103: 0 | L103: 0 | M103: 0 | N103: 0 | O103: 0 | P103: 0 | Q103: 0 | R103: 0 | S103: 0 | T103: 0 | U103: 0 | V103: 0 | W103: 0 | X103: 0 | Y103: 0 | Z103: 0 | AA103: 0 | AB103: 0 | AC103: 0 | AD103: 0 | AE103: 0
E104: 66 KV Switchgear - Other | F104: 0 | G104: 0 | H104: 0 | I104: 0 | J104: 0 | K104: 0 | L104: 0 | M104: 0 | N104: 0 | O104: 0 | P104: 0 | Q104: 0 | R104: 0 | S104: 0 | T104: 0 | U104: 0 | V104: 0 | W104: 0 | X104: 0 | Y104: 0 | Z104: 0 | AA104: 0 | AB104: 0 | AC104: 0 | AD104: 0 | AE104: 0
D106: Transformers
E107: 33 kV Transformer (PM) | F107: 0 | G107: 0 | H107: 0 | I107: 0 | J107: 0 | K107: 0 | L107: 0 | M107: 0 | N107: 0 | O107: 0 | P107: 0 | Q107: 0 | R107: 0 | S107: 0 | T107: 0 | U107: 0 | V107: 0 | W107: 0 | X107: 0 | Y107: 0 | Z107: 0 | AA107: 0 | AB107: 0 | AC107: 0 | AD107: 0 | AE107: 0
E108: 33 kV Transformer (GM) | F108: 702 | G108: 0 | H108: 0 | I108: 11 | J108: 0 | K108: 713 | L108: 3 | M108: 3 | N108: 6 | O108: 3 | P108: 716 | Q108: 0 | R108: 0 | S108: 0 | T108: 1 | U108: 717 | V108: 0 | W108: 5 | X108: 0 | Y108: 5 | Z108: 717 | AA108: 2 | AB108: 0 | AC108: 2 | AD108: 0 | AE108: 717
E109: 33 kV AuxiliaryTransfomer | F109: 645 | G109: 0 | H109: 0 | I109: 5 | J109: 0 | K109: 650 | L109: 2 | M109: 0 | N109: 0 | O109: 0 | P109: 648 | Q109: 0 | R109: 13 | S109: 0 | T109: 16 | U109: 651 | V109: 0 | W109: 0 | X109: 0 | Y109: 0 | Z109: 651 | AA109: 0 | AB109: 0 | AC109: 0 | AD109: 0 | AE109: 651
E110: 66 kV Transformer | F110: 0 | G110: 0 | H110: 0 | I110: 0 | J110: 0 | K110: 0 | L110: 0 | M110: 0 | N110: 0 | O110: 0 | P110: 0 | Q110: 0 | R110: 0 | S110: 0 | T110: 0 | U110: 0 | V110: 0 | W110: 0 | X110: 0 | Y110: 0 | Z110: 0 | AA110: 0 | AB110: 0 | AC110: 0 | AD110: 0 | AE110: 0
E111: 66 kV AuxiliaryTransfomer | F111: 0 | G111: 0 | H111: 0 | I111: 0 | J111: 0 | K111: 0 | L111: 0 | M111: 0 | N111: 0 | O111: 0 | P111: 0 | Q111: 0 | R111: 0 | S111: 0 | T111: 0 | U111: 0 | V111: 0 | W111: 0 | X111: 0 | Y111: 0 | Z111: 0 | AA111: 0 | AB111: 0 | AC111: 0 | AD111: 0 | AE111: 0
C113: 132kV Network
D114: Overhead lines - Conductor
E115: 132kV OHL Conductor (Pole Line) | F115: 143 | G115: 0 | H115: 1 | I115: 0 | J115: 1 | K115: 143 | L115: 5 | M115: 0 | N115: 0 | O115: 0 | P115: 138 | Q115: 0 | R115: 0 | S115: 0 | T115: 0 | U115: 138 | V115: 0 | W115: 0 | X115: 0 | Y115: 0 | Z115: 138 | AA115: 0 | AB115: 0 | AC115: 0 | AD115: 0 | AE115: 138
E116: 132kV OHL Conductor (Tower Line) | F116: 2233 | G116: 0 | H116: 0 | I116: 0 | J116: 0 | K116: 2233 | L116: 0 | M116: 0 | N116: 13 | O116: 0 | P116: 2246 | Q116: 4 | R116: 8 | S116: 4 | T116: 8 | U116: 2246 | V116: 0 | W116: 130 | X116: 0 | Y116: 130 | Z116: 2246 | AA116: 0 | AB116: 130 | AC116: 0 | AD116: 130 | AE116: 2246
D118: Overhead lines - Support
E119: 132kV Pole | F119: 56 | G119: 0 | H119: 0 | I119: 0 | J119: 0 | K119: 56 | L119: 0 | M119: 0 | N119: 0 | O119: 0 | P119: 56 | Q119: 0 | R119: 0 | S119: 0 | T119: 0 | U119: 56 | V119: 0 | W119: 0 | X119: 0 | Y119: 0 | Z119: 56 | AA119: 0 | AB119: 0 | AC119: 0 | AD119: 0 | AE119: 56
E120: 132kV Tower | F120: 4569 | G120: 0 | H120: 7 | I120: 0 | J120: 7 | K120: 4569 | L120: 7 | M120: 0 | N120: 0 | O120: 0 | P120: 4562 | Q120: 0 | R120: 0 | S120: 0 | T120: 0 | U120: 4562 | V120: 0 | W120: 5 | X120: 0 | Y120: 5 | Z120: 4562 | AA120: 0 | AB120: 4 | AC120: 0 | AD120: 4 | AE120: 4562
E121: 132kV Fittings (Tower Line) | F121: 9138 | G121: 0 | H121: 0 | I121: 0 | J121: 0 | K121: 9138 | L121: 14 | M121: 0 | N121: 0 | O121: 0 | P121: 9124 | Q121: 0 | R121: 0 | S121: 0 | T121: 0 | U121: 9124 | V121: 0 | W121: 49 | X121: 0 | Y121: 49 | Z121: 9124 | AA121: 0 | AB121: 45 | AC121: 0 | AD121: 45 | AE121: 9124
D123: Underground cables (kms)
E124: 132kV UG Cable (Non Pressurised) | F124: 34 | G124: 0 | H124: 0 | I124: 0 | J124: 0 | K124: 34 | L124: 0 | M124: 0 | N124: 1 | O124: 0 | P124: 35 | Q124: 0 | R124: 0 | S124: 0 | T124: 0 | U124: 35 | V124: 0 | W124: 0 | X124: 7 | Y124: 0 | Z124: 42 | AA124: 0 | AB124: 0 | AC124: 0 | AD124: 0 | AE124: 42
E125: 132kV UG Cable (Oil) | F125: 164 | G125: 0 | H125: 0 | I125: 0 | J125: 0 | K125: 164 | L125: 0 | M125: 0 | N125: 0 | O125: 0 | P125: 164 | Q125: 0 | R125: 0 | S125: 0 | T125: 0 | U125: 164 | V125: 0 | W125: 0 | X125: 0 | Y125: 0 | Z125: 164 | AA125: 0 | AB125: 0 | AC125: 0 | AD125: 0 | AE125: 164
E126: 132kV UG Cable (Gas) | F126: 0 | G126: 0 | H126: 0 | I126: 0 | J126: 0 | K126: 0 | L126: 0 | M126: 0 | N126: 0 | O126: 0 | P126: 0 | Q126: 0 | R126: 0 | S126: 0 | T126: 0 | U126: 0 | V126: 0 | W126: 0 | X126: 0 | Y126: 0 | Z126: 0 | AA126: 0 | AB126: 0 | AC126: 0 | AD126: 0 | AE126: 0
D128: Submarine cables (kms)
E129: 132 kV Sub Cable | F129: 0 | G129: 0 | H129: 0 | I129: 0 | J129: 0 | K129: 0 | L129: 0 | M129: 0 | N129: 0 | O129: 0 | P129: 0 | Q129: 0 | R129: 0 | S129: 0 | T129: 0 | U129: 0 | V129: 0 | W129: 0 | X129: 0 | Y129: 0 | Z129: 0 | AA129: 0 | AB129: 0 | AC129: 0 | AD129: 0 | AE129: 0
D131: Switchgear
E132: 132 kV CB (ID & OD) | F132: 264 | G132: 44 | H132: 0 | I132: 4 | J132: 0 | K132: 224 | L132: 0 | M132: 0 | N132: 12 | O132: 0 | P132: 236 | Q132: 0 | R132: 3 | S132: 0 | T132: 12 | U132: 245 | V132: 0 | W132: 0 | X132: 0 | Y132: 0 | Z132: 245 | AA132: 0 | AB132: 10 | AC132: 0 | AD132: 10 | AE132: 245
E133: 132 kV Switchgear (other) | F133: 1618 | G133: 0 | H133: 0 | I133: 0 | J133: 0 | K133: 1618 | L133: 0 | M133: 0 | N133: 0 | O133: 0 | P133: 1618 | Q133: 0 | R133: 36 | S133: 0 | T133: 80 | U133: 1662 | V133: 0 | W133: 0 | X133: 0 | Y133: 0 | Z133: 1662 | AA133: 0 | AB133: 0 | AC133: 0 | AD133: 0 | AE133: 1662
D135: Transformers
E136: 132 kV Transformer | F136: 189 | G136: 0 | H136: 0 | I136: 2 | J136: 0 | K136: 191 | L136: 1 | M136: 0 | N136: 0 | O136: 0 | P136: 190 | Q136: 9 | R136: 0 | S136: 7 | T136: 0 | U136: 188 | V136: 4 | W136: 0 | X136: 7 | Y136: 0 | Z136: 191 | AA136: 0 | AB136: 2 | AC136: 0 | AD136: 2 | AE136: 191
E137: 132 kV AuxiliaryTransfomer | F137: 327 | G137: 0 | H137: 0 | I137: 0 | J137: 0 | K137: 327 | L137: 0 | M137: 0 | N137: 0 | O137: 0 | P137: 327 | Q137: 0 | R137: 8 | S137: 0 | T137: 17 | U137: 336 | V137: 2 | W137: 0 | X137: 2 | Y137: 0 | Z137: 336 | AA137: 0 | AB137: 0 | AC137: 0 | AD137: 0 | AE137: 336
C139: Tele-control / SCADA
D140: Primary substation
E141: 132 kV/EHV RTU (PM) | F141: 0 | G141: 0 | H141: 0 | I141: 0 | J141: 0 | K141: 0 | L141: 0 | M141: 0 | N141: 0 | O141: 0 | P141: 0 | Q141: 0 | R141: 0 | S141: 0 | T141: 2 | U141: 2 | V141: 0 | W141: 0 | X141: 0 | Y141: 0 | Z141: 2 | AA141: 0 | AB141: 0 | AC141: 0 | AD141: 0 | AE141: 2
E142: 132 kV/EHV RTU (GM) | F142: 462 | G142: 0 | H142: 0 | I142: 0 | J142: 0 | K142: 462 | L142: 0 | M142: 0 | N142: 0 | O142: 5 | P142: 467 | Q142: 0 | R142: 0 | S142: 0 | T142: 17 | U142: 484 | V142: 0 | W142: 0 | X142: 0 | Y142: 0 | Z142: 484 | AA142: 0 | AB142: 0 | AC142: 0 | AD142: 0 | AE142: 484
D144: Secondary substation
E145: HV RTU (PM) | F145: 829 | G145: 0 | H145: 0 | I145: 0 | J145: 0 | K145: 829 | L145: 0 | M145: 0 | N145: 0 | O145: 335 | P145: 1164 | Q145: 0 | R145: 0 | S145: 0 | T145: 327 | U145: 1491 | V145: 0 | W145: 0 | X145: 0 | Y145: 0 | Z145: 1491 | AA145: 0 | AB145: 0 | AC145: 0 | AD145: 0 | AE145: 1491
E146: HV RTU (GM) | F146: 224 | G146: 0 | H146: 0 | I146: 0 | J146: 0 | K146: 224 | L146: 0 | M146: 0 | N146: 0 | O146: 32 | P146: 256 | Q146: 0 | R146: 0 | S146: 0 | T146: 495 | U146: 751 | V146: 0 | W146: 0 | X146: 0 | Y146: 0 | Z146: 751 | AA146: 0 | AB146: 0 | AC146: 0 | AD146: 0 | AE146: 751

Sheet FBPQ LR1
A1: Main Forecast Business Plan DPCR5 | F1: Index
A3: LR1 - Demand
B6: Demand Totals
C8: Units | D8: DPCR4 | I8: DPCR5 | O8: DPCR4 | S8: DPCR5
D9: 2005/06 | E9: 2006/07 | F9: 2007/08 | G9: 2008/09 | H9: 2009/10 | I9: 2010/11 | J9: 2011/12 | K9: 2012/13 | L9: 2013/14 | M9: 2014/15 | O9: Actuals | P9: Forecast | Q9: Total | S9: Forecast | T9: % change
B10: Gross direct costs | C10: £m | D10: 54.23058331 | E10: 38.8379014 | F10: 91.67454951 | G10: 60.62619724 | H10: 65.68275266 | I10: 67.83479854 | J10: 68.95687924 | K10: 73.55393834 | L10: 77.27265411 | M10: 81.34822988 | O10: 184.7430342 | P10: 126.3089499 | Q10: 311.0519841 | S10: 368.9665001 | T10: 0.1861891868
B11: Customer contributions directs | C11: £m | D11: 47.9 | E11: 34.2 | F11: 74.4 | G11: 47.7 | H11: 49.6 | I11: 50.6 | J11: 53 | K11: 56.9 | L11: 60.2 | M11: 63.6 | O11: 156.5 | P11: 97.3 | Q11: 253.8 | S11: 284.3 | T11: 0.1201733649
B12: Net (gross directs - customer contributions directs) | C12: £m | D12: 6.330583307 | E12: 4.637901398 | F12: 17.27454951 | G12: 12.92619724 | H12: 16.08275266 | I12: 17.23479854 | J12: 15.95687924 | K12: 16.65393834 | L12: 17.07265411 | M12: 17.74822988 | O12: 28.24303421 | P12: 29.00894991 | Q12: 57.25198412 | S12: 84.6665001 | T12: 0.4788395791
B13: Customer contributions indirects | C13: £m | D13: 12.7 | E13: 16.3 | F13: 7.4 | G13: 2.6 | H13: 4.5 | I13: 5.7 | J13: 5.9 | K13: 6.3 | L13: 6.7 | M13: 7 | O13: 36.4 | P13: 7.1 | Q13: 43.5 | S13: 31.6 | T13: -0.2735632184
B14: Net (gross directs - customer contributions directs and indirects) | C14: £m | D14: -6.369416693 | E14: -11.6620986 | F14: 9.874549508 | G14: 10.32619724 | H14: 11.58275266 | I14: 11.53479854 | J14: 10.05687924 | K14: 10.35393834 | L14: 10.37265411 | M14: 10.74822988 | O14: -8.156965788 | P14: 21.90894991 | Q14: 13.75198412 | S14: 53.0665001 | T14: 2.858824998
B16: Demand trends
C18: Units | D18: DPCR4 | I18: DPCR5
D19: 2005/06 | E19: 2006/07 | F19: 2007/08 | G19: 2008/09 | H19: 2009/10 | I19: 2010/11 | J19: 2011/12 | K19: 2012/13 | L19: 2013/14 | M19: 2014/15
B21: Estimated system maximum demand | C21: MW | D21: 5142 | E21: 5071.996981 | F21: 5165.039937 | G21: 5268.999873 | H21: 5307.95297 | I21: 5347.014614 | J21: 5386.026376 | K21: 5424.998045 | L21: 5464.047245 | M21: 5503.044902
B22: Increase/Reduction in max demand | C22: MW | D22: 29.88360892 | E22: -70.00301863 | F22: 93.04295592 | G22: 103.9599356 | H22: 38.95309692 | I22: 39.06164412 | J22: 39.0117619 | K22: 38.9716689 | L22: 39.04920031 | M22: 38.99765668
B23: Incremental increase in max demand due to new connections | C23: MW | D23: 61.22322998 | E23: 86.57903988 | F23: 67.93409711 | G23: 50.46019545 | H23: 45.68336975 | I23: 47.18040331 | J23: 51.47864516 | K23: 56.83855217 | L23: 63.01608358 | M23: 70.06453995
B24: Incremental reduction in max demand due to disconnections | C24: MW | D24: -31.33962106 | E24: -35.58205851 | F24: -23.69114119 | G24: -32.60025984 | H24: -34.23027283 | I24: -32.51875919 | J24: -29.26688327 | K24: -29.26688327 | L24: -29.26688327 | M24: -29.26688327
B25: Net change in max demand (not due to connections/disconnections) | C25: MW | D25: 0 | E25: -121 | F25: 48.8 | G25: 86.1 | H25: 27.5 | I25: 24.4 | J25: 16.8 | K25: 11.4 | L25: 5.3 | M25: -1.8
B27: Estimated units distributed | C27: GWh | D27: 30104.9 | E27: 29508.87295 | F27: 29665.40352 | G27: 29133.77912 | H27: 27786.10373 | I27: 27637.56646 | J27: 28143.04971 | K27: 28347.76131 | L27: 28504.65951 | M27: 28539.06208
B28: Increase/Reduction in units distributed | C28: GWh | D28: 0 | E28: -596.0270531 | F28: 156.5305752 | G28: -531.6243986 | H28: -1347.675391 | I28: -148.5372762 | J28: 505.4832557 | K28: 204.7115987 | L28: 156.8981972 | M28: 34.40257371
B29: Increase in units distributed due to generic background demand growth | C29: GWh | D29: 0 | E29: -383.7 | F29: 204.4 | G29: 603.3 | H29: -364.4901289 | I29: -76.96511184 | J29: 595.7583455 | K29: 321.9976551 | L29: 311.5936768 | M29: 227.4118497
B30: Reduction in units distributed due to energy efficiency | C30: GWh | D30: 0 | E30: -60.20972075 | F30: -59.01789397 | G30: -59.33072492 | H30: -58.26751519 | I30: -55.57216441 | J30: -55.27508986 | K30: -56.28605637 | L30: -56.69547957 | M30: -57.00927596
B31: Units distributed offset by DG | C31: GWh | D31: 0 | E31: 0 | F31: 0 | G31: 0 | H31: -1 | I31: -16 | J31: -35 | K31: -61 | L31: -98 | M31: -136
B32: Units distributed offset by DSM | C32: GWh | D32: 0 | E32: 0 | F32: 0 | G32: 0 | H32: 0 | I32: 0 | J32: 0 | K32: 0 | L32: 0 | M32: 0
B33: Price impact on units distributed | C33: GWh | D33: 0 | E33: -152.1173323 | F33: 11.14846913 | G33: -176.7873896 | H33: 0 | I33: 0 | J33: 0 | K33: 0 | L33: 0 | M33: 0
B34: Economic downturn effect on units distributed | C34: GWh | D34: 0 | E34: 0 | F34: 0 | G34: -898.806284 | H34: -923.9177468 | I34: 0 | J34: 0 | K34: 0 | L34: 0 | M34: 0
B36: Estimated units distributed
B37: LV | C37: GWh | D37: 19523.26646 | E37: 19016.92944 | F37: 19286.22794 | G37: 19229.0747 | H37: 18354.62537 | I37: 18249.2773 | J37: 18625.94951 | K37: 18839.15684 | L37: 18968.93445 | M37: 19043.03266
B38: HV | C38: GWh | D38: 9858.545483 | E38: 9824.430979 | F38: 9669.49326 | G38: 9284.365647 | H38: 8814.11756 | I38: 8770.928357 | J38: 8899.739394 | K38: 8891.243667 | L38: 8918.364256 | M38: 8878.668622
B39: EHV (inc. 132kV) | C39: GWh | D39: 723.0484324 | E39: 667.5865684 | F39: 709.6412576 | G39: 620.3172538 | H39: 617.3392766 | I39: 617.3392766 | J39: 617.3392766 | K39: 617.3392766 | L39: 617.3392766 | M39: 617.3392766
B40: Total units distributed | C40: GWh | D40: 30104.86037 | E40: 29508.94698 | F40: 29665.36246 | G40: 29133.7576 | H40: 27786.08221 | I40: 27637.54493 | J40: 28143.02818 | K40: 28347.73978 | L40: 28504.63798 | M40: 28539.04055
B42: Incremental increase in units distributed attributable to new connections
B43: LV | C43: MWh | D43: 203209.9621 | E43: 253590.3238 | F43: 247138.8125 | G43: 162407.1611 | H43: 149722.5723 | I43: 153294.5253 | J43: 166488.8697 | K43: 183276.6621 | L43: 202079.7214 | M43: 223108.7723
B44: HV | C44: MWh | D44: 196300.379 | E44: 316771.3281 | F44: 192019.6854 | G44: 167619.7317 | H44: 148778.5645 | I44: 155157.1037 | J44: 170132.0158 | K44: 188455.36 | L44: 210209.4127 | M44: 235525.0061
B45: EHV (inc. 132kV) | C45: MWh | D45: 0 | E45: 0 | F45: 0 | G45: 0 | H45: 0 | I45: 0 | J45: 0 | K45: 0 | L45: 0 | M45: 0
B46: Total increase in units distributed due to new connections | C46: MWh | D46: 399510.3411 | E46: 570361.6519 | F46: 439158.4978 | G46: 330026.8928 | H46: 298501.1367 | I46: 308451.629 | J46: 336620.8854 | K46: 371732.0221 | L46: 412289.1341 | M46: 458633.7784
B49: Connections/disconnections volume
C51: Units | D51: DPCR4 | I51: DPCR5
D52: 2005/06 | E52: 2006/07 | F52: 2007/08 | G52: 2008/09 | H52: 2009/10 | I52: 2010/11 | J52: 2011/12 | K52: 2012/13 | L52: 2013/14 | M52: 2014/15
B53: Connections/Disconnections
B54: Estimated number demand connections/disconnections at LV
B55: IDNO connections | C55: # | D55: 2 | E55: 2 | F55: 4 | G55: 3.6 | H55: 3.2 | I55: 3.4 | J55: 3.7 | K55: 4.2 | L55: 4.7 | M55: 5.3
B56: Connections (excluding IDNOs) | C56: # | D56: 34184 | E56: 34314.8 | F56: 33331 | G56: 27899.8 | H56: 28372.2 | I56: 30153.7 | J56: 31706.1 | K56: 34216.2 | L56: 36957.8 | M56: 39945.8
B57: Disconnections | C57: # | D57: 9236.7 | E57: 10487.1 | F57: 6982.5 | G57: 9608.2 | H57: 10088.7 | I57: 9584.2 | J57: 8625.8 | K57: 8625.8 | L57: 8625.8 | M57: 8625.8
B58: Estimated number demand connections/disconnections at HV
B59: IDNO connections | C59: # | D59: 0 | E59: 6 | F59: 10 | G59: 9 | H59: 8.1 | I59: 8.5 | J59: 9.4 | K59: 10.4 | L59: 11.6 | M59: 13.1
B60: Connections (excluding IDNOs) | C60: # | D60: 81 | E60: 396 | F60: 196 | G60: 174.7 | H60: 156.6 | I60: 164 | J60: 180.3 | K60: 200 | L60: 223.7 | M60: 252.1
B61: Disconnections | C61: # | D61: 93.3 | E61: 105.9 | F61: 70.5 | G61: 97.1 | H61: 101.9 | I61: 96.8 | J61: 87.1 | K61: 87.1 | L61: 87.1 | M61: 87.1
B62: Estimated number demand connections/disconnections at EHV
B63: IDNO connections | C63: # | D63: 0 | E63: 0 | F63: 0 | G63: 0 | H63: 0 | I63: 0 | J63: 0 | K63: 0 | L63: 0 | M63: 0
B64: Connections (excluding IDNOs) | C64: # | D64: 0 | E64: 0 | F64: 0 | G64: 0 | H64: 0 | I64: 0 | J64: 0 | K64: 0 | L64: 0 | M64: 0
B65: Disconnections | C65: # | D65: 0 | E65: 0 | F65: 0 | G65: 0 | H65: 0 | I65: 0 | J65: 0 | K65: 0 | L65: 0 | M65: 0
B66: Estimated number demand connections/disconnections at 132kV
B67: IDNO connections | C67: # | D67: 0 | E67: 0 | F67: 0 | G67: 0 | H67: 0 | I67: 0 | J67: 0 | K67: 0 | L67: 0 | M67: 0
B68: Connections (excluding IDNOs) | C68: # | D68: 0 | E68: 0 | F68: 0 | G68: 0 | H68: 0 | I68: 0 | J68: 0 | K68: 0 | L68: 0 | M68: 0
B69: Disconnections | C69: # | D69: 0 | E69: 0 | F69: 0 | G69: 0 | H69: 0 | I69: 0 | J69: 0 | K69: 0 | L69: 0 | M69: 0
B70: Total number of demand connections | C70: # | D70: 34267 | E70: 34718.8 | F70: 33541 | G70: 28087.1 | H70: 28540.1 | I70: 30329.6 | J70: 31899.5 | K70: 34430.8 | L70: 37197.8 | M70: 40216.3
B71: Total number of demand disconnections | C71: # | D71: 9330 | E71: 10593 | F71: 7053 | G71: 9705.3 | H71: 10190.6 | I71: 9681 | J71: 8712.9 | K71: 8712.9 | L71: 8712.9 | M71: 8712.9
B74: Customer specific demand investment
C76: Units | D76: DPCR4 | I76: DPCR5 | O76: DPCR4 | S76: DPCR5
D77: 2005/06 | E77: 2006/07 | F77: 2007/08 | G77: 2008/09 | H77: 2009/10 | I77: 2010/11 | J77: 2011/12 | K77: 2012/13 | L77: 2013/14 | M77: 2014/15 | O77: Actuals | P77: Forecast | Q77: Total | S77: Forecast | T77: % change
B78: New connections & customer specific reinforcement:
B79: Connections provided at LV
B80: Sole use | C80: £m | D80: 0 | E80: 0 | F80: 0 | G80: 27.97366408 | H80: 25.43840345 | I80: 25.22699682 | J80: 26.98744051 | K80: 29.54053049 | L80: 31.60253418 | M80: 33.74665011 | O80: 0 | P80: 53.41206753 | Q80: 53.41206753 | S80: 147.1041521 | T80: 1.754137012
B81: Shared | C81: £m | D81: 43.16515179 | E81: 30.97073676 | F81: 58.95501497 | G81: 15.82851455 | H81: 12.22235791 | I81: 12.11690398 | J81: 12.9976276 | K81: 14.27461876 | L81: 15.25639581 | M81: 16.32902425 | O81: 133.0909035 | P81: 28.05087246 | Q81: 161.141776 | S81: 70.9745704 | T81: -0.5595520158
B82: LV total | C82: £m | D82: 43.16515179 | E82: 30.97073676 | F82: 58.95501497 | G82: 43.80217863 | H82: 37.66076136 | I82: 37.3439008 | J82: 39.9850681 | K82: 43.81514925 | L82: 46.85892999 | M82: 50.07567436 | O82: 133.0909035 | P82: 81.46293999 | Q82: 214.5538435 | S82: 218.0787225 | T82: 0.01642887837
B83: Connections provided at HV
B84: Sole use | C84: £m | D84: 0 | E84: 0 | F84: 0 | G84: 5.674373141 | H84: 8.943188714 | I84: 9.733250742 | J84: 9.624197534 | K84: 9.912929695 | L84: 10.10488554 | M84: 10.39119725 | O84: 0 | P84: 14.61756185 | Q84: 14.61756185 | S84: 49.76646075 | T84: 2.404566456
B85: Shared | C85: £m | D85: 10.7663658 | E85: 7.667995917 | F85: 32.12100647 | G85: 11.14964547 | H85: 19.07880259 | I85: 20.75764699 | J85: 19.3476136 | K85: 19.82585939 | L85: 20.30883858 | M85: 20.88135828 | O85: 50.55536819 | P85: 30.22844806 | Q85: 80.78381624 | S85: 101.1213168 | T85: 0.2517521644
B86: HV total | C86: £m | D86: 10.7663658 | E86: 7.667995917 | F86: 32.12100647 | G86: 16.82401861 | H86: 28.0219913 | I86: 30.49089773 | J86: 28.97181113 | K86: 29.73878908 | L86: 30.41372412 | M86: 31.27255553 | O86: 50.55536819 | P86: 44.84600991 | Q86: 95.4013781 | S86: 150.8877776 | T86: 0.5816100417
B87: Connections provided at EHV
B88: Sole use | C88: £m | D88: 0 | E88: 0 | F88: 0 | G88: 0 | H88: 0 | I88: 0 | J88: 0 | K88: 0 | L88: 0 | M88: 0 | O88: 0 | P88: 0 | Q88: 0 | S88: 0 | T88: 0
B89: Shared | C89: £m | D89: 0.2990657168 | E89: 0.1991687251 | F89: 0.5985280708 | G89: 0 | H89: 0 | I89: 0 | J89: 0 | K89: 0 | L89: 0 | M89: 0 | O89: 1.096762513 | P89: 0 | Q89: 1.096762513 | S89: 0 | T89: -1
B90: EHV total | C90: £m | D90: 0.2990657168 | E90: 0.1991687251 | F90: 0.5985280708 | G90: 0 | H90: 0 | I90: 0 | J90: 0 | K90: 0 | L90: 0 | M90: 0 | O90: 1.096762513 | P90: 0 | Q90: 1.096762513 | S90: 0 | T90: -1
B91: Connections provided at 132kV
B92: Sole use | C92: £m | D92: 0 | E92: 0 | F92: 0 | G92: 0 | H92: 0 | I92: 0 | J92: 0 | K92: 0 | L92: 0 | M92: 0 | O92: 0 | P92: 0 | Q92: 0 | S92: 0 | T92: 0
B93: Shared | C93: £m | D93: 0 | E93: 0 | F93: 0 | G93: 0 | H93: 0 | I93: 0 | J93: 0 | K93: 0 | L93: 0 | M93: 0 | O93: 0 | P93: 0 | Q93: 0 | S93: 0 | T93: 0
B94: 132kV total | C94: £m | D94: 0 | E94: 0 | F94: 0 | G94: 0 | H94: 0 | I94: 0 | J94: 0 | K94: 0 | L94: 0 | M94: 0 | O94: 0 | P94: 0 | Q94: 0 | S94: 0 | T94: 0
B96: Expenditure on DSM to avoid customer spec investment | C96: £m | G96: 0 | H96: 0 | I96: 0 | J96: 0 | K96: 0 | L96: 0 | M96: 0 | O96: 0 | P96: 0 | Q96: 0 | S96: 0 | T96: 0
B97: Total inc. expenditure on DSM to avoid customer spec investment | C97: £m | D97: 54.23058331 | E97: 38.8379014 | F97: 91.67454951 | G97: 60.62619724 | H97: 65.68275266 | I97: 67.83479854 | J97: 68.95687924 | K97: 73.55393834 | L97: 77.27265411 | M97: 81.34822988 | O97: 184.7430342 | P97: 126.3089499 | Q97: 311.0519841 | S97: 368.9665001 | T97: 0.1861891868
B99: Expenditure avoided due to DG | C99: £m | G99: 0 | H99: 0 | I99: 0 | J99: 0 | K99: 0 | L99: 0 | M99: 0 | O99: 0 | P99: 0 | Q99: 0 | S99: 0 | T99: 0
B100: Expenditure avoided due to DSM | C100: £m | G100: 0 | H100: 0 | I100: 0 | J100: 0 | K100: 0 | L100: 0 | M100: 0 | O100: 0 | P100: 0 | Q100: 0 | S100: 0 | T100: 0
B103: Customer contributions - customer specific demand investment
C105: Units | D105: DPCR4 | I105: DPCR5 | O105: DPCR4 | S105: DPCR5
D106: 2005/06 | E106: 2006/07 | F106: 2007/08 | G106: 2008/09 | H106: 2009/10 | I106: 2010/11 | J106: 2011/12 | K106: 2012/13 | L106: 2013/14 | M106: 2014/15 | O106: Actuals | P106: Forecast | Q106: Total | S106: Forecast | T106: % change
B107: Customer contributions (directs) for connections at LV
B108: Sole use | C108: £m | D108: 0 | E108: 0 | F108: 0 | G108: 28.1 | H108: 25.6 | I108: 25.4 | J108: 27.2 | K108: 29.8 | L108: 31.9 | M108: 34.1 | O108: 0 | P108: 53.7 | Q108: 53.7 | S108: 148.4 | T108: 1.763500931
B109: Shared | C109: £m | D109: 38.1 | E109: 27.4 | F109: 49.1 | G109: 10.4 | H109: 9.5 | I109: 9.4 | J109: 10.1 | K109: 11 | L109: 11.8 | M109: 12.6 | O109: 114.6 | P109: 19.9 | Q109: 134.5 | S109: 54.9 | T109: -0.5918215613
B110: LV total | C110: £m | D110: 38.1 | E110: 27.4 | F110: 49.1 | G110: 38.5 | H110: 35.1 | I110: 34.8 | J110: 37.3 | K110: 40.8 | L110: 43.7 | M110: 46.7 | O110: 114.6 | P110: 73.6 | Q110: 188.2 | S110: 203.3 | T110: 0.08023379384
B111: Customer contributions (directs) for connections at HV
B112: Sole use | C112: £m | D112: 0 | E112: 0 | F112: 0 | G112: 5.7 | H112: 9 | I112: 9.8 | J112: 9.7 | K112: 10 | L112: 10.2 | M112: 10.5 | O112: 0 | P112: 14.7 | Q112: 14.7 | S112: 50.2 | T112: 2.414965986
B113: Shared | C113: £m | D113: 9.5 | E113: 6.8 | F113: 24.9 | G113: 3.5 | H113: 5.5 | I113: 6 | J113: 6 | K113: 6.1 | L113: 6.3 | M113: 6.4 | O113: 41.2 | P113: 9 | Q113: 50.2 | S113: 30.8 | T113: -0.3864541833
B114: HV total | C114: £m | D114: 9.5 | E114: 6.8 | F114: 24.9 | G114: 9.2 | H114: 14.5 | I114: 15.8 | J114: 15.7 | K114: 16.1 | L114: 16.5 | M114: 16.9 | O114: 41.2 | P114: 23.7 | Q114: 64.9 | S114: 81 | T114: 0.2480739599
B115: Customer contributions (directs) for connections at EHV
B116: Sole use | C116: £m | D116: 0 | E116: 0 | F116: 0 | G116: 0 | H116: 0 | I116: 0 | J116: 0 | K116: 0 | L116: 0 | M116: 0 | O116: 0 | P116: 0 | Q116: 0 | S116: 0 | T116: 0
B117: Shared | C117: £m | D117: 0.3 | E117: 0 | F117: 0.4 | G117: 0 | H117: 0 | I117: 0 | J117: 0 | K117: 0 | L117: 0 | M117: 0 | O117: 0.7 | P117: 0 | Q117: 0.7 | S117: 0 | T117: -1
B118: EHV total | C118: £m | D118: 0.3 | E118: 0 | F118: 0.4 | G118: 0 | H118: 0 | I118: 0 | J118: 0 | K118: 0 | L118: 0 | M118: 0 | O118: 0.7 | P118: 0 | Q118: 0.7 | S118: 0 | T118: -1
B119: Customer contributions (directs) for connections at 132kV
B120: Sole use | C120: £m | D120: 0 | E120: 0 | F120: 0 | G120: 0 | H120: 0 | I120: 0 | J120: 0 | K120: 0 | L120: 0 | M120: 0 | O120: 0 | P120: 0 | Q120: 0 | S120: 0 | T120: 0
B121: Shared | C121: £m | D121: 0 | E121: 0 | F121: 0 | G121: 0 | H121: 0 | I121: 0 | J121: 0 | K121: 0 | L121: 0 | M121: 0 | O121: 0 | P121: 0 | Q121: 0 | S121: 0 | T121: 0
B122: 132kV total | C122: £m | D122: 0 | E122: 0 | F122: 0 | G122: 0 | H122: 0 | I122: 0 | J122: 0 | K122: 0 | L122: 0 | M122: 0 | O122: 0 | P122: 0 | Q122: 0 | S122: 0 | T122: 0
B124: Customer contributions (directs) total | C124: £m | D124: 47.9 | E124: 34.2 | F124: 74.4 | G124: 47.7 | H124: 49.6 | I124: 50.6 | J124: 53 | K124: 56.9 | L124: 60.2 | M124: 63.6 | O124: 156.5 | P124: 97.3 | Q124: 253.8 | S124: 284.3 | T124: 0.1201733649
B125: Customer contributions (indirects) | C125: £m | D125: 12.7 | E125: 16.3 | F125: 7.4 | G125: 2.6 | H125: 4.5 | I125: 5.7 | J125: 5.9 | K125: 6.3 | L125: 6.7 | M125: 7 | O125: 36.4 | P125: 7.1 | Q125: 43.5 | S125: 31.6 | T125: -0.2735632184
B126: Customer contributions total | C126: £m | D126: 60.6 | E126: 50.5 | F126: 81.8 | G126: 50.3 | H126: 54.1 | I126: 56.3 | J126: 58.9 | K126: 63.2 | L126: 66.9 | M126: 70.6 | O126: 192.9 | P126: 104.4 | Q126: 297.3 | S126: 315.9 | T126: 0.06256306761
B128: Total inc. exp on DSM to avoid customer spec investment (net of cust cont) | C128: £m | D128: -6.369416693 | E128: -11.6620986 | F128: 9.874549508 | G128: 10.32619724 | H128: 11.58275266 | I128: 11.53479854 | J128: 10.05687924 | K128: 10.35393834 | L128: 10.37265411 | M128: 10.74822988 | O128: -8.156965788 | P128: 21.90894991 | Q128: 13.75198412 | S128: 53.0665001 | T128: 2.858824998
C131: Units | D131: DPCR4 | I131: DPCR5 | O131: DPCR4 | S131: DPCR5
D132: 2005/06 | E132: 2006/07 | F132: 2007/08 | G132: 2008/09 | H132: 2009/10 | I132: 2010/11 | J132: 2011/12 | K132: 2012/13 | L132: 2013/14 | M132: 2014/15 | O132: Actuals | P132: Forecast | Q132: Total | S132: Forecast | T132: % change
B133: Unapportioned part of shared LV | C133: £m | D133: 5.065151786 | E133: 3.570736756 | F133: 9.855014972 | G133: 5.428514551 | H133: 2.722357909 | I133: 2.716903985 | J133: 2.897627597 | K133: 3.274618761 | L133: 3.456395811 | M133: 3.729024247 | O133: 18.49090351 | P133: 8.15087246 | Q133: 26.64177597 | S133: 16.0745704 | T133: -0.3966404336
B134: Unapportioned part of shared HV | C134: £m | D134: 1.266365804 | E134: 0.867995917 | F134: 7.221006465 | G134: 7.64964547 | H134: 13.57880259 | I134: 14.75764699 | J134: 13.3476136 | K134: 13.72585939 | L134: 14.00883858 | M134: 14.48135828 | O134: 9.355368186 | P134: 21.22844806 | Q134: 30.58381624 | S134: 70.32131684 | T134: 1.299298304
B135: Unapportioned part of shared EHV | C135: £m | D135: -0.0009342832356 | E135: 0.1991687251 | F135: 0.1985280708 | G135: 0 | H135: 0 | I135: 0 | J135: 0 | K135: 0 | L135: 0 | M135: 0 | O135: 0.3967625127 | P135: 0 | Q135: 0.3967625127 | S135: 0 | T135: -1
B136: Unapportioned part of shared 132kV | C136: £m | D136: 0 | E136: 0 | F136: 0 | G136: 0 | H136: 0 | I136: 0 | J136: 0 | K136: 0 | L136: 0 | M136: 0 | O136: 0 | P136: 0 | Q136: 0 | S136: 0 | T136: 0

Sheet FBPQ LR1 - V5 opt3
A1: Main Forecast Business Plan DPCR5
A3: LR1a - Demand - metered connections
B6: Demand Totals - Table 1
C8: Units | D8: DPCR4 | I8: DPCR5 | O8: DPCR4 | S8: DPCR5
D9: 2005/06 | E9: 2006/07 | F9: 2007/08 | G9: 2008/09 | H9: 2009/10 | I9: 2010/11 | J9: 2011/12 | K9: 2012/13 | L9: 2013/14 | M9: 2014/15 | O9: Actuals | P9: Forecast | Q9: Total | S9: Forecast | T9: % change
B10: Gross all connections costs | C10: £m | D10: =SUM(D178,D217,D240) -> 0 | E10: 0 | F10: 0 | G10: 0 | H10: 0 | I10: 0 | J10: 0 | K10: 0 | L10: 0 | M10: 0 | O10: =SUM(D10:G10) -> 0 | P10: =SUM(H10) -> 0 | Q10: =SUM(D10:H10) -> 0 | S10: =SUM(I10:M10) -> 0 | T10: =IF(Q10<>0,(S10-Q10)/Q10,"0") -> 0
B11: Gross direct connections costs subject to apportionment rule | C11: £m | D11: =D240 -> 0 | E11: 0 | F11: 0 | G11: 0 | H11: 0 | I11: 0 | J11: 0 | K11: 0 | L11: 0 | M11: 0 | O11: 0 | P11: 0 | Q11: 0 | S11: 0 | T11: 0
B12: Customer contributions excluding margins | C12: £m | D12: =D263 -> 0 | E12: 0 | F12: 0 | G12: 0 | H12: 0 | I12: 0 | J12: 0 | K12: 0 | L12: 0 | M12: 0 | O12: 0 | P12: 0 | Q12: 0 | S12: 0 | T12: 0
B13: Net (gross directs subject to apportionment rule - customer contributions directs) | C13: £m | D13: =D11-D12 -> 0 | E13: 0 | F13: 0 | G13: 0 | H13: 0 | I13: 0 | J13: 0 | K13: 0 | L13: 0 | M13: 0 | O13: 0 | P13: 0 | Q13: 0 | S13: 0 | T13: 0
B14: DUOS funded related party margin | C14: £m | M14: 0.3 | O14: 0 | P14: 0 | Q14: 0 | S14: 0.3 | T14: 0
B15: Net (gross directs subject to apportionment rule - customer contributions directs + DUOS funded related party margin) | C15: £m | D15: =D13+D14 -> 0 | E15: 0 | F15: 0 | G15: 0 | H15: 0 | I15: 0 | J15: 0 | K15: 0 | L15: 0 | M15: 0.3 | O15: 0 | P15: 0 | Q15: 0 | S15: 0.3 | T15: 0
B16: Check | D16: =IF(D13-SUM(D31,D35,D39,D43)=0,"OK","ERROR") -> OK | E16: OK | F16: OK | G16: OK | H16: OK | I16: OK | J16: OK | K16: OK | L16: OK | M16: OK
D18: DPCR4 | I18: DPCR5 | O18: DPCR4 | S18: DPCR5
C19: Units | D19: 2005/06 | E19: 2006/07 | F19: 2007/08 | G19: 2008/09 | H19: 2009/10 | I19: 2010/11 | J19: 2011/12 | K19: 2012/13 | L19: 2013/14 | M19: 2014/15 | O19: Actuals | P19: Forecast | Q19: Total | S19: Forecast | T19: % change
B20: Pensions with total gross direct connections costs | C20: £m | O20: =SUM(D20:G20) -> 0 | P20: =SUM(H20) -> 0 | Q20: =SUM(D20:H20) -> 0 | S20: =SUM(I20:M20) -> 0 | T20: =IF(Q20<>0,(S20-Q20)/Q20,"0") -> 0
B21: Pensions with direct connections costs subject to apportionment rule | C21: £m | O21: =SUM(D21:G21) -> 0 | P21: =SUM(H21) -> 0 | Q21: =SUM(D21:H21) -> 0 | S21: =SUM(I21:M21) -> 0 | T21: =IF(Q21<>0,(S21-Q21)/Q21,"0") -> 0
B22: Total | C22: £m | D22: =D20+D21 -> 0 | E22: 0 | F22: 0 | G22: 0 | H22: 0 | I22: 0 | J22: 0 | K22: 0 | L22: 0 | M22: 0 | O22: =SUM(D22:G22) -> 0 | P22: =SUM(H22) -> 0 | Q22: =SUM(D22:H22) -> 0 | S22: =SUM(I22:M22) -> 0 | T22: =IF(Q22<>0,(S22-Q22)/Q22,"0") -> 0
B24: Connections expenditure recovered via DUoS - Table 2
C26: Units | D26: DPCR4 | I26: DPCR5 | O26: DPCR4 | S26: DPCR5
D27: 2005/06 | E27: 2006/07 | F27: 2007/08 | G27: 2008/09 | H27: 2009/10 | I27: 2010/11 | J27: 2011/12 | K27: 2012/13 | L27: 2013/14 | M27: 2014/15 | O27: Actuals | P27: Forecast | Q27: Total | S27: Forecast | T27: % change
B28: Customer contributions (directs) for connections at LV
B29: Small scale LV domestic and one-off commercial | C29: £m | I29: =I225-I248 -> 0 | J29: 0 | K29: 0 | L29: 0 | M29: 0
B30: All other LV (with only LV work) | C30: £m | I30: 0 | J30: 0 | K30: 0 | L30: 0 | M30: 0
B31: LV total | C31: £m | D31: =D227-D250 -> 0 | E31: =E227-E250 -> 0 | F31: =F227-F250 -> 0 | G31: =G227-G250 -> 0 | H31: =H227-H250 -> 0 | I31: =SUM(I29:I30) -> 0 | J31: =SUM(J29:J30) -> 0 | K31: =SUM(K29:K30) -> 0 | L31: =SUM(L29:L30) -> 0 | M31: =SUM(M29:M30) -> 0 | O31: =SUM(D31:G31) -> 0 | P31: =SUM(H31) -> 0 | Q31: =SUM(D31:H31) -> 0 | S31: =SUM(I31:M31) -> 0 | T31: =IF(Q31<>0,(S31-Q31)/Q31,"0") -> 0
B32: Customer contributions (directs) for connections at HV
B33: LV end connections involving HV work | C33: £m | I33: =I229-I252 -> 0 | J33: 0 | K33: 0 | L33: 0 | M33: 0
B34: HV end connections involving only HV work | C34: £m | I34: 0 | J34: 0 | K34: 0 | L34: 0 | M34: 0
B35: HV total | C35: £m | D35: =D231-D254 -> 0 | E35: =E231-E254 -> 0 | F35: =F231-F254 -> 0 | G35: =G231-G254 -> 0 | H35: =H231-H254 -> 0 | I35: =SUM(I33:I34) -> 0 | J35: =SUM(J33:J34) -> 0 | K35: =SUM(K33:K34) -> 0 | L35: =SUM(L33:L34) -> 0 | M35: =SUM(M33:M34) -> 0 | O35: =SUM(D35:G35) -> 0 | P35: =SUM(H35) -> 0 | Q35: =SUM(D35:H35) -> 0 | S35: =SUM(I35:M35) -> 0 | T35: =IF(Q35<>0,(S35-Q35)/Q35,"0") -> 0
B36: Customer contributions (directs) for connections at EHV
B37: HV end connections involving EHV work | C37: £m | I37: =I233-I256 -> 0 | J37: 0 | K37: 0 | L37: 0 | M37: 0
B38: EHV end connections involving only EHV work | C38: £m | I38: 0 | J38: 0 | K38: 0 | L38: 0 | M38: 0
B39: EHV total | C39: £m | D39: =D235-D258 -> 0 | E39: =E235-E258 -> 0 | F39: =F235-F258 -> 0 | G39: =G235-G258 -> 0 | H39: =H235-H258 -> 0 | I39: =SUM(I37:I38) -> 0 | J39: =SUM(J37:J38) -> 0 | K39: =SUM(K37:K38) -> 0 | L39: =SUM(L37:L38) -> 0 | M39: =SUM(M37:M38) -> 0 | O39: =SUM(D39:G39) -> 0 | P39: =SUM(H39) -> 0 | Q39: =SUM(D39:H39) -> 0 | S39: =SUM(I39:M39) -> 0 | T39: =IF(Q39<>0,(S39-Q39)/Q39,"0") -> 0
B40: Customer contributions (directs) for connections at 132kV
B41: HV or EHV connections involving 132kV work | C41: £m | I41: =I237-I260 -> 0 | J41: 0 | K41: 0 | L41: 0 | M41: 0
B42: 132kV end connections involving only 132kV work | C42: £m | I42: 0 | J42: 0 | K42: 0 | L42: 0 | M42: 0
B43: 132kV total | C43: £m | D43: =D239-D262 -> 0 | E43: =E239-E262 -> 0 | F43: =F239-F262 -> 0 | G43: =G239-G262 -> 0 | H43: =H239-H262 -> 0 | I43: =SUM(I41:I42) -> 0 | J43: =SUM(J41:J42) -> 0 | K43: =SUM(K41:K42) -> 0 | L43: =SUM(L41:L42) -> 0 | M43: =SUM(M41:M42) -> 0 | O43: =SUM(D43:G43) -> 0 | P43: =SUM(H43) -> 0 | Q43: =SUM(D43:H43) -> 0 | S43: =SUM(I43:M43) -> 0 | T43: =IF(Q43<>0,(S43-Q43)/Q43,"0") -> 0
B46: Metered connections volume - Table 3
C48: Units | D48: DPCR4 | I48: DPCR5
D49: 2005/06 | E49: 2006/07 | F49: 2007/08 | G49: 2008/09 | H49: 2009/10 | I49: 2010/11 | J49: 2011/12 | K49: 2012/13 | L49: 2013/14 | M49: 2014/15
B50: Metered connections
B51: Estimated number demand connections at LV
B52: IDNO connections | C52: # | D52: =D83+D114 -> 0 | E52: 0 | F52: 0 | G52: 0 | H52: 0 | I52: 0 | J52: 0 | K52: 0 | L52: 0 | M52: 0
B53: Adopted connections | D53: =D84+D115 -> 0 | E53: 0 | F53: 0 | G53: 0 | H53: 0 | I53: 0 | J53: 0 | K53: 0 | L53: 0 | M53: 0
B54: Small scale LV domestic and one-off commercial connections | I54: =I85+I116 -> 0 | J54: 0 | K54: 0 | L54: 0 | M54: 0
B55: All other LV connections (with only LV work) | C55: # | I55: 0 | J55: 0 | K55: 0 | L55: 0 | M55: 0
B56: DNO total LV | D56: =D87+D118 -> 0 | E56: =E87+E118 -> 0 | F56: =F87+F118 -> 0 | G56: =G87+G118 -> 0 | H56: =H87+H118 -> 0 | I56: 0 | J56: 0 | K56: 0 | L56: 0 | M56: 0
B57: Estimated number demand connections at HV
B58: IDNO connections | C58: # | D58: =D89+D120 -> 0 | E58: 0 | F58: 0 | G58: 0 | H58: 0 | I58: 0 | J58: 0 | K58: 0 | L58: 0 | M58: 0
B59: Adopted connections | D59: =D90+D121 -> 0 | E59: 0 | F59: 0 | G59: 0 | H59: 0 | I59: 0 | J59: 0 | K59: 0 | L59: 0 | M59: 0
B60: LV end connections involving HV work | I60: =I91+I122 -> 0 | J60: 0 | K60: 0 | L60: 0 | M60: 0
B61: HV end connections involving only HV work | C61: # | I61: 0 | J61: 0 | K61: 0 | L61: 0 | M61: 0
B62: DNO total HV | D62: =D93+D124 -> 0 | E62: =E93+E124 -> 0 | F62: =F93+F124 -> 0 | G62: =G93+G124 -> 0 | H62: =H93+H124 -> 0 | I62: 0 | J62: 0 | K62: 0 | L62: 0 | M62: 0
B63: Estimated number demand connections at EHV
B64: IDNO connections | C64: # | D64: =D95+D126 -> 0 | E64: 0 | F64: 0 | G64: 0 | H64: 0 | I64: 0 | J64: 0 | K64: 0 | L64: 0 | M64: 0
B65: Adopted connections | D65: =D96+D127 -> 0 | E65: 0 | F65: 0 | G65: 0 | H65: 0 | I65: 0 | J65: 0 | K65: 0 | L65: 0 | M65: 0
B66: HV end connections involving EHV work | I66: =I97+I128 -> 0 | J66: 0 | K66: 0 | L66: 0 | M66: 0
B67: EHV end connections involving only EHV work | C67: # | I67: 0 | J67: 0 | K67: 0 | L67: 0 | M67: 0
B68: DNO total EHV | D68: =D99+D130 -> 0 | E68: =E99+E130 -> 0 | F68: =F99+F130 -> 0 | G68: =G99+G130 -> 0 | H68: =H99+H130 -> 0 | I68: 0 | J68: 0 | K68: 0 | L68: 0 | M68: 0
B69: Estimated number demand connections at 132kV
B70: IDNO connections | C70: # | D70: =D101+D132 -> 0 | E70: 0 | F70: 0 | G70: 0 | H70: 0 | I70: 0 | J70: 0 | K70: 0 | L70: 0 | M70: 0
B71: Adopted connections | D71: =D102+D133 -> 0 | E71: 0 | F71: 0 | G71: 0 | H71: 0 | I71: 0 | J71: 0 | K71: 0 | L71: 0 | M71: 0
B72: HV or EHV connections involving 132kV work | I72: =I103+I134 -> 0 | J72: 0 | K72: 0 | L72: 0 | M72: 0
B73: 132kV end connections involving only 132kV work | C73: # | I73: 0 | J73: 0 | K73: 0 | L73: 0 | M73: 0
B74: DNO total 132kV | D74: =D105+D136 -> 0 | E74: =E105+E136 -> 0 | F74: =F105+F136 -> 0 | G74: =G105+G136 -> 0 | H74: =H105+H136 -> 0 | I74: 0 | J74: 0 | K74: 0 | L74: 0 | M74: 0
B75: Total number of demand connections | C75: # | D75: =SUM(D52:D55,D58:D61,D64:D67,D70:D73) -> 0 | E75: 0 | F75: 0 | G75: 0 | H75: 0 | I75: 0 | J75: 0 | K75: 0 | L75: 0 | M75: 0
B77: Metered connections volume - Sole use connections where there is no associated expenditure subject to the apportionment rule - Table 4
C79: Units | D79: DPCR4 | I79: DPCR5
D80: 2005/06 | E80: 2006/07 | F80: 2007/08 | G80: 2008/09 | H80: 2009/10 | I80: 2010/11 | J80: 2011/12 | K80: 2012/13 | L80: 2013/14 | M80: 2014/15
B81: Metered connections
B82: Estimated number demand connections at LV
B83: IDNO connections | C83: #
B84: Adopted connections
B85: Small scale LV domestic and one-off commercial connections
B86: All other LV connections (with only LV work) | C86: #
B87: DNO total LV | I87: =SUM(I85:I86) -> 0 | J87: =SUM(J85:J86) -> 0 | K87: =SUM(K85:K86) -> 0 | L87: =SUM(L85:L86) -> 0 | M87: =SUM(M85:M86) -> 0
B88: Estimated number demand connections with HV work
B89: IDNO connections | C89: #
B90: Adopted connections
B91: LV end connections involving HV work
B92: HV end connections involving only HV work | C92: #
B93: DNO total HV | I93: =SUM(I91:I92) -> 0 | J93: =SUM(J91:J92) -> 0 | K93: =SUM(K91:K92) -> 0 | L93: =SUM(L91:L92) -> 0 | M93: =SUM(M91:M92) -> 0
B94: Estimated number demand connections with EHV work
B95: IDNO connections | C95: #
B96: Adopted connections
B97: HV end connections involving EHV work
B98: EHV end connections involving only EHV work | C98: #
B99: DNO total EHV | I99: =SUM(I97:I98) -> 0 | J99: =SUM(J97:J98) -> 0 | K99: =SUM(K97:K98) -> 0 | L99: =SUM(L97:L98) -> 0 | M99: =SUM(M97:M98) -> 0
B100: Estimated number demand connections with 132kV work
B101: IDNO connections | C101: #
B102: Adopted connections
B103: HV or EHV connections involving 132kV work
B104: 132kV end connections involving only 132kV work | C104: #
B105: DNO total 132kV | I105: =SUM(I103:I104) -> 0 | J105: =SUM(J103:J104) -> 0 | K105: =SUM(K103:K104) -> 0 | L105: =SUM(L103:L104) -> 0 | M105: =SUM(M103:M104) -> 0
B106: Total number of demand connections | C106: # | D106: =SUM(D83:D84,D87,D89:D90,D93,D95:D96,D99,D101:D102,D105) -> 0 | E106: 0 | F106: 0 | G106: 0 | H106: 0 | I106: 0 | J106: 0 | K106: 0 | L106: 0 | M106: 0
B108: Metered connections volume - Connections where there is associated expenditure subject to the apportionment rule - Table 5
C110: Units | D110: DPCR4 | I110: DPCR5
D111: 2005/06 | E111: 2006/07 | F111: 2007/08 | G111: 2008/09 | H111: 2009/10 | I111: 2010/11 | J111: 2011/12 | K111: 2012/13 | L111: 2013/14 | M111: 2014/15
B112: Metered connections
B113: Estimated number demand connections at LV
B114: IDNO connections | C114: #
B115: Adopted connections
B116: Small scale LV domestic and one-off commercial connections
B117: All other LV connections (with only LV work) | C117: #
B118: DNO total LV | I118: =SUM(I116:I117) -> 0 | J118: =SUM(J116:J117) -> 0 | K118: =SUM(K116:K117) -> 0 | L118: =SUM(L116:L117) -> 0 | M118: =SUM(M116:M117) -> 0
B119: Estimated number demand connections with HV work
B120: IDNO connections | C120: #
B121: Adopted connections
B122: LV end connections involving HV work
B123: HV end connections involving only HV work | C123: #
B124: DNO total HV | I124: =SUM(I122:I123) -> 0 | J124: =SUM(J122:J123) -> 0 | K124: =SUM(K122:K123) -> 0 | L124: =SUM(L122:L123) -> 0 | M124: =SUM(M122:M123) -> 0
B125: Estimated number demand connections with EHV work
B126: IDNO connections | C126: #
B127: Adopted connections
B128: HV end connections involving EHV work
B129: EHV end connections involving only EHV work | C129: #
B130: DNO total EHV | I130: =SUM(I128:I129) -> 0 | J130: =SUM(J128:J129) -> 0 | K130: =SUM(K128:K129) -> 0 | L130: =SUM(L128:L129) -> 0 | M130: =SUM(M128:M129) -> 0
B131: Estimated number demand connections with 132kV work
B132: IDNO connections | C132: #
B133: Adopted connections
B134: HV or EHV connections involving 132kV work
B135: 132kV end connections involving only 132kV work | C135: #
B136: DNO total 132kV | I136: =SUM(I134:I135) -> 0 | J136: =SUM(J134:J135) -> 0 | K136: =SUM(K134:K135) -> 0 | L136: =SUM(L134:L135) -> 0 | M136: =SUM(M134:M135) -> 0
B137: Total number of demand connections | C137: # | D137: =SUM(D114:D115,D118,D120:D121,D124,D126:D127,D130,D132:D133,D136) -> 0 | E137: 0 | F137: 0 | G137: 0 | H137: 0 | I137: 0 | J137: 0 | K137: 0 | L137: 0 | M137: 0
B141: Customer specific demand investment - Sole use expenditure where there is no associated expenditure subject to the apportionment rule - Table 6
C143: Units | D143: DPCR4 | I143: DPCR5 | O143: DPCR4 | S143: DPCR5
D144: 2005/06 | E144: 2006/07 | F144: 2007/08 | G144: 2008/09 | H144: 2009/10 | I144: 2010/11 | J144: 2011/12 | K144: 2012/13 | L144: 2013/14 | M144: 2014/15 | O144: Actuals | P144: Forecast | Q144: Total | S144: Forecast | T144: % change
B145: New connections & customer specific reinforcement:
B146: Connections provided at LV
B147: Small scale LV domestic and one-off commercial | C147: £m
B148: Ratio - small scale LV domestic and one-off commercial - non-contestable | C148: %
B149: Ratio - small scale LV domestic and one-off commercial - contestable | C149: % | I149: =1-I148 -> 1 | J149: =1-J148 -> 1 | K149: =1-K148 -> 1 | L149: =1-L148 -> 1 | M149: =1-M148 -> 1
B150: All other LV (with only LV work) | C150: £m
B151: Ratio - all other LV (with only LV work) - non-contestable | C151: %
B152: Ratio - all other LV (with only LV work) - contestable | C152: % | I152: =1-I151 -> 1 | J152: =1-J151 -> 1 | K152: =1-K151 -> 1 | L152: =1-L151 -> 1 | M152: =1-M151 -> 1
B153: LV total | C153: £m | I153: =SUM(I147,I150) -> 0 | J153: =SUM(J147,J150) -> 0 | K153: =SUM(K147,K150) -> 0 | L153: =SUM(L147,L150) -> 0 | M153: =SUM(M147,M150) -> 0 | O153: =SUM(D153:G153) -> 0 | P153: =SUM(H153) -> 0 | Q153: =SUM(D153:H153) -> 0 | S153: =SUM(I153:M153) -> 0 | T153: =IF(Q153<>0,(S153-Q153)/Q153,"0") -> 0
B154: Connections with HV work
B155: LV end connections involving HV work | C155: £m
B156: Ratio - LV end connections involving HV work - non-contestable | C156: %
B157: Ratio - LV end connections involving HV work - contestable | C157: % | I157: =1-I156 -> 1 | J157: =1-J156 -> 1 | K157: =1-K156 -> 1 | L157: =1-L156 -> 1 | M157: =1-M156 -> 1
B158: HV end connections involving only HV work | C158: £m
B159: Ratio - HV end connections involving only HV work - non-contestable | C159: %
B160: Ratio - HV end connections involving only HV work - contestable | C160: % | I160: =1-I159 -> 1 | J160: =1-J159 -> 1 | K160: =1-K159 -> 1 | L160: =1-L159 -> 1 | M160: =1-M159 -> 1
B161: HV total | C161: £m | I161: =SUM(I155,I158) -> 0 | J161: =SUM(J155,J158) -> 0 | K161: =SUM(K155,K158) -> 0 | L161: =SUM(L155,L158) -> 0 | M161: =SUM(M155,M158) -> 0 | O161: =SUM(D161:G161) -> 0 | P161: =SUM(H161) -> 0 | Q161: =SUM(D161:H161) -> 0 | S161: =SUM(I161:M161) -> 0 | T161: =IF(Q161<>0,(S161-Q161)/Q161,"0") -> 0
B162: Connections with EHV work
B163: HV end connections involving EHV work | C163: £m
B164: Ratio - HV end connections involving EHV work - non-contestable | C164: %
B165: Ratio - HV end connections involving EHV work - contestable | C165: % | I165: =1-I164 -> 1 | J165: =1-J164 -> 1 | K165: =1-K164 -> 1 | L165: =1-L164 -> 1 | M165: =1-M164 -> 1
B166: EHV end connections involving only EHV work | C166: £m
B167: Ratio - EHV end connections involving only EHV work - non-contestable | C167: %
B168: Ratio - EHV end connections involving only EHV work - contestable | C168: % | I168: =1-I167 -> 1 | J168: =1-J167 -> 1 | K168: =1-K167 -> 1 | L168: =1-L167 -> 1 | M168: =1-M167 -> 1
B169: EHV total | C169: £m | I169: =SUM(I163,I166) -> 0 | J169: =SUM(J163,J166) -> 0 | K169: =SUM(K163,K166) -> 0 | L169: =SUM(L163,L166) -> 0 | M169: =SUM(M163,M166) -> 0 | O169: =SUM(D169:G169) -> 0 | P169: =SUM(H169) -> 0 | Q169: =SUM(D169:H169) -> 0 | S169: =SUM(I169:M169) -> 0 | T169: =IF(Q169<>0,(S169-Q169)/Q169,"0") -> 0
B170: Connections with 132kV work
B171: HV or EHV connections involving 132kV work | C171: £m
B172: Ratio - HV or EHV connections involving 132kV work - non-contestable | C172: %
B173: Ratio - HV or EHV connections involving 132kV work - contestable | C173: % | I173: =1-I172 -> 1 | J173: =1-J172 -> 1 | K173: =1-K172 -> 1 | L173: =1-L172 -> 1 | M173: =1-M172 -> 1
B174: 132kV end connections involving only 132kV work | C174: £m
B175: Ratio - 132kV end connections involving only 132kV work - non-contestable | C175: %
B176: Ratio - 132kV end connections involving only 132kV work - contestable | C176: % | I176: =1-I175 -> 1 | J176: =1-J175 -> 1 | K176: =1-K175 -> 1 | L176: =1-L175 -> 1 | M176: =1-M175 -> 1
B177: 132kV total | C177: £m | I177: =SUM(I171,I174) -> 0 | J177: =SUM(J171,J174) -> 0 | K177: =SUM(K171,K174) -> 0 | L177: =SUM(L171,L174) -> 0 | M177: =SUM(M171,M174) -> 0 | O177: =SUM(D177:G177) -> 0 | P177: =SUM(H177) -> 0 | Q177: =SUM(D177:H177) -> 0 | S177: =SUM(I177:M177) -> 0 | T177: =IF(Q177<>0,(S177-Q177)/Q177,"0") -> 0
B178: Total sole use expenditure where there is no expenditure subject to the apportionment rule | D178: =SUM(D153,D161,D169,D177) -> 0 | E178: 0 | F178: 0 | G178: 0 | H178: 0 | I178: 0 | J178: 0 | K178: 0 | L178: 0 | M178: 0 | O178: =SUM(O153,O161,O169,O177) -> 0 | P178: =SUM(P153,P161,P169,P177) -> 0 | Q178: =SUM(Q153,Q161,Q169,Q177) -> 0 | S178: =SUM(S153,S161,S169,S177) -> 0 | T178: =IF(Q178<>0,(S178-Q178)/Q178,"0") -> 0
B180: Customer specific demand investment - sole use expenditure where there is also associated expenditure subject to the apportionment rule - Table 7
D182: DPCR4 | I182: DPCR5 | O182: DPCR4 | S182: DPCR5
B183: Customer specific demand investment | C183: Units | D183: 2005/06 | E183: 2006/07 | F183: 2007/08 | G183: 2008/09 | H183: 2009/10 | I183: 2010/11 | J183: 2011/12 | K183: 2012/13 | L183: 2013/14 | M183: 2014/15 | O183: Actuals | P183: Forecast | Q183: Total | S183: Forecast | T183: % change
B184: New connections & customer specific reinforcement:
B185: Connections provided at LV
B186: Small scale LV domestic and one-off commercial | C186: £m
B187: Ratio - small scale LV domestic and one-off commercial - non-contestable | C187: %
B188: Ratio - small scale LV domestic and one-off commercial - contestable | C188: % | I188: =1-I187 -> 1 | J188: =1-J187 -> 1 | K188: =1-K187 -> 1 | L188: =1-L187 -> 1 | M188: =1-M187 -> 1
B189: All other LV (with only LV work) | C189: £m
B190: Ratio - all other LV (with only LV work) - non-contestable | C190: %
B191: Ratio - all other LV (with only LV work) - contestable | C191: % | I191: =1-I190 -> 1 | J191: =1-J190 -> 1 | K191: =1-K190 -> 1 | L191: =1-L190 -> 1 | M191: =1-M190 -> 1
B192: LV total | C192: £m | I192: =SUM(I186,I189) -> 0 | J192: =SUM(J186,J189) -> 0 | K192: =SUM(K186,K189) -> 0 | L192: =SUM(L186,L189) -> 0 | M192: =SUM(M186,M189) -> 0 | O192: =SUM(D192:G192) -> 0 | P192: =SUM(H192) -> 0 | Q192: =SUM(D192:H192) -> 0 | S192: =SUM(I192:M192) -> 0 | T192: =IF(Q192<>0,(S192-Q192)/Q192,"0") -> 0
B193: Connections with HV work
B194: LV end connections involving HV work | C194: £m
B195: Ratio - LV end connections involving HV work - non-contestable | C195: %
B196: Ratio - LV end connections involving HV work - contestable | C196: % | I196: =1-I195 -> 1 | J196: =1-J195 -> 1 | K196: =1-K195 -> 1 | L196: =1-L195 -> 1 | M196: =1-M195 -> 1
B197: HV end connections involving only HV work | C197: £m
B198: Ratio - HV end connections involving only HV work - non-contestable | C198: %
B199: Ratio - HV end connections involving only HV work - contestable | C199: % | I199: =1-I198 -> 1 | J199: =1-J198 -> 1 | K199: =1-K198 -> 1 | L199: =1-L198 -> 1 | M199: =1-M198 -> 1
B200: HV total | C200: £m | I200: =SUM(I194,I197) -> 0 | J200: =SUM(J194,J197) -> 0 | K200: =SUM(K194,K197) -> 0 | L200: =SUM(L194,L197) -> 0 | M200: =SUM(M194,M197) -> 0 | O200: =SUM(D200:G200) -> 0 | P200: =SUM(H200) -> 0 | Q200: =SUM(D200:H200) -> 0 | S200: =SUM(I200:M200) -> 0 | T200: =IF(Q200<>0,(S200-Q200)/Q200,"0") -> 0
B201: Connections with EHV work
B202: HV end connections involving EHV work | C202: £m
B203: Ratio - HV end connections involving EHV work - non-contestable | C203: %
B204: Ratio - HV end connections involving EHV work - contestable | C204: % | I204: =1-I203 -> 1 | J204: =1-J203 -> 1 | K204: =1-K203 -> 1 | L204: =1-L203 -> 1 | M204: =1-M203 -> 1
B205: EHV end connections involving only EHV work | C205: £m
B206: Ratio - EHV end connections involving only EHV work - non-contestable | C206: %
B207: Ratio - EHV end connections involving only EHV work - contestable | C207: % | I207: =1-I206 -> 1 | J207: =1-J206 -> 1 | K207: =1-K206 -> 1 | L207: =1-L206 -> 1 | M207: =1-M206 -> 1
B208: EHV total | C208: £m | I208: =SUM(I202,I205) -> 0 | J208: =SUM(J202,J205) -> 0 | K208: =SUM(K202,K205) -> 0 | L208: =SUM(L202,L205) -> 0 | M208: =SUM(M202,M205) -> 0 | O208: =SUM(D208:G208) -> 0 | P208: =SUM(H208) -> 0 | Q208: =SUM(D208:H208) -> 0 | S208: =SUM(I208:M208) -> 0 | T208: =IF(Q208<>0,(S208-Q208)/Q208,"0") -> 0
B209: Connections with 132kV work
B210: HV or EHV connections involving 132kV work | C210: £m
B211: Ratio - HV or EHV connections involving 132kV work - non-contestable | C211: %
B212: Ratio - HV or EHV connections involving 132kV work - contestable | C212: % | I212: =1-I211 -> 1 | J212: =1-J211 -> 1 | K212: =1-K211 -> 1 | L212: =1-L211 -> 1 | M212: =1-M211 -> 1
B213: 132kV end connections involving only 132kV work | C213: £m
B214: Ratio - 132kV end connections involving only 132kV work - non-contestable | C214: %
B215: Ratio - 132kV end connections involving only 132kV work - contestable | C215: % | I215: =1-I214 -> 1 | J215: =1-J214 -> 1 | K215: =1-K214 -> 1 | L215: =1-L214 -> 1 | M215: =1-M214 -> 1
B216: 132kV total | C216: £m | I216: =SUM(I210,I213) -> 0 | J216: =SUM(J210,J213) -> 0 | K216: =SUM(K210,K213) -> 0 | L216: =SUM(L210,L213) -> 0 | M216: =SUM(M210,M213) -> 0 | O216: =SUM(D216:G216) -> 0 | P216: =SUM(H216) -> 0 | Q216: =SUM(D216:H216) -> 0 | S216: =SUM(I216:M216) -> 0 | T216: =IF(Q216<>0,(S216-Q216)/Q216,"0") -> 0
B217: Total sole use expenditure where there is also expenditure subject to the apportionment rule | D217: =SUM(D192,D200,D208,D216) -> 0 | E217: 0 | F217: 0 | G217: 0 | H217: 0 | I217: 0 | J217: 0 | K217: 0 | L217: 0 | M217: 0 | O217: =SUM(O192,O200,O208,O216) -> 0 | P217: =SUM(P192,P200,P208,P216) -> 0 | Q217: =SUM(Q192,Q200,Q208,Q216) -> 0 | S217: =SUM(S192,S200,S208,S216) -> 0 | T217: =IF(Q217<>0,(S217-Q217)/Q217,"0") -> 0
B219: Customer specific demand investment - all expenditure subject to the apportionment rule - Table 8
D221: DPCR4 | I221: DPCR5 | O221: DPCR4 | S221: DPCR5
B222: Customer specific demand investment | C222: Units | D222: 2005/06 | E222: 2006/07 | F222: 2007/08 | G222: 2008/09 | H222: 2009/10 | I222: 2010/11 | J222: 2011/12 | K222: 2012/13 | L222: 2013/14 | M222: 2014/15 | O222: Actuals | P222: Forecast | Q222: Total | S222: Forecast | T222: % change
... 39 more rows

Sheet FBPQ LR4
A1: June Forecast Business Plan DPCR5
A2: EDFE SPN
A3: LR4 - General reinforcement
B5: General reinforcement expenditure
D7: DPCR4 | I7: DPCR5 | O7: DPCR4 | S7: DPCR5
D8: 2005/06 | E8: 2006/07 | F8: 2007/08 | G8: 2008/09 | H8: 2009/10 | I8: 2010/11 | J8: 2011/12 | K8: 2012/13 | L8: 2013/14 | M8: 2014/15 | O8: Actuals | P8: Forecast | Q8: Total | S8: Forecast | T8: % change
D9: (£m) | E9: (£m) | F9: (£m) | G9: (£m) | H9: (£m) | I9: (£m) | J9: (£m) | K9: (£m) | L9: (£m) | M9: (£m) | O9: (£m) | P9: (£m) | Q9: (£m) | S9: (£m) | T9: (£m)
C10: General reinforcement:
C11: LV System | D11: 0.5978778702 | E11: 1.493041332 | F11: 1.296060677 | G11: 1.450155278 | H11: 0.7776191628 | I11: 0.9535202748 | J11: 0.9310333715 | K11: 0.9293410952 | L11: 0.9288514612 | M11: 0.9373135468 | O11: =SUM(D11:G11) -> 4.837135157 | P11: =H11 -> 0.7776191628 | Q11: =SUM(D11:H11) -> 5.61475432 | S11: =SUM(I11:M11) -> 4.68005975 | T11: =IF(Q11<>0,(S11-Q11)/Q11,"0") -> -0.1664711432
C12: HV System | D12: 4.185145092 | E12: 5.275412707 | F12: 3.888182031 | G12: 3.234961774 | H12: 3.66591891 | I12: 4.343814585 | J12: 4.241374248 | K12: 4.233664989 | L12: 4.231434434 | M12: 4.269983935 | O12: 16.5837016 | P12: 3.66591891 | Q12: 20.24962051 | S12: 21.32027219 | T12: 0.05287267869
C13: EHV System | D13: 10.86144798 | E13: 6.668917951 | F13: 3.190303205 | G13: 0.223100812 | H13: 3.443742007 | I13: 18.32877862 | J13: 13.75860427 | K13: 15.07597777 | L13: 11.24942325 | M13: 12.28922206 | O13: 20.94376994 | P13: 3.443742007 | Q13: 24.38751195 | S13: 70.70200596 | T13: 1.899106974
C14: 132kV System | D14: 9.067814365 | E14: 12.24293892 | F14: 24.02697101 | G14: 14.72465359 | H14: 1.110884518 | I14: 5.933015043 | J14: 16.24135993 | K14: 22.20092616 | L14: 25.49181232 | M14: 26.45307121 | O14: 60.06237789 | P14: 1.110884518 | Q14: 61.17326241 | S14: 96.32018467 | T14: 0.5745471285
C15: Expenditure on DSM to avoid general reinforcement | G15: 0 | H15: 0 | I15: 0 | J15: 0 | K15: 0 | L15: 0 | M15: 0 | O15: 0 | P15: 0 | Q15: =SUM(D15:H15) -> 0 | S15: 0 | T15: 0
C16: Total | D16: 24.7122853 | E16: 25.68031092 | F16: 32.40151692 | G16: 19.63287145 | H16: 8.998164598 | I16: 29.55912852 | J16: 35.17237181 | K16: 42.43991002 | L16: 41.90152147 | M16: 43.94959075 | O16: 102.4269846 | P16: 8.998164598 | Q16: 111.4251492 | S16: 193.0225226 | T16: 0.7323066109
C18: Expenditure avoided due to DG | G18: 0 | H18: 0 | I18: 0 | J18: 0 | K18: 0 | L18: 0 | M18: 0 | O18: =SUM(D18:G18) -> 0 | P18: =H18 -> 0 | Q18: 0 | S18: =SUM(I18:M18) -> 0 | T18: =IF(Q18<>0,(S18-Q18)/Q18,"0") -> 0
C19: Expenditure avoided due to DSM | G19: 0 | H19: 0 | I19: 0 | J19: 0 | K19: 0 | L19: 0 | M19: 0 | O19: =SUM(D19:G19) -> 0 | P19: =H19 -> 0 | Q19: 0 | S19: =SUM(I19:M19) -> 0 | T19: =IF(Q19<>0,(S19-Q19)/Q19,"0") -> 0
B22: General reinforcement outputs
C24: Changes in general utilisation due to projected expenditure levels | D24: At 31st March 2010 | H24: At 31st March 2015 | L24: At 31st March 2010 | M24: At 31st March 2015
D25: 132kV-EHV | E25: 132kV - HV | F25: EHV - EHV | G25: EHV - HV | H25: 132kV-EHV | I25: 132kV - HV | J25: EHV - EHV | K25: EHV - HV | L25: Total | M25: Total
C26: Total number substations (operated by DNO) | L26: =SUM(D26:G26) -> 0 | M26: =SUM(H26:K26) -> 0
C27: Σ substation maximum demands | L27: =SUM(D27:G27) -> 0 | M27: =SUM(H27:K27) -> 0
C28: Σ substation firm capacities | L28: =SUM(D28:G28) -> 0 | M28: =SUM(H28:K28) -> 0
C29: Σ substation maximum demands / Σ substation firm capacities | D29: =IF(D27,D27/D28,"-") -> - | E29: =IF(E27,E27/E28,"-") -> - | F29: - | G29: - | H29: - | I29: - | J29: - | K29: - | L29: - | M29: -
C32: Changes in utilisation of highly loaded substations due to projected expenditure levels | D32: At 31st March 2010 | H32: At 31st March 2015 | L32: At 31st March 2010 | M32: At 31st March 2015
D33: 132kV-EHV | E33: 132kV - HV | F33: EHV - EHV | G33: EHV - HV | H33: 132kV-EHV | I33: 132kV - HV | J33: EHV - EHV | K33: EHV - HV | L33: Total | M33: Total
C34: Number of substations loaded >=80% of firm capacity | L34: =SUM(D34:G34) -> 0 | M34: =SUM(H34:K34) -> 0
C35: Σ substation maximum demands for substations loaded >=80% of firm capacity | L35: 0 | M35: 0
C36: Σ substation firm capacities for substations loaded >=80% of firm capacity | L36: 0 | M36: 0
C37: % Loading of substations which are operating at >=80% of firm capacity = Σ demand /Σ firm capacity | D37: =IF(D35,D35/D36,"-") -> - | E37: =IF(E35,E35/E36,"-") -> - | F37: - | G37: - | H37: - | I37: - | J37: - | K37: - | L37: - | M37: -
C38: Number of substations loaded above 100% of firm capacity | L38: 0 | M38: 0
C39: Number of DNO substations requiring reinforcement within 5 yrs | L39: 0 | M39: 0
B41: General reinforcement projects
C43: Scheme details | L43: DPCR4 Expenditure | Q43: DPCR5 Expenditure | V43: Utilisation | AJ43: (N-2) scheme? | AK43: Scheme description
C44: Named scheme | D44: Primary Voltage | E44: Secondary Voltage | F44: Limiting Factor | G44: Forecast year in which substation demand will reach substation/group firm capacity | H44: Planned reinforce-ment Year | I44: MVA of additional firm capacity to be installed | J44: Total cost of project | K44: Total cost of project in DPCR5 period | L44: 2005/06 | M44: 2006/07 | N44: 2007/08 | O44: 2008/09 | P44: 2009/10 | Q44: 2010/11 | R44: 2011/12 | S44: 2012/13 | T44: 2013/14 | U44: 2014/15 | V44: Historic and forecast max demand (MVA) | AF44: Substation/Group Total Capability | AG44: Substation/group firm capacity under single circuit outage conditions | AH44: Substation/Group Maximum Demand | AI44: Season of critical loading condition | AK44: Brief description of work involved, substations affected, assets installed/replaced etc.
C45: (Unique name) | D45: (kV) | E45: (kV) | F45: (a-j) | G45: (Year) | H45: (Year) | I45: (MVA) | J45: (£m) | K45: (£m) | L45: (£m) | M45: (£m) | N45: (£m) | O45: (£m) | P45: (£m) | Q45: (£m) | R45: (£m) | S45: (£m) | T45: (£m) | U45: (£m) | V45: 2005/06 | W45: 2006/07 | X45: 2007/08 | Y45: 2008/09 | Z45: 2009/10 | AA45: 2010/11 | AB45: 2011/12 | AC45: 2012/13 | AD45: 2013/14 | AE45: 2014/15 | AF45: (MVA) | AG45: (MVA) | AH45: (MVA) | AI45: Season | AJ45: (Y/N) | AK45: (Description)
B46: 1 | C46: Annesley - Hucknall 33kV | D46: 33kV | E46: 33kV | F46: b | G46: 2011 | I46: 14 | J46: 2.067082741 | K46: 2.067082741 | L46: 0 | M46: 0 | N46: 0 | O46: 0 | P46: 0 | Q46: 0 | R46: 1.034481524 | S46: 1.032601217 | T46: 0 | U46: 0 | AK46: Uprating 33kV double circuit line to 40MVA and interconnection of cables via Linby (approx 10km of cable)
B47: 2 | C47: Bainton - new GSP | D47: 132kV | E47: 132kV | F47: a | G47: 2013 | I47: 80 | J47: 4.98114118 | K47: 4.98114118 | L47: 0 | M47: 0 | N47: 0 | O47: 0 | P47: 0 | Q47: 0 | R47: 0 | S47: 0 | T47: 1.96090864 | U47: 3.02023254 | AK47: Reconfiguration of the 132kV circuit between Bourne and Stamford
B48: 3 | C48: Berkswell - Coventry South / Coventry West 132kV | D48: 132kV | E48: 132kV | F48: b | G48: 2010 | I48: 39 | J48: 1.034481524 | K48: 1.034481524 | L48: 0 | M48: 0 | N48: 0 | O48: 0 | P48: 0 | Q48: 0 | R48: 1.034481524 | S48: 0 | T48: 0 | U48: 0 | AK48: Installation of a third circuit from Berkswell. Alternatively for SCO only, re-energisation of Coventry South - Whitley 132kV circuits
B49: 4 | C49: Billingborough 33/11kV Substation | D49: 33kV | E49: 33kV | F49: c | G49: 2007 | I49: 12 | J49: 1.589200458 | K49: 1.589200458 | L49: 0 | M49: 0 | N49: 0 | O49: 0 | P49: 0 | Q49: 1.589200458 | R49: 0 | S49: 0 | T49: 0 | U49: 0 | AK49: Installation of new 10km circuit from Great Hale to Billingborough and additional transformer at Billingborough
B50: 5 | C50: Bourne 33/11kV Transformer Replacement | D50: 33kV | E50: 33kV | F50: a | G50: 2007 | I50: 9.5 | J50: 0.8300837639 | K50: 0.8300837639 | L50: 0 | M50: 0 | N50: 0 | O50: 0 | P50: 0 | Q50: 0.1059466972 | R50: 0.7241370667 | S50: 0 | T50: 0 | U50: 0 | AK50: Uprating of 2 x 10/14.5MVA 33/11kV transformers with 12/24MVA units
B51: 6 | C51: Brackley - Banbury group P2/6 SCO security | D51: 132kV | E51: 132kV | F51: c | G51: 2013 | I51: 189 | J51: 0.4129316792 | K51: 0.4129316792 | L51: 0 | M51: 0 | N51: 0 | O51: 0 | P51: 0 | Q51: 0 | R51: 0 | S51: 0.2065202434 | T51: 0.2064114358 | U51: 0 | AK51: Installation of a third 132kV circuit. Costs split evenly across East and West. Wayleaves only in DPCR5, construction in DPCR6.
B52: 7 | C52: Brackley Town 33/11kV reinforcement | D52: 33kV | E52: 33kV | F52: a | G52: 2011 | I52: 16 | J52: 2.580959004 | K52: 2.580959004 | L52: 0 | M52: 0 | N52: 0 | O52: 0 | P52: 0 | Q52: 0 | R52: 0 | S52: 1.548901825 | T52: 1.032057179 | U52: 0 | AK52: Installation of Brackley local primary or strapping 33kV OHL circuits from Brackley Grid together. Installation of a new 33kV circuit (3km), uprating the existing transformers with 2 x 20/40MVA units and installation of a 2000A switchboard
B53: 8 | C53: Bradwell Abbey 132/33kV reinforcement | D53: 132kV | E53: 132kV | F53: a | G53: 2012 | I53: 117 | J53: 1.550782132 | K53: 1.550782132 | L53: 0 | M53: 0 | N53: 0 | O53: 0 | P53: 0 | Q53: 0 | R53: 1.034481524 | S53: 0.5163006085 | T53: 0 | U53: 0 | AK53: Installation of a third grid transformer and third section of switchboard
B54: 9 | C54: Braunstone, Jupiter & Groby Road 33/11kV reinforcement | D54: 33kV | E54: 33kV | F54: a | G54: 2008 | I54: 40 | J54: 5.011103359 | K54: 5.011103359 | L54: 0 | M54: 0 | N54: 0 | O54: 0 | P54: 0 | Q54: 2.012987247 | R54: 1.965514895 | S54: 1.032601217 | T54: 0 | U54: 0 | AK54: Installation of new 40MVA 33/11kV primary on Hinckley Rd reserve site. Modification of 11kV circuits to enable load transfers.
B55: 10 | C55: Burton 132/33kV transformer change | D55: 132kV | E55: 132kV | F55: a | G55: 2010 | I55: 58.5 | J55: 2.064658396 | K55: 2.064658396 | L55: 0 | M55: 0 | N55: 0 | O55: 0 | P55: 0 | Q55: 0 | R55: 0 | S55: 1.032601217 | T55: 1.032057179 | U55: 0 | AK55: Uprating the existing 132/33kV transformers with 2 x 90MVA units.
B56: 11 | C56: Cannon Street 33/11kV reinforcement | D56: 33kV | E56: 33kV | F56: a | G56: 2012 | I56: 39 | J56: 4.954908131 | K56: 4.954908131 | L56: 0 | M56: 0 | N56: 0 | O56: 0 | P56: 0 | Q56: 0 | R56: 0 | S56: 1.961942312 | T56: 2.992965819 | U56: 0 | AK56: Installation of a 132/11kV primary at Wellingborough Grid to transfer demand off Cannon Street.
B57: 12 | C57: Caythorpe 33/11kV | D57: 33kV | E57: 33kV | F57: a | G57: 2012 | I57: 13.15 | J57: 0.2082918993 | K57: 0.2082918993 | L57: 0 | M57: 0 | N57: 0 | O57: 0 | P57: 0 | Q57: 0 | R57: 0 | S57: 0 | T57: 0 | U57: 0.2082918993 | AK57: Uprating transformer T1 (10.85MVA) with 24MVA transformer
B58: 13 | C58: Clifton 33/11kV reinforcement | D58: 33kV | E58: 33kV | F58: a | G58: 2012 | I58: 24 | J58: 1.445424089 | K58: 1.445424089 | L58: 0 | M58: 0 | N58: 0 | O58: 0 | P58: 0 | Q58: 0 | R58: 0 | S58: 1.032601217 | T58: 0.4128228716 | U58: 0 | AK58: Installation of a third 33kV circuit and a third 33/11kV 24MVA transformer
B59: 14 | C59: Coalville 33/11kV transformer change | D59: 33kV | E59: 33kV | F59: a | G59: 2008 | I59: 25 | J59: 1.059466972 | K59: 1.059466972 | L59: 0 | M59: 0 | N59: 0 | O59: 0 | P59: 0 | Q59: 1.059466972 | R59: 0 | S59: 0 | T59: 0 | U59: 0 | AK59: Uprating transformers for larger units.
B60: 15 | C60: Colwick 33/11kV reinforcement | D60: 33kV | E60: 33kV | F60: a | G60: 2010 | I60: 35.2 | J60: 2.067082741 | K60: 2.067082741 | L60: 0 | M60: 0 | N60: 0 | O60: 0 | P60: 0 | Q60: 0 | R60: 1.034481524 | S60: 1.032601217 | T60: 0 | U60: 0 | AK60: Installation of a third 33kV circuit from Notts East and a third 33/11kV 40MVA transformer. Reconfiguration of Cotgrave 33kV interconnection.
B61: 16 | C61: Copsewood 33/11kv reinforcement | D61: 33kV | E61: 33kV | F61: a | G61: 2012 | I61: 16 | J61: 4.043431439 | K61: 4.043431439 | L61: 0 | M61: 0 | N61: 0 | O61: 0 | P61: 0 | Q61: 0 | R61: 0 | S61: 1.032601217 | T61: 1.032057179 | U61: 1.978773043 | AK61: Installation of 40MVA 33kV circuits, transformers and switchgear or installation of a 33/11kV 24MVA primary at Binley.
B62: 17 | C62: Coventry - Rugby 132kV cct reinforcement | D62: 132kV | E62: 132kV | F62: c | G62: 2012 | I62: 35 | J62: 3.927457208 | K62: 3.927457208 | L62: 0 | M62: 0 | N62: 0 | O62: 0 | P62: 0 | Q62: 0 | R62: 1.965514895 | S62: 1.961942312 | T62: 0 | U62: 0 | AK62: Transfer of Hinckley to Enderby GSP using the disconnected CA line. Refurbishment of CA1&2.
B63: 18 | C63: Coventry South 33/11kV Reinforcement | D63: 33kV | E63: 33kV | F63: a | G63: 2010 | I63: 16 | J63: 1.550782132 | K63: 1.550782132 | L63: 0 | M63: 0 | N63: 0 | O63: 0 | P63: 0 | Q63: 0 | R63: 1.034481524 | S63: 0.5163006085 | T63: 0 | U63: 0 | AK63: Uprating transformers with 20/40 33/11kV units or 30MVA 132/11kV units.
B64: 19 | C64: Dillotford Avenue 33/11kV Reinforcement | D64: 33kV | E64: 33kV | F64: a | G64: 2013 | I64: 18.6 | J64: 2.594246424 | K64: 2.594246424 | L64: 0 | M64: 0 | N64: 0 | O64: 0 | P64: 0 | Q64: 0 | R64: 0 | S64: 0 | T64: 1.032057179 | U64: 1.562189245 | AK64: Uprating 33kV circuits with 40MVA rated cables and uprating transformers
B65: 20 | C65: Farndon Road 33kV switchgear reconfiguration | D65: 33kV | E65: 33kV | F65: g | G65: 2014 | I65: 24 | J65: 0 | K65: 0 | L65: 0 | M65: 0 | N65: 0 | O65: 0 | P65: 0 | Q65: 0 | R65: 0 | S65: 0 | T65: 0 | U65: 0 | AK65: Switchgear reconfiguration
B66: 21 | C66: Field Street T3 overload | D66: 33kV | E66: 33kV | F66: a | G66: 2010 | I66: 15 | J66: 0.1034481524 | K66: 0.1034481524 | L66: 0 | M66: 0 | N66: 0 | O66: 0 | P66: 0 | Q66: 0 | R66: 0.1034481524 | S66: 0 | T66: 0 | U66: 0 | AK66: Installation of auto opening scheme on the T2-T3 bus section for the loss of T1 or T2, or transfer load to Kettering North at 11kV or Uprate transformer T3.
B67: 22 | C67: Fiskerton 33/11kV reinforcement | D67: 33kV | E67: 33kV | F67: a | G67: 2014 | I67: 13.15 | J67: 0.5207297482 | K67: 0.5207297482 | L67: 0 | M67: 0 | N67: 0 | O67: 0 | P67: 0 | Q67: 0 | R67: 0 | S67: 0 | T67: 0 | U67: 0.5207297482 | AK67: Uprating existing transformers with 2 x 12/24 MVA units.
B68: 23 | C68: Gresley - Moira - Ashby - Woodville - Willesley ccts | D68: 33kV | E68: 33kV | F68: b | G68: 2014 | I68: 27 | J68: 1.041459496 | K68: 1.041459496 | L68: 0 | M68: 0 | N68: 0 | O68: 0 | P68: 0 | Q68: 0 | R68: 0 | S68: 0 | T68: 0 | U68: 1.041459496 | AK68: Installation of additional circuits from Gresley & splitting existing circuits.
B69: 24 | C69: Hatton 33/11kV reinforcement | D69: 33kV | E69: 33kV | F69: a | G69: 2010 | I69: 16 | J69: 1.551722286 | K69: 1.551722286 | L69: 0 | M69: 0 | N69: 0 | O69: 0 | P69: 0 | Q69: 0 | R69: 1.551722286 | S69: 0 | T69: 0 | U69: 0 | AK69: Uprating the existing 2 x 24MVA transformers with 40MVA units and changing the 11kV switchboard.
B70: 25 | C70: Hawton SCO Reinforcement and BSP reinforcement | D70: 132kV | E70: 132kV | F70: a | G70: 2014 | I70: 90 | J70: 3.540962288 | K70: 3.540962288 | L70: 0 | M70: 0 | N70: 0 | O70: 0 | P70: 0 | Q70: 0 | R70: 0 | S70: 0 | T70: 0 | U70: 3.540962288 | AK70: Replacement of circuit breakers at Staythorpe, additional transformer capacity and 132kV busbars.
B71: 26 | C71: Heanor 33/11kV reinforcement | D71: 33kV | E71: 33kV | F71: a | G71: 2008 | I71: 12 | J71: 1.56421501 | K71: 1.56421501 | L71: 0 | M71: 0 | N71: 0 | O71: 0 | P71: 0 | Q71: 0.529733486 | R71: 1.034481524 | S71: 0 | T71: 0 | U71: 0 | AK71: Uprating of existing transformers with 20/40 33/11kV units and replacement of circuits 2 x 85m
B72: 27 | C72: Heanor BSP reinforcement | D72: 132kV | E72: 132kV | F72: a | G72: 2013 | I72: 39 | J72: 6.013198359 | K72: 6.013198359 | L72: 0 | M72: 0 | N72: 0 | O72: 0 | P72: 0 | Q72: 0 | R72: 0 | S72: 0 | T72: 2.992965819 | U72: 3.02023254 | AK72: Uprating existing 132/33kV transformer with 120MVA units at Heanor. Looping the 132kV circuit (3km) into Stanton with two new CBs.
B73: 28 | C73: Kenilworth 33/11kV Reinforcement | D73: 33kV | E73: 33kV | F73: a | G73: 2010 | I73: 24 | J73: 1.046974248 | K73: 1.046974248 | L73: 0 | M73: 0 | N73: 0 | O73: 0 | P73: 0 | Q73: 0.529733486 | R73: 0.517240762 | S73: 0 | T73: 0 | U73: 0 | AK73: Installation of a new 33/11kV primary (North Kenilworth) to offload Kenilworth.
B74: 29 | C74: Kibworth 33/11kV transformer replacement | D74: 33kV | E74: 33kV | F74: a | G74: 2008 | I74: 13.1 | J74: 1.046974248 | K74: 1.046974248 | L74: 0 | M74: 0 | N74: 0 | O74: 0 | P74: 0 | Q74: 0.529733486 | R74: 0.517240762 | S74: 0 | T74: 0 | U74: 0 | AK74: Uprating 33/11kV transformers with 24MVA units.
B75: 30 | C75: Leicester East - Salutation - Thurmaston 33kV circuit | D75: 33kV | E75: 33kV | F75: b | G75: 2007 | I75: 40 | J75: 1.032601217 | K75: 1.032601217 | L75: 0 | M75: 0 | N75: 0 | O75: 0 | P75: 0 | Q75: 0 | R75: 0 | S75: 1.032601217 | T75: 0 | U75: 0 | AK75: Installation of third and fourth circuits to remove tee-off radial circuits.
B76: 31 | C76: Lincoln 132/33kV reinforcement | D76: 132kV | E76: 132kV | F76: a | G76: 2007 | I76: 117 | J76: 0.7416268804 | K76: 0.7416268804 | L76: 0 | M76: 0 | N76: 0 | O76: 0 | P76: 0 | Q76: 0.7416268804 | R76: 0 | S76: 0 | T76: 0 | U76: 0 | AK76: Installation of new third 132/33kV 90MVA transformer
B77: 32 | C77: Lincoln BSP | D77: 132kV | E77: 132kV | F77: c | G77: 2014 | I77: 117 | J77: 2.073516676 | K77: 2.073516676 | L77: 0 | M77: 0 | N77: 0 | O77: 0 | P77: 0 | Q77: 0 | R77: 0 | S77: 0 | T77: 1.032057179 | U77: 1.041459496 | AK77: Creation of 132kV cross bay
B78: 33 | C78: Mackworth 33/11kV reinforcement | D78: 33kV | E78: 33kV | F78: a | G78: 2012 | I78: 24 | J78: 1.239012653 | K78: 1.239012653 | L78: 0 | M78: 0 | N78: 0 | O78: 0 | P78: 0 | Q78: 0 | R78: 0 | S78: 1.032601217 | T78: 0.2064114358 | U78: 0 | AK78: Installation of a third 33kV circuit (3.5km) and a third transformer (12/24MVA).
B79: 34 | C79: Middlefield/Barwell 33kV circuit reinforcement | D79: 33kV | E79: 33kV | F79: b | G79: 2008 | I79: 16 | J79: 0.529733486 | K79: 0.529733486 | L79: 0 | M79: 0 | N79: 0 | O79: 0 | P79: 0 | Q79: 0.529733486 | R79: 0 | S79: 0 | T79: 0 | U79: 0 | AK79: Overlaying short lower rated sections of 33kV circuits increasing the rating to 40MVA.
B80: 35 | C80: Millclose transformer and switchboard replacement | D80: 33kV | E80: 33kV | F80: a | G80: 2008 | I80: 7.5 | J80: 0.8475735776 | K80: 0.8475735776 | L80: 0 | M80: 0 | N80: 0 | O80: 0 | P80: 0 | Q80: 0.8475735776 | R80: 0 | S80: 0 | T80: 0 | U80: 0 | AK80: Uprating 33/11kV transformer and 11kV switchboard
B81: 36 | C81: Milton Keynes additional BSP - acquire site and 132kV route | D81: 132kV | E81: 132kV | F81: a | G81: 2015 | I81: 117 | J81: 0.5207297482 | K81: 0.5207297482 | L81: 0 | M81: 0 | N81: 0 | O81: 0 | P81: 0 | Q81: 0 | R81: 0 | S81: 0 | T81: 0 | U81: 0.5207297482 | AK81: Phase 1 - Acquisition of a reserved BSP site on the north eastern edge of the city and a route to an appropriate GSP.
B82: 37 | C82: Mountsorrel / Syston 33kV ccts | D82: 33kV | E82: 33kV | F82: b | G82: 2011 | I82: 31 | J82: 0.5163006085 | K82: 0.5163006085 | L82: 0 | M82: 0 | N82: 0 | O82: 0 | P82: 0 | Q82: 0 | R82: 0 | S82: 0.5163006085 | T82: 0 | U82: 0 | AK82: Extension of Syston - Mountsorrel 33kV circuit into mid point at Mountsorrel and Syston, installation of RMU and changeover scheme at each end
B83: 38 | C83: Normanton 33/11kV reinforcement | D83: 33kV | E83: 33kV | F83: a | G83: 2011 | I83: 16 | J83: 1.03354137 | K83: 1.03354137 | L83: 0 | M83: 0 | N83: 0 | O83: 0 | P83: 0 | Q83: 0 | R83: 0.517240762 | S83: 0.5163006085 | T83: 0 | U83: 0 | AK83: Uprating 33/11kV transformers with 40MVA units.
B84: 39 | C84: Northampton 132kV reinforcement | D84: 132kV | E84: 132kV | F84: c | G84: 2014 | I84: 190 | J84: 15.13409232 | K84: 15.13409232 | L84: 0 | M84: 0 | N84: 0 | O84: 0 | P84: 0 | Q84: 0 | R84: 0 | S84: 4.027144746 | T84: 4.025022998 | U84: 7.081924576 | AK84: Installation of fourth 132kV circuit from Grendon to Northampton. Reconfiguration of 132kV running arrangement.
B85: 40 | C85: Northampton West - Kingsthorpe 33kV circuit reinforcement | D85: 33kV | E85: 33kV | F85: b | G85: 2008 | I85: 10 | J85: 0.2068963048 | K85: 0.2068963048 | L85: 0 | M85: 0 | N85: 0 | O85: 0 | P85: 0 | Q85: 0 | R85: 0.2068963048 | S85: 0 | T85: 0 | U85: 0 | AK85: Installation of 33kV and 11kV switchgear to accommodate all the potential 33kV circuit outages
B86: 41 | C86: Nottingham North BSP | D86: 132kV | E86: 132kV | F86: a | G86: 2014 | I86: 40 | J86: 3.02023254 | K86: 3.02023254 | L86: 0 | M86: 0 | N86: 0 | O86: 0 | P86: 0 | Q86: 0 | R86: 0 | S86: 0 | T86: 0 | U86: 3.02023254 | AK86: Installation of new 33/11kV substation in vicinity of BSP site (5km double circuit 33kV cable assumed)
B87: 42 | C87: Nott'm East - Colwick 33kV cct | D87: 33kV | E87: 33kV | F87: b | G87: 2010 | I87: 40 | J87: 1.249751396 | K87: 1.249751396 | L87: 0 | M87: 0 | N87: 0 | O87: 0 | P87: 0 | Q87: 0 | R87: 0 | S87: 0 | T87: 0 | U87: 1.249751396 | AK87: Installation of two new 40MVA cable circuits to tee point to create two direct circuits to Colwick (3km)
B88: 43 | C88: Olney 33/11kV reinforcement | D88: 33kV | E88: 33kV | F88: a | G88: 2014 | I88: 9.5 | J88: 1.353897345 | K88: 1.353897345 | L88: 0 | M88: 0 | N88: 0 | O88: 0 | P88: 0 | Q88: 0 | R88: 0 | S88: 0 | T88: 0 | U88: 1.353897345 | AK88: Uprating the existing 33/11kV transformer with 24MVA units and reinforcement of 33kV circuits
B89: 44 | C89: Raunds 33/11kV reinforcement | D89: 33kV | E89: 33kV | F89: c | G89: 2008 | I89: 16 | J89: 1.589200458 | K89: 1.589200458 | L89: 0 | M89: 0 | N89: 0 | O89: 0 | P89: 0 | Q89: 1.589200458 | R89: 0 | S89: 0 | T89: 0 | U89: 0 | AK89: Installation of a new 40MVA 33kV circuit from Irthlingborough Grid. Uprate transformer with a 12/24MVA unit and install a 2nd 12/24MVA unit.
B90: 45 | C90: Raynesway 33/11kV Substation | D90: 33kV | E90: 33kV | F90: a | G90: 2007 | I90: 40 | J90: 2.330827339 | K90: 2.330827339 | L90: 0 | M90: 0 | N90: 0 | O90: 0 | P90: 0 | Q90: 2.330827339 | R90: 0 | S90: 0 | T90: 0 | U90: 0 | AK90: Installation of a new 33/11kV primary substation
B91: 46 | C91: Ripley 33/11kV reinforcement | D91: 33kV | E91: 33kV | F91: a | G91: 2011 | I91: 21.75 | J91: 2.490100474 | K91: 2.490100474 | L91: 0 | M91: 0 | N91: 0 | O91: 0 | P91: 0 | Q91: 0 | R91: 0 | S91: 0 | T91: 1.032057179 | U91: 1.458043295 | AK91: Installation of a third 33kV circuit (6.4km) and a third transformer (12/24MVA).
B92: 47 | C92: Rugby - Harbury 132kV circuit (Warwick & Harbury Security) | D92: 132kV | E92: 132kV | F92: c | G92: 2008 | I92: 190 | J92: 4.131921191 | K92: 4.131921191 | L92: 0 | M92: 0 | N92: 0 | O92: 0 | P92: 0 | Q92: 4.131921191 | R92: 0 | S92: 0 | T92: 0 | U92: 0 | AK92: Installation of a 132kV interconnector between Harbury and Rugby.
B93: 48 | C93: Rugby 132/33kV reinforcement | D93: 132kV | E93: 132kV | F93: a | G93: 2010 | I93: 117 | J93: 1.965514895 | K93: 1.965514895 | L93: 0 | M93: 0 | N93: 0 | O93: 0 | P93: 0 | Q93: 0 | R93: 1.965514895 | S93: 0 | T93: 0 | U93: 0 | AK93: Installation of a third 132/33kV transformer or alternatively a 132/11kV double wound transformer at Rugby BSP.
B94: 49 | C94: Rushden 33/11kV reinforcement | D94: 33kV | E94: 33kV | F94: a | G94: 2008 | I94: 16 | J94: 2.399295864 | K94: 2.399295864 | L94: 0 | M94: 0 | N94: 0 | O94: 0 | P94: 0 | Q94: 0.8475735776 | R94: 1.551722286 | S94: 0 | T94: 0 | U94: 0 | AK94: Installation of 2 x 40MVA 33kV circuits from Irthlingborough Grid to Rushden and 2 x 20/40MVA 33/11kV transformers at Rushden OR Installation of a 40MVA 33kV cable circuit from Wellingborough - Little Irchester to pick up existing Little Irchester - Rushden 33kV line and uprating Little Irchester.
B95: 50 | C95: Salutation 33/6.6kV reinforcement | D95: 33kV | E95: 33kV | F95: a | G95: 2013 | I95: 0 | J95: 0.2082918993 | K95: 0.2082918993 | L95: 0 | M95: 0 | N95: 0 | O95: 0 | P95: 0 | Q95: 0 | R95: 0 | S95: 0 | T95: 0 | U95: 0.2082918993 | AK95: Uprating 6.6kV network to 11kV to reduce demand on Salutation s/s.
B96: 51 | C96: Spondon - Stanton - Heanor - Annesley 132kV reinforcement | D96: 132kV | E96: 132kV | F96: j | G96: 2015 | I96: 99.8 | J96: 4.354385019 | K96: 4.354385019 | L96: 0 | M96: 0 | N96: 0 | O96: 0 | P96: 0 | Q96: 0 | R96: 0 | S96: 0 | T96: 2.167320076 | U96: 2.187064943 | AK96: Looping 132kV circuit through Heanor, installation of 2 x 132kV circuit breakers at Heanor
B97: 52 | C97: Spondon 33/11kV reinforcement | D97: 33kV | E97: 33kV | F97: a | G97: 2010 | I97: 24 | J97: 0.5207297482 | K97: 0.5207297482 | L97: 0 | M97: 0 | N97: 0 | O97: 0 | P97: 0 | Q97: 0 | R97: 0 | S97: 0 | T97: 0 | U97: 0.5207297482 | AK97: Installation of a third transformer (20/40MVA). Co-ordination with 11kV and 33kV switchgear replacements.
B98: 53 | C98: Stamford 132/33/11kV reinforcement | D98: 33kV | E98: 33kV | F98: a | G98: 2010 | I98: 16 | J98: 1.046974248 | K98: 1.046974248 | L98: 0 | M98: 0 | N98: 0 | O98: 0 | P98: 0 | Q98: 0.529733486 | R98: 0.517240762 | S98: 0 | T98: 0 | U98: 0 | AK98: Uprating 33/11kV transformers with 40MVA units
B99: 54 | C99: Stoke Bardolph - New GSP | D99: 132kV | E99: 132kV | F99: b | G99: 2011 | I99: 117 | J99: 30.65760069 | K99: 30.09010069 | L99: 0 | M99: 0 | N99: 0 | O99: 0 | P99: 0.5675 | Q99: 1.059466972 | R99: 10.03447078 | S99: 11.97817412 | T99: 7.017988818 | U99: 0 | AK99: Installation of new GSP to support Ratcliffe picking up Nottingham East on new 132kV cable and new OHL for new BSP to pick up Notts North.
B100: 55 | C100: Stony Stratford - Buckingham - Wicken - Towcester circuit reinforcement | D100: 33kV | E100: 33kV | F100: b | G100: 2013 | I100: 15 | J100: 0.7224400254 | K100: 0.7224400254 | L100: 0 | M100: 0 | N100: 0 | O100: 0 | P100: 0 | Q100: 0 | R100: 0 | S100: 0 | T100: 0.7224400254 | U100: 0 | AK100: Reinforcement/rebuild/reconfiguration of the network required to increase the thermal rating.
B101: 56 | C101: Stony Stratford - Shenley Wood - Eldergate circuit reinforcement | D101: 33kV | E101: 33kV | F101: b | G101: 2008 | I101: 24 | J101: 0.6356801832 | K101: 0.6356801832 | L101: 0 | M101: 0 | N101: 0 | O101: 0 | P101: 0 | Q101: 0.6356801832 | R101: 0 | S101: 0 | T101: 0 | U101: 0 | AK101: Installation of a new 40 MVA circuit from Stony Stratford to split the Shenley Wood / Eldergate circuits
B102: 57 | C102: Syston 33/11kV reinforcement | D102: 33kV | E102: 33kV | F102: f | G102: 2012 | I102: 0 | J102: 1.239012653 | K102: 1.239012653 | L102: 0 | M102: 0 | N102: 0 | O102: 0 | P102: 0 | Q102: 0 | R102: 0 | S102: 1.032601217 | T102: 0.2064114358 | U102: 0 | AK102: Installation of capacitors
B103: 58 | C103: Talbot Street 33/11kV reinforcement | D103: 33kV | E103: 33kV | F103: a | G103: 2010 | I103: 24 | J103: 1.44733398 | K103: 1.44733398 | L103: 0 | M103: 0 | N103: 0 | O103: 0 | P103: 0 | Q103: 0 | R103: 0.9310333715 | S103: 0.5163006085 | T103: 0 | U103: 0 | AK103: Installation of third 33/11kV 24MVA transformer and new 33kV circuit to Nottingham (4km) BSP
B104: 59 | C104: Tamworth Grid 132/33kV Tamworth Town 132/33kV reinforcement | D104: 132kV | E104: 132kV | F104: c | G104: 2010 | I104: 40 | J104: 0.2068963048 | K104: 0.2068963048 | L104: 0 | M104: 0 | N104: 0 | O104: 0 | P104: 0 | Q104: 0 | R104: 0.2068963048 | S104: 0 | T104: 0 | U104: 0 | AK104: Extension of 40MVA interconnector to be selectable to both sections of the 33kV switchboard at Tamworth Grid, connection to spare CB.
B105: 60 | C105: Walton 33/11kV | D105: 33kV | E105: 33kV | F105: C | G105: 2009 | I105: 10 | J105: 0.529733486 | K105: 0.529733486 | L105: 0 | M105: 0 | N105: 0 | O105: 0 | P105: 0 | Q105: 0.529733486 | R105: 0 | S105: 0 | T105: 0 | U105: 0 | AK105: Installation of additional 33/11kV 10MVA transformer and associated switchgear
B106: 61 | C106: Warwick - Campion Hills - Tee Princethorpe 33kV circuit Reinforcement | D106: 33kV | E106: 33kV | F106: b | G106: 2014 | I106: 4 | J106: 0.2082918993 | K106: 0.2082918993 | L106: 0 | M106: 0 | N106: 0 | O106: 0 | P106: 0 | Q106: 0 | R106: 0 | S106: 0 | T106: 0 | U106: 0.2082918993 | AK106: Increasing 11kV interconnection and application of sequence scheme to transfer demand away.
B107: 62 | C107: Watnall / Kimberley New Primary Substation | D107: 33kV | E107: 33kV | F107: a | G107: 2007 | I107: 40 | J107: 4.207454219 | K107: 3.072454219 | L107: 0 | M107: 0 | N107: 0 | O107: 0 | P107: 1.135 | Q107: 3.072454219 | R107: 0 | S107: 0 | T107: 0 | U107: 0 | AK107: Installation of new 33/11kV substation and 33kV circuits
B108: 63 | C108: Wellesbourne 33/11kV New Primary Substation | D108: 33kV | E108: 33kV | F108: b | G108: 2014 | I108: 24 | J108: 1.978773043 | K108: 1.978773043 | L108: 0 | M108: 0 | N108: 0 | O108: 0 | P108: 0 | Q108: 0 | R108: 0 | S108: 0 | T108: 0 | U108: 1.978773043 | AK108: Following installation of Warwick West, decommissioning Banbury Rd and extending existing dual 33kV circuits to a reserve site at Wellesbourne.
B109: 64 | C109: West Burton - Lincoln 132kV DC OHL | D109: 132kV | E109: 132kV | F109: b | G109: 2012 | I109: 75 | J109: 6.013198359 | K109: 6.013198359 | L109: 0 | M109: 0 | N109: 0 | O109: 0 | P109: 0 | Q109: 0 | R109: 0 | S109: 0 | T109: 2.992965819 | U109: 3.02023254 | AK109: Uprating 132kV overhead line
B110: 65 | C110: West Burton GSP - 3rd SGT | D110: 132kV | E110: 132kV | F110: c | G110: 2013 | I110: 240 | J110: 1.032057179 | K110: 1.032057179 | L110: 0 | M110: 0 | N110: 0 | O110: 0 | P110: 0 | Q110: 0 | R110: 0 | S110: 0 | T110: 1.032057179 | U110: 0 | AK110: Installation of a third SGT and a bus-section at West Burton GSP.
B111: 66 | C111: Westville 33/11kV | D111: 33kV | E111: 33kV | F111: a | G111: 2013 | I111: 24 | J111: 3.612744165 | K111: 3.612744165 | L111: 0 | M111: 0 | N111: 0 | O111: 0 | P111: 0 | Q111: 0 | R111: 0 | S111: 1.032601217 | T111: 2.580142948 | U111: 0 | AK111: Installation of a new 33/11kV substation and 33kV single circuit to Hucknall (3km)
B112: 67 | C112: Wigston Magna 33/11kV reinforcement | D112: 33kV | E112: 33kV | F112: a | G112: 2008 | I112: 32 | J112: 1.576707734 | K112: 1.576707734 | L112: 0 | M112: 0 | N112: 0 | O112: 0 | P112: 0 | Q112: 1.059466972 | R112: 0.517240762 | S112: 0 | T112: 0 | U112: 0 | AK112: Installation of a third 33kV circuit and third 33/11kV 40MVA transformer.
B113: 68 | C113: Willington - Winster - Uttoxeter 132kV reinforcement | D113: 132kV | E113: 132kV | F113: c | G113: 2010 | I113: 181 | J113: 3.5103001 | K113: 3.5103001 | L113: 0 | M113: 0 | N113: 0 | O113: 0 | P113: 0 | Q113: 0 | R113: 0 | S113: 2.478242921 | T113: 1.032057179 | U113: 0 | AK113: Unstitching tee (by cabling to Willington GSP) and refurbishment of both circuits (23km Uttoxeter & 35km Winster).
B114: 69 | C114: Winster - Longcliffe | D114: 33kV | E114: 33kV | F114: b | G114: 2011 | I114: 27 | J114: 0.2065202434 | K114: 0.2065202434 | L114: 0 | M114: 0 | N114: 0 | O114: 0 | P114: 0 | Q114: 0 | R114: 0 | S114: 0.2065202434 | T114: 0 | U114: 0 | AK114: Installation of new single 40MVA, 33kV circuit (4km ohl)
B115: 70 | C115: 0 | D115: 0 | E115: 0 | F115: 0 | G115: 0 | I115: 0 | J115: 0 | K115: 0 | L115: 0 | M115: 0 | N115: 0 | O115: 0 | P115: 0 | Q115: 0 | R115: 0 | S115: 0 | T115: 0 | U115: 0 | AK115: 0
C116: Total | I116: =SUM(I46:I115) -> 3262.75 | J116: 168.7246906 | K116: 167.0221906 | L116: 0 | M116: 0 | N116: 0 | O116: 0 | P116: 1.7025 | Q116: 24.26179366 | R116: 29.99996419 | S116: 37.27690393 | T116: 36.74123558 | U116: 38.74229327 | V116: =SUM(V46:V115) -> 0 | W116: =SUM(W46:W115) -> 0 | X116: 0 | Y116: 0 | Z116: 0 | AA116: 0 | AB116: 0 | AC116: 0 | AD116: 0 | AE116: 0 | AF116: 0 | AG116: 0 | AH116: 0

Sheet FBPQ LR6
A1: Main Forecast Business Plan DPCR5 | F1: Index
A3: LR6 - Fault levels
B6: Fault level system measures
D8: As at 31st March 2010 | G8: As at 31st March 2015
D9: 132kV | E9: EHV | F9: HV | G9: 132kV | H9: EHV | I9: HV
B10: No. of switchboards | D10: 50 | E10: 175 | F10: 411 | G10: 51 | H10: 177 | I10: 420
B11: No. of switchboards @ >95% of F.L. | D11: 5 | E11: 12 | F11: 32 | G11: 5 | H11: 10 | I11: 30
B12: No. of switchboards having fault level 'operational restrictions' | D12: 5 | E12: 12 | F12: 32 | G12: 5 | H12: 10 | I12: 30
B14: Number of fault level schemes
B16: No. of schemes | D16: DPCR4 | G16: DPCR5
D17: 132kV | E17: EHV | F17: HV | G17: 132kV | H17: EHV | I17: HV
B18: Switchboards | D18: 0 | E18: 0 | F18: 0 | G18: 1 | H18: 3 | I18: 3
B19: Transformers | D19: 0 | E19: 0 | F19: 0 | G19: 0 | H19: 0 | I19: 0
B20: Other | D20: 0 | E20: 0 | F20: 0 | G20: 0 | H20: 0 | I20: 0
B22: Fault level reinforcement
C24: DPCR4 | H24: DPCR5 | N24: DPCR4 | R24: DPCR5
C25: 2005/06 | D25: 2006/07 | E25: 2007/08 | F25: 2008/09 | G25: 2009/10 | H25: 2010/11 | I25: 2011/12 | J25: 2012/13 | K25: 2013/14 | L25: 2014/15 | N25: Actuals | O25: Forecast | P25: Total | R25: Forecast | S25: % change
C26: (£m) | D26: (£m) | E26: (£m) | F26: (£m) | G26: (£m) | H26: (£m) | I26: (£m) | J26: (£m) | K26: (£m) | L26: (£m) | N26: (£m) | O26: (£m) | P26: (£m) | R26: (£m) | S26: (£m)
B27: Fault level reinforcement:
B28: LV | C28: 0 | D28: 0 | E28: 0 | F28: 0 | G28: 0 | H28: 0 | I28: 0 | J28: 0 | K28: 0 | L28: 0 | N28: 0 | O28: 0 | P28: 0 | R28: 0 | S28: 0
B29: HV | C29: 0 | D29: 0 | E29: 0.7975758012 | F29: 0 | G29: 0 | H29: 0.529733486 | I29: 0 | J29: 0 | K29: 0.7224400254 | L29: 0 | N29: 0.7975758012 | O29: 0 | P29: 0.7975758012 | R29: 1.252173511 | S29: 0.5699743016
B30: EHV | C30: 0 | D30: 0 | E30: 0.7975758012 | F30: 2.454108932 | G30: 0.6665307109 | H30: 3.602187705 | I30: 0.7241370667 | J30: 1.032601217 | K30: 1.651291487 | L30: 0 | N30: 0.7975758012 | O30: 3.120639643 | P30: 3.918215444 | R30: 7.010217475 | S30: 0.7891352775
B31: 132kV | C31: 0 | D31: 0 | E31: 2.093636478 | F31: 2.78876015 | G31: 4.221361169 | H31: 0 | I31: 0.517240762 | J31: 0.5163006085 | K31: 0 | L31: 0 | N31: 2.093636478 | O31: 7.010121319 | P31: 9.103757797 | R31: 1.03354137 | S31: -0.8864709065
B32: Total expenditure | C32: 0 | D32: 0 | E32: 3.68878808 | F32: 5.242869081 | G32: 4.88789188 | H32: 4.131921191 | I32: 1.241377829 | J32: 1.548901825 | K32: 2.373731512 | L32: 0 | N32: 3.68878808 | O32: 10.13076096 | P32: 13.81954904 | R32: 9.295932357 | S32: -0.3273346092

Sheet FBPQ NL1 0309
A1: June Forecast Business Plan DPCR5
A2: EDFE SPN
A3: NL1 - Condition based expenditure
B5: Total condition based replacement
B7: Asset Categories | D7: DPCR 4 | I7: DPCR 5 | O7: DPCR4 | S7: DPCR5
D8: 2005/06 | E8: 2006/07 | F8: 2007/08 | G8: 2008/09 | H8: 2009/10 | I8: 2010/11 | J8: 2011/12 | K8: 2012/13 | L8: 2013/14 | M8: 2014/15 | O8: Actuals | P8: Forecast | Q8: Total | S8: Forecast | T8: % change
D9: £m | E9: £m | F9: £m | G9: £m | H9: £m | I9: £m | J9: £m | K9: £m | L9: £m | M9: £m
B10: Metered LV Services | C10: Overhead | D10: 0.2992076214 | E10: 0.2990765642 | F10: 1.097678932 | G10: 4.021020496 | H10: 2.336984715 | I10: 1.910352217 | J10: 1.866189929 | K10: 1.862950225 | L10: 1.965863506 | M10: 1.983307358 | O10: 1.695963117 | P10: 6.35800521 | Q10: 8.053968328 | S10: 9.588663235 | T10: 0.1905513959
C11: Underground | D11: 1.695509855 | E11: 2.392612514 | F11: 3.592403776 | G11: 0.3350850413 | H11: 0.7789949049 | I11: 1.273568145 | J11: 1.347803838 | K11: 1.448961286 | L11: 1.655464005 | M11: 1.774538162 | O11: 7.680526144 | P11: 1.114079946 | Q11: 8.794606091 | S11: 7.500335436 | T11: -0.1471664156
B12: Un-metered LV Services | C12: Overhead | D12: 0 | E12: 0 | F12: 0 | G12: 0 | H12: 0 | I12: 0 | J12: 0 | K12: 0 | L12: 0 | M12: 0 | O12: 0 | P12: 0 | Q12: 0 | S12: 0 | T12: 0
C13: Underground | D13: 0 | E13: 0 | F13: 0 | G13: 0 | H13: 0 | I13: 0 | J13: 0 | K13: 0 | L13: 0 | M13: 0 | O13: 0 | P13: 0 | Q13: 0 | S13: 0 | T13: 0
B14: LV System | C14: Overhead mains | D14: 0.3989434952 | E14: 0.4984609403 | F14: 0.6985229565 | G14: 4.914580606 | H14: 4.785254416 | I14: 1.273568145 | J14: 1.244126619 | K14: 1.345464051 | L14: 1.345064504 | M14: 1.356999771 | O14: 1.595927392 | P14: 9.699835022 | Q14: 11.29576241 | S14: 6.565223091 | T14: -0.4187888475
C15: Underground mains | D15: 1.396302233 | E15: 2.492304702 | F15: 3.991559751 | G15: 0.3350850413 | H15: 0.7789949049 | I15: 0.8490454297 | J15: 0.8294177462 | K15: 1.241966817 | L15: 1.551997505 | M15: 1.774538162 | O15: 7.880166686 | P15: 1.114079946 | Q15: 8.994246632 | S15: 6.24696566 | T15: -0.3054487035
C16: Switchgear (incl other plant & equipment) | D16: 0.5984152429 | E16: 0.8972296926 | F16: 1.197467925 | G16: 0.5584750689 | H16: 1.112849864 | I16: 0.8490454297 | J16: 0.9330949645 | K16: 1.034972347 | L16: 1.138131504 | M16: 1.252615173 | O16: 2.693112861 | P16: 1.671324933 | Q16: 4.364437794 | S16: 5.207859418 | T16: 0.1932486301
B17: HV | C17: Overhead lines | D17: 2.792604467 | E17: 2.791381266 | F17: 2.794091826 | G17: 11.72797645 | H17: 10.23821875 | I17: 6.473971402 | J17: 5.909601442 | K17: 5.588850674 | L17: 5.276791517 | M17: 5.219229889 | O17: 8.378077558 | P17: 21.9661952 | Q17: 30.34427275 | S17: 28.46844492 | T17: -0.06181818379
C18: Underground cables | D18: 1.496038107 | E18: 1.993843761 | F18: 3.093458807 | G18: 0.5584750689 | H18: 1.001564878 | I18: 1.061306787 | J18: 1.140449401 | K18: 1.241966817 | L18: 1.241598004 | M18: 1.461384369 | O18: 6.583340676 | P18: 1.560039947 | Q18: 8.143380622 | S18: 6.146705378 | T18: -0.2451899693
C19: Submarine | D19: 0 | E19: 0 | F19: 0 | G19: 0 | H19: 0 | I19: 0 | J19: 0 | K19: 0 | L19: 0 | M19: 0 | O19: 0 | P19: 0 | Q19: 0 | S19: 0 | T19: 0
C20: Switchgear (incl other plant & equipment) | D20: 3.889699079 | E20: 6.479992224 | F20: 6.58607359 | G20: 4.356105537 | H20: 6.009389266 | I20: 6.898494116 | J20: 7.672114153 | K20: 8.176281542 | L20: 9.105052029 | M20: 8.350767823 | O20: 16.95576489 | P20: 10.3654948 | Q20: 27.3212597 | S20: 40.20270966 | T20: 0.4714808216
C21: Transformers | D21: 0 | E21: 0.8972296926 | F21: 1.197467925 | G21: 0.6701700826 | H21: 1.780559783 | I21: 1.167437466 | J21: 1.244126619 | K21: 1.345464051 | L21: 1.655464005 | M21: 1.87892276 | O21: 2.094697618 | P21: 2.450729865 | Q21: 4.545427483 | S21: 7.291414902 | T21: 0.6041208289
C22: Substation | D22: 0.8976228643 | E22: 2.392612514 | F22: 2.295146857 | G22: 1.563730193 | H22: 2.559554687 | I22: 1.273568145 | J22: 1.244126619 | K22: 1.241966817 | L22: 1.241598004 | M22: 1.252615173 | O22: 5.585382235 | P22: 4.12328488 | Q22: 9.708667115 | S22: 6.253874758 | T22: -0.3558462059
B23: EHV | C23: Overhead lines | D23: 0.09973587381 | E23: 0.4984609403 | F23: 0.9978899378 | G23: 3.462545427 | H23: 0.8902798913 | I23: 2.016482896 | J23: 6.427987533 | K23: 2.380436398 | L23: 12.20904704 | M23: 7.411306443 | O23: 1.596086752 | P23: 4.352825318 | Q23: 5.94891207 | S23: 30.44526031 | T23: 4.117786236
C24: Underground cables | D24: 1.496038107 | E24: 1.395690633 | F24: 1.895990882 | G24: 0 | H24: 1.112849864 | I24: 0 | J24: 0 | K24: 5.071364501 | L24: 3.10399501 | M24: 0 | O24: 4.787719622 | P24: 1.112849864 | Q24: 5.900569486 | S24: 8.175359511 | T24: 0.3855204197
C25: Submarine | D25: 0 | E25: 0 | F25: 0 | G25: 0 | H25: 0 | I25: 0 | J25: 0 | K25: 0 | L25: 0 | M25: 0 | O25: 0 | P25: 0 | Q25: 0 | S25: 0 | T25: 0
C26: Switchgear (incl other plant & equipment) | D26: 0.2992076214 | E26: 0.8972296926 | F26: 1.197467925 | G26: 1.116950138 | H26: 1.001564878 | I26: 1.698090859 | J26: 2.695607675 | K26: 4.864370031 | L26: 3.931727013 | M26: 6.889383454 | O26: 2.393905239 | P26: 2.118515015 | Q26: 4.512420255 | S26: 20.07917903 | T26: 3.4497582
C27: Transformers | D27: 0.1994717476 | E27: 0.8972296926 | F27: 0.4989449689 | G27: 0.6701700826 | H27: 0.5564249321 | I27: 0.742914751 | J27: 1.866189929 | K27: 2.690928102 | L27: 2.690129009 | M27: 0.7306921845 | O27: 1.595646409 | P27: 1.226595015 | Q27: 2.822241424 | S27: 8.720853976 | T27: 2.090045346
C28: Substation | D28: 0.1994717476 | E28: 1.495382821 | F28: 0.9978899378 | G28: 2.233900275 | H28: 2.225699728 | I28: 0.3183920361 | J28: 0.1036772183 | K28: 0.2069944694 | L28: 0.1034665003 | M28: 0.2087691956 | O28: 2.692744506 | P28: 4.459600004 | Q28: 7.15234451 | S28: 0.9412994197 | T28: -0.8683928859
B29: 132kV | C29: Overhead lines | D29: 0.7978869905 | E29: 0.8972296926 | F29: 7.783541515 | G29: 8.377126033 | H29: 6.899669158 | I29: 2.759397647 | J29: 0 | K29: 0.724480643 | L29: 0 | M29: 4.384153107 | O29: 9.478658198 | P29: 15.27679519 | Q29: 24.75545339 | S29: 7.868031397 | T29: -0.6821697719
C30: Underground cables | D30: 2.992076214 | E30: 0.2990765642 | F30: 0 | G30: 0 | H30: 0.5564249321 | I30: 1.273568145 | J30: 5.702247005 | K30: 6.830817491 | L30: 9.829317532 | M30: 9.91653679 | O30: 3.291152778 | P30: 0.5564249321 | Q30: 3.847577711 | S30: 33.55248696 | T30: 7.72041827
C31: Submarine cables | D31: 0 | E31: 0 | F31: 0 | G31: 0 | H31: 0 | I31: 0 | J31: 0 | K31: 0 | L31: 0 | M31: 0 | O31: 0 | P31: 0 | Q31: 0 | S31: 0 | T31: 0
C32: Switchgear (incl other plant & equipment) | D32: 2.89234034 | E32: 1.894151573 | F32: 0.1995779876 | G32: 0 | H32: 4.673969429 | I32: 12.73568145 | J32: 11.9228801 | K32: 6.830817491 | L32: 3.828260512 | M32: 3.862230118 | O32: 4.986069901 | P32: 4.673969429 | Q32: 9.660039331 | S32: 39.17986967 | T32: 3.055870616
C33: Transformers | D33: 2.09445335 | E33: 0.7975375045 | F33: 0 | G33: 0 | H33: 2.114414742 | I33: 2.016482896 | J33: 2.488253239 | K33: 1.966447459 | L33: 1.965863506 | M33: 0 | O33: 2.891990854 | P33: 2.114414742 | Q33: 5.006405596 | S33: 8.4370471 | T33: 0.6852504132
C34: Substation | D34: 0 | E34: 0 | F34: 0 | G34: 0 | H34: 0 | I34: 0.1952613574 | J34: 0 | K34: 0 | L34: 0 | M34: 0 | O34: 0 | P34: 0 | Q34: 0 | S34: 0.1952613574 | T34: 0
B35: Total non-load replacement (£m) | D35: 24.53502496 | E35: 30.20673298 | F35: 40.1151755 | G35: 44.90139554 | H35: 51.41366372 | I35: 46.78662931 | J35: 54.63789403 | K35: 56.09550121 | L35: 63.83883071 | M35: 59.70798993 | O35: 94.85693344 | P35: 96.31505926 | Q35: 191.1719927 | S35: 281.0668452 | T35: 0.4702302426
B38: Proactive condition based replacement (non fault)
B40: Asset Categories | D40: DPCR 4 | I40: DPCR 5 | O40: DPCR4 | S40: DPCR5
D41: 2005/06 | E41: 2006/07 | F41: 2007/08 | G41: 2008/09 | H41: 2009/10 | I41: 2010/11 | J41: 2011/12 | K41: 2012/13 | L41: 2013/14 | M41: 2014/15 | O41: Actuals | P41: Forecast | Q41: Total | S41: Forecast | T41: % change
D42: £m | E42: £m | F42: £m | G42: £m | H42: £m | I42: £m | J42: £m | K42: £m | L42: £m | M42: £m
B43: Metered LV Services | C43: Overhead | D43: 0.2992076214 | E43: 0.2990765642 | F43: 1.097678932 | G43: 4.021020496 | H43: 2.336984715 | I43: 1.910352217 | J43: 1.866189929 | K43: 1.862950225 | L43: 1.965863506 | M43: 1.983307358 | O43: 1.695963117 | P43: 6.35800521 | Q43: 8.053968328 | S43: 9.588663235 | T43: 0.1905513959
C44: Underground | D44: 1.695509855 | E44: 2.292920325 | F44: 3.492614782 | G44: 0.2233900275 | H44: 0.6677099185 | I44: 1.273568145 | J44: 1.347803838 | K44: 1.448961286 | L44: 1.655464005 | M44: 1.774538162 | O44: 7.481044963 | P44: 0.891099946 | Q44: 8.372144909 | S44: 7.500335436 | T44: -0.1041321528
B45: Un-metered LV Services | C45: Overhead | D45: 0 | E45: 0 | F45: 0 | G45: 0 | H45: 0 | I45: 0 | J45: 0 | K45: 0 | L45: 0 | M45: 0 | O45: 0 | P45: 0 | Q45: 0 | S45: 0 | T45: 0
C46: Underground | D46: 0 | E46: 0 | F46: 0 | G46: 0 | H46: 0 | I46: 0 | J46: 0 | K46: 0 | L46: 0 | M46: 0 | O46: 0 | P46: 0 | Q46: 0 | S46: 0 | T46: 0
B47: LV System | C47: Overhead mains | D47: 0.3989434952 | E47: 0.4984609403 | F47: 0.6985229565 | G47: 4.914580606 | H47: 4.785254416 | I47: 1.273568145 | J47: 1.244126619 | K47: 1.345464051 | L47: 1.345064504 | M47: 1.356999771 | O47: 1.595927392 | P47: 9.699835022 | Q47: 11.29576241 | S47: 6.565223091 | T47: -0.4187888475
C48: Underground mains | D48: 1.396302233 | E48: 2.392612514 | F48: 3.891770757 | G48: 0.2233900275 | H48: 0.6677099185 | I48: 0.8490454297 | J48: 0.8294177462 | K48: 1.138469582 | L48: 1.448531005 | M48: 1.670153565 | O48: 7.680685504 | P48: 0.891099946 | Q48: 8.57178545 | S48: 5.935617327 | T48: -0.307540143
C49: Switchgear (incl other plant & equipment) | D49: 0.1994717476 | E49: 0.2990765642 | F49: 0.3991559751 | G49: 0.1116950138 | H49: 0.6677099185 | I49: 0.4245227149 | J49: 0.5183860914 | K49: 0.6209834083 | L49: 0.7242655023 | M49: 0.8350767823 | O49: 0.8977042869 | P49: 0.7794049322 | Q49: 1.677109219 | S49: 3.123234499 | T49: 0.862272572
B50: HV | C50: Overhead lines | D50: 2.692868593 | E50: 2.691689078 | F50: 2.694302832 | G50: 11.61628143 | H50: 10.12693376 | I50: 6.367840723 | J50: 5.805924224 | K50: 5.48535344 | L50: 5.173325017 | M50: 5.114845292 | O50: 8.078860503 | P50: 21.7432152 | Q50: 29.8220757 | S50: 27.94728869 | T50: -0.06286574492
C51: Underground cables | D51: 1.496038107 | E51: 1.993843761 | F51: 3.093458807 | G51: 0.5584750689 | H51: 1.001564878 | I51: 1.061306787 | J51: 1.140449401 | K51: 1.241966817 | L51: 1.241598004 | M51: 1.461384369 | O51: 6.583340676 | P51: 1.560039947 | Q51: 8.143380622 | S51: 6.146705378 | T51: -0.2451899693
C52: Submarine | D52: 0 | E52: 0 | F52: 0 | G52: 0 | H52: 0 | I52: 0 | J52: 0 | K52: 0 | L52: 0 | M52: 0 | O52: 0 | P52: 0 | Q52: 0 | S52: 0 | T52: 0
C53: Switchgear (incl other plant & equipment) | D53: 3.291283836 | E53: 5.483070344 | F53: 5.588183652 | G53: 3.462545427 | H53: 5.119109375 | I53: 6.155579365 | J53: 6.946373625 | K53: 7.451800899 | L53: 8.380786527 | M53: 7.620075638 | O53: 14.36253783 | P53: 8.581654802 | Q53: 22.94419263 | S53: 36.55461605 | T53: 0.5931968773
C54: Transformers | D54: 0 | E54: 0.3987687523 | F54: 0.4989449689 | G54: 0.3350850413 | H54: 1.446704823 | I54: 0.8490454297 | J54: 0.9330949645 | K54: 1.034972347 | L54: 1.241598004 | M54: 1.461384369 | O54: 0.8977137212 | P54: 1.781789865 | Q54: 2.679503586 | S54: 5.520095114 | T54: 1.060118577
C55: Substation | D55: 0.6981511167 | E55: 1.993843761 | F55: 1.895990882 | G55: 1.228645151 | H55: 2.225699728 | I55: 0.9551761084 | J55: 0.9330949645 | K55: 0.9314751124 | L55: 0.931198503 | M55: 0.9394613801 | O55: 4.58798576 | P55: 3.45434488 | Q55: 8.04233064 | S55: 4.690406068 | T55: -0.4167852233
B56: EHV | C56: Overhead lines | D56: 0.09973587381 | E56: 0.4984609403 | F56: 0.9978899378 | G56: 3.462545427 | H56: 0.8902798913 | I56: 2.016482896 | J56: 6.427987533 | K56: 2.380436398 | L56: 12.20904704 | M56: 7.411306443 | O56: 1.596086752 | P56: 4.352825318 | Q56: 5.94891207 | S56: 30.44526031 | T56: 4.117786236
C57: Underground cables | D57: 1.496038107 | E57: 1.395690633 | F57: 1.895990882 | G57: 0 | H57: 1.112849864 | I57: 0 | J57: 0 | K57: 5.071364501 | L57: 3.10399501 | M57: 0 | O57: 4.787719622 | P57: 1.112849864 | Q57: 5.900569486 | S57: 8.175359511 | T57: 0.3855204197
C58: Submarine | D58: 0 | E58: 0 | F58: 0 | G58: 0 | H58: 0 | I58: 0 | J58: 0 | K58: 0 | L58: 0 | M58: 0 | O58: 0 | P58: 0 | Q58: 0 | S58: 0 | T58: 0
C59: Switchgear (incl other plant & equipment) | D59: 0.2992076214 | E59: 0.7975375045 | F59: 1.097678932 | G59: 1.005255124 | H59: 0.8902798913 | I59: 1.591960181 | J59: 2.591930457 | K59: 4.760872797 | L59: 3.828260512 | M59: 6.784998856 | O59: 2.194424058 | P59: 1.895535015 | Q59: 4.089959073 | S59: 19.5580228 | T59: 3.781960517
C60: Transformers | D60: 0.09973587381 | E60: 0.3987687523 | F60: 0.1995779876 | G60: 0.3350850413 | H60: 0.2225699728 | I60: 0.5306533936 | J60: 1.658835492 | K60: 2.483933633 | L60: 2.483196008 | M60: 0.5219229889 | O60: 0.6980826136 | P60: 0.5576550141 | Q60: 1.255737628 | S60: 7.678541516 | T60: 5.114765813
C61: Substation | D61: 0.1994717476 | E61: 1.495382821 | F61: 0.9978899378 | G61: 2.233900275 | H61: 2.225699728 | I61: 0.3183920361 | J61: 0.1036772183 | K61: 0.2069944694 | L61: 0.1034665003 | M61: 0.2087691956 | O61: 2.692744506 | P61: 4.459600004 | Q61: 7.15234451 | S61: 0.9412994197 | T61: -0.8683928859
B62: 132kV | C62: Overhead lines | D62: 0.7978869905 | E62: 0.8972296926 | F62: 7.783541515 | G62: 8.377126033 | H62: 6.899669158 | I62: 2.759397647 | J62: 0 | K62: 0.724480643 | L62: 0 | M62: 4.384153107 | O62: 9.478658198 | P62: 15.27679519 | Q62: 24.75545339 | S62: 7.868031397 | T62: -0.6821697719
C63: Underground cables | D63: 2.992076214 | E63: 0.2990765642 | F63: 0 | G63: 0 | H63: 0.5564249321 | I63: 1.273568145 | J63: 5.702247005 | K63: 6.830817491 | L63: 9.829317532 | M63: 9.91653679 | O63: 3.291152778 | P63: 0.5564249321 | Q63: 3.847577711 | S63: 33.55248696 | T63: 7.72041827
C64: Submarine cables | D64: 0 | E64: 0 | F64: 0 | G64: 0 | H64: 0 | I64: 0 | J64: 0 | K64: 0 | L64: 0 | M64: 0 | O64: 0 | P64: 0 | Q64: 0 | S64: 0 | T64: 0
C65: Switchgear (incl other plant & equipment) | D65: 2.89234034 | E65: 1.894151573 | F65: 0.1995779876 | G65: 0 | H65: 4.673969429 | I65: 12.73568145 | J65: 11.9228801 | K65: 6.830817491 | L65: 3.828260512 | M65: 3.862230118 | O65: 4.986069901 | P65: 4.673969429 | Q65: 9.660039331 | S65: 39.17986967 | T65: 3.055870616
C66: Transformers | D66: 2.09445335 | E66: 0.7975375045 | F66: 0 | G66: 0 | H66: 2.114414742 | I66: 2.016482896 | J66: 2.488253239 | K66: 1.966447459 | L66: 1.965863506 | M66: 0 | O66: 2.891990854 | P66: 2.114414742 | Q66: 5.006405596 | S66: 8.4370471 | T66: 0.6852504132
C67: Substation | D67: 0 | E67: 0 | F67: 0 | G67: 0 | H67: 0 | I67: 0.1952613574 | J67: 0 | K67: 0 | L67: 0 | M67: 0 | O67: 0 | P67: 0 | Q67: 0 | S67: 0.1952613574 | T67: 0
B68: Total proactive condition based replacement (£m) | D68: 23.13872272 | E68: 26.81719859 | F68: 36.52277172 | G68: 42.10902019 | H68: 48.63153906 | I68: 44.55788506 | J68: 52.46067245 | K68: 53.81856205 | L68: 61.4591012 | M68: 57.30714418 | O68: 86.47869304 | P68: 90.74055925 | Q68: 177.2192523 | S68: 269.6033649 | T68: 0.5212983999
B71: Reactive condition-based replacement (fault)
B73: Asset Categories | D73: DPCR 4 | I73: DPCR 5 | O73: DPCR4 | S73: DPCR5
D74: 2005/06 | E74: 2006/07 | F74: 2007/08 | G74: 2008/09 | H74: 2009/10 | I74: 2010/11 | J74: 2011/12 | K74: 2012/13 | L74: 2013/14 | M74: 2014/15 | O74: Actuals | P74: Forecast | Q74: Total | S74: Forecast | T74: % change
D75: £m | E75: £m | F75: £m | G75: £m | H75: £m | I75: £m | J75: £m | K75: £m | L75: £m | M75: £m
B76: Metered LV Services | C76: Overhead | D76: 0 | E76: 0 | F76: 0 | G76: 0 | H76: 0 | I76: 0 | J76: 0 | K76: 0 | L76: 0 | M76: 0 | O76: 0 | P76: 0 | Q76: 0 | S76: 0 | T76: 0
C77: Underground | D77: 0 | E77: 0.09969218806 | F77: 0.09978899378 | G77: 0.1116950138 | H77: 0.1112849864 | I77: 0 | J77: 0 | K77: 0 | L77: 0 | M77: 0 | O77: 0.1994811818 | P77: 0.2229800002 | Q77: 0.422461182 | S77: 0 | T77: -1
B78: Un-metered LV Services | C78: Overhead | D78: 0 | E78: 0 | F78: 0 | G78: 0 | H78: 0 | I78: 0 | J78: 0 | K78: 0 | L78: 0 | M78: 0 | O78: 0 | P78: 0 | Q78: 0 | S78: 0 | T78: 0
C79: Underground | D79: 0 | E79: 0 | F79: 0 | G79: 0 | H79: 0 | I79: 0 | J79: 0 | K79: 0 | L79: 0 | M79: 0 | O79: 0 | P79: 0 | Q79: 0 | S79: 0 | T79: 0
B80: LV System | C80: Overhead mains | D80: 0 | E80: 0 | F80: 0 | G80: 0 | H80: 0 | I80: 0 | J80: 0 | K80: 0 | L80: 0 | M80: 0 | O80: 0 | P80: 0 | Q80: 0 | S80: 0 | T80: 0
C81: Underground mains | D81: 0 | E81: 0.09969218806 | F81: 0.09978899378 | G81: 0.1116950138 | H81: 0.1112849864 | I81: 0 | J81: 0 | K81: 0.1034972347 | L81: 0.1034665003 | M81: 0.1043845978 | O81: 0.1994811818 | P81: 0.2229800002 | Q81: 0.422461182 | S81: 0.3113483328 | T81: -0.263013157
C82: Switchgear (incl other plant & equipment) | D82: 0.3989434952 | E82: 0.5981531284 | F82: 0.7983119503 | G82: 0.4467800551 | H82: 0.4451399456 | I82: 0.4245227149 | J82: 0.4147088731 | K82: 0.4139889388 | L82: 0.4138660013 | M82: 0.4175383911 | O82: 1.795408574 | P82: 0.8919200007 | Q82: 2.687328575 | S82: 2.084624919 | T82: -0.224276131
B83: HV | C83: Overhead lines | D83: 0.09973587381 | E83: 0.09969218806 | F83: 0.09978899378 | G83: 0.1116950138 | H83: 0.1112849864 | I83: 0.1061306787 | J83: 0.1036772183 | K83: 0.1034972347 | L83: 0.1034665003 | M83: 0.1043845978 | O83: 0.2992170557 | P83: 0.2229800002 | Q83: 0.5221970558 | S83: 0.5211562298 | T83: -0.001993167143
C84: Underground cables | D84: 0 | E84: 0 | F84: 0 | G84: 0 | H84: 0 | I84: 0 | J84: 0 | K84: 0 | L84: 0 | M84: 0 | O84: 0 | P84: 0 | Q84: 0 | S84: 0 | T84: 0
C85: Submarine | D85: 0 | E85: 0 | F85: 0 | G85: 0 | H85: 0 | I85: 0 | J85: 0 | K85: 0 | L85: 0 | M85: 0 | O85: 0 | P85: 0 | Q85: 0 | S85: 0 | T85: 0
C86: Switchgear (incl other plant & equipment) | D86: 0.5984152429 | E86: 0.9969218806 | F86: 0.9978899378 | G86: 0.8935601102 | H86: 0.8902798913 | I86: 0.742914751 | J86: 0.725740528 | K86: 0.724480643 | L86: 0.7242655023 | M86: 0.7306921845 | O86: 2.593227061 | P86: 1.783840001 | Q86: 4.377067063 | S86: 3.648093609 | T86: -0.1665438166
C87: Transformers | D87: 0 | E87: 0.4984609403 | F87: 0.6985229565 | G87: 0.3350850413 | H87: 0.3338549592 | I87: 0.3183920361 | J87: 0.3110316548 | K87: 0.3104917041 | L87: 0.4138660013 | M87: 0.4175383911 | O87: 1.196983897 | P87: 0.6689400005 | Q87: 1.865923897 | S87: 1.771319788 | T87: -0.0507009476
C88: Substation | D88: 0.1994717476 | E88: 0.3987687523 | F88: 0.3991559751 | G88: 0.3350850413 | H88: 0.3338549592 | I88: 0.3183920361 | J88: 0.3110316548 | K88: 0.3104917041 | L88: 0.310399501 | M88: 0.3131537934 | O88: 0.997396475 | P88: 0.6689400005 | Q88: 1.666336476 | S88: 1.563468689 | T88: -0.06173290184
B89: EHV | C89: Overhead lines | D89: 0 | E89: 0 | F89: 0 | G89: 0 | H89: 0 | I89: 0 | J89: 0 | K89: 0 | L89: 0 | M89: 0 | O89: 0 | P89: 0 | Q89: 0 | S89: 0 | T89: 0
C90: Underground cables | D90: 0 | E90: 0 | F90: 0 | G90: 0 | H90: 0 | I90: 0 | J90: 0 | K90: 0 | L90: 0 | M90: 0 | O90: 0 | P90: 0 | Q90: 0 | S90: 0 | T90: 0
C91: Submarine | D91: 0 | E91: 0 | F91: 0 | G91: 0 | H91: 0 | I91: 0 | J91: 0 | K91: 0 | L91: 0 | M91: 0 | O91: 0 | P91: 0 | Q91: 0 | S91: 0 | T91: 0
C92: Switchgear (incl other plant & equipment) | D92: 0 | E92: 0.09969218806 | F92: 0.09978899378 | G92: 0.1116950138 | H92: 0.1112849864 | I92: 0.1061306787 | J92: 0.1036772183 | K92: 0.1034972347 | L92: 0.1034665003 | M92: 0.1043845978 | O92: 0.1994811818 | P92: 0.2229800002 | Q92: 0.422461182 | S92: 0.5211562298 | T92: 0.2336192105
C93: Transformers | D93: 0.09973587381 | E93: 0.4984609403 | F93: 0.2993669813 | G93: 0.3350850413 | H93: 0.3338549592 | I93: 0.2122613574 | J93: 0.2073544366 | K93: 0.2069944694 | L93: 0.2069330007 | M93: 0.2087691956 | O93: 0.8975637955 | P93: 0.6689400005 | Q93: 1.566503796 | S93: 1.04231246 | T93: -0.3346250023
C94: Substation | D94: 0 | E94: 0 | F94: 0 | G94: 0 | H94: 0 | I94: 0 | J94: 0 | K94: 0 | L94: 0 | M94: 0 | O94: 0 | P94: 0 | Q94: 0 | S94: 0 | T94: 0
B95: 132kV | C95: Overhead lines | D95: 0 | E95: 0 | F95: 0 | G95: 0 | H95: 0 | I95: 0 | J95: 0 | K95: 0 | L95: 0 | M95: 0 | O95: 0 | P95: 0 | Q95: 0 | S95: 0 | T95: 0
C96: Underground cables | D96: 0 | E96: 0 | F96: 0 | G96: 0 | H96: 0 | I96: 0 | J96: 0 | K96: 0 | L96: 0 | M96: 0 | O96: 0 | P96: 0 | Q96: 0 | S96: 0 | T96: 0
C97: Submarine cables | D97: 0 | E97: 0 | F97: 0 | G97: 0 | H97: 0 | I97: 0 | J97: 0 | K97: 0 | L97: 0 | M97: 0 | O97: 0 | P97: 0 | Q97: 0 | S97: 0 | T97: 0
C98: Switchgear (incl other plant & equipment) | D98: 0 | E98: 0 | F98: 0 | G98: 0 | H98: 0 | I98: 0 | J98: 0 | K98: 0 | L98: 0 | M98: 0 | O98: 0 | P98: 0 | Q98: 0 | S98: 0 | T98: 0
C99: Transformers | D99: 0 | E99: 0 | F99: 0 | G99: 0 | H99: 0 | I99: 0 | J99: 0 | K99: 0 | L99: 0 | M99: 0 | O99: 0 | P99: 0 | Q99: 0 | S99: 0 | T99: 0
C100: Substation | D100: 0 | E100: 0 | F100: 0 | G100: 0 | H100: 0 | I100: 0 | J100: 0 | K100: 0 | L100: 0 | M100: 0 | O100: 0 | P100: 0 | Q100: 0 | S100: 0 | T100: 0
B101: Total reactive condition based replacement (£m) | D101: 1.396302233 | E101: 3.389534394 | F101: 3.592403776 | G101: 2.792375344 | H101: 2.78212466 | I101: 2.228744253 | J101: 2.177221584 | K101: 2.276939164 | L101: 2.379729508 | M101: 2.400845749 | O101: 8.378240404 | P101: 5.574500005 | Q101: 13.95274041 | S101: 11.46348026 | T101: -0.1784065408
B104: Overhead line refurbishment / replacement
B106: Asset Categories | D106: DPCR 4 | I106: DPCR 5 | O106: DPCR4 | S106: DPCR5
D107: 2005/06 | E107: 2006/07 | F107: 2007/08 | G107: 2008/09 | H107: 2009/10 | I107: 2010/11 | J107: 2011/12 | K107: 2012/13 | L107: 2013/14 | M107: 2014/015 | O107: Actuals | P107: Forecast | Q107: Total | S107: Forecast | T107: % change
D108: £m | E108: £m | F108: £m | G108: £m | H108: £m | I108: £m | J108: £m | K108: £m | L108: £m | M108: £m
B109: LV Mains | C109: Refurbishment | D109: 0 | E109: 0 | F109: 0 | G109: 0.2233900275 | H109: 1.335419837 | I109: 0 | J109: 0 | K109: 0 | L109: 0 | M109: 0 | O109: 0 | P109: 1.558809864 | Q109: 1.558809864 | S109: 0 | T109: -1
C110: Full rebuild | D110: 0.09973587381 | E110: 0.09969218806 | F110: 0.09978899378 | G110: 0.8935601102 | H110: 0.5564249321 | I110: 0.742914751 | J110: 0.725740528 | K110: 0.8279778777 | L110: 0.8277320027 | M110: 0.8350767823 | O110: 0.2992170557 | P110: 1.449985042 | Q110: 1.749202098 | S110: 3.959441942 | T110: 1.263570314
C111: Undergrounding | D111: 0.2992076214 | E111: 0.3987687523 | F111: 0.5987339627 | G111: 3.797630468 | H111: 2.893409647 | I111: 0.5306533936 | J111: 0.5183860914 | K111: 0.5174861735 | L111: 0.5173325017 | M111: 0.5219229889
C112: Covered Conductor | D112: 0 | E112: 0 | F112: 0 | G112: 0 | H112: 0 | I112: 0 | J112: 0 | K112: 0 | L112: 0 | M112: 0
C113: Pole replacement only (i.e. D poles) | D113: 0 | E113: 0 | F113: 0 | G113: 0 | H113: 0 | I113: 0 | J113: 0 | K113: 0 | L113: 0 | M113: 0
C114: Total OHL expenditure (£m) | D114: 0.3989434952 | E114: 0.4984609403 | F114: 0.6985229565 | G114: 4.914580606 | H114: 4.785254416 | I114: 1.273568145 | J114: 1.244126619 | K114: 1.345464051 | L114: 1.345064504 | M114: 1.356999771 | O114: 1.595927392 | P114: 9.699835022 | Q114: 11.29576241 | S114: 6.565223091 | T114: -0.4187888475
B115: HV | C115: Refurbishment | D115: 1.29656636 | E115: 1.295998445 | F115: 1.297256919 | G115: 5.584750689 | H115: 5.119109375 | I115: 2.228744253 | J115: 1.969867147 | K115: 1.862950225 | L115: 1.758930506 | M115: 1.774538162 | O115: 3.889821724 | P115: 10.70386006 | Q115: 14.59368179 | S115: 9.595030293 | T115: -0.3425216177
C116: Full rebuild | D116: 0.5984152429 | E116: 0.5981531284 | F116: 0.5987339627 | G116: 2.457290303 | H116: 3.561119565 | I116: 4.13909647 | J116: 3.836057076 | K116: 3.622403215 | L116: 3.414394511 | M116: 3.340307129 | O116: 1.795302334 | P116: 6.018409868 | Q116: 7.813712202 | S116: 18.3522584 | T116: 1.348724643
C117: Undergrounding | D117: 0.7978869905 | E117: 0.7975375045 | F117: 0.7983119503 | G117: 3.574240441 | H117: 1.446704823 | I117: 0 | J117: 0 | K117: 0 | L117: 0 | M117: 0
C118: Covered Conductor | D118: 0 | E118: 0 | F118: 0 | G118: 0 | H118: 0 | I118: 0 | J118: 0 | K118: 0 | L118: 0 | M118: 0
C119: Pole replacement only (i.e. D poles) | D119: 0 | E119: 0 | F119: 0 | G119: 0 | H119: 0 | I119: 0 | J119: 0 | K119: 0 | L119: 0 | M119: 0
C120: Total OHL expenditure (£m) | D120: 2.692868593 | E120: 2.691689078 | F120: 2.694302832 | G120: 11.61628143 | H120: 10.12693376 | I120: 6.367840723 | J120: 5.805924224 | K120: 5.48535344 | L120: 5.173325017 | M120: 5.114845292 | O120: 8.078860503 | P120: 21.7432152 | Q120: 29.8220757 | S120: 27.94728869 | T120: -0.06286574492
B121: EHV - Pole line | C121: Refurbishment | D121: 0.09973587381 | E121: 0.4984609403 | F121: 0.9978899378 | G121: 3.462545427 | H121: 0.6677099185 | I121: 0 | J121: 0.1036772183 | K121: 0.4139889388 | L121: 0 | M121: 0.2087691956 | O121: 1.596086752 | P121: 4.130255345 | Q121: 5.726342097 | S121: 0.7264353527 | T121: -0.8731414679
C122: Full rebuild | D122: 0 | E122: 0 | F122: 0 | G122: 0 | H122: 0 | I122: 1.804221538 | J122: 5.909601442 | K122: 1.966447459 | L122: 11.07091554 | M122: 6.889383454 | O122: 0 | P122: 0 | Q122: 0 | S122: 27.64056943 | T122: 0
C123: Undergrounding | D123: 0 | E123: 0 | F123: 0 | G123: 0 | H123: 0.2225699728 | I123: 0 | J123: 0.4147088731 | K123: 0 | L123: 0 | M123: 0
C124: Pole replacement only (i.e. D poles) | D124: 0 | E124: 0 | F124: 0 | G124: 0 | H124: 0 | I124: 0 | J124: 0 | K124: 0 | L124: 0 | M124: 0
B125: EHV - Tower line | C125: Fittings only | D125: 0 | E125: 0 | F125: 0 | G125: 0 | H125: 0 | I125: 0 | J125: 0 | K125: 0 | L125: 0 | M125: 0 | O125: 0 | P125: 0 | Q125: 0 | S125: 0 | T125: 0
C126: Reconductoring | D126: 0 | E126: 0 | F126: 0 | G126: 0 | H126: 0 | I126: 0.2122613574 | J126: 0 | K126: 0 | L126: 0.1034665003 | M126: 0.3131537934 | O126: 0 | P126: 0 | Q126: 0 | S126: 0.6288816511 | T126: 0
C127: Undergrounding | D127: 0 | E127: 0 | F127: 0 | G127: 0 | H127: 0 | I127: 0 | J127: 0 | K127: 0 | L127: 0.2069330007 | M127: 0
C128: Tower Refurbishment | D128: 0 | E128: 0 | F128: 0 | G128: 0 | H128: 0 | I128: 0 | J128: 0 | K128: 0 | L128: 0.8277320027 | M128: 0
B129: EHV Total | C129: Total OHL expenditure (£m) | D129: 0.09973587381 | E129: 0.4984609403 | F129: 0.9978899378 | G129: 3.462545427 | H129: 0.8902798913 | I129: 2.016482896 | J129: 6.427987533 | K129: 2.380436398 | L129: 12.20904704 | M129: 7.411306443 | O129: 1.596086752 | P129: 4.352825318 | Q129: 5.94891207 | S129: 30.44526031 | T129: 4.117786236
B130: 132kV - Pole Line | C130: Refurbishment | D130: 0 | E130: 0 | F130: 0 | G130: 0 | H130: 0 | I130: 0 | J130: 0 | K130: 0 | L130: 0 | M130: 0 | O130: 0 | P130: 0 | Q130: 0 | S130: 0 | T130: 0
C131: Full rebuild | D131: 0 | E131: 0 | F131: 0 | G131: 0 | H131: 0 | I131: 0 | J131: 0 | K131: 0 | L131: 0 | M131: 0 | O131: 0 | P131: 0 | Q131: 0 | S131: 0 | T131: 0
C132: Undergrounding | D132: 0 | E132: 0 | F132: 0 | G132: 0 | H132: 0 | I132: 0 | J132: 0 | K132: 0 | L132: 0 | M132: 0
C133: Pole replacement only (i.e. D poles) | D133: 0 | E133: 0 | F133: 0 | G133: 0 | H133: 0 | I133: 0 | J133: 0 | K133: 0 | L133: 0 | M133: 0
B134: 132kV - Tower line | C134: Fittings only | D134: 0 | E134: 0 | F134: 0 | G134: 0 | H134: 0 | I134: 0 | J134: 0 | K134: 0 | L134: 0 | M134: 0
C135: Reconductoring | D135: 0.7978869905 | E135: 0.8972296926 | F135: 7.783541515 | G135: 8.377126033 | H135: 3.783689538 | I135: 2.122613574 | J135: 0 | K135: 0.724480643 | L135: 0 | M135: 4.384153107 | O135: 9.478658198 | P135: 12.16081557 | Q135: 21.63947377 | S135: 7.231247324 | T135: -0.6658307221
C136: Undergrounding | D136: 0 | E136: 0 | F136: 0 | G136: 0 | H136: 3.11597962 | I136: 0 | J136: 0 | K136: 0 | L136: 0 | M136: 0
C137: Tower Refurbishment | D137: 0 | E137: 0 | F137: 0 | G137: 0 | H137: 0 | I137: 0.6367840723 | J137: 0 | K137: 0 | L137: 0 | M137: 0 | O137: 0 | P137: 0 | Q137: 0 | S137: 0.6367840723 | T137: 0
B138: 132 kV Total | C138: Total OHL expenditure (£m) | D138: 0.7978869905 | E138: 0.8972296926 | F138: 7.783541515 | G138: 8.377126033 | H138: 6.899669158 | I138: 2.759397647 | J138: 0 | K138: 0.724480643 | L138: 0 | M138: 4.384153107 | O138: 9.478658198 | P138: 15.27679519 | Q138: 24.75545339 | S138: 7.868031397 | T138: -0.6821697719
B140: LV Services - Split of activities
B142: Asset Categories | D142: DPCR 4 | I142: DPCR 5 | O142: DPCR4 | S142: DPCR5
D143: 2005/06 | E143: 2006/07 | F143: 2007/08 | G143: 2008/09 | H143: 2009/10 | I143: 2010/11 | J143: 2011/12 | K143: 2012/13 | L143: 2013/14 | M143: 2014/015 | O143: Actuals | P143: Forecast | Q143: Total | S143: Forecast | T143: % change
D144: £m | E144: £m | F144: £m | G144: £m | H144: £m | I144: £m | J144: £m | K144: £m | L144: £m | M144: £m
B145: LV Services - metered only | C145: OHL
C146: Service Replacement | O146: =SUM(D146:G146) -> 0 | P146: =H146 -> 0 | Q146: =SUM(D146:H146) -> 0 | S146: =SUM(I146:M146) -> 0 | T146: =IF(Q146<>0,(S146-Q146)/Q146,"0") -> 0
C147: Cut out Replacement | O147: 0 | P147: 0 | Q147: 0 | S147: 0 | T147: 0
O148: 0 | P148: 0 | Q148: 0 | S148: 0 | T148: 0
C150: UG
C151: Service Replacement | O151: 0 | P151: 0 | Q151: 0 | S151: 0 | T151: 0
C152: Cut out Replacement | O152: 0 | P152: 0 | Q152: 0 | S152: 0 | T152: 0
O153: 0 | P153: 0 | Q153: 0 | S153: 0 | T153: 0

Sheet NL9 - Legal & Safety
A1: June Forecast Business Plan DPCR5
A2: EDFE SPN
A3: NL9 - Legal and safety
B5: Legal and Safety
D7: DPCR4 | I7: DPCR5
D8: 2005/06 | E8: 2006/07 | F8: 2007/08 | G8: 2008/09 | H8: 2009/10 | I8: 2010/11 | J8: 2011/12 | K8: 2012/13 | L8: 2013/14 | M8: 2014/15
B9: ESQCR
B10: ESQCR 43-8 Clearance | C10: £m
B11: ESQCR tree continuity | C11: £m
B12: ESQCR Other | C12: £m
B13: CNI
B14: Black Start | C14: £m
B15: Emergency Batteries | C15: £m
B16: Critical National Infrastructure | C16: £m
B17: Other
B18: Site Security | C18: £m
B19: Asbestos clearance | C19: £m
B20: Safety climbing devices | C20: £m
B21: Rising mains and laterals | C21: £m
C22: £m
B23: Retrofit ABSD & Earthing theft & Replace 0.025 OH conductor | C23: £m
B24: Fire Prevention | C24: £m
B25: Total | C25: £m | D25: =SUM(D10:D24) -> 0 | E25: 0 | F25: 0 | G25: 0 | H25: 0 | I25: 0 | J25: 0 | K25: 0 | L25: 0 | M25: 0
B28: ESQCR 43-8 Safety Clearance Expenditure
B30: Horizontal
D31: DPCR4 | I31: DPCR5
D32: 2005/06 | E32: 2006/07 | F32: 2007/08 | G32: 2008/09 | H32: 2009/10 | I32: 2010/11 | J32: 2011/12 | K32: 2012/13 | L32: 2013/14 | M32: 2014/15
B33: LV | C33: £m
B34: HV | C34: £m
B35: EHV | C35: £m
B36: 132 kV | C36: £m
B37: Total | C37: £m | D37: =SUM(D33:D36) -> 0 | E37: 0 | F37: 0 | G37: 0 | H37: 0 | I37: 0 | J37: 0 | K37: 0 | L37: 0 | M37: 0
B39: Vertical
D40: DPCR4 | I40: DPCR5
D41: 2005/06 | E41: 2006/07 | F41: 2007/08 | G41: 2008/09 | H41: 2009/10 | I41: 2010/11 | J41: 2011/12 | K41: 2012/13 | L41: 2013/14 | M41: 2014/15
B42: LV | C42: £m
B43: HV | C43: £m
B44: EHV | C44: £m
B45: 132 kV | C45: £m
B46: Total | C46: £m | D46: =SUM(D42:D45) -> 0 | E46: 0 | F46: 0 | G46: 0 | H46: 0 | I46: 0 | J46: 0 | K46: 0 | L46: 0 | M46: 0
B48: Horizontal - Detailed Information
C50: Sites affected as at April 2005 | D50: No of sites resolved 05/06 - 07/08 | E50: Sites affected as at April 2008 | F50: No of sites to be resolved 08/09 - 09/10 | G50: No of sites to be resolved in DPCR5 | H50: Sites affected as at April 2015
B51: LV | C51: =D51+E51 -> 0 | D51: =C61 -> 0 | F51: =K61 -> 0 | G51: =S61 -> 0 | H51: =E51-SUM(F51:G51) -> 0
B52: HV | C52: =D52+E52 -> 0 | D52: =C62 -> 0 | F52: =K62 -> 0 | G52: =S62 -> 0 | H52: =E52-SUM(F52:G52) -> 0
B53: EHV | C53: =D53+E53 -> 0 | D53: =C63 -> 0 | F53: =K63 -> 0 | G53: =S63 -> 0 | H53: =E53-SUM(F53:G53) -> 0
B54: 132 kV | C54: =D54+E54 -> 0 | D54: =C64 -> 0 | F54: =K64 -> 0 | G54: =S64 -> 0 | H54: =E54-SUM(F54:G54) -> 0
B55: Total | C55: =SUM(C51:C54) -> 0 | D55: 0 | E55: 0 | F55: 0 | G55: 0 | H55: 0
B58: 05/06 - 07/08 | J58: 08/09-09/10 | R58: DPCR5
C59: No of sites resolved | D59: Actual Solutions (#) | K59: No of sites resolved | L59: Forecast Solutions (#) | S59: No of sites resolved | T59: Forecast Solutions (#)
D60: Shrouding | E60: Diversions | F60: Under-grounding | G60: Covered conductors | H60: As part of other planned work | L60: Shrouding | M60: Diversions | N60: Under-grounding | O60: Covered conductors | P60: As part of other planned work | T60: Shrouding | U60: Diversions | V60: Under-grounding | W60: Covered conductors | X60: As part of other planned work
B61: LV | C61: =SUM(D61:H61) -> 0 | J61: LV | K61: =SUM(L61:P61) -> 0 | R61: LV | S61: =SUM(T61:X61) -> 0
B62: HV | C62: =SUM(D62:H62) -> 0 | J62: HV | K62: =SUM(L62:P62) -> 0 | R62: HV | S62: =SUM(T62:X62) -> 0
B63: EHV | C63: =SUM(D63:H63) -> 0 | J63: EHV | K63: =SUM(L63:P63) -> 0 | R63: EHV | S63: =SUM(T63:X63) -> 0
B64: 132 kV | C64: =SUM(D64:H64) -> 0 | J64: 132 kV | K64: =SUM(L64:P64) -> 0 | R64: 132 kV | S64: =SUM(T64:X64) -> 0
B65: Total | C65: =SUM(C61:C64) -> 0 | D65: 0 | E65: 0 | F65: 0 | G65: 0 | H65: 0 | J65: Total | K65: =SUM(K61:K64) -> 0 | L65: 0 | M65: 0 | N65: 0 | O65: 0 | P65: 0 | R65: Total | S65: =SUM(S61:S64) -> 0 | T65: 0 | U65: 0 | V65: 0 | W65: 0 | X65: 0
B67: 05/06 - 07/08 | J67: 08/09-09/10 | R67: DPCR5
C68: No of spans changed | D68: Actual Solutions (#) | K68: No of spans changed | L68: Forecast Solutions (#) | S68: No of spans changed | T68: Forecast Solutions (#)
D69: Shrouding | E69: Diversions | F69: Under-grounding | G69: Covered conductors | H69: As part of other planned work | L69: Shrouding | M69: Diversions | N69: Under-grounding | O69: Covered conductors | P69: As part of other planned work | T69: Shrouding | U69: Diversions | V69: Under-grounding | W69: Covered conductors | X69: As part of other planned work
B70: LV | J70: LV | R70: LV
B71: HV | J71: HV | R71: HV
B72: EHV | J72: EHV | R72: EHV
B73: 132 kV | J73: 132 kV | R73: 132 kV
B74: Total | C74: =SUM(C70:C73) -> 0 | D74: 0 | E74: 0 | F74: 0 | G74: 0 | H74: 0 | J74: Total | K74: =SUM(K70:K73) -> 0 | L74: 0 | M74: 0 | N74: 0 | O74: 0 | P74: 0 | R74: Total | S74: =SUM(S70:S73) -> 0 | T74: 0 | U74: 0 | V74: 0 | W74: 0 | X74: 0
B76: 05/06 - 07/08 | J76: 08/09-09/10 | R76: DPCR5
C77: Total Cost £m | D77: Expenditure £m | K77: Total Cost £m | L77: Forecast Solutions (£m) | S77: Total Cost £m | T77: Forecast Solutions (£m)
D78: Shrouding | E78: Diversions | F78: Under-grounding | G78: Covered conductors | H78: As part of other planned work | L78: Shrouding | M78: Diversions | N78: Under-grounding | O78: Covered conductors | P78: As part of other planned work | T78: Shrouding | U78: Diversions | V78: Under-grounding | W78: Covered conductors | X78: As part of other planned work
B79: LV | J79: LV | K79: =SUM(G33:H33) -> 0 | R79: LV | S79: =SUM(I33:M33) -> 0
B80: HV | J80: HV | K80: =SUM(G34:H34) -> 0 | R80: HV | S80: =SUM(I34:M34) -> 0
B81: EHV | J81: EHV | K81: =SUM(G35:H35) -> 0 | R81: EHV | S81: =SUM(I35:M35) -> 0
B82: 132 kV | J82: 132 kV | K82: =SUM(G36:H36) -> 0 | R82: 132 kV | S82: =SUM(I36:M36) -> 0
B83: Total | C83: =SUM(C79:C82) -> 0 | D83: 0 | E83: 0 | F83: 0 | G83: 0 | H83: 0 | J83: Total | K83: =SUM(K79:K82) -> 0 | L83: 0 | M83: 0 | N83: 0 | O83: 0 | P83: 0 | R83: Total | S83: =SUM(S79:S82) -> 0 | T83: 0 | U83: 0 | V83: 0 | W83: 0 | X83: 0
B85: 05/06 - 07/08 | J85: 08/09-09/10 | R85: DPCR5
C86: Total unit Cost £k/per span | D86: Unit cost £k/span | K86: Total unit Cost £k/per span | L86: Forecast Unit cost £k/span | S86: Total unit Cost £k/per span | T86: Forecast Unit cost £k/span
D87: Shrouding | E87: Diversions | F87: Under-grounding | G87: Covered conductors | H87: As part of other planned work | L87: Shrouding | M87: Diversions | N87: Under-grounding | O87: Covered conductors | T87: Shrouding | U87: Diversions | V87: Under-grounding | W87: Covered conductors
B88: LV | C88: =IF(C70>0,C79*1000/C70,0) -> 0 | D88: 0 | E88: 0 | F88: 0 | G88: 0 | J88: LV | K88: =IF(K70>0,K79*1000/K70,0) -> 0 | L88: 0 | M88: 0 | N88: 0 | O88: 0 | R88: LV | S88: =IF(S70>0,S79*1000/S70,0) -> 0 | T88: 0 | U88: 0 | V88: 0 | W88: 0
B89: HV | C89: 0 | D89: 0 | E89: 0 | F89: 0 | G89: 0 | J89: HV | K89: 0 | L89: 0 | M89: 0 | N89: 0 | O89: 0 | R89: HV | S89: 0 | T89: 0 | U89: 0 | V89: 0 | W89: 0
B90: EHV | C90: 0 | D90: 0 | E90: 0 | F90: 0 | G90: 0 | J90: EHV | K90: 0 | L90: 0 | M90: 0 | N90: 0 | O90: 0 | R90: EHV | S90: 0 | T90: 0 | U90: 0 | V90: 0 | W90: 0
B91: 132 kV | C91: 0 | D91: 0 | E91: 0 | F91: 0 | G91: 0 | J91: 132 kV | K91: 0 | L91: 0 | M91: 0 | N91: 0 | O91: 0 | R91: 132 kV | S91: 0 | T91: 0 | U91: 0 | V91: 0 | W91: 0
B94: Vertical - Detailed Information
C96: Sites affected as at April 2005 | D96: No of sites resolved 05/06 - 07/08 | E96: Sites affected as at April 2008 | F96: No of sites to be resolved 08/09 - 09/10 | G96: No of sites to be resolved in DPCR5 | H96: Sites affected as at April 2015
B97: LV | C97: =D97+E97 -> 0 | D97: =C107 -> 0 | F97: =K107 -> 0 | G97: =S107 -> 0 | H97: =E97-SUM(F97:G97) -> 0
B98: HV | C98: =D98+E98 -> 0 | D98: =C108 -> 0 | F98: =K108 -> 0 | G98: =S108 -> 0 | H98: =E98-SUM(F98:G98) -> 0
B99: EHV | C99: =D99+E99 -> 0 | D99: =C109 -> 0 | F99: =K109 -> 0 | G99: =S109 -> 0 | H99: =E99-SUM(F99:G99) -> 0
B100: 132 kV | C100: =D100+E100 -> 0 | D100: =C110 -> 0 | F100: =K110 -> 0 | G100: =S110 -> 0 | H100: =E100-SUM(F100:G100) -> 0
B101: Total | C101: =SUM(C97:C100) -> 0 | D101: 0 | E101: 0 | F101: 0 | G101: 0 | H101: 0
B104: 05/06 - 07/08 | J104: 08/09-09/10 | R104: DPCR5
C105: No of sites resolved | D105: Actual Solutions (#) | K105: No of sites resolved | L105: Forecast Solutions (#) | S105: No of sites resolved | T105: Forecast Solutions (#)
D106: Rebuild | E106: Under-grounding | F106: Other | G106: Derogation | H106: As part of other planned work | L106: Rebuild | M106: Under-grounding | N106: Other | O106: Derogation | P106: As part of other planned work | T106: Rebuild | U106: Under-grounding | V106: Other | W106: Derogation | X106: As part of other planned work
B107: LV | C107: =SUM(D107:H107) -> 0 | J107: LV | K107: =SUM(L107:P107) -> 0 | R107: LV | S107: =SUM(T107:X107) -> 0
B108: HV | C108: =SUM(D108:H108) -> 0 | J108: HV | K108: =SUM(L108:P108) -> 0 | R108: HV | S108: =SUM(T108:X108) -> 0
B109: EHV | C109: =SUM(D109:H109) -> 0 | J109: EHV | K109: =SUM(L109:P109) -> 0 | R109: EHV | S109: =SUM(T109:X109) -> 0
B110: 132 kV | C110: =SUM(D110:H110) -> 0 | J110: 132 kV | K110: =SUM(L110:P110) -> 0 | R110: 132 kV | S110: =SUM(T110:X110) -> 0
B111: Total | C111: =SUM(C107:C110) -> 0 | D111: 0 | E111: 0 | F111: 0 | G111: 0 | H111: 0 | J111: Total | K111: =SUM(K107:K110) -> 0 | L111: 0 | M111: 0 | N111: 0 | O111: 0 | P111: 0 | R111: Total | S111: =SUM(S107:S110) -> 0 | T111: 0 | U111: 0 | V111: 0 | W111: 0 | X111: 0
B113: 05/06 - 07/08 | J113: 08/09-09/10 | R113: DPCR5
C114: No of spans changed | D114: Actual Solutions (#) | K114: No of spans changed | L114: Forecast Solutions (#) | S114: No of spans changed | T114: Forecast Solutions (#)
D115: Rebuild | E115: Under-grounding | F115: Other | G115: Derogation | H115: As part of other planned work | L115: Rebuild | M115: Under-grounding | N115: Other | O115: Derogation | P115: As part of other planned work | T115: Rebuild | U115: Under-grounding | V115: Other | W115: Derogation | X115: As part of other planned work
B116: LV | J116: LV | R116: LV
B117: HV | J117: HV | R117: HV
B118: EHV | J118: EHV | R118: EHV
B119: 132 kV | J119: 132 kV | R119: 132 kV
B120: Total | C120: =SUM(C116:C119) -> 0 | D120: =SUM(D116:D119) -> 0 | E120: =SUM(E116:E119) -> 0 | F120: =SUM(F116:F119) -> 0 | H120: =SUM(H116:H119) -> 0 | J120: Total | K120: =SUM(K116:K119) -> 0 | L120: 0 | M120: 0 | N120: 0 | O120: 0 | P120: 0 | R120: Total | S120: =SUM(S116:S119) -> 0 | T120: 0 | U120: 0 | V120: 0 | W120: 0 | X120: 0
B122: 05/06 - 07/08 | J122: 08/09-09/10 | R122: DPCR5
C123: Total Cost £m | D123: Expenditure £m | K123: Total Cost £m | L123: Forecast Solutions (£m) | S123: Total Cost £m | T123: Forecast Solutions (£m)
D124: Rebuild | E124: Under-grounding | F124: Other | G124: Derogation | H124: As part of other planned work | L124: Rebuild | M124: Under-grounding | N124: Other | O124: Derogation | P124: As part of other planned work | T124: Rebuild | U124: Under-grounding | V124: Other | W124: Derogation | X124: As part of other planned work
B125: LV | C125: =SUM(D42:F42) -> 0 | J125: LV | K125: =SUM(G42:H42) -> 0 | R125: LV | S125: =SUM(I42:M42) -> 0
B126: HV | C126: =SUM(D43:F43) -> 0 | J126: HV | K126: =SUM(G43:H43) -> 0 | R126: HV | S126: =SUM(I43:M43) -> 0
B127: EHV | C127: =SUM(D44:F44) -> 0 | J127: EHV | K127: =SUM(G44:H44) -> 0 | R127: EHV | S127: =SUM(I44:M44) -> 0
B128: 132 kV | C128: =SUM(D45:F45) -> 0 | J128: 132 kV | K128: =SUM(G45:H45) -> 0 | R128: 132 kV | S128: =SUM(I45:M45) -> 0
B129: Total | C129: =SUM(C125:C128) -> 0 | D129: =SUM(D125:D128) -> 0 | E129: =SUM(E125:E128) -> 0 | F129: =SUM(F125:F128) -> 0 | H129: =SUM(H125:H128) -> 0 | J129: Total | K129: =SUM(K125:K128) -> 0 | L129: =SUM(L125:L128) -> 0 | M129: =SUM(M125:M128) -> 0 | N129: =SUM(N125:N128) -> 0 | P129: =SUM(P125:P128) -> 0 | R129: Total | S129: =SUM(S125:S128) -> 0 | T129: =SUM(T125:T128) -> 0 | U129: =SUM(U125:U128) -> 0 | V129: =SUM(V125:V128) -> 0 | X129: =SUM(X125:X128) -> 0
B131: 05/06 - 07/08 | J131: 08/09-09/10 | R131: DPCR5
C132: Total unit Cost £k/per span | D132: Unit cost £k/span | K132: Total unit Cost £k/per span | L132: Forecast Unit cost £k/span | S132: Total unit Cost £k/per span | T132: Forecast Unit cost £k/span
D133: Rebuild | E133: Under-grounding | F133: Other | G133: Derogation | H133: As part of other planned work | L133: Rebuild | M133: Under-grounding | N133: Other | O133: Derogation | P133: As part of other planned work | T133: Rebuild | U133: Under-grounding | V133: Other | W133: Derogation | X133: As part of other planned work
B134: LV | C134: =IF(C116>0,C125*1000/C116,0) -> 0 | D134: 0 | E134: 0 | F134: 0 | J134: LV | K134: =IF(K116>0,K125*1000/K116,0) -> 0 | L134: 0 | M134: 0 | N134: 0 | R134: LV | S134: =IF(S116>0,S125*1000/S116,0) -> 0 | T134: 0 | U134: 0 | V134: 0
B135: HV | C135: 0 | D135: 0 | E135: 0 | F135: 0 | J135: HV | K135: 0 | L135: 0 | M135: 0 | N135: 0 | R135: HV | S135: 0 | T135: 0 | U135: 0 | V135: 0
B136: EHV | C136: 0 | D136: 0 | E136: 0 | F136: 0 | J136: EHV | K136: 0 | L136: 0 | M136: 0 | N136: 0 | R136: EHV | S136: 0 | T136: 0 | U136: 0 | V136: 0
B137: 132 kV | C137: 0 | D137: 0 | E137: 0 | F137: 0 | J137: 132 kV | K137: 0 | L137: 0 | M137: 0 | N137: 0 | R137: 132 kV | S137: 0 | T137: 0 | U137: 0 | V137: 0

Sheet FBPQ C2
A1: Main Forecast Business Plan DPCR5 | F1: Index
A3: C2 - Unit costs
B7: Asset categories | F7: Units | G7: New build | I7: Replacement
G8: Direct costs | H8: Cost including indirects (absorbed costs in T2A) | I8: Direct costs | J8: Cost including indirects (absorbed costs in T2A)
G9: (£k) | H9: (£k) | I9: (£k) | J9: (£k)
C10: LV Network
D11: Overhead lines
E12: LV Main (OHL) | F12: km | J12: 39.50991011
E13: LV Service (OHL) | F13: Each | J13: 0.481828172
D15: Overhead lines - Support
E16: LV Support | F16: Each | J16: 0
D18: Underground cables
E19: LV Main (UG Consac) | F19: km | J19: 120.457043
E20: LV Main (UG Plastic) | F20: km | J20: 120.457043
E21: LV Main (UG Paper) | F21: km | J21: 120.457043
E22: LV Service (UG) | F22: Each | J22: 1.610775671
D24: Switchgear
E25: LV Pillar (ID) | F25: Each | J25: 5.420566935
E26: LV Pillar (OD) | F26: Each | J26: 5.420566935
E27: LV Board (WM) | F27: Each | J27: 5.420566935
E28: LV UGB | F28: Each | J28: 4.577367634
E29: LV Fuses (PM) | F29: Each
E30: LV Fuses (TM) | F30: Each
C32: HV network
D33: Overhead lines
E34: 6.6/11 kV OHL (Open) | F34: km | J34: 40.83493758
E35: 6.6/11 kV OHL (Covered) | F35: km | J35: 40.83493758
E36: 20 kV OHL (Open) | F36: km | J36: 0
E37: 20 kV OHL (Covered) | F37: km | J37: 0
D39: Overhead lines - Support
E40: 6.6/11 kV Support | F40: Each | J40: 0
E41: 20 kV Support | F41: Each | J41: 0
D43: Underground cables (kms)
E44: 6.6/11kV UG Cable | F44: km | J44: 80.1039336
E45: 20kV UG Cable | F45: km | J45: 0
D47: Submarine cables (kms)
E48: HV Sub Cable | F48: km | J48: 0
D50: Switchgear
E51: 6.6/11 kV CB (PM) | F51: Each | J51: 13.25027473
E52: 6.6/11 kV CB (GM) | F52: Each | J52: 29.27106145
E53: 6.6/11 kV Switch (PM) | F53: Each | J53: 1.565941559
E54: 6.6/11 kV Switch (GM) | F54: Each | J54: 4.938738763
E55: 6.6/11 kV RMU | F55: Each | J55: 15.53895855
E56: 6.6/11 kV Switchgear - Other (PM) | F56: Each
E57: 6.6/11 kV Switchgear - Other (GM) | F57: Each
E58: 20 kV CB (PM) | F58: Each | J58: 0
E59: 20 kV CB (GM) | F59: Each | J59: 0
E60: 20 kV Switch (PM) | F60: Each | J60: 0
E61: 20 kV Switch (GM) | F61: Each | J61: 0
E62: 20 kV RMU | F62: Each | J62: 0
E63: 20 kV Switchgear - Other (PM) | F63: Each
E64: 20 kV Switchgear - Other (GM) | F64: Each
D66: Transformers
E67: 6.6/11 kV Transformer (PM) | F67: Each | J67: 3.493254247
E68: 6.6/11 kV Transformer (GM) | F68: Each | J68: 11.32296204
E69: 20 kV Transformer (PM) | F69: Each | J69: 0
E70: 20 kV Transformer (GM) | F70: Each | J70: 0
C72: EHV Network
D73: Overhead lines
E74: 33kV OHL (Pole Line) | F74: km | J74: 93.23375129
E75: 33kV OHL (Tower Line) | F75: km | J75: 148.523534
E76: 66kV OHL (Pole Line) | F76: km | J76: 175.8672828
E77: 66kV OHL (Tower Line) | F77: km | J77: 175.8672828
D79: Overhead lines - Support
E80: 33kV Pole | F80: Each | J80: 0
E81: 33kV Tower | F81: Each | J81: 0
E82: 66kV Pole | F82: Each | J82: 0
E83: 66kV Tower | F83: Each | J83: 0
D85: Underground cables (kms)
E86: 33kV UG Cable (Non Pressurised) | F86: km | J86: 243.564141
E87: 33kV UG Cable (Oil) | F87: km | J87: 243.564141
E88: 33kV UG Cable (Gas) | F88: km | J88: 0
